Workbook

Sheet Feuil1
C2: Bonus | F2: 1) Ce qui nous interresse est dans la partie jaune, en haut, de gauche a droite. En blanc, les cases a remplir | P2: 4) Choisir entre l'approximation des kits=0 ou kit officiel=1. Dans ce | AH2: choisir une tactique : | AU2: 0 | AY2: 7) Choisir la position des joueurs. | BI2: 9) Entrer les bonus de match que vous pensez avoir, | CL2: valeur des vitamines : | CP2: 0 | CR2: vitamines :
AH3: Def/Neutre/Off : | AJ3: =AH4 -> 352 | AP3: =AH5 -> Defensif | AV3: total sans bonus | BH3: , | BR3: Nom de l'équipe adverse à analyser ou URL du match de référence : | CB3: 10) Choisir la tactique | CH3: ATTENTION : si vous saisissez les données des joueurs manuellement, elles ne pourront plus être importées !!!
F4: , en jaune pale, les informations. Les données sont indicatives (a 1% pres) pour un moral et une energie max. | P4: dernier cas, entrer les valeurs des caracteristiques de vos kits. | AH4: 352 | AV4: =BG24 -> 0 | BI4: ainsi que ceux de votre adversaire. | CH4: NOM | CK4: force | CL4: hab | CM4: vit | CN4: end | CO4: int | CP4: XP | CQ4: cap
AH5: Defensif | CB5: de l'adversaire. | CG5: 1 | CH5: =IF(OFFSET(Feuil6!A3,0,'import advers'!$S$1)="","",OFFSET(Feuil6!A3,0,'import advers'!$S$1)) ->  | CJ5: 408 | CK5: =IF(CH5="","",CLEAN(SUBSTITUTE(OFFSET(Feuil6!A$13,0,'import advers'!$S$1),"Force",""))) ->  | CL5: =IF(CH5="","",CLEAN(SUBSTITUTE(OFFSET(Feuil6!A$15,0,'import advers'!$S$1),"Habileté",""))) ->  | CM5: =IF(CH5="","",CLEAN(SUBSTITUTE(OFFSET(Feuil6!A$17,0,'import advers'!$S$1),"Vitesse",""))) ->  | CN5: =IF(CH5="","",CLEAN(SUBSTITUTE(OFFSET(Feuil6!A$19,0,'import advers'!$S$1),"Endurance",""))) ->  | CO5: =IF(CH5="","",CLEAN(SUBSTITUTE(OFFSET(Feuil6!A$21,0,'import advers'!$S$1),"Intelligence",""))) ->  | CP5: =IF(CH5="","",VALUE(SUBSTITUTE(CLEAN(OFFSET(Feuil6!A$9,0,'import advers'!$S$1)),".",","))) ->  | CQ5: =IF(CH5<>"",(CO5/100+MIN(5000,CP5)/500)/100,"") ->  | CU5: 11) Entrer la valeur des vitamines de l'adversaire et choisir si
C6: batiments : | F6: 2) Remplir les cases blanches par la valeur des gains. Pour "objet", il | W6: 5) Choisir une tactique. | AJ6: =IF(AX306,"Calcul sur la base des stats et bonus REELS des joueurs","Calcul sur la base des stats et bonus OPTIMUMS des joueurs") -> Calcul sur la base des stats et bonus OPTIMUMS des joueurs | AV6: Position : | AX6: Capitaine | CG6: 2 | CH6: =IF(OFFSET(Feuil6!B3,0,'import advers'!$S$1)="","",OFFSET(Feuil6!B3,0,'import advers'!$S$1)) ->  | CJ6: 770 | CK6: =IF(CH6="","",CLEAN(SUBSTITUTE(OFFSET(Feuil6!B$13,0,'import advers'!$S$1),"Force",""))) ->  | CL6: =IF(CH6="","",CLEAN(SUBSTITUTE(OFFSET(Feuil6!B$15,0,'import advers'!$S$1),"Habileté",""))) ->  | CM6: =IF(CH6="","",CLEAN(SUBSTITUTE(OFFSET(Feuil6!B$17,0,'import advers'!$S$1),"Vitesse",""))) ->  | CN6: =IF(CH6="","",CLEAN(SUBSTITUTE(OFFSET(Feuil6!B$19,0,'import advers'!$S$1),"Endurance",""))) ->  | CO6: =IF(CH6="","",CLEAN(SUBSTITUTE(OFFSET(Feuil6!B$21,0,'import advers'!$S$1),"Intelligence",""))) ->  | CP6: =IF(CH6="","",VALUE(SUBSTITUTE(CLEAN(OFFSET(Feuil6!B$9,0,'import advers'!$S$1)),".",","))) -> 
AJ7: 1 | AK7: 2 | AL7: 3 | AM7: 4 | AN7: 5 | AO7: 6 | AP7: 7 | AQ7: 8 | AR7: 9 | AS7: 10 | AT7: 11 | AX7: Gogod | BK7: Meilleur capitaine : | BR7: Si import par URL, équipe à importer : | CG7: 3 | CH7: =IF(OFFSET(Feuil6!C3,0,'import advers'!$S$1)="","",OFFSET(Feuil6!C3,0,'import advers'!$S$1)) ->  | CJ7: 725 | CK7: =IF(CH7="","",CLEAN(SUBSTITUTE(OFFSET(Feuil6!C$13,0,'import advers'!$S$1),"Force",""))) ->  | CL7: =IF(CH7="","",CLEAN(SUBSTITUTE(OFFSET(Feuil6!C$15,0,'import advers'!$S$1),"Habileté",""))) ->  | CM7: =IF(CH7="","",CLEAN(SUBSTITUTE(OFFSET(Feuil6!C$17,0,'import advers'!$S$1),"Vitesse",""))) ->  | CN7: =IF(CH7="","",CLEAN(SUBSTITUTE(OFFSET(Feuil6!C$19,0,'import advers'!$S$1),"Endurance",""))) ->  | CO7: =IF(CH7="","",CLEAN(SUBSTITUTE(OFFSET(Feuil6!C$21,0,'import advers'!$S$1),"Intelligence",""))) ->  | CP7: =IF(CH7="","",VALUE(SUBSTITUTE(CLEAN(OFFSET(Feuil6!C$9,0,'import advers'!$S$1)),".",","))) ->  | CU7: le joueur à une vitamine supplementaire.
C8: force : | D8: =Team!A11 ->  | F8: s'agit de la valeur max des objets que l'on trouve au marché. | O8: caracteristiques kit en cours | AG8: 0 | AI8: =IF(G11="","",G11) ->  | AJ8: =IF(AI8<>"",AY56*IF($AX$37=1,$BW$58,1),"") ->  | AK8: =IF(AI8<>"",BP56*IF($AX$37=1,$BW$59,1),"") ->  | AL8: =IF(AI8<>"",AY83*IF($AX$37=1,$BW$60,1),"") ->  | AM8: =IF(AI8<>"",BP83*IF($AX$37=1,$BW$61,1),"") ->  | AN8: =IF(AI8<>"",AY110*IF($AX$37=1,$BW$62,1),"") ->  | AO8: =IF(AI8<>"",BP110*IF($AX$37=1,$BW$63,1),"") ->  | AP8: =IF(AI8<>"",AY137*IF($AX$37=1,$BW$64,1),"") ->  | AQ8: =IF(AI8<>"",BP137*IF($AX$37=1,$BW$65,1),"") ->  | AR8: =IF(AI8<>"",AY164*IF($AX$37=1,$BW$66,1),"") ->  | AS8: =IF(AI8<>"",BP164*IF($AX$37=1,$BW$67,1),"") ->  | AT8: =IF(AI8<>"",AY191*IF($AX$37=1,$BW$68,1),"") ->  | AV8: 1 | AW8: =IF(ISNA(VLOOKUP(1,$AV$8:$AV$33,1,FALSE)),1,"") ->  | AX8: =IF(AND(AV8<>"",AI8<>""),IF(ISNA(VLOOKUP(AI8,$E$104:$I$128,5,FALSE)),0,VLOOKUP(AI8,$E$104:$I$128,5,FALSE)),"") ->  | BK8: =IF(ISNA(VLOOKUP("CAP",D104:I128,2,)),"",VLOOKUP("CAP",D104:I128,2,)) ->  | BO8: =IF(ISNA(VLOOKUP(BK8,E104:I128,5,FALSE)),"",VLOOKUP(BK8,E104:I128,5,FALSE)) ->  | BR8: brut adversaire sans bonus | CG8: 4 | CH8: =IF(OFFSET(Feuil6!D3,0,'import advers'!$S$1)="","",OFFSET(Feuil6!D3,0,'import advers'!$S$1)) ->  | CJ8: 770 | CK8: =IF(CH8="","",CLEAN(SUBSTITUTE(OFFSET(Feuil6!D$13,0,'import advers'!$S$1),"Force",""))) ->  | CL8: =IF(CH8="","",CLEAN(SUBSTITUTE(OFFSET(Feuil6!D$15,0,'import advers'!$S$1),"Habileté",""))) ->  | CM8: =IF(CH8="","",CLEAN(SUBSTITUTE(OFFSET(Feuil6!D$17,0,'import advers'!$S$1),"Vitesse",""))) ->  | CN8: =IF(CH8="","",CLEAN(SUBSTITUTE(OFFSET(Feuil6!D$19,0,'import advers'!$S$1),"Endurance",""))) ->  | CO8: =IF(CH8="","",CLEAN(SUBSTITUTE(OFFSET(Feuil6!D$21,0,'import advers'!$S$1),"Intelligence",""))) ->  | CP8: =IF(CH8="","",VALUE(SUBSTITUTE(CLEAN(OFFSET(Feuil6!D$9,0,'import advers'!$S$1)),".",","))) -> 
C9: habilité : | D9: =Team!B11 ->  | Q9: kit 1 | R9: kit 2/3 | T9: kit 4 | V9: kit 5 | W9: kit 6/7 | Z9: kit 8 | AA9: kit 9 | AC9: kit 10 | AD9: kit 11 | AG9: 0 | AI9: =IF(G12="","",G12) ->  | AJ9: =IF(AI9<>"",AY57*IF($AX$37=1,$BW$58,1),"") ->  | AV9: 2 | AW9: =IF(ISNA(VLOOKUP(2,$AV$8:$AV$33,1,FALSE)),2,"") ->  | AX9: =IF(AND(AV9<>"",AI9<>""),IF(ISNA(VLOOKUP(AI9,$E$104:$I$128,5,FALSE)),0,VLOOKUP(AI9,$E$104:$I$128,5,FALSE)),"") ->  | BA9: nom du joueur | BB9: kit | BC9: attaque | BE9: defense | BG9: cumulé | BI9: XP | CB9: code choix tactique | CG9: 5 | CH9: =IF(OFFSET(Feuil6!E3,0,'import advers'!$S$1)="","",OFFSET(Feuil6!E3,0,'import advers'!$S$1)) ->  | CJ9: 483 | CK9: =IF(CH9="","",CLEAN(SUBSTITUTE(OFFSET(Feuil6!E$13,0,'import advers'!$S$1),"Force",""))) ->  | CL9: =IF(CH9="","",CLEAN(SUBSTITUTE(OFFSET(Feuil6!E$15,0,'import advers'!$S$1),"Habileté",""))) ->  | CM9: =IF(CH9="","",CLEAN(SUBSTITUTE(OFFSET(Feuil6!E$17,0,'import advers'!$S$1),"Vitesse",""))) ->  | CN9: =IF(CH9="","",CLEAN(SUBSTITUTE(OFFSET(Feuil6!E$19,0,'import advers'!$S$1),"Endurance",""))) ->  | CO9: =IF(CH9="","",CLEAN(SUBSTITUTE(OFFSET(Feuil6!E$21,0,'import advers'!$S$1),"Intelligence",""))) ->  | CP9: =IF(CH9="","",VALUE(SUBSTITUTE(CLEAN(OFFSET(Feuil6!E$9,0,'import advers'!$S$1)),".",","))) -> 
C10: vitesse : | D10: =Team!C11 ->  | G10: NOM | H10: force | I10: habilité | J10: vitesse | K10: endurance | L10: intelligence | M10: XP | N10: % Capitaine | P10: force | Q10: =IF(Q39=1,Q26,Q19) -> 0 | R10: 0 | S10: 0 | T10: 0 | U10: 0 | V10: 0 | W10: 0 | X10: 0 | Y10: 0 | Z10: 0 | AA10: 0 | AB10: 0 | AC10: 0 | AD10: 0 | AG10: 0 | AV10: 3 | AW10: =IF(ISNA(VLOOKUP(3,$AV$8:$AV$33,1,FALSE)),3,"") ->  | AZ10: 1 | BA10: =IF(AV8=1,AI8,IF(AV9=1,AI9,IF(AV10=1,AI10,IF(AV11=1,AI11,IF(AV12=1,AI12,IF(AV13=1,AI13,IF(AV14=1,AI14,IF(AV15=1,AI15,BT70)))))))) ->  | BB10: =IF(BA10="","",IF(AV8=1,BS113,IF(AV9=1,BS114,IF(AV10=1,BS115,IF(AV11=1,BS116,IF(AV12=1,BS117,IF(AV13=1,BS118,IF(AV14=1,BS119,IF(AV15=1,BS120,BT140))))))))) ->  | BC10: =IF(BA10="","",BW70*BS58) ->  | BE10: =IF(BA10="","",BW70*BU58) ->  | BG10: =IF(BA10="","",ROUND(BW70*BW58,2)) ->  | BI10: =VLOOKUP(BA10,$G$11:$M$32,7,FALSE) ->  | BR10: tactique adversaire | BU10: attaque | BW10: défense | BY10: cumulé | CG10: 6 | CH10: =IF(OFFSET(Feuil6!F3,0,'import advers'!$S$1)="","",OFFSET(Feuil6!F3,0,'import advers'!$S$1)) ->  | CJ10: 680 | CK10: =IF(CH10="","",CLEAN(SUBSTITUTE(OFFSET(Feuil6!F$13,0,'import advers'!$S$1),"Force",""))) ->  | CL10: =IF(CH10="","",CLEAN(SUBSTITUTE(OFFSET(Feuil6!F$15,0,'import advers'!$S$1),"Habileté",""))) ->  | CM10: =IF(CH10="","",CLEAN(SUBSTITUTE(OFFSET(Feuil6!F$17,0,'import advers'!$S$1),"Vitesse",""))) ->  | CN10: =IF(CH10="","",CLEAN(SUBSTITUTE(OFFSET(Feuil6!F$19,0,'import advers'!$S$1),"Endurance",""))) ->  | CO10: =IF(CH10="","",CLEAN(SUBSTITUTE(OFFSET(Feuil6!F$21,0,'import advers'!$S$1),"Intelligence",""))) ->  | CP10: =IF(CH10="","",VALUE(SUBSTITUTE(CLEAN(OFFSET(Feuil6!F$9,0,'import advers'!$S$1)),".",","))) -> 
C11: endurance : | D11: =Team!D11 ->  | F11: 1 | G11: =IF(Team!C44<>0,Team!C44,"") ->  | H11: =IF($G11<>"",VLOOKUP(Team!X17,Team!$E$30:$F$300,2,FALSE),"") ->  | I11: =IF($G11<>"",VLOOKUP(Team!Y17,Team!$E$41:$F$300,2,FALSE),"") ->  | J11: =IF($G11<>"",VLOOKUP(Team!Z17,Team!$E$41:$F$300,2,FALSE),"") ->  | K11: =IF($G11<>"",VLOOKUP(Team!AA17,Team!$E$41:$F$300,2,FALSE),"") ->  | L11: =IF($G11<>"",VLOOKUP(Team!AB17,Team!$E$41:$F$300,2,FALSE),"") ->  | M11: =IF($G11<>"",VALUE(VLOOKUP(Team!X17,Team!$E$41:$P$300,12,FALSE)),"") ->  | N11: =G104 ->  | P11: habilité | Q11: =IF(Q40=1,Q27,Q20) -> 0 | R11: 0 | S11: 0 | T11: 0 | U11: 0 | V11: 0 | W11: 0 | X11: 0 | Y11: 0 | Z11: 0 | AA11: 0 | AB11: 0 | AC11: 0 | AD11: 0 | AG11: 0 | AV11: 4 | AW11: =IF(ISNA(VLOOKUP(4,$AV$8:$AV$33,1,FALSE)),4,"") ->  | AZ11: 2 | BA11: =IF(AV8=2,AI8,IF(AV9=2,AI9,IF(AV10=2,AI10,IF(AV11=2,AI11,IF(AV12=2,AI12,IF(AV13=2,AI13,IF(AV14=2,AI14,IF(AV15=2,AI15,BT71)))))))) ->  | BB11: =IF(BA11="","",IF(AV8=2,BU113,IF(AV9=2,BU114,IF(AV10=2,BU115,IF(AV11=2,BU116,IF(AV12=2,BU117,IF(AV13=2,BU118,IF(AV14=2,BU119,IF(AV15=2,BU120,BT141))))))))) ->  | BC11: =IF(BA10="","",BW71*BS59) ->  | BE11: =IF(BA10="","",BW71*BU59) ->  | BG11: =IF(BA10="","",ROUND(BW71*BW59,2)) ->  | BI11: =VLOOKUP(BA11,$G$11:$M$32,7,FALSE) ->  | BK11: bonus match | BR11: =IF(CA15=CE11,CC11,IF(CA15=CE12,CC12,IF(CA15=CE13,CC13,IF(CA15=CE14,CC14,erreur)))) -> 352 | BS11: =IF(CA17=CE16,CC16,IF(CA17=CE17,CC17,IF(CA17=CE18,CC18,erreur))) -> offensif | BU11: =IF(CH5="","",CA70) ->  | BW11: =IF(CH5="","",CB70) ->  | BY11: =IF(CH5="","",ROUND(BU11+BW11,2)) ->  | CC11: 541 | CE11: 1 | CG11: 7 | CH11: =IF(OFFSET(Feuil6!G3,0,'import advers'!$S$1)="","",OFFSET(Feuil6!G3,0,'import advers'!$S$1)) ->  | CJ11: 680 | CK11: =IF(CH11="","",CLEAN(SUBSTITUTE(OFFSET(Feuil6!G$13,0,'import advers'!$S$1),"Force",""))) ->  | CL11: =IF(CH11="","",CLEAN(SUBSTITUTE(OFFSET(Feuil6!G$15,0,'import advers'!$S$1),"Habileté",""))) ->  | CM11: =IF(CH11="","",CLEAN(SUBSTITUTE(OFFSET(Feuil6!G$17,0,'import advers'!$S$1),"Vitesse",""))) ->  | CN11: =IF(CH11="","",CLEAN(SUBSTITUTE(OFFSET(Feuil6!G$19,0,'import advers'!$S$1),"Endurance",""))) ->  | CO11: =IF(CH11="","",CLEAN(SUBSTITUTE(OFFSET(Feuil6!G$21,0,'import advers'!$S$1),"Intelligence",""))) ->  | CP11: =IF(CH11="","",VALUE(SUBSTITUTE(CLEAN(OFFSET(Feuil6!G$9,0,'import advers'!$S$1)),".",","))) -> 
C12: intelligence : | D12: =Team!E11 ->  | F12: 2 | G12: =IF(Team!C55<>0,Team!C55,"") ->  | H12: =IF($G12<>"",VLOOKUP(Team!X18,Team!$E$41:$F$300,2,FALSE),"") ->  | I12: =IF($G12<>"",VLOOKUP(Team!Y18,Team!$E$41:$F$300,2,FALSE),"") ->  | J12: =IF($G12<>"",VLOOKUP(Team!Z18,Team!$E$41:$F$300,2,FALSE),"") ->  | K12: =IF($G12<>"",VLOOKUP(Team!AA18,Team!$E$41:$F$300,2,FALSE),"") ->  | L12: =IF($G12<>"",VLOOKUP(Team!AB18,Team!$E$41:$F$300,2,FALSE),"") ->  | M12: =IF($G12<>"",VALUE(VLOOKUP(Team!X18,Team!$E$41:$P$300,12,FALSE)),"") ->  | N12: =G105 ->  | P12: vitesse | Q12: =IF(Q41=1,Q28,Q21) -> 0 | R12: 0 | S12: 0 | T12: 0 | U12: 0 | V12: 0 | W12: 0 | X12: 0 | Y12: 0 | Z12: 0 | AA12: 0 | AB12: 0 | AC12: 0 | AD12: 0 | AG12: 0 | AI12: =IF(G15="","",G15) ->  | AV12: 5 | AW12: =IF(ISNA(VLOOKUP(5,$AV$8:$AV$33,1,FALSE)),5,"") ->  | AZ12: 3 | BA12: =IF(AV8=3,AI8,IF(AV9=3,AI9,IF(AV10=3,AI10,IF(AV11=3,AI11,IF(AV12=3,AI12,IF(AV13=3,AI13,IF(AV14=3,AI14,IF(AV15=3,AI15,BT72)))))))) ->  | BB12: =IF(BA10="","",IF(AV8=3,BW113,IF(AV9=3,BW114,IF(AV10=3,BW115,IF(AV11=3,BW116,IF(AV12=3,BW117,IF(AV13=3,BW118,IF(AV14=3,BW119,IF(AV15=3,BW120,BT142))))))))) ->  | BC12: =IF(BA10="","",BW72*BS60) ->  | BE12: =IF(BA10="","",BW72*BU60) ->  | BG12: =IF(BA10="","",ROUND(BW72*BW60,2)) ->  | CC12: 433 | CE12: 2 | CG12: 8 | CH12: =IF(OFFSET(Feuil6!H3,0,'import advers'!$S$1)="","",OFFSET(Feuil6!H3,0,'import advers'!$S$1)) ->  | CJ12: 483 | CK12: =IF(CH12="","",CLEAN(SUBSTITUTE(OFFSET(Feuil6!H$13,0,'import advers'!$S$1),"Force",""))) ->  | CL12: =IF(CH12="","",CLEAN(SUBSTITUTE(OFFSET(Feuil6!H$15,0,'import advers'!$S$1),"Habileté",""))) ->  | CM12: =IF(CH12="","",CLEAN(SUBSTITUTE(OFFSET(Feuil6!H$17,0,'import advers'!$S$1),"Vitesse",""))) ->  | CN12: =IF(CH12="","",CLEAN(SUBSTITUTE(OFFSET(Feuil6!H$19,0,'import advers'!$S$1),"Endurance",""))) ->  | CO12: =IF(CH12="","",CLEAN(SUBSTITUTE(OFFSET(Feuil6!H$21,0,'import advers'!$S$1),"Intelligence",""))) ->  | CP12: =IF(CH12="","",VALUE(SUBSTITUTE(CLEAN(OFFSET(Feuil6!H$9,0,'import advers'!$S$1)),".",","))) -> 
C13: Laboratoire : | D13: =Team!F11 ->  | F13: 3 | G13: =IF(Team!C66<>0,Team!C66,"") ->  | H13: =IF($G13<>"",VLOOKUP(Team!X19,Team!$E$41:$F$300,2,FALSE),"") ->  | I13: =IF($G13<>"",VLOOKUP(Team!Y19,Team!$E$41:$F$300,2,FALSE),"") ->  | J13: =IF($G13<>"",VLOOKUP(Team!Z19,Team!$E$41:$F$300,2,FALSE),"") ->  | K13: =IF($G13<>"",VLOOKUP(Team!AA19,Team!$E$41:$F$300,2,FALSE),"") ->  | L13: =IF($G13<>"",VLOOKUP(Team!AB19,Team!$E$41:$F$300,2,FALSE),"") ->  | M13: =IF($G13<>"",VALUE(VLOOKUP(Team!X19,Team!$E$41:$P$300,12,FALSE)),"") ->  | P13: endurance | Q13: =IF(Q42=1,Q29,Q22) -> 0 | R13: 0 | S13: 0 | T13: 0 | U13: 0 | V13: 0 | W13: 0 | X13: 0 | Y13: 0 | Z13: 0 | AA13: 0 | AB13: 0 | AC13: 0 | AD13: 0 | AG13: 0 | AV13: 6 | AW13: =IF(ISNA(VLOOKUP(6,$AV$8:$AV$33,1,FALSE)),6,"") ->  | AZ13: 4 | BA13: =IF(AV8=4,AI8,IF(AV9=4,AI9,IF(AV10=4,AI10,IF(AV11=4,AI11,IF(AV12=4,AI12,IF(AV13=4,AI13,IF(AV14=4,AI14,IF(AV15=4,AI15,BT73)))))))) ->  | BB13: =IF(BA10="","",IF(AV8=4,BY113,IF(AV9=4,BY114,IF(AV10=4,BY115,IF(AV11=4,BY116,IF(AV12=4,BY117,IF(AV13=4,BY118,IF(AV14=4,BY119,IF(AV15=4,BY120,BT143))))))))) ->  | BC13: =IF(BA10="","",BW73*BS61) ->  | BE13: =IF(BA10="","",BW73*BU61) ->  | BG13: =IF(BA10="","",ROUND(BW73*BW61,2)) ->  | BK13: bonus de chance : | BN13: 0 | BO13: % | BR13: bonus de chance : | BW13: % | BY13: tactique adversaire | CC13: 352 | CE13: 3 | CG13: 9 | CH13: =IF(OFFSET(Feuil6!I3,0,'import advers'!$S$1)="","",OFFSET(Feuil6!I3,0,'import advers'!$S$1)) ->  | CJ13: 846 | CK13: =IF(CH13="","",CLEAN(SUBSTITUTE(OFFSET(Feuil6!I$13,0,'import advers'!$S$1),"Force",""))) ->  | CL13: =IF(CH13="","",CLEAN(SUBSTITUTE(OFFSET(Feuil6!I$15,0,'import advers'!$S$1),"Habileté",""))) ->  | CM13: =IF(CH13="","",CLEAN(SUBSTITUTE(OFFSET(Feuil6!I$17,0,'import advers'!$S$1),"Vitesse",""))) ->  | CN13: =IF(CH13="","",CLEAN(SUBSTITUTE(OFFSET(Feuil6!I$19,0,'import advers'!$S$1),"Endurance",""))) ->  | CO13: =IF(CH13="","",CLEAN(SUBSTITUTE(OFFSET(Feuil6!I$21,0,'import advers'!$S$1),"Intelligence",""))) ->  | CP13: =IF(CH13="","",VALUE(SUBSTITUTE(CLEAN(OFFSET(Feuil6!I$9,0,'import advers'!$S$1)),".",","))) -> 
F14: 4 | G14: =IF(Team!C77<>0,Team!C77,"") ->  | H14: =IF($G14<>"",VLOOKUP(Team!X20,Team!$E$41:$F$300,2,FALSE),"") ->  | I14: =IF($G14<>"",VLOOKUP(Team!Y20,Team!$E$41:$F$300,2,FALSE),"") ->  | J14: =IF($G14<>"",VLOOKUP(Team!Z20,Team!$E$41:$F$300,2,FALSE),"") ->  | K14: =IF($G14<>"",VLOOKUP(Team!AA20,Team!$E$41:$F$300,2,FALSE),"") ->  | L14: =IF($G14<>"",VLOOKUP(Team!AB20,Team!$E$41:$F$300,2,FALSE),"") ->  | M14: =IF($G14<>"",VALUE(VLOOKUP(Team!X20,Team!$E$41:$P$300,12,FALSE)),"") ->  | P14: intelligence | Q14: =IF(Q43=1,Q30,Q23) -> 0 | R14: 0 | S14: 0 | T14: 0 | U14: 0 | V14: 0 | W14: 0 | X14: 0 | Y14: 0 | Z14: 0 | AA14: 0 | AB14: 0 | AC14: 0 | AD14: 0 | AG14: 0 | AV14: 7 | AW14: =IF(ISNA(VLOOKUP(7,$AV$8:$AV$33,1,FALSE)),7,"") ->  | AZ14: 5 | BA14: =IF(AV8=5,AI8,IF(AV9=5,AI9,IF(AV10=5,AI10,IF(AV11=5,AI11,IF(AV12=5,AI12,IF(AV13=5,AI13,IF(AV14=5,AI14,IF(AV15=5,AI15,BT74)))))))) ->  | BB14: =IF(BA10="","",IF(AV8=5,CA113,IF(AV9=5,CA114,IF(AV10=5,CA115,IF(AV11=5,CA116,IF(AV12=5,CA117,IF(AV13=5,CA118,IF(AV14=5,CA119,IF(AV15=5,CA120,BT144))))))))) ->  | BC14: =IF(BA10="","",BW74*BS62) ->  | BE14: =IF(BA10="","",BW74*BU62) ->  | BG14: =IF(BA10="","",ROUND(BW74*BW62,2)) ->  | BK14: bonus d'experience : | BN14: =IF(CH20="Votre équipe à",CL20*100,0) -> 0 | BO14: % | BR14: bonus d'experience : | BU14: =IF(CH20="L'équipe adverse à",CL20*100,0) -> 0 | BW14: % | CC14: 442 | CE14: 4 | CG14: 10 | CH14: =IF(OFFSET(Feuil6!J3,0,'import advers'!$S$1)="","",OFFSET(Feuil6!J3,0,'import advers'!$S$1)) ->  | CJ14: 483 | CK14: =IF(CH14="","",CLEAN(SUBSTITUTE(OFFSET(Feuil6!J$13,0,'import advers'!$S$1),"Force",""))) ->  | CL14: =IF(CH14="","",CLEAN(SUBSTITUTE(OFFSET(Feuil6!J$15,0,'import advers'!$S$1),"Habileté",""))) ->  | CM14: =IF(CH14="","",CLEAN(SUBSTITUTE(OFFSET(Feuil6!J$17,0,'import advers'!$S$1),"Vitesse",""))) ->  | CN14: =IF(CH14="","",CLEAN(SUBSTITUTE(OFFSET(Feuil6!J$19,0,'import advers'!$S$1),"Endurance",""))) ->  | CO14: =IF(CH14="","",CLEAN(SUBSTITUTE(OFFSET(Feuil6!J$21,0,'import advers'!$S$1),"Intelligence",""))) ->  | CP14: =IF(CH14="","",VALUE(SUBSTITUTE(CLEAN(OFFSET(Feuil6!J$9,0,'import advers'!$S$1)),".",","))) -> 
F15: 5 | G15: =IF(Team!C88<>0,Team!C88,"") ->  | H15: =IF($G15<>"",VLOOKUP(Team!X21,Team!$E$41:$F$300,2,FALSE),"") ->  | I15: =IF($G15<>"",VLOOKUP(Team!Y21,Team!$E$41:$F$300,2,FALSE),"") ->  | J15: =IF($G15<>"",VLOOKUP(Team!Z21,Team!$E$41:$F$300,2,FALSE),"") ->  | K15: =IF($G15<>"",VLOOKUP(Team!AA21,Team!$E$41:$F$300,2,FALSE),"") ->  | L15: =IF($G15<>"",VLOOKUP(Team!AB21,Team!$E$41:$F$300,2,FALSE),"") ->  | M15: =IF($G15<>"",VALUE(VLOOKUP(Team!X21,Team!$E$41:$P$300,12,FALSE)),"") ->  | N15: =G108 ->  | AG15: 0 | AJ15: =IF(AI15<>"",AY63*IF($AX$37=1,$BW$58,1),"") ->  | AK15: =IF(AI15<>"",BP63*IF($AX$37=1,$BW$59,1),"") ->  | AL15: =IF(AI15<>"",AY90*IF($AX$37=1,$BW$60,1),"") ->  | AM15: =IF(AI15<>"",BP90*IF($AX$37=1,$BW$61,1),"") ->  | AN15: =IF(AI15<>"",AY117*IF($AX$37=1,$BW$62,1),"") ->  | AO15: =IF(AI15<>"",BP117*IF($AX$37=1,$BW$63,1),"") ->  | AP15: =IF(AI15<>"",AY144*IF($AX$37=1,$BW$64,1),"") ->  | AQ15: =IF(AI15<>"",BP144*IF($AX$37=1,$BW$65,1),"") ->  | AR15: =IF(AI15<>"",AY171*IF($AX$37=1,$BW$66,1),"") ->  | AS15: =IF(AI15<>"",BP171*IF($AX$37=1,$BW$67,1),"") ->  | AT15: =IF(AI15<>"",AY198*IF($AX$37=1,$BW$68,1),"") ->  | AV15: 8 | AW15: =IF(ISNA(VLOOKUP(8,$AV$8:$AV$33,1,FALSE)),8,"") ->  | AX15: =IF(AND(AV15<>"",AI15<>""),IF(ISNA(VLOOKUP(AI15,$E$104:$I$128,5,FALSE)),0,VLOOKUP(AI15,$E$104:$I$128,5,FALSE)),"") ->  | AZ15: 6 | BA15: =IF(AV8=6,AI8,IF(AV9=6,AI9,IF(AV10=6,AI10,IF(AV11=6,AI11,IF(AV12=6,AI12,IF(AV13=6,AI13,IF(AV14=6,AI14,IF(AV15=6,AI15,BT75)))))))) ->  | BB15: =IF(BA10="","",IF(AV8=6,CC113,IF(AV9=6,CC114,IF(AV10=6,CC115,IF(AV11=6,CC116,IF(AV12=6,CC117,IF(AV13=6,CC118,IF(AV14=6,CC119,IF(AV15=6,CC120,BT145))))))))) ->  | BC15: =IF(BA10="","",BW75*BS63) ->  | BE15: =IF(BA10="","",BW75*BU63) ->  | BG15: =IF(BA10="","",ROUND(BW75*BW63,2)) ->  | BI15: =VLOOKUP(BA15,$G$11:$M$32,7,FALSE) ->  | BK15: bonus a domicile : | BN15: 0 | BO15: % | BR15: bonus à domicile : | BU15: 10 | BW15: % | BY15: stratégie : | CA15: 3 | CG15: 11 | CH15: =IF(OFFSET(Feuil6!K3,0,'import advers'!$S$1)="","",OFFSET(Feuil6!K3,0,'import advers'!$S$1)) ->  | CJ15: 680 | CK15: =IF(CH15="","",CLEAN(SUBSTITUTE(OFFSET(Feuil6!K$13,0,'import advers'!$S$1),"Force",""))) ->  | CL15: =IF(CH15="","",CLEAN(SUBSTITUTE(OFFSET(Feuil6!K$15,0,'import advers'!$S$1),"Habileté",""))) ->  | CM15: =IF(CH15="","",CLEAN(SUBSTITUTE(OFFSET(Feuil6!K$17,0,'import advers'!$S$1),"Vitesse",""))) ->  | CN15: =IF(CH15="","",CLEAN(SUBSTITUTE(OFFSET(Feuil6!K$19,0,'import advers'!$S$1),"Endurance",""))) ->  | CO15: =IF(CH15="","",CLEAN(SUBSTITUTE(OFFSET(Feuil6!K$21,0,'import advers'!$S$1),"Intelligence",""))) ->  | CP15: =IF(CH15="","",VALUE(SUBSTITUTE(CLEAN(OFFSET(Feuil6!K$9,0,'import advers'!$S$1)),".",","))) ->  | CQ15: =IF(CH15<>"",(CO15/100+MIN(5000,CP15)/500)/100,"") -> 
F16: 6 | G16: =IF(Team!C99<>0,Team!C99,"") ->  | H16: =IF($G16<>"",VLOOKUP(Team!X22,Team!$E$41:$F$300,2,FALSE),"") ->  | I16: =IF($G16<>"",VLOOKUP(Team!Y22,Team!$E$41:$F$300,2,FALSE),"") ->  | J16: =IF($G16<>"",VLOOKUP(Team!Z22,Team!$E$41:$F$300,2,FALSE),"") ->  | K16: =IF($G16<>"",VLOOKUP(Team!AA22,Team!$E$41:$F$300,2,FALSE),"") ->  | L16: =IF($G16<>"",VLOOKUP(Team!AB22,Team!$E$41:$F$300,2,FALSE),"") ->  | M16: =IF($G16<>"",VALUE(VLOOKUP(Team!X22,Team!$E$41:$P$300,12,FALSE)),"") ->  | N16: =G109 ->  | P16: kit officiel : | Q16: 1 | R16: aprroximation kit : | W16: 0 | Z16: choix kit : | AC16: 0 | AG16: 0 | AJ16: =IF(AI16<>"",AY64*IF($AX$37=1,$BW$58,1),"") ->  | AK16: =IF(AI16<>"",BP64*IF($AX$37=1,$BW$59,1),"") ->  | AL16: =IF(AI16<>"",AY91*IF($AX$37=1,$BW$60,1),"") ->  | AM16: =IF(AI16<>"",BP91*IF($AX$37=1,$BW$61,1),"") ->  | AN16: =IF(AI16<>"",AY118*IF($AX$37=1,$BW$62,1),"") ->  | AO16: =IF(AI16<>"",BP118*IF($AX$37=1,$BW$63,1),"") ->  | AP16: =IF(AI16<>"",AY145*IF($AX$37=1,$BW$64,1),"") ->  | AQ16: =IF(AI16<>"",BP145*IF($AX$37=1,$BW$65,1),"") ->  | AR16: =IF(AI16<>"",AY172*IF($AX$37=1,$BW$66,1),"") ->  | AS16: =IF(AI16<>"",BP172*IF($AX$37=1,$BW$67,1),"") ->  | AT16: =IF(AI16<>"",AY199*IF($AX$37=1,$BW$68,1),"") ->  | AV16: 9 | AW16: =IF(ISNA(VLOOKUP(9,$AV$8:$AV$33,1,FALSE)),9,"") ->  | AX16: =IF(AND(AV16<>"",AI16<>""),IF(ISNA(VLOOKUP(AI16,$E$104:$I$128,5,FALSE)),0,VLOOKUP(AI16,$E$104:$I$128,5,FALSE)),"") ->  | AZ16: 7 | BA16: =IF(AV8=7,AI8,IF(AV9=7,AI9,IF(AV10=7,AI10,IF(AV11=7,AI11,IF(AV12=7,AI12,IF(AV13=7,AI13,IF(AV14=7,AI14,IF(AV15=7,AI15,BT76)))))))) ->  | BB16: =IF(BA10="","",IF(AV8=7,CE113,IF(AV9=7,CE114,IF(AV10=7,CE115,IF(AV11=7,CE116,IF(AV12=7,CE117,IF(AV13=7,CE118,IF(AV14=7,CE119,IF(AV15=7,CE120,BT146))))))))) ->  | BC16: =IF(BA10="","",BW76*BS64) ->  | BE16: =IF(BA10="","",BW76*BU64) ->  | BG16: =IF(BA10="","",ROUND(BW76*BW64,2)) ->  | BI16: =VLOOKUP(BA16,$G$11:$M$32,7,FALSE) ->  | BK16: bonus capitaine : | BN16: =BO8*100 ->  | BO16: % | BR16: bonus capitaine : | BU16: =MAX(CQ5:CQ15)*100 -> 0 | BW16: % | CC16: defensif | CE16: a | CH16: ATTENTION : si vous saisissez les données manuellement, les données ne pourront plus être importées !!!
F17: 7 | G17: =IF(Team!C110<>0,Team!C110,"") ->  | H17: =IF($G17<>"",VLOOKUP(Team!X23,Team!$E$41:$F$300,2,FALSE),"") ->  | I17: =IF($G17<>"",VLOOKUP(Team!Y23,Team!$E$41:$F$300,2,FALSE),"") ->  | J17: =IF($G17<>"",VLOOKUP(Team!Z23,Team!$E$41:$F$300,2,FALSE),"") ->  | K17: =IF($G17<>"",VLOOKUP(Team!AA23,Team!$E$41:$F$300,2,FALSE),"") ->  | L17: =IF($G17<>"",VLOOKUP(Team!AB23,Team!$E$41:$F$300,2,FALSE),"") ->  | M17: =IF($G17<>"",VALUE(VLOOKUP(Team!X23,Team!$E$41:$P$300,12,FALSE)),"") ->  | AG17: 0 | AV17: 10 | AW17: =IF(ISNA(VLOOKUP(10,$AV$8:$AV$33,1,FALSE)),10,"") ->  | AZ17: 8 | BA17: =IF(AV8=8,AI8,IF(AV9=8,AI9,IF(AV10=8,AI10,IF(AV11=8,AI11,IF(AV12=8,AI12,IF(AV13=8,AI13,IF(AV14=8,AI14,IF(AV15=8,AI15,BT77)))))))) ->  | BB17: =IF(BA10="","",IF(AV8=8,CG113,IF(AV9=8,CG114,IF(AV10=8,CG115,IF(AV11=8,CG116,IF(AV12=8,CG117,IF(AV13=8,CG118,IF(AV14=8,CG119,IF(AV15=8,CG120,BT147))))))))) ->  | BC17: =IF(BA10="","",BW77*BS65) ->  | BE17: =IF(BA10="","",BW77*BU65) ->  | BG17: =IF(BA10="","",ROUND(BW77*BW65,2)) ->  | BK17: bonus de meteo : | BN17: 5 | BO17: % | BR17: bonus de météo : | BU17: 5 | BW17: % | BY17: tactique : | CA17: c | CC17: neutre | CE17: b | CH17: total XP : | CJ17: =IF(CP5<>"",SUM(CP5:CP15),"") ->  | CM17: XP moyenne : | CP17: =IF(CP5<>"",CJ17/11,"") -> 
F18: 8 | G18: =IF(Team!C121<>0,Team!C121,"") ->  | H18: =IF($G18<>"",VLOOKUP(Team!X24,Team!$E$41:$F$300,2,FALSE),"") ->  | I18: =IF($G18<>"",VLOOKUP(Team!Y24,Team!$E$41:$F$300,2,FALSE),"") ->  | J18: =IF($G18<>"",VLOOKUP(Team!Z24,Team!$E$41:$F$300,2,FALSE),"") ->  | K18: =IF($G18<>"",VLOOKUP(Team!AA24,Team!$E$41:$F$300,2,FALSE),"") ->  | L18: =IF($G18<>"",VLOOKUP(Team!AB24,Team!$E$41:$F$300,2,FALSE),"") ->  | M18: =IF($G18<>"",VALUE(VLOOKUP(Team!X24,Team!$E$41:$P$300,12,FALSE)),"") ->  | O18: approximation kit | Q18: =Q9 -> kit 1 | R18: kit 2/3 | S18: 0 | T18: kit 4 | U18: 0 | V18: kit 5 | W18: kit 6/7 | X18: 0 | Y18: 0 | Z18: kit 8 | AA18: kit 9 | AB18: 0 | AC18: kit 10 | AD18: kit 11 | AG18: 0 | AV18: 11 | AW18: =IF(ISNA(VLOOKUP(11,$AV$8:$AV$33,1,FALSE)),11,"") ->  | AZ18: 9 | BA18: =IF(AV8=9,AI8,IF(AV9=9,AI9,IF(AV10=9,AI10,IF(AV11=9,AI11,IF(AV12=9,AI12,IF(AV13=9,AI13,IF(AV14=9,AI14,IF(AV15=9,AI15,BT78)))))))) ->  | BB18: =IF(BA10="","",IF(AV8=9,CI113,IF(AV9=9,CI114,IF(AV10=9,CI115,IF(AV11=9,CI116,IF(AV12=9,CI117,IF(AV13=9,CI118,IF(AV14=9,CI119,IF(AV15=9,CI120,BT148))))))))) ->  | BC18: =IF(BA10="","",BW78*BS66) ->  | BE18: =IF(BA10="","",BW78*BU66) ->  | BG18: =IF(BA10="","",ROUND(BW78*BW66,2)) ->  | BK18: bonus d'agressivité : | BN18: 16 | BO18: % | BR18: bonus d'agressivité : | BU18: 16 | BW18: % | CC18: offensif | CE18: c
C19: vitamines : | F19: 9 | G19: =IF(Team!C132<>0,Team!C132,"") ->  | H19: =IF($G19<>"",VLOOKUP(Team!X25,Team!$E$41:$F$300,2,FALSE),"") ->  | I19: =IF($G19<>"",VLOOKUP(Team!Y25,Team!$E$41:$F$300,2,FALSE),"") ->  | J19: =IF($G19<>"",VLOOKUP(Team!Z25,Team!$E$41:$F$300,2,FALSE),"") ->  | K19: =IF($G19<>"",VLOOKUP(Team!AA25,Team!$E$41:$F$300,2,FALSE),"") ->  | L19: =IF($G19<>"",VLOOKUP(Team!AB25,Team!$E$41:$F$300,2,FALSE),"") ->  | M19: =IF($G19<>"",VALUE(VLOOKUP(Team!X25,Team!$E$41:$P$300,12,FALSE)),"") ->  | P19: =P10 -> force | Q19: =ROUND(Q45*Q51,0) -> 0 | R19: 0 | S19: 0 | T19: 0 | U19: 0 | V19: 0 | W19: 0 | X19: 0 | Y19: 0 | Z19: 0 | AA19: 0 | AB19: 0 | AC19: 0 | AD19: 0 | AG19: 0 | AV19: 12 | AW19: =IF(ISNA(VLOOKUP(12,$AV$8:$AV$33,1,FALSE)),12,"") ->  | AZ19: 10 | BA19: =IF(AV8=10,AI8,IF(AV9=10,AI9,IF(AV10=10,AI10,IF(AV11=10,AI11,IF(AV12=10,AI12,IF(AV13=10,AI13,IF(AV14=10,AI14,IF(AV15=10,AI15,BT79)))))))) ->  | BB19: =IF(BA10="","",IF(AV8=10,CK113,IF(AV9=10,CK114,IF(AV10=10,CK115,IF(AV11=10,CK116,IF(AV12=10,CK117,IF(AV13=10,CK118,IF(AV14=10,CK119,IF(AV15=10,CK120,BT149))))))))) ->  | BC19: =IF(BA10="","",BW79*BS67) ->  | BE19: =IF(BA10="","",BW79*BU67) ->  | BG19: =IF(BA10="","",ROUND(BW79*BW67,2)) ->  | BK19: Bonus stratégie : | BO19: % | BR19: bonus stratégie : | BW19: % | CH19: bonus d'experience :
F20: 10 | G20: =IF(Team!C143<>0,Team!C143,"") ->  | H20: =IF($G20<>"",VLOOKUP(Team!X26,Team!$E$41:$F$300,2,FALSE),"") ->  | I20: =IF($G20<>"",VLOOKUP(Team!Y26,Team!$E$41:$F$300,2,FALSE),"") ->  | J20: =IF($G20<>"",VLOOKUP(Team!Z26,Team!$E$41:$F$300,2,FALSE),"") ->  | K20: =IF($G20<>"",VLOOKUP(Team!AA26,Team!$E$41:$F$300,2,FALSE),"") ->  | L20: =IF($G20<>"",VLOOKUP(Team!AB26,Team!$E$41:$F$300,2,FALSE),"") ->  | M20: =IF($G20<>"",VALUE(VLOOKUP(Team!X26,Team!$E$41:$P$300,12,FALSE)),"") ->  | P20: =P11 -> habilité | Q20: =ROUND(Q46*Q52,0) -> 0 | R20: 0 | S20: 0 | T20: 0 | U20: 0 | V20: 0 | W20: 0 | X20: 0 | Y20: 0 | Z20: 0 | AA20: 0 | AB20: 0 | AC20: 0 | AD20: 0 | AG20: 0 | AV20: 13 | AW20: =IF(ISNA(VLOOKUP(13,$AV$8:$AV$33,1,FALSE)),13,"") ->  | AZ20: 11 | BA20: =IF(AV8=11,AI8,IF(AV9=11,AI9,IF(AV10=11,AI10,IF(AV11=11,AI11,IF(AV12=11,AI12,IF(AV13=11,AI13,IF(AV14=11,AI14,IF(AV15=11,AI15,BT80)))))))) ->  | BB20: =IF(BA10="","",IF(AV8=11,CM113,IF(AV9=11,CM114,IF(AV10=11,CM115,IF(AV11=11,CM116,IF(AV12=11,CM117,IF(AV13=11,CM118,IF(AV14=11,CM119,IF(AV15=11,CM120,BT150))))))))) ->  | BC20: =IF(BA10="","",BW80*BS68) ->  | BE20: =IF(BA10="","",BW80*BU68) ->  | BG20: =IF(BA10="","",ROUND(BW80*BW68,2)) ->  | CH20: =IF(CP5<>"",IF(ABS(CK41)<=0.01,"les équipes ont",IF(CK41>0,"Votre équipe à","L'équipe adverse à")),"") ->  | CL20: =CM41 ->  | CM20: =IF(CH20<>"","de bonus","") -> 
C21: objets : | F21: 11 | G21: =IF(Team!C154<>0,Team!C154,"") ->  | H21: =IF($G21<>"",VLOOKUP(Team!X27,Team!$E$41:$F$300,2,FALSE),"") ->  | I21: =IF($G21<>"",VLOOKUP(Team!Y27,Team!$E$41:$F$300,2,FALSE),"") ->  | J21: =IF($G21<>"",VLOOKUP(Team!Z27,Team!$E$41:$F$300,2,FALSE),"") ->  | K21: =IF($G21<>"",VLOOKUP(Team!AA27,Team!$E$41:$F$300,2,FALSE),"") ->  | L21: =IF($G21<>"",VLOOKUP(Team!AB27,Team!$E$41:$F$300,2,FALSE),"") ->  | M21: =IF($G21<>"",VALUE(VLOOKUP(Team!X27,Team!$E$41:$P$300,12,FALSE)),"") ->  | P21: =P12 -> vitesse | Q21: =ROUND(Q47*Q53,0) -> 0 | R21: 0 | S21: 0 | T21: 0 | U21: 0 | V21: 0 | W21: 0 | X21: 0 | Y21: 0 | Z21: 0 | AA21: 0 | AB21: 0 | AC21: 0 | AD21: 0 | AG21: 0 | AV21: 14 | AW21: =IF(ISNA(VLOOKUP(14,$AV$8:$AV$33,1,FALSE)),14,"") ->  | BN21: attaque | BP21: défense | BR21: cumulé | BU21: Championnat / Amical ou Premiere Mi Temps Coupe / Tournoi | CW21: Deuxieme Mi Temps Coupe / Tournoi
G22: =IF(Team!C165<>0,Team!C165,"") ->  | H22: =IF($G22<>"",VLOOKUP(Team!X28,Team!$E$41:$F$300,2,FALSE),"") ->  | I22: =IF($G22<>"",VLOOKUP(Team!Y28,Team!$E$41:$F$300,2,FALSE),"") ->  | J22: =IF($G22<>"",VLOOKUP(Team!Z28,Team!$E$41:$F$300,2,FALSE),"") ->  | K22: =IF($G22<>"",VLOOKUP(Team!AA28,Team!$E$41:$F$300,2,FALSE),"") ->  | L22: =IF($G22<>"",VLOOKUP(Team!AB28,Team!$E$41:$F$300,2,FALSE),"") ->  | M22: =IF($G22<>"",VALUE(VLOOKUP(Team!X28,Team!$E$41:$P$300,12,FALSE)),"") ->  | P22: =P13 -> endurance | Q22: =ROUND(Q48*Q54,0) -> 0 | R22: 0 | S22: 0 | T22: 0 | U22: 0 | V22: 0 | W22: 0 | X22: 0 | Y22: 0 | Z22: 0 | AA22: 0 | AB22: 0 | AC22: 0 | AD22: 0 | AG22: 0 | AV22: 15 | AW22: =IF(ISNA(VLOOKUP(15,$AV$8:$AV$33,1,FALSE)),15,"") ->  | BA22: total XP du 11 | BD22: =SUM(BI10:BI20) -> 0 | BG22: XP moyenne : | BI22: =BD22/11 -> 0 | BK22: =IF(BR6<>"",BR6,"") ->  | BN22: =IF(CH5="","",ROUND(BU11*(100+BU13)/100*(BU14+100)/100*(100+BU15)/100*(100+BU16)/100*(BU17+100)/100*(100+BU18)/100*(100+BU19)/100,2)) ->  | BP22: =IF(CH5="","",ROUND(BW11*(100+BU13)/100*(BU14+100)/100*(100+BU15)/100*(100+BU16)/100*(BU17+100)/100*(100+BU18)/100*(100+BU19)/100,2)) ->  | BR22: =IF(BN22="","",BN22+BP22) ->  | BU22: =BK22 ->  | CW22: =BU22 -> 
A23: 3) Entrer les stats des joueurs à comparer. | G23: =IF(Team!C176<>0,Team!C176,"") ->  | H23: =IF($G23<>"",VLOOKUP(Team!X29,Team!$E$41:$F$300,2,FALSE),"") ->  | I23: =IF($G23<>"",VLOOKUP(Team!Y29,Team!$E$41:$F$300,2,FALSE),"") ->  | J23: =IF($G23<>"",VLOOKUP(Team!Z29,Team!$E$41:$F$300,2,FALSE),"") ->  | K23: =IF($G23<>"",VLOOKUP(Team!AA29,Team!$E$41:$F$300,2,FALSE),"") ->  | L23: =IF($G23<>"",VLOOKUP(Team!AB29,Team!$E$41:$F$300,2,FALSE),"") ->  | M23: =IF($G23<>"",VALUE(VLOOKUP(Team!X29,Team!$E$41:$P$300,12,FALSE)),"") ->  | N23: =G116 ->  | P23: =P14 -> intelligence | Q23: =ROUND(Q49*Q55,0) -> 0 | R23: 0 | S23: 0 | T23: 0 | U23: 0 | V23: 0 | W23: 0 | X23: 0 | Y23: 0 | Z23: 0 | AA23: 0 | AB23: 0 | AC23: 0 | AD23: 0 | AG23: 0 | AV23: 16 | AW23: =IF(ISNA(VLOOKUP(16,$AV$8:$AV$33,1,FALSE)),16,"") ->  | BK23: mon équipe | BN23: =BC26 ->  | BP23: =BE26 ->  | BR23: =BG26 ->  | BU23: 541 | CA23: 433 | CG23: 352 | CM23: 442 | CW23: 541 | DC23: 433 | DI23: 352 | DO23: 442
G24: =IF(Team!C187<>0,Team!C187,"") ->  | H24: =IF($G24<>"",VLOOKUP(Team!X30,Team!$E$41:$F$300,2,FALSE),"") ->  | I24: =IF($G24<>"",VLOOKUP(Team!Y30,Team!$E$41:$F$300,2,FALSE),"") ->  | J24: =IF($G24<>"",VLOOKUP(Team!Z30,Team!$E$41:$F$300,2,FALSE),"") ->  | K24: =IF($G24<>"",VLOOKUP(Team!AA30,Team!$E$41:$F$300,2,FALSE),"") ->  | L24: =IF($G24<>"",VLOOKUP(Team!AB30,Team!$E$41:$F$300,2,FALSE),"") ->  | M24: =IF($G24<>"",VALUE(VLOOKUP(Team!X30,Team!$E$41:$P$300,12,FALSE)),"") ->  | AG24: 0 | AV24: 17 | AW24: =IF(ISNA(VLOOKUP(17,$AV$8:$AV$33,1,FALSE)),17,"") ->  | BA24: sans bonus match | BC24: =ROUND(SUM(BC10:BD20),2) -> 0 | BE24: =ROUND(SUM(BE10:BF20),2) -> 0 | BG24: =BC24+BE24 -> 0 | BU24: defensif | BW24: neutre | BY24: offensif | CA24: defensif | CC24: neutre | CE24: offensif | CG24: defensif | CI24: neutre | CK24: offensif | CM24: defensif | CO24: neutre | CQ24: offensif | CW24: defensif | CY24: neutre | DA24: offensif | DC24: defensif | DE24: neutre | DG24: offensif | DI24: defensif | DK24: neutre | DM24: offensif | DO24: defensif | DQ24: neutre | DS24: offensif
E25: =VLOOKUP(AH4,B26:C29,2,FALSE) -> C | G25: =IF(Team!C198<>0,Team!C198,"") ->  | H25: =IF($G25<>"",VLOOKUP(Team!X31,Team!$E$41:$F$300,2,FALSE),"") ->  | I25: =IF($G25<>"",VLOOKUP(Team!Y31,Team!$E$41:$F$300,2,FALSE),"") ->  | J25: =IF($G25<>"",VLOOKUP(Team!Z31,Team!$E$41:$F$300,2,FALSE),"") ->  | K25: =IF($G25<>"",VLOOKUP(Team!AA31,Team!$E$41:$F$300,2,FALSE),"") ->  | L25: =IF($G25<>"",VLOOKUP(Team!AB31,Team!$E$41:$F$300,2,FALSE),"") ->  | M25: =IF($G25<>"",VALUE(VLOOKUP(Team!X31,Team!$E$41:$P$300,12,FALSE)),"") ->  | O25: caracteristiques kit officiel | Q25: =Q9 -> kit 1 | R25: kit 2/3 | S25: 0 | T25: kit 4 | U25: 0 | V25: kit 5 | W25: kit 6/7 | X25: 0 | Y25: 0 | Z25: kit 8 | AA25: kit 9 | AB25: 0 | AC25: kit 10 | AD25: kit 11 | AG25: 0 | AI25: =IF(G28="","",G28) ->  | AV25: 18 | AW25: =IF(ISNA(VLOOKUP(18,$AV$8:$AV$33,1,FALSE)),18,"") ->  | BR25: Mon équipe | BS25: 541 | BT25: def | BU25: =CT117 ->  | BW25: =CX117 ->  | BY25: =DB117 ->  | CA25: =DF117 ->  | CC25: =DJ117 ->  | CE25: =DN117 ->  | CG25: =DR117 ->  | CI25: =DV117 ->  | CK25: =DZ117 ->  | CM25: =ED117 ->  | CO25: =EH117 ->  | CQ25: =EL117 ->  | CT25: Mon équipe | CU25: 541 | CV25: def | CW25: =IF(BU25<>$BZ$79,BU25,CS42) ->  | CY25: =IF(BW25<>$BZ$79,BW25,CU42) ->  | DA25: =IF(BY25<>$BZ$79,BY25,CW42) ->  | DC25: =IF(CA25<>$BZ$79,CA25,CY42) ->  | DE25: =IF(CC25<>$BZ$79,CC25,DA42) ->  | DG25: =IF(CE25<>$BZ$79,CE25,DC42) ->  | DI25: =IF(CG25<>$BZ$79,CG25,DE42) ->  | DK25: =IF(CI25<>$BZ$79,CI25,DG42) ->  | DM25: =IF(CK25<>$BZ$79,CK25,DI42) ->  | DO25: =IF(CM25<>$BZ$79,CM25,DK42) ->  | DQ25: =IF(CO25<>$BZ$79,CO25,DM42) ->  | DS25: =IF(CQ25<>$BZ$79,CQ25,DO42) -> 
B26: 541 | C26: A | D26: 541 | E26: =VLOOKUP(AH5,B31:C33,2,FALSE) -> d | G26: =IF(Team!C209<>0,Team!C209,"") ->  | H26: =IF($G26<>"",VLOOKUP(Team!X32,Team!$E$41:$F$300,2,FALSE),"") ->  | I26: =IF($G26<>"",VLOOKUP(Team!Y32,Team!$E$41:$F$300,2,FALSE),"") ->  | J26: =IF($G26<>"",VLOOKUP(Team!Z32,Team!$E$41:$F$300,2,FALSE),"") ->  | K26: =IF($G26<>"",VLOOKUP(Team!AA32,Team!$E$41:$F$300,2,FALSE),"") ->  | L26: =IF($G26<>"",VLOOKUP(Team!AB32,Team!$E$41:$F$300,2,FALSE),"") ->  | M26: =IF($G26<>"",VALUE(VLOOKUP(Team!X32,Team!$E$41:$P$300,12,FALSE)),"") ->  | P26: =P19 -> force | AG26: 0 | AI26: =IF(G29="","",G29) ->  | AV26: 19 | AW26: =IF(ISNA(VLOOKUP(19,$AV$8:$AV$33,1,FALSE)),19,"") ->  | BA26: avec bonus match | BC26: =ROUND(BC24*(100+BN13)/100*(100+BN14)/100*(100+BN15)/100*(100+BN16)/100*(BN17+100)/100*(100+BN18)/100*(100+BN19)/100,2) ->  | BE26: =ROUND(BE24*(100+BN13)/100*(BN14+100)/100*(100+BN15)/100*(100+BN16)/100*(BN17+100)/100*(100+BN18)/100*(100+BN19)/100,2) ->  | BG26: =BC26+BE26 ->  | BK26: 12) Enjoy !! | BT26: neutre | CV26: neutre | CW26: =IF(BU26<>$BZ$79,BU26,CS43) ->  | CY26: =IF(BW26<>$BZ$79,BW26,CU43) -> 
B27: 433 | C27: B | D27: 433 | G27: =IF(Team!C220<>0,Team!C220,"") ->  | H27: =IF($G27<>"",VLOOKUP(Team!X33,Team!$E$41:$F$300,2,FALSE),"") ->  | I27: =IF($G27<>"",VLOOKUP(Team!Y33,Team!$E$41:$F$300,2,FALSE),"") ->  | J27: =IF($G27<>"",VLOOKUP(Team!Z33,Team!$E$41:$F$300,2,FALSE),"") ->  | K27: =IF($G27<>"",VLOOKUP(Team!AA33,Team!$E$41:$F$300,2,FALSE),"") ->  | L27: =IF($G27<>"",VLOOKUP(Team!AB33,Team!$E$41:$F$300,2,FALSE),"") ->  | M27: =IF($G27<>"",VALUE(VLOOKUP(Team!X33,Team!$E$41:$P$300,12,FALSE)),"") ->  | P27: =P20 -> habilité | AG27: 0 | AI27: =IF(G30="","",G30) ->  | AV27: 20 | AW27: =IF(ISNA(VLOOKUP(20,$AV$8:$AV$33,1,FALSE)),20,"") ->  | BT27: off | CV27: off
B28: 352 | C28: C | D28: 352 | G28: =IF(Team!C231<>0,Team!C231,"") ->  | H28: =IF($G28<>"",VLOOKUP(Team!X34,Team!$E$41:$F$300,2,FALSE),"") ->  | I28: =IF($G28<>"",VLOOKUP(Team!Y34,Team!$E$41:$F$300,2,FALSE),"") ->  | J28: =IF($G28<>"",VLOOKUP(Team!Z34,Team!$E$41:$F$300,2,FALSE),"") ->  | K28: =IF($G28<>"",VLOOKUP(Team!AA34,Team!$E$41:$F$300,2,FALSE),"") ->  | L28: =IF($G28<>"",VLOOKUP(Team!AB34,Team!$E$41:$F$300,2,FALSE),"") ->  | M28: =IF($G28<>"",VALUE(VLOOKUP(Team!X34,Team!$E$41:$P$300,12,FALSE)),"") ->  | P28: =P21 -> vitesse | AG28: 0 | AI28: =IF(G31="","",G31) ->  | AV28: 21 | AW28: =IF(ISNA(VLOOKUP(21,$AV$8:$AV$33,1,FALSE)),21,"") ->  | BS28: 433 | BT28: def | CU28: 433 | CV28: def
B29: 442 | C29: D | D29: 442 | G29: =IF(Team!C242<>0,Team!C242,"") ->  | H29: =IF($G29<>"",VLOOKUP(Team!X35,Team!$E$41:$F$300,2,FALSE),"") ->  | I29: =IF($G29<>"",VLOOKUP(Team!Y35,Team!$E$41:$F$300,2,FALSE),"") ->  | J29: =IF($G29<>"",VLOOKUP(Team!Z35,Team!$E$41:$F$300,2,FALSE),"") ->  | K29: =IF($G29<>"",VLOOKUP(Team!AA35,Team!$E$41:$F$300,2,FALSE),"") ->  | L29: =IF($G29<>"",VLOOKUP(Team!AB35,Team!$E$41:$F$300,2,FALSE),"") ->  | M29: =IF($G29<>"",VALUE(VLOOKUP(Team!X35,Team!$E$41:$P$300,12,FALSE)),"") ->  | P29: =P22 -> endurance | AG29: 0 | AI29: =IF(G32="","",G32) ->  | AV29: 22 | AW29: =IF(ISNA(VLOOKUP(22,$AV$8:$AV$33,1,FALSE)),22,"") ->  | BF29: La colonne Kit donne le meilleur kit pour ce joueur a cette position | BT29: neutre | CV29: neutre
G30: =IF(Team!C253<>0,Team!C253,"") ->  | H30: =IF($G30<>"",VLOOKUP(Team!X36,Team!$E$41:$F$300,2,FALSE),"") ->  | I30: =IF($G30<>"",VLOOKUP(Team!Y36,Team!$E$41:$F$300,2,FALSE),"") ->  | J30: =IF($G30<>"",VLOOKUP(Team!Z36,Team!$E$41:$F$300,2,FALSE),"") ->  | K30: =IF($G30<>"",VLOOKUP(Team!AA36,Team!$E$41:$F$300,2,FALSE),"") ->  | L30: =IF($G30<>"",VLOOKUP(Team!AB36,Team!$E$41:$F$300,2,FALSE),"") ->  | M30: =IF($G30<>"",VALUE(VLOOKUP(Team!X36,Team!$E$41:$P$300,12,FALSE)),"") ->  | P30: =P23 -> intelligence | AG30: 0 | AU30: =SUM(AU8:AU29) -> 0 | AW30: =IF(ISNA(VLOOKUP(23,$AV$8:$AV$33,1,FALSE)),23,"") -> 23 | BF30: le tableau donne le resultat du match en fonction des stratégies utilisées. | BT30: off | CV30: off
B31: Defensif | C31: d | D31: defensif | G31: =IF(Team!C264<>0,Team!C264,"") ->  | H31: =IF($G31<>"",VLOOKUP(Team!X37,Team!$E$41:$F$300,2,FALSE),"") ->  | I31: =IF($G31<>"",VLOOKUP(Team!Y37,Team!$E$41:$F$300,2,FALSE),"") ->  | J31: =IF($G31<>"",VLOOKUP(Team!Z37,Team!$E$41:$F$300,2,FALSE),"") ->  | K31: =IF($G31<>"",VLOOKUP(Team!AA37,Team!$E$41:$F$300,2,FALSE),"") ->  | L31: =IF($G31<>"",VLOOKUP(Team!AB37,Team!$E$41:$F$300,2,FALSE),"") ->  | M31: =IF($G31<>"",VALUE(VLOOKUP(Team!X37,Team!$E$41:$P$300,12,FALSE)),"") ->  | AI31: =IF(G34="","",G34) ->  | AJ31: =IF(AI31<>"",AY78*IF($AX$37=1,$BW$58,1),"") ->  | AK31: =IF(AI31<>"",BP78*IF($AX$37=1,$BW$59,1),"") ->  | AL31: =IF(AI31<>"",AY105*IF($AX$37=1,$BW$60,1),"") ->  | AM31: =IF(AI31<>"",BP105*IF($AX$37=1,$BW$61,1),"") ->  | AN31: =IF(AI31<>"",AY132*IF($AX$37=1,$BW$62,1),"") ->  | AO31: =IF(AI31<>"",BP132*IF($AX$37=1,$BW$63,1),"") ->  | AP31: =IF(AI31<>"",AY159*IF($AX$37=1,$BW$64,1),"") ->  | AQ31: =IF(AI31<>"",BP159*IF($AX$37=1,$BW$65,1),"") ->  | AR31: =IF(AI31<>"",AY186*IF($AX$37=1,$BW$66,1),"") ->  | AS31: =IF(AI31<>"",BP186*IF($AX$37=1,$BW$67,1),"") ->  | AT31: =IF(AI31<>"",AY213*IF($AX$37=1,$BW$68,1),"") ->  | AW31: =IF(ISNA(VLOOKUP(24,$AV$8:$AV$33,1,FALSE)),24,"") -> 24 | BS31: 352 | BT31: def | CU31: 352 | CV31: def
B32: Neutre | C32: n | D32: neutre | G32: =IF(Team!C275<>0,Team!C275,"") ->  | H32: =IF($G32<>"",VLOOKUP(Team!X38,Team!$E$41:$F$300,2,FALSE),"") ->  | I32: =IF($G32<>"",VLOOKUP(Team!Y38,Team!$E$41:$F$300,2,FALSE),"") ->  | J32: =IF($G32<>"",VLOOKUP(Team!Z38,Team!$E$41:$F$300,2,FALSE),"") ->  | K32: =IF($G32<>"",VLOOKUP(Team!AA38,Team!$E$41:$F$300,2,FALSE),"") ->  | L32: =IF($G32<>"",VLOOKUP(Team!AB38,Team!$E$41:$F$300,2,FALSE),"") ->  | M32: =IF($G32<>"",VALUE(VLOOKUP(Team!X38,Team!$E$41:$P$300,12,FALSE)),"") ->  | Q32: 6) Choisir si le joueur ou la position a une vitamine. | AI32: =IF(G35="","",G35) ->  | AJ32: =IF(AI32<>"",AY75*IF($AX$37=1,$BW$58,1),"") ->  | AK32: =IF(AI32<>"",BP75*IF($AX$37=1,$BW$59,1),"") ->  | AL32: =IF(AI32<>"",AY102*IF($AX$37=1,$BW$60,1),"") ->  | AM32: =IF(AI32<>"",BP102*IF($AX$37=1,$BW$61,1),"") ->  | AN32: =IF(AI32<>"",AY129*IF($AX$37=1,$BW$62,1),"") ->  | AO32: =IF(AI32<>"",BP129*IF($AX$37=1,$BW$63,1),"") ->  | AP32: =IF(AI32<>"",AY156*IF($AX$37=1,$BW$64,1),"") ->  | AQ32: =IF(AI32<>"",BP156*IF($AX$37=1,$BW$65,1),"") ->  | AR32: =IF(AI32<>"",AY183*IF($AX$37=1,$BW$66,1),"") ->  | AS32: =IF(AI32<>"",BP183*IF($AX$37=1,$BW$67,1),"") ->  | AT32: =IF(AI32<>"",AY210*IF($AX$37=1,$BW$68,1),"") ->  | AW32: =IF(ISNA(VLOOKUP(25,$AV$8:$AV$33,1,FALSE)),25,"") -> 25 | BA32: 8) Choisir entre pourcentage poste ou valeur brute. | BT32: neutre | CV32: neutre
B33: Offensif | C33: o | D33: offensif | AI33: =IF(G36="","",G36) ->  | AJ33: =IF(AI33<>"",AY76*IF($AX$37=1,$BW$58,1),"") ->  | AK33: =IF(AI33<>"",BP76*IF($AX$37=1,$BW$59,1),"") ->  | AL33: =IF(AI33<>"",AY103*IF($AX$37=1,$BW$60,1),"") ->  | AM33: =IF(AI33<>"",BP103*IF($AX$37=1,$BW$61,1),"") ->  | AN33: =IF(AI33<>"",AY130*IF($AX$37=1,$BW$62,1),"") ->  | AO33: =IF(AI33<>"",BP130*IF($AX$37=1,$BW$63,1),"") ->  | AP33: =IF(AI33<>"",AY157*IF($AX$37=1,$BW$64,1),"") ->  | AQ33: =IF(AI33<>"",BP157*IF($AX$37=1,$BW$65,1),"") ->  | AR33: =IF(AI33<>"",AY184*IF($AX$37=1,$BW$66,1),"") ->  | AS33: =IF(AI33<>"",BP184*IF($AX$37=1,$BW$67,1),"") ->  | AT33: =IF(AI33<>"",AY211*IF($AX$37=1,$BW$68,1),"") ->  | BT33: off | CV33: off
E34: Joueurs à comparer | N34: =G126 ->  | BS34: 442 | BT34: def | CU34: 442 | CV34: def
N35: =G127 ->  | AG35: vitamines : | AJ35: 0 | AK35: 0 | AL35: 0 | AM35: 0 | AN35: 0 | AO35: 0 | AP35: 0 | AQ35: 0 | AR35: 0 | AS35: 0 | AT35: 0 | AV35: pourcentage : | AX35: 0 | BT35: neutre | CV35: neutre
N36: =G128 ->  | AV36: valeur brute : | AX36: 1 | BT36: off | CV36: off
AH37: Gain minimum pour une vitamine | AJ37: =BB192 -> 0 | AK37: 0 | AL37: 0 | AM37: 0 | AN37: 0 | AO37: 0 | AP37: 0 | AQ37: 0 | AR37: 0 | AS37: 0 | AT37: 0 | AV37: pourcentage/valeur brute : | AX37: 1
E38: caracteristiques bonus : | P38: choix kit | AG38: bonus cara
E39: force | F39: hab | G39: vit | H39: end | I39: int | Q39: =AC16 -> 0 | R39: =AC16 -> 0 | S39: =AC16 -> 0 | T39: =AC16 -> 0 | U39: =AC16 -> 0 | V39: =AC16 -> 0 | W39: =AC16 -> 0 | X39: =AC16 -> 0 | Y39: =AC16 -> 0 | Z39: =AC16 -> 0 | AA39: =AC16 -> 0 | AB39: =AC16 -> 0 | AC39: =AC16 -> 0 | AD39: =AC16 -> 0 | AH39: =D8+D13 ->  | AI39: coefficient caracteristique par poste / tactique actuelle | AR39: coefficient caracteristique par poste et par tactique | BX39: comparaison équipe | CJ39: bonus XP | CP39: resultat 2eme
E40: =AH39+D16+D17+D21 ->  | F40: =AH40+D15+D17+D21 ->  | G40: =AH41+D15+D17+D21 ->  | H40: =AH42+D16+D17+D21 ->  | I40: =AH43+D15+D17+D21 ->  | Q40: =AC16 -> 0 | R40: =AC16 -> 0 | S40: =AC16 -> 0 | T40: =AC16 -> 0 | U40: =AC16 -> 0 | V40: =AC16 -> 0 | W40: =AC16 -> 0 | X40: =AC16 -> 0 | Y40: =AC16 -> 0 | Z40: =AC16 -> 0 | AA40: =AC16 -> 0 | AB40: =AC16 -> 0 | AC40: =AC16 -> 0 | AD40: =AC16 -> 0 | AH40: =D9+D13 ->  | AK40: =F42 -> 352 | AT40: 541 | BB40: 433 | BJ40: 352 | BR40: 442 | CP40: mi temps | CS40: 541 | CY40: 433 | DE40: 352 | DK40: 442
E41: stats brutes / pourcentage placement pour la tactique en cours | Q41: =AC16 -> 0 | R41: =AC16 -> 0 | S41: =AC16 -> 0 | T41: =AC16 -> 0 | U41: =AC16 -> 0 | V41: =AC16 -> 0 | W41: =AC16 -> 0 | X41: =AC16 -> 0 | Y41: =AC16 -> 0 | Z41: =AC16 -> 0 | AA41: =AC16 -> 0 | AB41: =AC16 -> 0 | AC41: =AC16 -> 0 | AD41: =AC16 -> 0 | AH41: =D10+D13 ->  | AJ41: Position | AK41: force | AL41: hab | AM41: vit | AN41: end | AO41: int | AP41: % poste | AS41: Position | AT41: force | AU41: hab | AV41: vit | AW41: end | AX41: int | AY41: % poste | BA41: Position | BB41: force | BC41: hab | BD41: vit | BE41: end | BF41: int | BG41: % poste | BI41: Position | BJ41: force | BK41: hab | BL41: vit | BM41: end | BN41: int | BO41: % poste | BQ41: Position | BR41: force | BS41: hab | BT41: vit | BU41: end | BV41: int | BW41: % poste | CC41: att A/def ME | CE41: att ME/def A | CG41: différence | CK41: =IF(CJ17<>"",(BD22/11-CJ17/11)/200,"") ->  | CM41: =IF(CK41<>"",IF(ABS(CK41)<0.01,0,IF(ABS(CK41)>0.04,0.04,ROUND(ABS(CK41),1))),"") ->  | CP41: tournoi/coupe | CS41: defensif | CU41: neutre | CW41: offensif | CY41: defensif | DA41: neutre | DC41: offensif | DE41: defensif | DG41: neutre | DI41: offensif | DK41: defensif | DM41: neutre | DO41: offensif
F42: =IF(E25=C26,D26,IF(E25=C27,D27,IF(E25=C28,D28,IF(E25=C29,D29,AH2)))) -> 352 | Q42: =AC16 -> 0 | R42: =AC16 -> 0 | S42: =AC16 -> 0 | T42: =AC16 -> 0 | U42: =AC16 -> 0 | V42: =AC16 -> 0 | W42: =AC16 -> 0 | X42: =AC16 -> 0 | Y42: =AC16 -> 0 | Z42: =AC16 -> 0 | AA42: =AC16 -> 0 | AB42: =AC16 -> 0 | AC42: =AC16 -> 0 | AD42: =AC16 -> 0 | AH42: =D11+D13 ->  | AJ42: 1 | AK42: =IF(AK40=AT40,AT42,IF(AK40=BB40,BB42,IF(AK40=BJ40,BJ42,IF(AK40=BR40,BR42,erreur)))) -> 150 | AL42: =IF(AK40=AT40,AU42,IF(AK40=BB40,BC42,IF(AK40=BJ40,BK42,IF(AK40=BR40,BS42,erreur)))) -> 400 | AM42: =IF(AK40=AT40,AV42,IF(AK40=BB40,BD42,IF(AK40=BJ40,BL42,IF(AK40=BR40,BT42,erreur)))) -> 150 | AN42: =IF(AK40=AT40,AW42,IF(AK40=BB40,BE42,IF(AK40=BJ40,BM42,IF(AK40=BR40,BU42,erreur)))) -> 50 | AO42: =IF(AK40=AT40,AX42,IF(AK40=BB40,BF42,IF(AK40=BJ40,BN42,IF(AK40=BR40,BV42,erreur)))) -> 250 | AP42: =IF(AK40=AT40,AY42,IF(AK40=BB40,BG42,IF(AK40=BJ40,BO42,IF(AK40=BR40,BW42,erreur)))) -> 200 | AS42: 1 | AT42: 150 | AU42: 400 | AV42: 150 | AW42: 50 | AX42: 250 | AY42: 200 | BA42: 1 | BB42: 150 | BC42: 400 | BD42: 150 | BE42: 50 | BF42: 250 | BG42: 200 | BI42: 1 | BJ42: 150 | BK42: 400 | BL42: 150 | BM42: 50 | BN42: 250 | BO42: 200 | BQ42: 1 | BR42: 150 | BS42: 400 | BT42: 150 | BU42: 50 | BV42: 250 | BW42: 200 | BY42: rapport statistique | CC42: =BN22/BP23 ->  | CE42: =BN23/BP22 ->  | CG42: =CC42-CE42 ->  | CP42: Mon équipe | CQ42: 541 | CR42: def | CS42: =IF(CL74-$CL$75>0,$BZ$80,$BZ$81) ->  | CU42: =IF(CO74-$CL$75>0,$BZ$80,$BZ$81) ->  | CW42: =IF(CR74-$CL$75>0,$BZ$80,$BZ$81) ->  | CY42: =IF(1.15*CU74-$CL$75>0,$BZ$80,$BZ$81) ->  | DA42: =IF(1.15*CX74-$CL$75>0,$BZ$80,$BZ$81) ->  | DC42: =IF(1.15*DA74-$CL$75>0,$BZ$80,$BZ$81) ->  | DE42: =IF(DD74-1.15*$CL$75>0,$BZ$80,$BZ$81) ->  | DG42: =IF(DG74-1.15*$CL$75>0,$BZ$80,$BZ$81) ->  | DI42: =IF(DJ74-1.15*$CL$75>0,$BZ$80,$BZ$81) ->  | DK42: =IF(DM74-$CL$75>0,$BZ$80,$BZ$81) ->  | DM42: =IF(DP74-$CL$75>0,$BZ$80,$BZ$81) ->  | DO42: =IF(DS74-$CL$75>0,$BZ$80,$BZ$81) -> 
F43: defensif | I43: neutre | L43: offensif | Q43: =AC16 -> 0 | R43: =AC16 -> 0 | S43: =AC16 -> 0 | T43: =AC16 -> 0 | U43: =AC16 -> 0 | V43: =AC16 -> 0 | W43: =AC16 -> 0 | X43: =AC16 -> 0 | Y43: =AC16 -> 0 | Z43: =AC16 -> 0 | AA43: =AC16 -> 0 | AB43: =AC16 -> 0 | AC43: =AC16 -> 0 | AD43: =AC16 -> 0 | AH43: =D12+D13 ->  | AJ43: 2 | AK43: =IF(AK40=AT40,AT43,IF(AK40=BB40,BB43,IF(AK40=BJ40,BJ43,IF(AK40=BR40,BR43,erreur)))) -> 300 | AL43: =IF(AK40=AT40,AU43,IF(AK40=BB40,BC43,IF(AK40=BJ40,BK43,IF(AK40=BR40,BS43,erreur)))) -> 200 | AM43: =IF(AK40=AT40,AV43,IF(AK40=BB40,BD43,IF(AK40=BJ40,BL43,IF(AK40=BR40,BT43,erreur)))) -> 200 | AN43: =IF(AK40=AT40,AW43,IF(AK40=BB40,BE43,IF(AK40=BJ40,BM43,IF(AK40=BR40,BU43,erreur)))) -> 300 | AO43: =IF(AK40=AT40,AX43,IF(AK40=BB40,BF43,IF(AK40=BJ40,BN43,IF(AK40=BR40,BV43,erreur)))) -> 200 | AP43: =IF(AK40=AT40,AY43,IF(AK40=BB40,BG43,IF(AK40=BJ40,BO43,IF(AK40=BR40,BW43,erreur)))) -> 200 | AS43: 2 | AT43: 300 | AU43: 200 | AV43: 200 | AW43: 300 | AX43: 200 | AY43: 200 | BA43: 2 | BB43: 250 | BC43: 200 | BD43: 250 | BE43: 300 | BF43: 200 | BG43: 200 | BI43: 2 | BJ43: 300 | BK43: 200 | BL43: 200 | BM43: 300 | BN43: 200 | BO43: 200 | BQ43: 2 | BR43: 250 | BS43: 200 | BT43: 250 | BU43: 300 | BV43: 200 | BW43: 200 | CR43: neutre | CS43: =IF($CL$74-$CO$75>0,$BZ$80,$BZ$81) ->  | CU43: =IF($CO$74-$CO$75>0,$BZ$80,$BZ$81) ->  | CW43: =IF($CR$74-$CO$75>0,$BZ$80,$BZ$81) ->  | CY43: =IF(1.15*$CU$74-$CO$75>0,$BZ$80,$BZ$81) ->  | DA43: =IF(1.15*$CX$74-$CO$75>0,$BZ$80,$BZ$81) ->  | DC43: =IF(1.15*$DA$74-$CO$75>0,$BZ$80,$BZ$81) ->  | DE43: =IF($DD$74-1.15*$CO$75>0,$BZ$80,$BZ$81) ->  | DG43: =IF($DG$74-1.15*$CO$75>0,$BZ$80,$BZ$81) ->  | DI43: =IF($DJ$74-1.15*$CO$75>0,$BZ$80,$BZ$81) ->  | DK43: =IF($DM$74-$CO$75>0,$BZ$80,$BZ$81) ->  | DM43: =IF($DP$74-$CO$75>0,$BZ$80,$BZ$81) ->  | DO43: =IF($DS$74-$CO$75>0,$BZ$80,$BZ$81) -> 
F44: 1% attaque | G44: 1% defense | H44: 1% cumulé | I44: 1% attaque | J44: 1% defense | K44: 1% cumulé | L44: 1% attaque | M44: 1% defense | N44: 1% cumulé | P44: coefficient caracteristique kit | AJ44: 3 | AK44: =IF(AK40=AT40,AT44,IF(AK40=BB40,BB44,IF(AK40=BJ40,BJ44,IF(AK40=BR40,BR44,erreur)))) -> 300 | AL44: =IF(AK40=AT40,AU44,IF(AK40=BB40,BC44,IF(AK40=BJ40,BK44,IF(AK40=BR40,BS44,erreur)))) -> 200 | AM44: =IF(AK40=AT40,AV44,IF(AK40=BB40,BD44,IF(AK40=BJ40,BL44,IF(AK40=BR40,BT44,erreur)))) -> 200 | AN44: =IF(AK40=AT40,AW44,IF(AK40=BB40,BE44,IF(AK40=BJ40,BM44,IF(AK40=BR40,BU44,erreur)))) -> 300 | AO44: =IF(AK40=AT40,AX44,IF(AK40=BB40,BF44,IF(AK40=BJ40,BN44,IF(AK40=BR40,BV44,erreur)))) -> 200 | AP44: =IF(AK40=AT40,AY44,IF(AK40=BB40,BG44,IF(AK40=BJ40,BO44,IF(AK40=BR40,BW44,erreur)))) -> 200 | AS44: 3 | AT44: 300 | AU44: 200 | AV44: 200 | AW44: 300 | AX44: 200 | AY44: 200 | BA44: 3 | BB44: 125 | BC44: 100 | BD44: 125 | BE44: 150 | BF44: 100 | BG44: 100 | BI44: 3 | BJ44: 300 | BK44: 200 | BL44: 200 | BM44: 300 | BN44: 200 | BO44: 200 | BQ44: 3 | BR44: 250 | BS44: 200 | BT44: 250 | BU44: 300 | BV44: 200 | BW44: 200 | CR44: off | CS44: =IF($CL$74-CR75>0,$BZ$80,$BZ$81) ->  | CU44: =IF($CO$74-$CR$75>0,$BZ$80,$BZ$81) ->  | CW44: =IF($CR$74-$CR$75>0,$BZ$80,$BZ$81) ->  | CY44: =IF(1.15*$CU$74-$CR$75>0,$BZ$80,$BZ$81) ->  | DA44: =IF(1.15*$CX$74-$CR$75>0,$BZ$80,$BZ$81) ->  | DC44: =IF(1.15*$DA$74-$CR$75>0,$BZ$80,$BZ$81) ->  | DE44: =IF($DD$74-1.15*$CR$75>0,$BZ$80,$BZ$81) ->  | DG44: =IF($DG$74-1.15*$CR$75>0,$BZ$80,$BZ$81) ->  | DI44: =IF($DJ$74-1.15*$CR$75>0,$BZ$80,$BZ$81) ->  | DK44: =IF($DM$74-$CR$75>0,$BZ$80,$BZ$81) ->  | DM44: =IF($DP$74-$CR$75>0,$BZ$80,$BZ$81) ->  | DO44: =IF($DS$74-$CR$75>0,$BZ$80,$BZ$81) -> 
F45: =IF(E25=C26,E62,IF(E25=C27,H62,IF(E25=C28,K62,IF(E25=C29,N62,erreur)))) -> 0.05445 | G45: =IF(E25=C26,F62,IF(E25=C27,I62,IF(E25=C28,L62,IF(E25=C29,O62,erreur)))) -> 2.67025 | H45: =F45+G45 -> 2.7247 | I45: =IF(E25=C26,E76,IF(E25=C27,H76,IF(E25=C28,K76,IF(E25=C29,N76,erreur)))) -> 0.05445 | J45: =IF(E25=C26,F76,IF(E25=C27,I76,IF(E25=C28,L76,IF(E25=C29,O76,erreur)))) -> 2.67025 | K45: =I45+J45 -> 2.7247 | L45: =IF(E25=C26,E90,IF(E25=C27,H90,IF(E25=C28,K90,IF(E25=C29,N90,erreur)))) -> 0.05445 | M45: =IF(E25=C26,F90,IF(E25=C27,I90,IF(E25=C28,L90,IF(E25=C29,O90,erreur)))) -> 2.67025 | N45: =L45+M45 -> 2.7247 | Q45: 0.8833333333 | R45: 1.366666667 | S45: 0 | T45: 1.433333333 | U45: 0 | V45: 1.450980392 | W45: 1.274509804 | X45: 0 | Y45: 1.274509804 | Z45: 1.183333333 | AA45: 1.274509804 | AB45: 0 | AC45: 0.9833333333 | AD45: 1.083333333 | AJ45: 4 | AK45: =IF(AK40=AT40,AT45,IF(AK40=BB40,BB45,IF(AK40=BJ40,BI45,IF(AK40=BR40,BR45,erreur)))) -> 4 | AL45: =IF(AK40=AT40,AU45,IF(AK40=BB40,BC45,IF(AK40=BJ40,BK45,IF(AK40=BR40,BS45,erreur)))) -> 150 | AM45: =IF(AK40=AT40,AV45,IF(AK40=BB40,BD45,IF(AK40=BJ40,BL45,IF(AK40=BR40,BT45,erreur)))) -> 300 | AN45: =IF(AK40=AT40,AW45,IF(AK40=BB40,BE45,IF(AK40=BJ40,BM45,IF(AK40=BR40,BU45,erreur)))) -> 200 | AO45: =IF(AK40=AT40,AX45,IF(AK40=BB40,BF45,IF(AK40=BJ40,BN45,IF(AK40=BR40,BV45,erreur)))) -> 100 | AP45: =IF(AK40=AT40,AY45,IF(AK40=BB40,BG45,IF(AK40=BJ40,BO45,IF(AK40=BR40,BW45,erreur)))) -> 200 | AS45: 4 | AT45: 300 | AU45: 150 | AV45: 300 | AW45: 200 | AX45: 100 | AY45: 200 | BA45: 4 | BB45: 300 | BC45: 100 | BD45: 250 | BE45: 250 | BF45: 150 | BG45: 200 | BI45: 4 | BJ45: 300 | BK45: 150 | BL45: 300 | BM45: 200 | BN45: 100 | BO45: 200 | BQ45: 4 | BR45: 300 | BS45: 100 | BT45: 250 | BU45: 250 | BV45: 150 | BW45: 200 | CQ45: 433 | CR45: def | CS45: =IF($CL$74-1.15*$CU$75>0,$BZ$80,$BZ$81) ->  | CU45: =IF($CO$74-1.15*$CU$75>0,$BZ$80,$BZ$81) ->  | CW45: =IF($CR$74-1.15*$CU$75>0,$BZ$80,$BZ$81) ->  | CY45: =IF($CU$74-$CU$75>0,$BZ$80,$BZ$81) ->  | DA45: =IF($CX$74-$CU$75>0,$BZ$80,$BZ$81) ->  | DC45: =IF($DA$74-$CU$75>0,$BZ$80,$BZ$81) ->  | DE45: =IF($DD$74-$CU$75>0,$BZ$80,$BZ$81) ->  | DG45: =IF($DG$74-$CU$75>0,$BZ$80,$BZ$81) ->  | DI45: =IF($DJ$74-$CU$75>0,$BZ$80,$BZ$81) ->  | DK45: =IF(1.15*$DM$74-$CU$75>0,$BZ$80,$BZ$81) ->  | DM45: =IF(1.15*$DP$74-$CU$75>0,$BZ$80,$BZ$81) ->  | DO45: =IF(1.15*$DS$74-$CU$75>0,$BZ$80,$BZ$81) -> 
F46: =IF(E25=C26,E63,IF(E25=C27,H63,IF(E25=C28,K63,IF(E25=C29,N63,erreur)))) -> 0.90825 | G46: =IF(E25=C26,F63,IF(E25=C27,I63,IF(E25=C28,L63,IF(E25=C29,O63,erreur)))) -> 1.36235 | H46: =F46+G46 -> 2.2706 | I46: =IF(E25=C26,E77,IF(E25=C27,H77,IF(E25=C28,K77,IF(E25=C29,N77,erreur)))) -> 1.1353 | J46: =IF(E25=C26,F77,IF(E25=C27,I77,IF(E25=C28,L77,IF(E25=C29,O77,erreur)))) -> 1.1353 | K46: =I46+J46 -> 2.2706 | L46: =IF(E25=C26,E91,IF(E25=C27,H91,IF(E25=C28,K91,IF(E25=C29,N91,erreur)))) -> 1.36235 | M46: =IF(E25=C26,F91,IF(E25=C27,I91,IF(E25=C28,L91,IF(E25=C29,O91,erreur)))) -> 0.90825 | N46: =L46+M46 -> 2.2706 | Q46: 1.583333333 | R46: 1.066666667 | S46: 0 | T46: 0.95 | U46: 0 | V46: 1.176470588 | W46: 1.274509804 | X46: 0 | Y46: 1.274509804 | Z46: 1.3 | AA46: 1.411764706 | AB46: 0 | AC46: 1.4 | AD46: 1.333333333 | AJ46: 5 | AK46: =IF(AK40=AT40,AT46,IF(AK40=BB40,BB46,IF(AK40=BJ40,BJ46,IF(AK40=BR40,BR46,erreur)))) -> 200 | AL46: =IF(AK40=AT40,AU46,IF(AK40=BB40,BC46,IF(AK40=BJ40,BK46,IF(AK40=BR40,BS46,erreur)))) -> 150 | AM46: =IF(AK40=AT40,AV46,IF(AK40=BB40,BD46,IF(AK40=BJ40,BL46,IF(AK40=BR40,BT46,erreur)))) -> 150 | AN46: =IF(AK40=AT40,AW46,IF(AK40=BB40,BE46,IF(AK40=BJ40,BM46,IF(AK40=BR40,BU46,erreur)))) -> 150 | AO46: =IF(AK40=AT40,AX46,IF(AK40=BB40,BF46,IF(AK40=BJ40,BN46,IF(AK40=BR40,BV46,erreur)))) -> 150 | AP46: =IF(AK40=AT40,AY46,IF(AK40=BB40,BG46,IF(AK40=BJ40,BO46,IF(AK40=BR40,BW46,erreur)))) -> 200 | AS46: 5 | AT46: 200 | AU46: 150 | AV46: 150 | AW46: 150 | AX46: 150 | AY46: 200 | BA46: 5 | BB46: 200 | BC46: 150 | BD46: 150 | BE46: 150 | BF46: 150 | BG46: 200 | BI46: 5 | BJ46: 200 | BK46: 150 | BL46: 150 | BM46: 150 | BN46: 150 | BO46: 200 | BQ46: 5 | BR46: 200 | BS46: 150 | BT46: 150 | BU46: 150 | BV46: 150 | BW46: 200 | CR46: neutre | CS46: =IF($CL$74-1.15*$CX$75>0,$BZ$80,$BZ$81) ->  | CU46: =IF($CO$74-1.15*$CX$75>0,$BZ$80,$BZ$81) ->  | CW46: =IF($CR$74-1.15*$CX$75>0,$BZ$80,$BZ$81) ->  | CY46: =IF($CU$74-$CX$75>0,$BZ$80,$BZ$81) ->  | DA46: =IF($CX$74-$CX$75>0,$BZ$80,$BZ$81) ->  | DC46: =IF($DA$74-$CX$75>0,$BZ$80,$BZ$81) ->  | DE46: =IF($DD$74-$CX$75>0,$BZ$80,$BZ$81) ->  | DG46: =IF($DG$74-$CX$75>0,$BZ$80,$BZ$81) ->  | DI46: =IF($DJ$74-$CX$75>0,$BZ$80,$BZ$81) ->  | DK46: =IF(1.15*$DM$74-$CX$75>0,$BZ$80,$BZ$81) ->  | DM46: =IF(1.15*$DP$74-$CX$75>0,$BZ$80,$BZ$81) ->  | DO46: =IF(1.15*$DS$74-$CX$75>0,$BZ$80,$BZ$81) -> 
F47: =IF(E25=C26,E64,IF(E25=C27,H64,IF(E25=C28,K64,IF(E25=C29,N64,erreur)))) -> 0.68115 | G47: =IF(E25=C26,F64,IF(E25=C27,I64,IF(E25=C28,L64,IF(E25=C29,O64,erreur)))) -> 1.58945 | H47: 2.2706 | I47: =IF(E25=C26,E78,IF(E25=C27,H78,IF(E25=C28,K78,IF(E25=C29,N78,erreur)))) -> 1.1353 | J47: =IF(E25=C26,F78,IF(E25=C27,I78,IF(E25=C28,L78,IF(E25=C29,O78,erreur)))) -> 1.1353 | K47: 2.2706 | L47: =IF(E25=C26,E92,IF(E25=C27,H92,IF(E25=C28,K92,IF(E25=C29,N92,erreur)))) -> 1.36235 | M47: =IF(E25=C26,F92,IF(E25=C27,I92,IF(E25=C28,L92,IF(E25=C29,O92,erreur)))) -> 0.90825 | N47: 2.2706 | Q47: 0.8833333333 | R47: 1.216666667 | S47: 0 | T47: 1.433333333 | U47: 0 | V47: 1.176470588 | W47: 1.274509804 | X47: 0 | Y47: 1.274509804 | Z47: 1.3 | AA47: 1.411764706 | AB47: 0 | AC47: 1.116666667 | AD47: 1.45 | AJ47: 6 | AK47: =IF(AK40=AT40,AT47,IF(AK40=BB40,BB47,IF(AK40=BJ40,BJ47,IF(AK40=BR40,BR47,erreur)))) -> 250 | AL47: =IF(AK40=AT40,AU47,IF(AK40=BB40,BC47,IF(AK40=BJ40,BK47,IF(AK40=BR40,BS47,erreur)))) -> 250 | AM47: =IF(AK40=AT40,AV47,IF(AK40=BB40,BD47,IF(AK40=BJ40,BL47,IF(AK40=BR40,BT47,erreur)))) -> 150 | AN47: =IF(AK40=AT40,AW47,IF(AK40=BB40,BE47,IF(AK40=BJ40,BM47,IF(AK40=BR40,BU47,erreur)))) -> 250 | AO47: =IF(AK40=AT40,AX47,IF(AK40=BB40,BF47,IF(AK40=BJ40,BN47,IF(AK40=BR40,BV47,erreur)))) -> 200 | AP47: =IF(AK40=AT40,AY47,IF(AK40=BB40,BG47,IF(AK40=BJ40,BO47,IF(AK40=BR40,BW47,erreur)))) -> 200 | AS47: 6 | AT47: 250 | AU47: 250 | AV47: 150 | AW47: 250 | AX47: 200 | AY47: 200 | BA47: 6 | BB47: 250 | BC47: 200 | BD47: 250 | BE47: 250 | BF47: 150 | BG47: 200 | BI47: 6 | BJ47: 250 | BK47: 250 | BL47: 150 | BM47: 250 | BN47: 200 | BO47: 200 | BQ47: 6 | BR47: 250 | BS47: 200 | BT47: 250 | BU47: 250 | BV47: 150 | BW47: 200 | CR47: off | CS47: =IF($CL$74-1.15*$DA$75>0,$BZ$80,$BZ$81) ->  | CU47: =IF($CO$74-1.15*$DA$75>0,$BZ$80,$BZ$81) ->  | CW47: =IF($CR$74-1.15*$DA$75>0,$BZ$80,$BZ$81) ->  | CY47: =IF($CU$74-$DA$75>0,$BZ$80,$BZ$81) ->  | DA47: =IF($CX$74-$DA$75>0,$BZ$80,$BZ$81) ->  | DC47: =IF($DA$74-$DA$75>0,$BZ$80,$BZ$81) ->  | DE47: =IF($DD$74-$DA$75>0,$BZ$80,$BZ$81) ->  | DG47: =IF($DG$74-$DA$75>0,$BZ$80,$BZ$81) ->  | DI47: =IF($DJ$74-$DA$75>0,$BZ$80,$BZ$81) ->  | DK47: =IF(1.15*$DM$74-$DA$75>0,$BZ$80,$BZ$81) ->  | DM47: =IF(1.15*$DP$74-$DA$75>0,$BZ$80,$BZ$81) ->  | DO47: =IF(1.15*$DS$74-$DA$75>0,$BZ$80,$BZ$81) -> 
F48: =IF(E25=C26,E65,IF(E25=C27,H65,IF(E25=C28,K65,IF(E25=C29,N65,erreur)))) -> 0.27245 | G48: =IF(E25=C26,F65,IF(E25=C27,I65,IF(E25=C28,L65,IF(E25=C29,O65,erreur)))) -> 0.63575 | H48: 0.9082 | I48: =IF(E25=C26,E79,IF(E25=C27,H79,IF(E25=C28,K79,IF(E25=C29,N79,erreur)))) -> 0.27245 | J48: =IF(E25=C26,F79,IF(E25=C27,I79,IF(E25=C28,L79,IF(E25=C29,O79,erreur)))) -> 0.63575 | K48: 0.9082 | L48: =IF(E25=C26,E93,IF(E25=C27,H93,IF(E25=C28,K93,IF(E25=C29,N93,erreur)))) -> 0.4541 | M48: =IF(E25=C26,F93,IF(E25=C27,I93,IF(E25=C28,L93,IF(E25=C29,O93,erreur)))) -> 0.4541 | N48: 0.9082 | Q48: 0.6 | R48: 1.366666667 | S48: 0 | T48: 1.266666667 | U48: 0 | V48: 1.176470588 | W48: 1.274509804 | X48: 0 | Y48: 1.274509804 | Z48: 1.3 | AA48: 1.156862745 | AB48: 0 | AC48: 1.25 | AD48: 1.333333333 | AJ48: 7 | AK48: =IF(AK40=AT40,AT48,IF(AK40=BB40,BB48,IF(AK40=BJ40,BJ48,IF(AK40=BR40,BR48,erreur)))) -> 250 | AL48: =IF(AK40=AT40,AU48,IF(AK40=BB40,BC48,IF(AK40=BJ40,BK48,IF(AK40=BR40,BS48,erreur)))) -> 250 | AM48: =IF(AK40=AT40,AV48,IF(AK40=BB40,BD48,IF(AK40=BJ40,BL48,IF(AK40=BR40,BT48,erreur)))) -> 250 | AN48: =IF(AK40=AT40,AW48,IF(AK40=BB40,BE48,IF(AK40=BJ40,BM48,IF(AK40=BR40,BU48,erreur)))) -> 250 | AO48: =IF(AK40=AT40,AX48,IF(AK40=BB40,BF48,IF(AK40=BJ40,BN48,IF(AK40=BR40,BV48,erreur)))) -> 200 | AP48: =IF(AK40=AT40,AY48,IF(AK40=BB40,BG48,IF(AK40=BJ40,BO48,IF(AK40=BR40,BW48,erreur)))) -> 200 | AS48: 7 | AT48: 250 | AU48: 250 | AV48: 250 | AW48: 250 | AX48: 200 | AY48: 200 | BA48: 7 | BB48: 250 | BC48: 250 | BD48: 250 | BE48: 250 | BF48: 200 | BG48: 200 | BI48: 7 | BJ48: 250 | BK48: 250 | BL48: 250 | BM48: 250 | BN48: 200 | BO48: 200 | BQ48: 7 | BR48: 250 | BS48: 250 | BT48: 250 | BU48: 250 | BV48: 200 | BW48: 200 | CQ48: 352 | CR48: def | CS48: =IF(1.15*$CL$74-$DD$75>0,$BZ$80,$BZ$81) ->  | CU48: =IF(1.15*$CO$74-$DD$75>0,$BZ$80,$BZ$81) ->  | CW48: =IF(1.15*$CR$74-$DD$75>0,$BZ$80,$BZ$81) ->  | CY48: =IF($CU$74-$DD$75>0,$BZ$80,$BZ$81) ->  | DA48: =IF($CX$74-$DD$75>0,$BZ$80,$BZ$81) ->  | DC48: =IF($DA$74-$DD$75>0,$BZ$80,$BZ$81) ->  | DE48: =IF($DD$74-$DD$75>0,$BZ$80,$BZ$81) ->  | DG48: =IF($DG$74-$DD$75>0,$BZ$80,$BZ$81) ->  | DI48: =IF($DJ$74-$DD$75>0,$BZ$80,$BZ$81) ->  | DK48: =IF($DM$74-1.15*$DD$75>0,$BZ$80,$BZ$81) ->  | DM48: =IF($DP$74-1.15*$DD$75>0,$BZ$80,$BZ$81) ->  | DO48: =IF($DS$74-1.15*$DD$75>0,$BZ$80,$BZ$81) -> 
F49: =IF(E25=C26,E66,IF(E25=C27,H66,IF(E25=C28,K66,IF(E25=C29,N66,erreur)))) -> 0.27245 | G49: =IF(E25=C26,F66,IF(E25=C27,I66,IF(E25=C28,L66,IF(E25=C29,O66,erreur)))) -> 0.63575 | H49: 0.9082 | I49: =IF(E25=C26,E80,IF(E25=C27,H80,IF(E25=C28,K80,IF(E25=C29,N80,erreur)))) -> 0.3633 | J49: =IF(E25=C26,F80,IF(E25=C27,I80,IF(E25=C28,L80,IF(E25=C29,O80,erreur)))) -> 0.54495 | K49: 0.90825 | L49: =IF(E25=C26,E94,IF(E25=C27,H94,IF(E25=C28,K94,IF(E25=C29,N94,erreur)))) -> 0.4541 | M49: =IF(E25=C26,F94,IF(E25=C27,I94,IF(E25=C28,L94,IF(E25=C29,O94,erreur)))) -> 0.4541 | N49: 0.9082 | Q49: 1.166666667 | R49: 1.066666667 | S49: 0 | T49: 0.95 | U49: 0 | V49: 1.176470588 | W49: 1.098039216 | X49: 0 | Y49: 1.098039216 | Z49: 1.183333333 | AA49: 1.019607843 | AB49: 0 | AC49: 1.25 | AD49: 0.9666666667 | AJ49: 8 | AK49: =IF(AK40=AT40,AT49,IF(AK40=BB40,BB49,IF(AK40=BJ40,BJ49,IF(AK40=BR40,BR49,erreur)))) -> 200 | AL49: =IF(AK40=AT40,AU49,IF(AK40=BB40,BC49,IF(AK40=BJ40,BK49,IF(AK40=BR40,BS49,erreur)))) -> 300 | AM49: =IF(AK40=AT40,AV49,IF(AK40=BB40,BD49,IF(AK40=BJ40,BL49,IF(AK40=BR40,BT49,erreur)))) -> 300 | AN49: =IF(AK40=AT40,AW49,IF(AK40=BB40,BE49,IF(AK40=BJ40,BM49,IF(AK40=BR40,BU49,erreur)))) -> 300 | AO49: =IF(AK40=AT40,AX49,IF(AK40=BB40,BF49,IF(AK40=BJ40,BN49,IF(AK40=BR40,BV49,erreur)))) -> 200 | AP49: =IF(AK40=AT40,AY49,IF(AK40=BB40,BG49,IF(AK40=BJ40,BO49,IF(AK40=BR40,BW49,erreur)))) -> 200 | AS49: 8 | AT49: 250 | AU49: 250 | AV49: 250 | AW49: 250 | AX49: 200 | AY49: 200 | BA49: 8 | BB49: 200 | BC49: 300 | BD49: 300 | BE49: 300 | BF49: 200 | BG49: 200 | BI49: 8 | BJ49: 200 | BK49: 300 | BL49: 300 | BM49: 300 | BN49: 200 | BO49: 200 | BQ49: 8 | BR49: 250 | BS49: 250 | BT49: 250 | BU49: 250 | BV49: 200 | BW49: 200 | CR49: neutre | CS49: =IF(1.15*$CL$74-$DG$75>0,$BZ$80,$BZ$81) ->  | CU49: =IF(1.15*$CO$74-$DG$75>0,$BZ$80,$BZ$81) ->  | CW49: =IF(1.15*$CR$74-$DG$75>0,$BZ$80,$BZ$81) ->  | CY49: =IF($CU$74-$DG$75>0,$BZ$80,$BZ$81) ->  | DA49: =IF($CX$74-$DG$75>0,$BZ$80,$BZ$81) ->  | DC49: =IF($DA$74-$DG$75>0,$BZ$80,$BZ$81) ->  | DE49: =IF($DD$74-$DG$75>0,$BZ$80,$BZ$81) ->  | DG49: =IF($DG$74-$DG$75>0,$BZ$80,$BZ$81) ->  | DI49: =IF($DJ$74-$DG$75>0,$BZ$80,$BZ$81) ->  | DK49: =IF($DM$74-1.15*$DG$75>0,$BZ$80,$BZ$81) ->  | DM49: =IF($DP$74-1.15*$DG$75>0,$BZ$80,$BZ$81) ->  | DO49: =IF($DS$74-1.15*$DG$75>0,$BZ$80,$BZ$81) -> 
F50: =IF(E25=C26,E67,IF(E25=C27,H67,IF(E25=C28,K67,IF(E25=C29,N67,erreur)))) -> 0.7266 | G50: =IF(E25=C26,F67,IF(E25=C27,I67,IF(E25=C28,L67,IF(E25=C29,O67,erreur)))) -> 1.0899 | H50: 1.8165 | I50: =IF(E25=C26,E81,IF(E25=C27,H81,IF(E25=C28,K81,IF(E25=C29,N81,erreur)))) -> 0.90825 | J50: =IF(E25=C26,F81,IF(E25=C27,I81,IF(E25=C28,L81,IF(E25=C29,O81,erreur)))) -> 0.90825 | K50: 1.8165 | L50: =IF(E25=C26,E95,IF(E25=C27,H95,IF(E25=C28,K95,IF(E25=C29,N95,erreur)))) -> 1.0899 | M50: =IF(E25=C26,F95,IF(E25=C27,I95,IF(E25=C28,L95,IF(E25=C29,O95,erreur)))) -> 0.7266 | N50: 1.8165 | P50: valeur objet max | AJ50: 9 | AK50: =IF(AK40=AT40,AT50,IF(AK40=BB40,BB50,IF(AK40=BJ40,BJ50,IF(AK40=BR40,BR50,erreur)))) -> 350 | AL50: =IF(AK40=AT40,AU50,IF(AK40=BB40,BC50,IF(AK40=BJ40,BK50,IF(AK40=BR40,BS50,erreur)))) -> 400 | AM50: =IF(AK40=AT40,AV50,IF(AK40=BB40,BD50,IF(AK40=BJ40,BL50,IF(AK40=BR40,BT50,erreur)))) -> 250 | AN50: =IF(AK40=AT40,AW50,IF(AK40=BB40,BE50,IF(AK40=BJ40,BM50,IF(AK40=BR40,BU50,erreur)))) -> 250 | AO50: =IF(AK40=AT40,AX50,IF(AK40=BB40,BF50,IF(AK40=BJ40,BN50,IF(AK40=BR40,BV50,erreur)))) -> 250 | AP50: =IF(AK40=AT40,AY50,IF(AK40=BB40,BG50,IF(AK40=BJ40,BO50,IF(AK40=BR40,BW50,erreur)))) -> 200 | AS50: 9 | AT50: 250 | AU50: 350 | AV50: 400 | AW50: 300 | AX50: 200 | AY50: 200 | BA50: 9 | BB50: 350 | BC50: 400 | BD50: 250 | BE50: 250 | BF50: 250 | BG50: 200 | BI50: 9 | BJ50: 350 | BK50: 400 | BL50: 250 | BM50: 250 | BN50: 250 | BO50: 200 | BQ50: 9 | BR50: 250 | BS50: 350 | BT50: 400 | BU50: 300 | BV50: 200 | BW50: 200 | CR50: off | CS50: =IF(1.15*$CL$74-$DJ$75>0,$BZ$80,$BZ$81) ->  | CU50: =IF(1.15*$CO$74-$DJ$75>0,$BZ$80,$BZ$81) ->  | CW50: =IF(1.15*$CR$74-$DJ$75>0,$BZ$80,$BZ$81) ->  | CY50: =IF($CU$74-$DJ$75>0,$BZ$80,$BZ$81) ->  | DA50: =IF($CX$74-$DJ$75>0,$BZ$80,$BZ$81) ->  | DC50: =IF($DA$74-$DJ$75>0,$BZ$80,$BZ$81) ->  | DE50: =IF($DD$74-$DJ$75>0,$BZ$80,$BZ$81) ->  | DG50: =IF($DG$74-$DJ$75>0,$BZ$80,$BZ$81) ->  | DI50: =IF($DJ$74-$DJ$75>0,$BZ$80,$BZ$81) ->  | DK50: =IF($DM$74-1.15*$DJ$75>0,$BZ$80,$BZ$81) ->  | DM50: =IF($DP$74-1.15*$DJ$75>0,$BZ$80,$BZ$81) ->  | DO50: =IF($DS$74-1.15*$DJ$75>0,$BZ$80,$BZ$81) -> 
F51: =IF(E25=C26,E68,IF(E25=C27,H68,IF(E25=C28,K68,IF(E25=C29,N68,erreur)))) -> 1.0899 | G51: =IF(E25=C26,F68,IF(E25=C27,I68,IF(E25=C28,L68,IF(E25=C29,O68,erreur)))) -> 1.63485 | H51: 2.72475 | I51: =IF(E25=C26,E82,IF(E25=C27,H82,IF(E25=C28,K82,IF(E25=C29,N82,erreur)))) -> 1.63485 | J51: =IF(E25=C26,F82,IF(E25=C27,I82,IF(E25=C28,L82,IF(E25=C29,O82,erreur)))) -> 1.0899 | K51: 2.72475 | L51: =IF(E25=C26,E96,IF(E25=C27,H96,IF(E25=C28,K96,IF(E25=C29,N96,erreur)))) -> 1.90735 | M51: =IF(E25=C26,F96,IF(E25=C27,I96,IF(E25=C28,L96,IF(E25=C29,O96,erreur)))) -> 0.8174 | N51: 2.72475 | Q51: =D21 -> 0 | R51: =D21 -> 0 | S51: =D21 -> 0 | T51: =D21 -> 0 | U51: =D21 -> 0 | V51: =D21 -> 0 | W51: =D21 -> 0 | X51: =D21 -> 0 | Y51: =D21 -> 0 | Z51: =D21 -> 0 | AA51: =D21 -> 0 | AB51: =D21 -> 0 | AC51: =D21 -> 0 | AD51: =D21 -> 0 | AJ51: 10 | AK51: =IF(AK40=AT40,AT51,IF(AK40=BB40,BB51,IF(AK40=BJ40,BJ51,IF(AK40=BR40,BR51,erreur)))) -> 200 | AL51: =IF(AK40=AT40,AU51,IF(AK40=BB40,BC51,IF(AK40=BJ40,BK51,IF(AK40=BR40,BS51,erreur)))) -> 350 | AM51: =IF(AK40=AT40,AV51,IF(AK40=BB40,BD51,IF(AK40=BJ40,BL51,IF(AK40=BR40,BT51,erreur)))) -> 250 | AN51: =IF(AK40=AT40,AW51,IF(AK40=BB40,BE51,IF(AK40=BJ40,BM51,IF(AK40=BR40,BU51,erreur)))) -> 300 | AO51: =IF(AK40=AT40,AX51,IF(AK40=BB40,BF51,IF(AK40=BJ40,BN51,IF(AK40=BR40,BV51,erreur)))) -> 300 | AP51: =IF(AK40=AT40,AY51,IF(AK40=BB40,BG51,IF(AK40=BJ40,BO51,IF(AK40=BR40,BW51,erreur)))) -> 200 | AS51: 10 | AT51: 200 | AU51: 350 | AV51: 250 | AW51: 300 | AX51: 300 | AY51: 200 | BA51: 10 | BB51: 200 | BC51: 350 | BD51: 250 | BE51: 300 | BF51: 300 | BG51: 200 | BI51: 10 | BJ51: 200 | BK51: 350 | BL51: 250 | BM51: 300 | BN51: 300 | BO51: 200 | BQ51: 10 | BR51: 200 | BS51: 350 | BT51: 250 | BU51: 300 | BV51: 300 | BW51: 200 | CQ51: 442 | CR51: def | CS51: =IF($CL$74-$DM$75>0,$BZ$80,$BZ$81) ->  | CU51: =IF($CO$74-$DM$75>0,$BZ$80,$BZ$81) ->  | CW51: =IF($CR$74-$DM$75>0,$BZ$80,$BZ$81) ->  | CY51: =IF($CU$74-1.15*$DM$75>0,$BZ$80,$BZ$81) ->  | DA51: =IF($CX$74-1.15*$DM$75>0,$BZ$80,$BZ$81) ->  | DC51: =IF($DA$74-1.15*$DM$75>0,$BZ$80,$BZ$81) ->  | DE51: =IF(1.15*$DD$74-$DM$75>0,$BZ$80,$BZ$81) ->  | DG51: =IF(1.15*$DG$74-$DM$75>0,$BZ$80,$BZ$81) ->  | DI51: =IF(1.15*$DJ$74-$DM$75>0,$BZ$80,$BZ$81) ->  | DK51: =IF($DM$74-$DM$75>0,$BZ$80,$BZ$81) ->  | DM51: =IF($DP$74-$DM$75>0,$BZ$80,$BZ$81) ->  | DO51: =IF($DS$74-$DM$75>0,$BZ$80,$BZ$81) -> 
F52: =IF(E25=C26,E69,IF(E25=C27,H69,IF(E25=C28,K69,IF(E25=C29,N69,erreur)))) -> 0.68115 | G52: =IF(E25=C26,F69,IF(E25=C27,I69,IF(E25=C28,L69,IF(E25=C29,O69,erreur)))) -> 0.68115 | H52: 1.3623 | I52: =IF(E25=C26,E83,IF(E25=C27,H83,IF(E25=C28,K83,IF(E25=C29,N83,erreur)))) -> 0.8174 | J52: =IF(E25=C26,F83,IF(E25=C27,I83,IF(E25=C28,L83,IF(E25=C29,O83,erreur)))) -> 0.54495 | K52: 1.36235 | L52: =IF(E25=C26,E97,IF(E25=C27,H97,IF(E25=C28,K97,IF(E25=C29,N97,erreur)))) -> 1.0899 | M52: =IF(E25=C26,F97,IF(E25=C27,I97,IF(E25=C28,L97,IF(E25=C29,O97,erreur)))) -> 0.27245 | N52: 1.36235 | Q52: =D21 -> 0 | R52: =D21 -> 0 | S52: =D21 -> 0 | T52: =D21 -> 0 | U52: =D21 -> 0 | V52: =D21 -> 0 | W52: =D21 -> 0 | X52: =D21 -> 0 | Y52: =D21 -> 0 | Z52: =D21 -> 0 | AA52: =D21 -> 0 | AB52: =D21 -> 0 | AC52: =D21 -> 0 | AD52: =D21 -> 0 | AJ52: 11 | AK52: =IF(AK40=AT40,AT52,IF(AK40=BB40,BB52,IF(AK40=BJ40,BJ52,IF(AK40=BR40,BR52,erreur)))) -> 200 | AL52: =IF(AK40=AT40,AU52,IF(AK40=BB40,BC52,IF(AK40=BJ40,BK52,IF(AK40=BR40,BS52,erreur)))) -> 300 | AM52: =IF(AK40=AT40,AV52,IF(AK40=BB40,BD52,IF(AK40=BJ40,BL52,IF(AK40=BR40,BT52,erreur)))) -> 300 | AN52: =IF(AK40=AT40,AW52,IF(AK40=BB40,BE52,IF(AK40=BJ40,BM52,IF(AK40=BR40,BU52,erreur)))) -> 300 | AO52: =IF(AK40=AT40,AX52,IF(AK40=BB40,BF52,IF(AK40=BJ40,BN52,IF(AK40=BR40,BV52,erreur)))) -> 200 | AP52: =IF(AK40=AT40,AY52,IF(AK40=BB40,BG52,IF(AK40=BJ40,BO52,IF(AK40=BR40,BW52,erreur)))) -> 200 | AS52: 11 | AT52: 250 | AU52: 350 | AV52: 400 | AW52: 350 | AX52: 150 | AY52: 200 | BA52: 11 | BB52: 100 | BC52: 150 | BD52: 150 | BE52: 150 | BF52: 100 | BG52: 100 | BI52: 11 | BJ52: 200 | BK52: 300 | BL52: 300 | BM52: 300 | BN52: 200 | BO52: 200 | BQ52: 11 | BR52: 250 | BS52: 350 | BT52: 400 | BU52: 350 | BV52: 150 | BW52: 200 | CR52: neutre | CS52: =IF($CL$74-$DP$75>0,$BZ$80,$BZ$81) ->  | CU52: =IF($CO$74-$DP$75>0,$BZ$80,$BZ$81) ->  | CW52: =IF($CR$74-$DP$75>0,$BZ$80,$BZ$81) ->  | CY52: =IF($CU$74-1.15*$DP$75>0,$BZ$80,$BZ$81) ->  | DA52: =IF($CX$74-1.15*$DP$75>0,$BZ$80,$BZ$81) ->  | DC52: =IF($DA$74-1.15*$DP$75>0,$BZ$80,$BZ$81) ->  | DE52: =IF(1.15*$DD$74-$DP$75>0,$BZ$80,$BZ$81) ->  | DG52: =IF(1.15*$DG$74-$DP$75>0,$BZ$80,$BZ$81) ->  | DI52: =IF(1.15*$DJ$74-$DP$75>0,$BZ$80,$BZ$81) ->  | DK52: =IF($DM$74-$DP$75>0,$BZ$80,$BZ$81) ->  | DM52: =IF($DP$74-$DP$75>0,$BZ$80,$BZ$81) ->  | DO52: =IF($DS$74-$DP$75>0,$BZ$80,$BZ$81) -> 
F53: =IF(E25=C26,E70,IF(E25=C27,H70,IF(E25=C28,K70,IF(E25=C29,N70,erreur)))) -> 1.27155 | G53: =IF(E25=C26,F70,IF(E25=C27,I70,IF(E25=C28,L70,IF(E25=C29,O70,erreur)))) -> 0.54495 | H53: 1.8165 | I53: =IF(E25=C26,E84,IF(E25=C27,H84,IF(E25=C28,K84,IF(E25=C29,N84,erreur)))) -> 1.4532 | J53: =IF(E25=C26,F84,IF(E25=C27,I84,IF(E25=C28,L84,IF(E25=C29,O84,erreur)))) -> 0.3633 | K53: 1.8165 | L53: =IF(E25=C26,E98,IF(E25=C27,H98,IF(E25=C28,K98,IF(E25=C29,N98,erreur)))) -> 1.63485 | M53: =IF(E25=C26,F98,IF(E25=C27,I98,IF(E25=C28,L98,IF(E25=C29,O98,erreur)))) -> 0.18165 | N53: 1.8165 | Q53: =D21 -> 0 | R53: =D21 -> 0 | S53: =D21 -> 0 | T53: =D21 -> 0 | U53: =D21 -> 0 | V53: =D21 -> 0 | W53: =D21 -> 0 | X53: =D21 -> 0 | Y53: =D21 -> 0 | Z53: =D21 -> 0 | AA53: =D21 -> 0 | AB53: =D21 -> 0 | AC53: =D21 -> 0 | AD53: =D21 -> 0 | CR53: off | CS53: =IF($CL$74-$DS$75>0,$BZ$80,$BZ$81) ->  | CU53: =IF($CO$74-$DS$75>0,$BZ$80,$BZ$81) ->  | CW53: =IF($CR$74-$DS$75>0,$BZ$80,$BZ$81) ->  | CY53: =IF($CU$74-1.15*$DS$75>0,$BZ$80,$BZ$81) ->  | DA53: =IF($CX$74-1.15*$DS$75>0,$BZ$80,$BZ$81) ->  | DC53: =IF($DA$74-1.15*$DS$75>0,$BZ$80,$BZ$81) ->  | DE53: =IF(1.15*$DD$74-$DS$75>0,$BZ$80,$BZ$81) ->  | DG53: =IF(1.15*$DG$74-$DS$75>0,$BZ$80,$BZ$81) ->  | DI53: =IF(1.15*$DJ$74-$DS$75>0,$BZ$80,$BZ$81) ->  | DK53: =IF($DM$74-$DS$75>0,$BZ$80,$BZ$81) ->  | DM53: =IF($DP$74-$DS$75>0,$BZ$80,$BZ$81) ->  | DO53: =IF($DS$74-$DS$75>0,$BZ$80,$BZ$81) -> 
F54: =IF(E25=C26,E71,IF(E25=C27,H71,IF(E25=C28,K71,IF(E25=C29,N71,erreur)))) -> 0.95365 | G54: =IF(E25=C26,F71,IF(E25=C27,I71,IF(E25=C28,L71,IF(E25=C29,O71,erreur)))) -> 0.4087 | H54: 1.36235 | I54: =IF(E25=C26,E85,IF(E25=C27,H85,IF(E25=C28,K85,IF(E25=C29,N85,erreur)))) -> 0.95365 | J54: =IF(E25=C26,F85,IF(E25=C27,I85,IF(E25=C28,L85,IF(E25=C29,O85,erreur)))) -> 0.4087 | K54: 1.36235 | L54: =IF(E25=C26,E99,IF(E25=C27,H99,IF(E25=C28,K99,IF(E25=C29,N99,erreur)))) -> 1.0899 | M54: =IF(E25=C26,F99,IF(E25=C27,I99,IF(E25=C28,L99,IF(E25=C29,O99,erreur)))) -> 0.27245 | N54: 1.36235 | Q54: =D21 -> 0 | R54: =D21 -> 0 | S54: =D21 -> 0 | T54: =D21 -> 0 | U54: =D21 -> 0 | V54: =D21 -> 0 | W54: =D21 -> 0 | X54: =D21 -> 0 | Y54: =D21 -> 0 | Z54: =D21 -> 0 | AA54: =D21 -> 0 | AB54: =D21 -> 0 | AC54: =D21 -> 0 | AD54: =D21 -> 0 | AI54: pourcentage poste par kit et par place | BR54: coefficient multiplicateur par tactique : | BZ54: pourcentage joueur | CF54: stats brutes joueurs adversaires par position sans bonus match
F55: =IF(E25=C26,E72,IF(E25=C27,H72,IF(E25=C28,K72,IF(E25=C29,N72, erreur)))) -> 1.0899 | G55: =IF(E25=C26,F72,IF(E25=C27,I72,IF(E25=C28,L72,IF(E25=C29,O72,erreur)))) -> 0.7266 | H55: 1.8165 | I55: =IF(E25=C26,E86,IF(E25=C27,H86,IF(E25=C28,K86,IF(E25=C29,N86,erreur)))) -> 1.27155 | J55: =IF(E25=C26,F86,IF(E25=C27,I86,IF(E25=C28,L86,IF(E25=C29,O86,erreur)))) -> 0.54495 | K55: 1.8165 | L55: =IF(E25=C26,E100,IF(E25=C27,H100,IF(E25=C28,K100,IF(E25=C29,N100,erreur)))) -> 1.4532 | M55: =IF(E25=C26,F100,IF(E25=C27,I100,IF(E25=C28,L100,IF(E25=C29,O100,erreur)))) -> 0.3633 | N55: 1.8165 | Q55: =D21 -> 0 | R55: =D21 -> 0 | S55: =D21 -> 0 | T55: =D21 -> 0 | U55: =D21 -> 0 | V55: =D21 -> 0 | W55: =D21 -> 0 | X55: =D21 -> 0 | Y55: =D21 -> 0 | Z55: =D21 -> 0 | AA55: =D21 -> 0 | AB55: =D21 -> 0 | AC55: =D21 -> 0 | AD55: =D21 -> 0 | AJ55: 1 | AK55: =Q9 -> kit 1 | AL55: kit 2/3 | AM55: 0 | AN55: kit 4 | AO55: 0 | AP55: kit 5 | AQ55: kit 6/7 | AR55: 0 | AS55: 0 | AT55: kit 8 | AU55: kit 9 | AV55: 0 | AW55: kit 10 | AX55: kit 11 | AY55: MAX | BA55: 2 | BB55: =Q9 -> kit 1 | BC55: kit 2/3 | BD55: 0 | BE55: kit 4 | BF55: 0 | BG55: kit 5 | BH55: kit 6/7 | BI55: 0 | BJ55: 0 | BK55: kit 8 | BL55: kit 9 | BM55: 0 | BN55: kit 10 | BO55: kit 11 | BP55: MAX | BS55: =F42 -> 352 | BZ55: adversaire par position | CG55: 541 | CP55: 433 | CY55: 352 | DH55: 442
E56: tactique selectionnée (ca ne sert a rien) | AH56: 1 | AJ56: =AJ191 ->  | AK56: =MIN((S59+AJ35*D19)/AK42,(S60+AJ35*D19)/AL42,(S61+AJ35*D19)/AM42,(S62+AJ35*D19)/AN42,(S63+AJ35*D19)/AO42)*AP42 ->  | AL56: =MIN((T59+AJ35*D19)/AK42,(T60+AJ35*D19)/AL42,(T61+AJ35*D19)/AM42,(T62+AJ35*D19)/AN42,(T63+AJ35*D19)/AO42)*AP42 ->  | AM56: =MIN((U59+AJ35*D19)/AK42,(U60+AJ35*D19)/AL42,(U61+AJ35*D19)/AM42,(U62+AJ35*D19)/AN42,(U63+AJ35*D19)/AO42)*AP42 ->  | AN56: =MIN((V59+AJ35*D19)/AK42,(V60+AJ35*D19)/AL42,(V61+AJ35*D19)/AM42,(V62+AJ35*D19)/AN42,(V63+AJ35*D19)/AO42)*AP42 ->  | AO56: =MIN((W59+AJ35*D19)/AK42,(W60+AJ35*D19)/AL42,(W61+AJ35*D19)/AM42,(W62+AJ35*D19)/AN42,(W63+AJ35*D19)/AO42)*AP42 ->  | AP56: =MIN((X59+AJ35*D19)/AK42,(X60+AJ35*D19)/AL42,(X61+AJ35*D19)/AM42,(X62+AJ35*D19)/AN42,(X63+AJ35*D19)/AO42)*AP42 ->  | AQ56: =MIN((Y59+AJ35*D19)/AK42,(Y60+AJ35*D19)/AL42,(Y61+AJ35*D19)/AM42,(Y62+AJ35*D19)/AN42,(Y63+AJ35*D19)/AO42)*AP42 ->  | AR56: =MIN((Z59+AJ35*D19)/AK42,(Z60+AJ35*D19)/AL42,(Z61+AJ35*D19)/AM42,(Z62+AJ35*D19)/AN42,(Z63+AJ35*D19)/AO42)*AP42 ->  | AS56: =MIN((AA59+AJ35*D19)/AK42,(AA60+AJ35*D19)/AL42,(AA61+AJ35*D19)/AM42,(AA62+AJ35*D19)/AN42,(AA63+AJ35*D19)/AO42)*AP42 ->  | AT56: =MIN((AB59+AJ35*D19)/AK42,(AB60+AJ35*D19)/AL42,(AB61+AJ35*D19)/AM42,(AB62+AJ35*D19)/AN42,(AB63+AJ35*D19)/AO42)*AP42 ->  | AU56: =MIN((AC59+AJ35*D19)/AK42,(AC60+AJ35*D19)/AL42,(AC61+AJ35*D19)/AM42,(AC62+AJ35*D19)/AN42,(AC63+AJ35*D19)/AO42)*AP42 ->  | AV56: =MIN((AD59+AJ35*D19)/AK42,(AD60+AJ35*D19)/AL42,(AD61+AJ35*D19)/AM42,(AD62+AJ35*D19)/AN42,(AD63+AJ35*D19)/AO42)*AP42 ->  | AW56: =MIN((AE59+AJ35*D19)/AK42,(AE60+AJ35*D19)/AL42,(AE61+AJ35*D19)/AM42,(AE62+AJ35*D19)/AN42,(AE63+AJ35*D19)/AO42)*AP42 ->  | AX56: =MIN((AF59+AJ35*D19)/AK42,(AF60+AJ35*D19)/AL42,(AF61+AJ35*D19)/AM42,(AF62+AJ35*D19)/AN42,(AF63+AJ35*D19)/AO42)*AP42 ->  | AY56: =MAX(AK56:AX56) ->  | BA56: =AJ191 ->  | BB56: =MIN((S59+AK35*D19)/AK43,(S60+AK35*D19)/AL43,(S61+AK35*D19)/AM43,(S62+AK35*D19)/AN43,(S63+AK35*D19)/AO43)*AP43 ->  | BC56: =MIN((T59+AK35*D19)/AK43,(T60+AK35*D19)/AL43,(T61+AK35*D19)/AM43,(T62+AK35*D19)/AN43,(T63+AK35*D19)/AO43)*AP43 ->  | BD56: =MIN((U59+AK35*D19)/AK43,(U60+AK35*D19)/AL43,(U61+AK35*D19)/AM43,(U62+AK35*D19)/AN43,(U63+AK35*D19)/AO43)*AP43 ->  | BE56: =MIN((V59+AK35*D19)/AK43,(V60+AK35*D19)/AL43,(V61+AK35*D19)/AM43,(V62+AK35*D19)/AN43,(V63+AK35*D19)/AO43)*AP43 ->  | BF56: =MIN((W59+AK35*D19)/AK43,(W60+AK35*D19)/AL43,(W61+AK35*D19)/AM43,(W62+AK35*D19)/AN43,(W63+AK35*D19)/AO43)*AP43 ->  | BG56: =MIN((X59+AK35*D19)/AK43,(X60+AK35*D19)/AL43,(X61+AK35*D19)/AM43,(X62+AK35*D19)/AN43,(X63+AK35*D19)/AO43)*AP43 ->  | BH56: =MIN((Y59+AK35*D19)/AK43,(Y60+AK35*D19)/AL43,(Y61+AK35*D19)/AM43,(Y62+AK35*D19)/AN43,(Y63+AK35*D19)/AO43)*AP43 ->  | BI56: =MIN((Z59+AK35*D19)/AK43,(Z60+AK35*D19)/AL43,(Z61+AK35*D19)/AM43,(Z62+AK35*D19)/AN43,(Z63+AK35*D19)/AO43)*AP43 ->  | BJ56: =MIN((AA59+AK35*D19)/AK43,(AA60+AK35*D19)/AL43,(AA61+AK35*D19)/AM43,(AA62+AK35*D19)/AN43,(AA63+AK35*D19)/AO43)*AP43 ->  | BK56: =MIN((AB59+AK35*D19)/AK43,(AB60+AK35*D19)/AL43,(AB61+AK35*D19)/AM43,(AB62+AK35*D19)/AN43,(AB63+AK35*D19)/AO43)*AP43 ->  | BL56: =MIN((AC59+AK35*D19)/AK43,(AC60+AK35*D19)/AL43,(AC61+AK35*D19)/AM43,(AC62+AK35*D19)/AN43,(AC63+AK35*D19)/AO43)*AP43 ->  | BM56: =MIN((AD59+AK35*D19)/AK43,(AD60+AK35*D19)/AL43,(AD61+AK35*D19)/AM43,(AD62+AK35*D19)/AN43,(AD63+AK35*D19)/AO43)*AP43 ->  | BN56: =MIN((AE59+AK35*D19)/AK43,(AE60+AK35*D19)/AL43,(AE61+AK35*D19)/AM43,(AE62+AK35*D19)/AN43,(AE63+AK35*D19)/AO43)*AP43 ->  | BO56: =MIN((AF59+AK35*D19)/AK43,(AF60+AK35*D19)/AL43,(AF61+AK35*D19)/AM43,(AF62+AK35*D19)/AN43,(AF63+AK35*D19)/AO43)*AP43 ->  | BP56: =MAX(BB56:BO56) ->  | BS56: =AP3 -> Defensif | CA56: 541 | CB56: 433 | CC56: 352 | CD56: 442 | CG56: defensif | CJ56: neutre | CM56: offensif | CP56: defensif | CS56: neutre | CV56: offensif | CY56: defensif | DB56: neutre | DE56: offensif | DH56: defensif | DK56: neutre | DN56: offensif
E57: 541 defensif | F57: 541 neutre | G57: 541 offensif | H57: 433 defensif | I57: 433 neutre | J57: 433 offensif | K57: 352 defensif | L57: 352 neutre | M57: 352 offensif | N57: 442 defensif | O57: 442 neutre | P57: 442 offensif | Q57: caracteristiques joueur avec bonus batiment, objet et kit, sans vitamine. | AK57: =MIN((S66+AJ35*D19)/AK42,(S67+AJ35*D19)/AL42,(S68+AJ35*D19)/AM42,(S69+AJ35*D19)/AN42,(S70+AJ35*D19)/AO42)*AP42 ->  | AL57: =MIN((T66+AJ35*D19)/AK42,(T67+AJ35*D19)/AL42,(T68+AJ35*D19)/AM42,(T69+AJ35*D19)/AN42,(T70+AJ35*D19)/AO42)*AP42 ->  | AM57: =MIN((U66+AJ35*D19)/AK42,(U67+AJ35*D19)/AL42,(U68+AJ35*D19)/AM42,(U69+AJ35*D19)/AN42,(U70+AJ35*D19)/AO42)*AP42 ->  | AN57: =MIN((V66+AJ35*D19)/AK42,(V67+AJ35*D19)/AL42,(V68+AJ35*D19)/AM42,(V69+AJ35*D19)/AN42,(V70+AJ35*D19)/AO42)*AP42 ->  | AO57: =MIN((W66+AJ35*D19)/AK42,(W67+AJ35*D19)/AL42,(W68+AJ35*D19)/AM42,(W69+AJ35*D19)/AN42,(W70+AJ35*D19)/AO42)*AP42 ->  | AP57: =MIN((X66+AJ35*D19)/AK42,(X67+AJ35*D19)/AL42,(X68+AJ35*D19)/AM42,(X69+AJ35*D19)/AN42,(X70+AJ35*D19)/AO42)*AP42 ->  | AQ57: =MIN((Y66+AJ35*D19)/AK42,(Y67+AJ35*D19)/AL42,(Y68+AJ35*D19)/AM42,(Y69+AJ35*D19)/AN42,(Y70+AJ35*D19)/AO42)*AP42 ->  | AR57: =MIN((Z66+AJ35*D19)/AK42,(Z67+AJ35*D19)/AL42,(Z68+AJ35*D19)/AM42,(Z69+AJ35*D19)/AN42,(Z70+AJ35*D19)/AO42)*AP42 ->  | AS57: =MIN((AA66+AJ35*D19)/AK42,(AA67+AJ35*D19)/AL42,(AA68+AJ35*D19)/AM42,(AA69+AJ35*D19)/AN42,(AA70+AJ35*D19)/AO42)*AP42 ->  | AT57: =MIN((AB66+AJ35*D19)/AK42,(AB67+AJ35*D19)/AL42,(AB68+AJ35*D19)/AM42,(AB69+AJ35*D19)/AN42,(AB70+AJ35*D19)/AO42)*AP42 ->  | AU57: =MIN((AC66+AJ35*D19)/AK42,(AC67+AJ35*D19)/AL42,(AC68+AJ35*D19)/AM42,(AC69+AJ35*D19)/AN42,(AC70+AJ35*D19)/AO42)*AP42 ->  | AV57: =MIN((AD66+AJ35*D19)/AK42,(AD67+AJ35*D19)/AL42,(AD68+AJ35*D19)/AM42,(AD69+AJ35*D19)/AN42,(AD70+AJ35*D19)/AO42)*AP42 ->  | AW57: =MIN((AE66+AJ35*D19)/AK42,(AE67+AJ35*D19)/AL42,(AE68+AJ35*D19)/AM42,(AE69+AJ35*D19)/AN42,(AE70+AJ35*D19)/AO42)*AP42 ->  | AX57: =MIN((AF66+AJ35*D19)/AK42,(AF67+AJ35*D19)/AL42,(AF68+AJ35*D19)/AM42,(AF69+AJ35*D19)/AN42,(AF70+AJ35*D19)/AO42)*AP42 ->  | AY57: =MAX(AK57:AX57) ->  | BB57: =MIN((S66+AK35*D19)/AK43,(S67+AK35*D19)/AL43,(S68+AK35*D19)/AM43,(S69+AK35*D19)/AN43,(S70+AK35*D19)/AO43)*AP43 ->  | BC57: =MIN((T66+AK35*D19)/AK43,(T67+AK35*D19)/AL43,(T68+AK35*D19)/AM43,(T69+AK35*D19)/AN43,(T70+AK35*D19)/AO43)*AP43 ->  | BD57: =MIN((U66+AK35*D19)/AK43,(U67+AK35*D19)/AL43,(U68+AK35*D19)/AM43,(U69+AK35*D19)/AN43,(U70+AK35*D19)/AO43)*AP43 ->  | BE57: =MIN((V66+AK35*D19)/AK43,(V67+AK35*D19)/AL43,(V68+AK35*D19)/AM43,(V69+AK35*D19)/AN43,(V70+AK35*D19)/AO43)*AP43 ->  | BF57: =MIN((W66+AK35*D19)/AK43,(W67+AK35*D19)/AL43,(W68+AK35*D19)/AM43,(W69+AK35*D19)/AN43,(W70+AK35*D19)/AO43)*AP43 ->  | BG57: =MIN((X66+AK35*D19)/AK43,(X67+AK35*D19)/AL43,(X68+AK35*D19)/AM43,(X69+AK35*D19)/AN43,(X70+AK35*D19)/AO43)*AP43 ->  | BH57: =MIN((Y66+AK35*D19)/AK43,(Y67+AK35*D19)/AL43,(Y68+AK35*D19)/AM43,(Y69+AK35*D19)/AN43,(Y70+AK35*D19)/AO43)*AP43 ->  | BI57: =MIN((Z66+AK35*D19)/AK43,(Z67+AK35*D19)/AL43,(Z68+AK35*D19)/AM43,(Z69+AK35*D19)/AN43,(Z70+AK35*D19)/AO43)*AP43 ->  | BJ57: =MIN((AA66+AK35*D19)/AK43,(AA67+AK35*D19)/AL43,(AA68+AK35*D19)/AM43,(AA69+AK35*D19)/AN43,(AA70+AK35*D19)/AO43)*AP43 ->  | BK57: =MIN((AB66+AK35*D19)/AK43,(AB67+AK35*D19)/AL43,(AB68+AK35*D19)/AM43,(AB69+AK35*D19)/AN43,(AB70+AK35*D19)/AO43)*AP43 ->  | BL57: =MIN((AC66+AK35*D19)/AK43,(AC67+AK35*D19)/AL43,(AC68+AK35*D19)/AM43,(AC69+AK35*D19)/AN43,(AC70+AK35*D19)/AO43)*AP43 ->  | BM57: =MIN((AD66+AK35*D19)/AK43,(AD67+AK35*D19)/AL43,(AD68+AK35*D19)/AM43,(AD69+AK35*D19)/AN43,(AD70+AK35*D19)/AO43)*AP43 ->  | BN57: =MIN((AE66+AK35*D19)/AK43,(AE67+AK35*D19)/AL43,(AE68+AK35*D19)/AM43,(AE69+AK35*D19)/AN43,(AE70+AK35*D19)/AO43)*AP43 ->  | BO57: =MIN((AF66+AK35*D19)/AK43,(AF67+AK35*D19)/AL43,(AF68+AK35*D19)/AM43,(AF69+AK35*D19)/AN43,(AF70+AK35*D19)/AO43)*AP43 ->  | BP57: =MAX(BB57:BO57) ->  | BS57: 1% attaque | BU57: 1% defense | BW57: 1% cumulé | BZ57: 1 | CA57: =MIN((CP2*CS5+CK5)/AT42,(CP2*CS5+CL5)/AU42,(CP2*CS5+CM5)/AV42,(CP2*CS5+CN5)/AW42,(CP2*CS5+CO5)/AX42)*AY42 ->  | CB57: =MIN((CP2*CS5+CK5)/BB42,(CP2*CS5+CL5)/BC42,(CP2*CS5+CM5)/BD42,(CP2*CS5+CN5)/BE42,(CP2*CS5+CO5)/BF42)*BG42 ->  | CC57: =MIN((CP2*CS5+CK5)/BJ42,(CP2*CS5+CL5)/BK42,(CP2*CS5+CM5)/BL42,(CP2*CS5+CN5)/BM42,(CP2*CS5+CO5)/BN42)*BO42 ->  | CD57: =MIN((CP2*CS5+CK5)/BR42,(CP2*CS5+CL5)/BS42,(CP2*CS5+CM5)/BT42,(CP2*CS5+CN5)/BU42,(CP2*CS5+CO5)/BV42)*BW42 ->  | CG57: att | CH57: def | CI57: tot | CJ57: att | CK57: def | CL57: tot | CM57: att | CN57: def | CO57: tot | CP57: att | CQ57: def | CR57: tot | CS57: att | CT57: def | CU57: tot | CV57: att | CW57: def | CX57: tot | CY57: att | CZ57: def | DA57: tot | DB57: att | DC57: def | DD57: tot | DE57: att | DF57: def | DG57: tot | DH57: att | DI57: def | DJ57: tot | DK57: att | DL57: def | DM57: tot | DN57: att | DO57: def | DP57: tot
E58: =AND(E25=C26,E26=C31) -> FALSE | F58: =AND(E25=C26,E26=C32) -> FALSE | G58: =AND(E25=C26,E26=C33) -> FALSE | H58: =AND(E25=C27,E26=C31) -> FALSE | I58: =AND(E25=C27,E26=C32) -> FALSE | J58: =AND(E25=C27,E26=C33) -> FALSE | K58: =AND(E25=C28,E26=C31) -> TRUE | L58: =AND(E25=C28,E26=C32) -> FALSE | M58: =AND(E25=C28,E26=C33) -> FALSE | N58: =AND(E25=C29,E26=C31) -> FALSE | O58: =AND(E25=C29,E26=C32) -> FALSE | P58: =AND(E25=D29,E26=C33) -> FALSE | R58: =G11 ->  | S58: =Q9 -> kit 1 | T58: kit 2/3 | U58: 0 | V58: kit 4 | W58: 0 | X58: kit 5 | Y58: kit 6/7 | Z58: 0 | AA58: 0 | AB58: kit 8 | AC58: kit 9 | AD58: 0 | AE58: kit 10 | AF58: kit 11 | AK58: =MIN((S73+AJ35*D19)/AK42,(S74+AJ35*D19)/AL42,(S75+AJ35*D19)/AM42,(S76+AJ35*D19)/AN42,(S77+AJ35*D19)/AO42)*AP42 ->  | AL58: =MIN((T73+AJ35*D19)/AK42,(T74+AJ35*D19)/AL42,(T75+AJ35*D19)/AM42,(T76+AJ35*D19)/AN42,(T77+AJ35*D19)/AO42)*AP42 ->  | AM58: =MIN((U73+AJ35*D19)/AK42,(U74+AJ35*D19)/AL42,(U75+AJ35*D19)/AM42,(U76+AJ35*D19)/AN42,(U77+AJ35*D19)/AO42)*AP42 ->  | AN58: =MIN((V73+AJ35*D19)/AK42,(V74+AJ35*D19)/AL42,(V75+AJ35*D19)/AM42,(V76+AJ35*D19)/AN42,(V77+AJ35*D19)/AO42)*AP42 ->  | AO58: =MIN((W73+AJ35*D19)/AK42,(W74+AJ35*D19)/AL42,(W75+AJ35*D19)/AM42,(W76+AJ35*D19)/AN42,(W77+AJ35*D19)/AO42)*AP42 ->  | AP58: =MIN((X73+AJ35*D19)/AK42,(X74+AJ35*D19)/AL42,(X75+AJ35*D19)/AM42,(X76+AJ35*D19)/AN42,(X77+AJ35*D19)/AO42)*AP42 ->  | AQ58: =MIN((Y73+AJ35*D19)/AK42,(Y74+AJ35*D19)/AL42,(Y75+AJ35*D19)/AM42,(Y76+AJ35*D19)/AN42,(Y77+AJ35*D19)/AO42)*AP42 ->  | AR58: =MIN((Z73+AJ35*D19)/AK42,(Z74+AJ35*D19)/AL42,(Z75+AJ35*D19)/AM42,(Z76+AJ35*D19)/AN42,(Z77+AJ35*D19)/AO42)*AP42 ->  | AS58: =MIN((AA73+AJ35*D19)/AK42,(AA74+AJ35*D19)/AL42,(AA75+AJ35*D19)/AM42,(AA76+AJ35*D19)/AN42,(AA77+AJ35*D19)/AO42)*AP42 ->  | AT58: =MIN((AB73+AJ35*D19)/AK42,(AB74+AJ35*D19)/AL42,(AB75+AJ35*D19)/AM42,(AB76+AJ35*D19)/AN42,(AB77+AJ35*D19)/AO42)*AP42 ->  | AU58: =MIN((AC73+AJ35*D19)/AK42,(AC74+AJ35*D19)/AL42,(AC75+AJ35*D19)/AM42,(AC76+AJ35*D19)/AN42,(AC77+AJ35*D19)/AO42)*AP42 ->  | AV58: =MIN((AD73+AJ35*D19)/AK42,(AD74+AJ35*D19)/AL42,(AD75+AJ35*D19)/AM42,(AD76+AJ35*D19)/AN42,(AD77+AJ35*D19)/AO42)*AP42 ->  | AW58: =MIN((AE73+AJ35*D19)/AK42,(AE74+AJ35*D19)/AL42,(AE75+AJ35*D19)/AM42,(AE76+AJ35*D19)/AN42,(AE77+AJ35*D19)/AO42)*AP42 ->  | AX58: =MIN((AF73+AJ35*D19)/AK42,(AF74+AJ35*D19)/AL42,(AF75+AJ35*D19)/AM42,(AF76+AJ35*D19)/AN42,(AF77+AJ35*D19)/AO42)*AP42 ->  | BB58: =MIN((S73+AK35*D19)/AK43,(S74+AK35*D19)/AL43,(S75+AK35*D19)/AM43,(S76+AK35*D19)/AN43,(S77+AK35*D19)/AO43)*AP43 ->  | BC58: =MIN((T73+AK35*D19)/AK43,(T74+AK35*D19)/AL43,(T75+AK35*D19)/AM43,(T76+AK35*D19)/AN43,(T77+AK35*D19)/AO43)*AP43 ->  | BD58: =MIN((U73+AK35*D19)/AK43,(U74+AK35*D19)/AL43,(U75+AK35*D19)/AM43,(U76+AK35*D19)/AN43,(U77+AK35*D19)/AO43)*AP43 ->  | BE58: =MIN((V73+AK35*D19)/AK43,(V74+AK35*D19)/AL43,(V75+AK35*D19)/AM43,(V76+AK35*D19)/AN43,(V77+AK35*D19)/AO43)*AP43 ->  | BF58: =MIN((W73+AK35*D19)/AK43,(W74+AK35*D19)/AL43,(W75+AK35*D19)/AM43,(W76+AK35*D19)/AN43,(W77+AK35*D19)/AO43)*AP43 ->  | BG58: =MIN((X73+AK35*D19)/AK43,(X74+AK35*D19)/AL43,(X75+AK35*D19)/AM43,(X76+AK35*D19)/AN43,(X77+AK35*D19)/AO43)*AP43 ->  | BH58: =MIN((Y73+AK35*D19)/AK43,(Y74+AK35*D19)/AL43,(Y75+AK35*D19)/AM43,(Y76+AK35*D19)/AN43,(Y77+AK35*D19)/AO43)*AP43 ->  | BI58: =MIN((Z73+AK35*D19)/AK43,(Z74+AK35*D19)/AL43,(Z75+AK35*D19)/AM43,(Z76+AK35*D19)/AN43,(Z77+AK35*D19)/AO43)*AP43 ->  | BJ58: =MIN((AA73+AK35*D19)/AK43,(AA74+AK35*D19)/AL43,(AA75+AK35*D19)/AM43,(AA76+AK35*D19)/AN43,(AA77+AK35*D19)/AO43)*AP43 ->  | BK58: =MIN((AB73+AK35*D19)/AK43,(AB74+AK35*D19)/AL43,(AB75+AK35*D19)/AM43,(AB76+AK35*D19)/AN43,(AB77+AK35*D19)/AO43)*AP43 ->  | BL58: =MIN((AC73+AK35*D19)/AK43,(AC74+AK35*D19)/AL43,(AC75+AK35*D19)/AM43,(AC76+AK35*D19)/AN43,(AC77+AK35*D19)/AO43)*AP43 ->  | BM58: =MIN((AD73+AK35*D19)/AK43,(AD74+AK35*D19)/AL43,(AD75+AK35*D19)/AM43,(AD76+AK35*D19)/AN43,(AD77+AK35*D19)/AO43)*AP43 ->  | BN58: =MIN((AE73+AK35*D19)/AK43,(AE74+AK35*D19)/AL43,(AE75+AK35*D19)/AM43,(AE76+AK35*D19)/AN43,(AE77+AK35*D19)/AO43)*AP43 ->  | BO58: =MIN((AF73+AK35*D19)/AK43,(AF74+AK35*D19)/AL43,(AF75+AK35*D19)/AM43,(AF76+AK35*D19)/AN43,(AF77+AK35*D19)/AO43)*AP43 ->  | BS58: =IF(E26=C31,F45,IF(E26=C32,I45,IF(E26=C33,L45,erreur))) -> 0.05445 | BU58: =IF(E26=C31,G45,IF(E26=C32,J45,IF(E26=C33,M45,erreur))) -> 2.67025 | BW58: =BS58+BU58 -> 2.7247 | BZ58: 2 | CA58: =MIN((CP2*CS6+CK6)/AT43,(CP2*CS6+CL6)/AU43,(CP2*CS6+CM6)/AV43,(CP2*CS6+CN6)/AW43,(CP2*CS6+CO6)/AX43)*AY43 ->  | CB58: =MIN((CP2*CS6+CK6)/BB43,(CP2*CS6+CL6)/BC43,(CP2*CS6+CM6)/BD43,(CP2*CS6+CN6)/BE43,(CP2*CS6+CO6)/BF43)*BG43 ->  | CC58: =MIN((CP2*CS6+CK6)/BJ43,(CP2*CS6+CL6)/BK43,(CP2*CS6+CM6)/BL43,(CP2*CS6+CN6)/BM43,(CP2*CS6+CO6)/BN43)*BO43 ->  | CD58: =MIN((CP2*CS6+CK6)/BR43,(CP2*CS6+CL6)/BS43,(CP2*CS6+CM6)/BT43,(CP2*CS6+CN6)/BU43,(CP2*CS6+CO6)/BV43)*BW43 ->  | CF58: 1 | CG58: =CA57*E62 ->  | CH58: =CA57*F62 ->  | CI58: =CA57*G62 ->  | CJ58: =CA57*E76 ->  | CK58: =CA57*F76 ->  | CL58: =CA57*G76 ->  | CM58: =CA57*E90 ->  | CN58: =CA57*F90 ->  | CO58: =CA57*G90 ->  | CP58: =CB57*H62 ->  | CQ58: =CB57*I62 ->  | CR58: =CB57*J62 ->  | CS58: =CB57*H76 ->  | CT58: =CB57*I76 ->  | CU58: =CB57*J76 ->  | CV58: =CB57*H90 ->  | CW58: =CB57*I90 ->  | CX58: =CB57*J90 ->  | CY58: =CC57*K62 ->  | CZ58: =CC57*L62 ->  | DA58: =CC57*M62 ->  | DB58: =CC57*K76 ->  | DC58: =CC57*L76 ->  | DD58: =CC57*M76 ->  | DE58: =CC57*K90 ->  | DF58: =CC57*L90 ->  | DG58: =CC57*M90 ->  | DH58: =CD57*N62 ->  | DI58: =CD57*O62 ->  | DJ58: =CD57*P62 ->  | DK58: =CD57*N76 ->  | DL58: =CD57*O76 ->  | DM58: =CD57*P76 ->  | DN58: =CD57*N90 ->  | DO58: =CD57*O90 ->  | DP58: =CD57*P90 -> 
D59: coefficient stat brute pour 1% / tactique | R59: =IF($AX$306,H11+VLOOKUP(Team!$X17,Team!$E$30:$J$300,6,FALSE),H11+AH39+$D$21)+$D$19*$AG$8 ->  | S59: =IF($AX$306,$R59,$R59+Q10) ->  | U59: =IF($AX$306,$R$59,$R$59+S10) ->  | AD59: =IF($AX$306,$R$59,$R$59+AB10) ->  | AE59: =IF($AX$306,$R$59,$R$59+AC10) ->  | AF59: =IF($AX$306,$R$59,$R$59+AD10) ->  | AK59: =MIN((S80+AJ35*D19)/AK42,(S81+AJ35*D19)/AL42,(S82+AJ35*D19)/AM42,(S83+AJ35*D19)/AN42,(S84+AJ35*D19)/AO42)*AP42 ->  | AL59: =MIN((T80+AJ35*D19)/AK42,(T81+AJ35*D19)/AL42,(T82+AJ35*D19)/AM42,(T83+AJ35*D19)/AN42,(T84+AJ35*D19)/AO42)*AP42 ->  | AM59: =MIN((U80+AJ35*D19)/AK42,(U81+AJ35*D19)/AL42,(U82+AJ35*D19)/AM42,(U83+AJ35*D19)/AN42,(U84+AJ35*D19)/AO42)*AP42 ->  | AN59: =MIN((V80+AJ35*D19)/AK42,(V81+AJ35*D19)/AL42,(V82+AJ35*D19)/AM42,(V83+AJ35*D19)/AN42,(V84+AJ35*D19)/AO42)*AP42 ->  | AO59: =MIN((W80+AJ35*D19)/AK42,(W81+AJ35*D19)/AL42,(W82+AJ35*D19)/AM42,(W83+AJ35*D19)/AN42,(W84+AJ35*D19)/AO42)*AP42 ->  | AP59: =MIN((X80+AJ35*D19)/AK42,(X81+AJ35*D19)/AL42,(X82+AJ35*D19)/AM42,(X83+AJ35*D19)/AN42,(X84+AJ35*D19)/AO42)*AP42 ->  | AQ59: =MIN((Y80+AJ35*D19)/AK42,(Y81+AJ35*D19)/AL42,(Y82+AJ35*D19)/AM42,(Y83+AJ35*D19)/AN42,(Y84+AJ35*D19)/AO42)*AP42 ->  | AR59: =MIN((Z80+AJ35*D19)/AK42,(Z81+AJ35*D19)/AL42,(Z82+AJ35*D19)/AM42,(Z83+AJ35*D19)/AN42,(Z84+AJ35*D19)/AO42)*AP42 ->  | AS59: =MIN((AA80+AJ35*D19)/AK42,(AA81+AJ35*D19)/AL42,(AA82+AJ35*D19)/AM42,(AA83+AJ35*D19)/AN42,(AA84+AJ35*D19)/AO42)*AP42 ->  | AT59: =MIN((AB80+AJ35*D19)/AK42,(AB81+AJ35*D19)/AL42,(AB82+AJ35*D19)/AM42,(AB83+AJ35*D19)/AN42,(AB84+AJ35*D19)/AO42)*AP42 ->  | AU59: =MIN((AC80+AJ35*D19)/AK42,(AC81+AJ35*D19)/AL42,(AC82+AJ35*D19)/AM42,(AC83+AJ35*D19)/AN42,(AC84+AJ35*D19)/AO42)*AP42 ->  | AV59: =MIN((AD80+AJ35*D19)/AK42,(AD81+AJ35*D19)/AL42,(AD82+AJ35*D19)/AM42,(AD83+AJ35*D19)/AN42,(AD84+AJ35*D19)/AO42)*AP42 ->  | AW59: =MIN((AE80+AJ35*D19)/AK42,(AE81+AJ35*D19)/AL42,(AE82+AJ35*D19)/AM42,(AE83+AJ35*D19)/AN42,(AE84+AJ35*D19)/AO42)*AP42 ->  | AX59: =MIN((AF80+AJ35*D19)/AK42,(AF81+AJ35*D19)/AL42,(AF82+AJ35*D19)/AM42,(AF83+AJ35*D19)/AN42,(AF84+AJ35*D19)/AO42)*AP42 ->  | BB59: =MIN((S80+AK35*D19)/AK43,(S81+AK35*D19)/AL43,(S82+AK35*D19)/AM43,(S83+AK35*D19)/AN43,(S84+AK35*D19)/AO43)*AP43 ->  | BC59: =MIN((T80+AK35*D19)/AK43,(T81+AK35*D19)/AL43,(T82+AK35*D19)/AM43,(T83+AK35*D19)/AN43,(T84+AK35*D19)/AO43)*AP43 ->  | BD59: =MIN((U80+AK35*D19)/AK43,(U81+AK35*D19)/AL43,(U82+AK35*D19)/AM43,(U83+AK35*D19)/AN43,(U84+AK35*D19)/AO43)*AP43 ->  | BE59: =MIN((V80+AK35*D19)/AK43,(V81+AK35*D19)/AL43,(V82+AK35*D19)/AM43,(V83+AK35*D19)/AN43,(V84+AK35*D19)/AO43)*AP43 ->  | BF59: =MIN((W80+AK35*D19)/AK43,(W81+AK35*D19)/AL43,(W82+AK35*D19)/AM43,(W83+AK35*D19)/AN43,(W84+AK35*D19)/AO43)*AP43 ->  | BG59: =MIN((X80+AK35*D19)/AK43,(X81+AK35*D19)/AL43,(X82+AK35*D19)/AM43,(X83+AK35*D19)/AN43,(X84+AK35*D19)/AO43)*AP43 ->  | BH59: =MIN((Y80+AK35*D19)/AK43,(Y81+AK35*D19)/AL43,(Y82+AK35*D19)/AM43,(Y83+AK35*D19)/AN43,(Y84+AK35*D19)/AO43)*AP43 ->  | BI59: =MIN((Z80+AK35*D19)/AK43,(Z81+AK35*D19)/AL43,(Z82+AK35*D19)/AM43,(Z83+AK35*D19)/AN43,(Z84+AK35*D19)/AO43)*AP43 ->  | BJ59: =MIN((AA80+AK35*D19)/AK43,(AA81+AK35*D19)/AL43,(AA82+AK35*D19)/AM43,(AA83+AK35*D19)/AN43,(AA84+AK35*D19)/AO43)*AP43 ->  | BK59: =MIN((AB80+AK35*D19)/AK43,(AB81+AK35*D19)/AL43,(AB82+AK35*D19)/AM43,(AB83+AK35*D19)/AN43,(AB84+AK35*D19)/AO43)*AP43 ->  | BL59: =MIN((AC80+AK35*D19)/AK43,(AC81+AK35*D19)/AL43,(AC82+AK35*D19)/AM43,(AC83+AK35*D19)/AN43,(AC84+AK35*D19)/AO43)*AP43 ->  | BM59: =MIN((AD80+AK35*D19)/AK43,(AD81+AK35*D19)/AL43,(AD82+AK35*D19)/AM43,(AD83+AK35*D19)/AN43,(AD84+AK35*D19)/AO43)*AP43 ->  | BN59: =MIN((AE80+AK35*D19)/AK43,(AE81+AK35*D19)/AL43,(AE82+AK35*D19)/AM43,(AE83+AK35*D19)/AN43,(AE84+AK35*D19)/AO43)*AP43 ->  | BO59: =MIN((AF80+AK35*D19)/AK43,(AF81+AK35*D19)/AL43,(AF82+AK35*D19)/AM43,(AF83+AK35*D19)/AN43,(AF84+AK35*D19)/AO43)*AP43 ->  | BS59: =IF(E26=C31,F46,IF(E26=C32,I46,IF(E26=C33,L46,erreur))) -> 0.90825 | BU59: =IF(E26=C31,G46,IF(E26=C32,J46,IF(E26=C33,M46,erreur))) -> 1.36235 | BW59: =BS59+BU59 -> 2.2706 | BZ59: 3 | CA59: =MIN((CP2*CS7+CK7)/AT44,(CP2*CS7+CL7)/AU44,(CP2*CS7+CM7)/AV44,(CP2*CS7+CN7)/AW44,(CP2*CS7+CO7)/AX44)*AY44 ->  | CB59: =MIN((CP2*CS7+CK7)/BB44,(CP2*CS7+CL7)/BC44,(CP2*CS7+CM7)/BD44,(CP2*CS7+CN7)/BE44,(CP2*CS7+CO7)/BF44)*BG44 ->  | CC59: =MIN((CP2*CS7+CK7)/BJ44,(CP2*CS7+CL7)/BK44,(CP2*CS7+CM7)/BL44,(CP2*CS7+CN7)/BM44,(CP2*CS7+CO7)/BN44)*BO44 ->  | CD59: =MIN((CP2*CS7+CK7)/BR44,(CP2*CS7+CL7)/BS44,(CP2*CS7+CM7)/BT44,(CP2*CS7+CN7)/BU44,(CP2*CS7+CO7)/BV44)*BW44 ->  | CF59: 2
E60: 541 défensif | H60: 433 défensif | K60: 352 défensif | N60: 442 défensif | R60: =IF($AX$306,I11+VLOOKUP(Team!$Y17,Team!$E$30:$J$300,6,FALSE),I11+AH40+$D$21)+$D$19*$AG$8 ->  | U60: =IF($AX$306,$R$60,$R$60+S11) ->  | AD60: =IF($AX$306,$R$60,$R$60+AB11) ->  | AE60: =IF($AX$306,$R$60,$R$60+AC11) ->  | AF60: =IF($AX$306,$R$60,$R$60+AD11) ->  | AK60: =MIN((S87+AJ35*D19)/AK42,(S88+AJ35*D19)/AL42,(S89+AJ35*D19)/AM42,(S90+AJ35*D19)/AN42,(S91+AJ35*D19)/AO42)*AP42 ->  | AL60: =MIN((T87+AJ35*D19)/AK42,(T88+AJ35*D19)/AL42,(T89+AJ35*D19)/AM42,(T90+AJ35*D19)/AN42,(T91+AJ35*D19)/AO42)*AP42 ->  | AM60: =MIN((U87+AJ35*D19)/AK42,(U88+AJ35*D19)/AL42,(U89+AJ35*D19)/AM42,(U90+AJ35*D19)/AN42,(U91+AJ35*D19)/AO42)*AP42 ->  | AN60: =MIN((V87+AJ35*D19)/AK42,(V88+AJ35*D19)/AL42,(V89+AJ35*D19)/AM42,(V90+AJ35*D19)/AN42,(V91+AJ35*D19)/AO42)*AP42 ->  | AO60: =MIN((W87+AJ35*D19)/AK42,(W88+AJ35*D19)/AL42,(W89+AJ35*D19)/AM42,(W90+AJ35*D19)/AN42,(W91+AJ35*D19)/AO42)*AP42 ->  | AP60: =MIN((X87+AJ35*D19)/AK42,(X88+AJ35*D19)/AL42,(X89+AJ35*D19)/AM42,(X90+AJ35*D19)/AN42,(X91+AJ35*D19)/AO42)*AP42 ->  | AQ60: =MIN((Y87+AJ35*D19)/AK42,(Y88+AJ35*D19)/AL42,(Y89+AJ35*D19)/AM42,(Y90+AJ35*D19)/AN42,(Y91+AJ35*D19)/AO42)*AP42 ->  | AR60: =MIN((Z87+AJ35*D19)/AK42,(Z88+AJ35*D19)/AL42,(Z89+AJ35*D19)/AM42,(Z90+AJ35*D19)/AN42,(Z91+AJ35*D19)/AO42)*AP42 ->  | AS60: =MIN((AA87+AJ35*D19)/AK42,(AA88+AJ35*D19)/AL42,(AA89+AJ35*D19)/AM42,(AA90+AJ35*D19)/AN42,(AA91+AJ35*D19)/AO42)*AP42 ->  | AT60: =MIN((AB87+AJ35*D19)/AK42,(AB88+AJ35*D19)/AL42,(AB89+AJ35*D19)/AM42,(AB90+AJ35*D19)/AN42,(AB91+AJ35*D19)/AO42)*AP42 ->  | AU60: =MIN((AC87+AJ35*D19)/AK42,(AC88+AJ35*D19)/AL42,(AC89+AJ35*D19)/AM42,(AC90+AJ35*D19)/AN42,(AC91+AJ35*D19)/AO42)*AP42 ->  | AV60: =MIN((AD87+AJ35*D19)/AK42,(AD88+AJ35*D19)/AL42,(AD89+AJ35*D19)/AM42,(AD90+AJ35*D19)/AN42,(AD91+AJ35*D19)/AO42)*AP42 ->  | AW60: =MIN((AE87+AJ35*D19)/AK42,(AE88+AJ35*D19)/AL42,(AE89+AJ35*D19)/AM42,(AE90+AJ35*D19)/AN42,(AE91+AJ35*D19)/AO42)*AP42 ->  | AX60: =MIN((AF87+AJ35*D19)/AK42,(AF88+AJ35*D19)/AL42,(AF89+AJ35*D19)/AM42,(AF90+AJ35*D19)/AN42,(AF91+AJ35*D19)/AO42)*AP42 ->  | BB60: =MIN((S87+AK35*D19)/AK43,(S88+AK35*D19)/AL43,(S89+AK35*D19)/AM43,(S90+AK35*D19)/AN43,(S91+AK35*D19)/AO43)*AP43 ->  | BC60: =MIN((T87+AK35*D19)/AK43,(T88+AK35*D19)/AL43,(T89+AK35*D19)/AM43,(T90+AK35*D19)/AN43,(T91+AK35*D19)/AO43)*AP43 ->  | BD60: =MIN((U87+AK35*D19)/AK43,(U88+AK35*D19)/AL43,(U89+AK35*D19)/AM43,(U90+AK35*D19)/AN43,(U91+AK35*D19)/AO43)*AP43 ->  | BE60: =MIN((V87+AK35*D19)/AK43,(V88+AK35*D19)/AL43,(V89+AK35*D19)/AM43,(V90+AK35*D19)/AN43,(V91+AK35*D19)/AO43)*AP43 ->  | BF60: =MIN((W87+AK35*D19)/AK43,(W88+AK35*D19)/AL43,(W89+AK35*D19)/AM43,(W90+AK35*D19)/AN43,(W91+AK35*D19)/AO43)*AP43 ->  | BG60: =MIN((X87+AK35*D19)/AK43,(X88+AK35*D19)/AL43,(X89+AK35*D19)/AM43,(X90+AK35*D19)/AN43,(X91+AK35*D19)/AO43)*AP43 ->  | BH60: =MIN((Y87+AK35*D19)/AK43,(Y88+AK35*D19)/AL43,(Y89+AK35*D19)/AM43,(Y90+AK35*D19)/AN43,(Y91+AK35*D19)/AO43)*AP43 ->  | BI60: =MIN((Z87+AK35*D19)/AK43,(Z88+AK35*D19)/AL43,(Z89+AK35*D19)/AM43,(Z90+AK35*D19)/AN43,(Z91+AK35*D19)/AO43)*AP43 ->  | BJ60: =MIN((AA87+AK35*D19)/AK43,(AA88+AK35*D19)/AL43,(AA89+AK35*D19)/AM43,(AA90+AK35*D19)/AN43,(AA91+AK35*D19)/AO43)*AP43 ->  | BK60: =MIN((AB87+AK35*D19)/AK43,(AB88+AK35*D19)/AL43,(AB89+AK35*D19)/AM43,(AB90+AK35*D19)/AN43,(AB91+AK35*D19)/AO43)*AP43 ->  | BL60: =MIN((AC87+AK35*D19)/AK43,(AC88+AK35*D19)/AL43,(AC89+AK35*D19)/AM43,(AC90+AK35*D19)/AN43,(AC91+AK35*D19)/AO43)*AP43 ->  | BM60: =MIN((AD87+AK35*D19)/AK43,(AD88+AK35*D19)/AL43,(AD89+AK35*D19)/AM43,(AD90+AK35*D19)/AN43,(AD91+AK35*D19)/AO43)*AP43 ->  | BN60: =MIN((AE87+AK35*D19)/AK43,(AE88+AK35*D19)/AL43,(AE89+AK35*D19)/AM43,(AE90+AK35*D19)/AN43,(AE91+AK35*D19)/AO43)*AP43 ->  | BO60: =MIN((AF87+AK35*D19)/AK43,(AF88+AK35*D19)/AL43,(AF89+AK35*D19)/AM43,(AF90+AK35*D19)/AN43,(AF91+AK35*D19)/AO43)*AP43 ->  | BS60: =IF(E26=C31,F47,IF(E26=C32,I47,IF(E26=C33,L47,erreur))) -> 0.68115 | BU60: =IF(E26=C31,G47,IF(E26=C32,J47,IF(E26=C33,M47,erreur))) -> 1.58945 | BW60: 2.2706 | BZ60: 4 | CA60: =MIN((CP2*CS8+CK8)/AT45,(CP2*CS8+CL8)/AU45,(CP2*CS8+CM8)/AV45,(CP2*CS8+CN8)/AW45,(CP2*CS8+CO8)/AX45)*AY45 ->  | CB60: =MIN((CP2*CS8+CK8)/BB45,(CP2*CS8+CL8)/BC45,(CP2*CS8+CM8)/BD45,(CP2*CS8+CN8)/BE45,(CP2*CS8+CO8)/BF45)*BG45 ->  | CC60: =MIN((CP2*CS8+CK8)/BJ45,(CP2*CS8+CL8)/BK45,(CP2*CS8+CM8)/BL45,(CP2*CS8+CN8)/BM45,(CP2*CS8+CO8)/BN45)*BO45 ->  | CD60: =MIN((CP2*CS8+CK8)/BR45,(CP2*CS8+CL8)/BS45,(CP2*CS8+CM8)/BT45,(CP2*CS8+CN8)/BU45,(CP2*CS8+CO8)/BV45)*BW45 ->  | CF60: 3
E61: 1% attaque | F61: 1% defense | G61: 1% cumulé | H61: 1% attaque | I61: 1% defense | J61: 1% cumulé | K61: 1% attaque | L61: 1% defense | M61: 1% cumulé | N61: 1% attaque | O61: 1% defense | P61: 1% cumulé | R61: =IF($AX$306,J11+VLOOKUP(Team!$Z17,Team!$E$30:$J$300,6,FALSE),J11+AH41+$D$21)+$D$19*$AG$8 ->  | U61: =IF($AX$306,$R$61,$R$61+S12) ->  | AD61: =IF($AX$306,$R$61,$R$61+AB12) ->  | AE61: =IF($AX$306,$R$61,$R$61+AC12) ->  | AF61: =IF($AX$306,$R$61,$R$61+AD12) ->  | AK61: =MIN((S94+AJ35*D19)/AK42,(S95+AJ35*D19)/AL42,(S96+AJ35*D19)/AM42,(S97+AJ35*D19)/AN42,(S98+AJ35*D19)/AO42)*AP42 ->  | AL61: =MIN((T94+AJ35*D19)/AK42,(T95+AJ35*D19)/AL42,(T96+AJ35*D19)/AM42,(T97+AJ35*D19)/AN42,(T98+AJ35*D19)/AO42)*AP42 ->  | AM61: =MIN((U94+AJ35*D19)/AK42,(U95+AJ35*D19)/AL42,(U96+AJ35*D19)/AM42,(U97+AJ35*D19)/AN42,(U98+AJ35*D19)/AO42)*AP42 ->  | AN61: =MIN((V94+AJ35*D19)/AK42,(V95+AJ35*D19)/AL42,(V96+AJ35*D19)/AM42,(V97+AJ35*D19)/AN42,(V98+AJ35*D19)/AO42)*AP42 ->  | AO61: =MIN((W94+AJ35*D19)/AK42,(W95+AJ35*D19)/AL42,(W96+AJ35*D19)/AM42,(W97+AJ35*D19)/AN42,(W98+AJ35*D19)/AO42)*AP42 ->  | AP61: =MIN((X94+AJ35*D19)/AK42,(X95+AJ35*D19)/AL42,(X96+AJ35*D19)/AM42,(X97+AJ35*D19)/AN42,(X98+AJ35*D19)/AO42)*AP42 ->  | AQ61: =MIN((Y94+AJ35*D19)/AK42,(Y95+AJ35*D19)/AL42,(Y96+AJ35*D19)/AM42,(Y97+AJ35*D19)/AN42,(Y98+AJ35*D19)/AO42)*AP42 ->  | AR61: =MIN((Z94+AJ35*D19)/AK42,(Z95+AJ35*D19)/AL42,(Z96+AJ35*D19)/AM42,(Z97+AJ35*D19)/AN42,(Z98+AJ35*D19)/AO42)*AP42 ->  | AS61: =MIN((AA94+AJ35*D19)/AK42,(AA95+AJ35*D19)/AL42,(AA96+AJ35*D19)/AM42,(AA97+AJ35*D19)/AN42,(AA98+AJ35*D19)/AO42)*AP42 ->  | AT61: =MIN((AB94+AJ35*D19)/AK42,(AB95+AJ35*D19)/AL42,(AB96+AJ35*D19)/AM42,(AB97+AJ35*D19)/AN42,(AB98+AJ35*D19)/AO42)*AP42 ->  | AU61: =MIN((AC94+AJ35*D19)/AK42,(AC95+AJ35*D19)/AL42,(AC96+AJ35*D19)/AM42,(AC97+AJ35*D19)/AN42,(AC98+AJ35*D19)/AO42)*AP42 ->  | AV61: =MIN((AD94+AJ35*D19)/AK42,(AD95+AJ35*D19)/AL42,(AD96+AJ35*D19)/AM42,(AD97+AJ35*D19)/AN42,(AD98+AJ35*D19)/AO42)*AP42 ->  | AW61: =MIN((AE94+AJ35*D19)/AK42,(AE95+AJ35*D19)/AL42,(AE96+AJ35*D19)/AM42,(AE97+AJ35*D19)/AN42,(AE98+AJ35*D19)/AO42)*AP42 ->  | AX61: =MIN((AF94+AJ35*D19)/AK42,(AF95+AJ35*D19)/AL42,(AF96+AJ35*D19)/AM42,(AF97+AJ35*D19)/AN42,(AF98+AJ35*D19)/AO42)*AP42 ->  | BB61: =MIN((S94+AK35*D19)/AK43,(S95+AK35*D19)/AL43,(S96+AK35*D19)/AM43,(S97+AK35*D19)/AN43,(S98+AK35*D19)/AO43)*AP43 ->  | BC61: =MIN((T94+AK35*D19)/AK43,(T95+AK35*D19)/AL43,(T96+AK35*D19)/AM43,(T97+AK35*D19)/AN43,(T98+AK35*D19)/AO43)*AP43 ->  | BD61: =MIN((U94+AK35*D19)/AK43,(U95+AK35*D19)/AL43,(U96+AK35*D19)/AM43,(U97+AK35*D19)/AN43,(U98+AK35*D19)/AO43)*AP43 ->  | BE61: =MIN((V94+AK35*D19)/AK43,(V95+AK35*D19)/AL43,(V96+AK35*D19)/AM43,(V97+AK35*D19)/AN43,(V98+AK35*D19)/AO43)*AP43 ->  | BF61: =MIN((W94+AK35*D19)/AK43,(W95+AK35*D19)/AL43,(W96+AK35*D19)/AM43,(W97+AK35*D19)/AN43,(W98+AK35*D19)/AO43)*AP43 ->  | BG61: =MIN((X94+AK35*D19)/AK43,(X95+AK35*D19)/AL43,(X96+AK35*D19)/AM43,(X97+AK35*D19)/AN43,(X98+AK35*D19)/AO43)*AP43 ->  | BH61: =MIN((Y94+AK35*D19)/AK43,(Y95+AK35*D19)/AL43,(Y96+AK35*D19)/AM43,(Y97+AK35*D19)/AN43,(Y98+AK35*D19)/AO43)*AP43 ->  | BI61: =MIN((Z94+AK35*D19)/AK43,(Z95+AK35*D19)/AL43,(Z96+AK35*D19)/AM43,(Z97+AK35*D19)/AN43,(Z98+AK35*D19)/AO43)*AP43 ->  | BJ61: =MIN((AA94+AK35*D19)/AK43,(AA95+AK35*D19)/AL43,(AA96+AK35*D19)/AM43,(AA97+AK35*D19)/AN43,(AA98+AK35*D19)/AO43)*AP43 ->  | BK61: =MIN((AB94+AK35*D19)/AK43,(AB95+AK35*D19)/AL43,(AB96+AK35*D19)/AM43,(AB97+AK35*D19)/AN43,(AB98+AK35*D19)/AO43)*AP43 ->  | BL61: =MIN((AC94+AK35*D19)/AK43,(AC95+AK35*D19)/AL43,(AC96+AK35*D19)/AM43,(AC97+AK35*D19)/AN43,(AC98+AK35*D19)/AO43)*AP43 ->  | BM61: =MIN((AD94+AK35*D19)/AK43,(AD95+AK35*D19)/AL43,(AD96+AK35*D19)/AM43,(AD97+AK35*D19)/AN43,(AD98+AK35*D19)/AO43)*AP43 ->  | BN61: =MIN((AE94+AK35*D19)/AK43,(AE95+AK35*D19)/AL43,(AE96+AK35*D19)/AM43,(AE97+AK35*D19)/AN43,(AE98+AK35*D19)/AO43)*AP43 ->  | BO61: =MIN((AF94+AK35*D19)/AK43,(AF95+AK35*D19)/AL43,(AF96+AK35*D19)/AM43,(AF97+AK35*D19)/AN43,(AF98+AK35*D19)/AO43)*AP43 ->  | BS61: =IF(E26=C31,F48,IF(E26=C32,I48,IF(E26=C33,L48,erreur))) -> 0.27245 | BU61: =IF(E26=C31,G48,IF(E26=C32,J48,IF(E26=C33,M48,erreur))) -> 0.63575 | BW61: 0.9082 | BZ61: 5 | CA61: =MIN((CP2*CS9+CK9)/AT46,(CP2*CS9+CL9)/AU46,(CP2*CS9+CM9)/AV46,(CP2*CS9+CN9)/AW46,(CP2*CS9+CO9)/AX46)*AY46 ->  | CB61: =MIN((CP2*CS9+CK9)/BB46,(CP2*CS9+CL9)/BC46,(CP2*CS9+CM9)/BD46,(CP2*CS9+CN9)/BE46,(CP2*CS9+CO9)/BF46)*BG46 ->  | CC61: =MIN((CP2*CS9+CK9)/BJ46,(CP2*CS9+CL9)/BK46,(CP2*CS9+CM9)/BL46,(CP2*CS9+CN9)/BM46,(CP2*CS9+CO9)/BN46)*BO46 ->  | CD61: =MIN((CP2*CS9+CK9)/BR46,(CP2*CS9+CL9)/BS46,(CP2*CS9+CM9)/BT46,(CP2*CS9+CN9)/BU46,(CP2*CS9+CO9)/BV46)*BW46 ->  | CF61: 4
E62: 0.05445 | F62: 2.67025 | G62: =E62+F62 -> 2.7247 | H62: 0.05445 | I62: 2.67025 | J62: =H62+I62 -> 2.7247 | K62: 0.05445 | L62: 2.67025 | M62: =K62+L62 -> 2.7247 | N62: 0.05445 | O62: 2.67025 | P62: =N62+O62 -> 2.7247 | R62: =IF($AX$306,K11+VLOOKUP(Team!$AA17,Team!$E$30:$J$300,6,FALSE),K11+AH42+$D$21)+$D$19*$AG$8 ->  | U62: =IF($AX$306,$R$62,$R$62+S13) ->  | AD62: =IF($AX$306,$R$62,$R$62+AB13) ->  | AE62: =IF($AX$306,$R$62,$R$62+AC13) ->  | AF62: =IF($AX$306,$R$62,$R$62+AD13) ->  | AK62: =MIN((S101+AJ35*D19)/AK42,(S102+AJ35*D19)/AL42,(S103+AJ35*D19)/AM42,(S104+AJ35*D19)/AN42,(S105+AJ35*D19)/AO42)*AP42 ->  | AL62: =MIN((T101+AJ35*D19)/AK42,(T102+AJ35*D19)/AL42,(T103+AJ35*D19)/AM42,(T104+AJ35*D19)/AN42,(T105+AJ35*D19)/AO42)*AP42 ->  | AM62: =MIN((U101+AJ35*D19)/AK42,(U102+AJ35*D19)/AL42,(U103+AJ35*D19)/AM42,(U104+AJ35*D19)/AN42,(U105+AJ35*D19)/AO42)*AP42 ->  | AN62: =MIN((V101+AJ35*D19)/AK42,(V102+AJ35*D19)/AL42,(V103+AJ35*D19)/AM42,(V104+AJ35*D19)/AN42,(V105+AJ35*D19)/AO42)*AP42 ->  | AO62: =MIN((W101+AJ35*D19)/AK42,(W102+AJ35*D19)/AL42,(W103+AJ35*D19)/AM42,(W104+AJ35*D19)/AN42,(W105+AJ35*D19)/AO42)*AP42 ->  | AP62: =MIN((X101+AJ35*D19)/AK42,(X102+AJ35*D19)/AL42,(X103+AJ35*D19)/AM42,(X104+AJ35*D19)/AN42,(X105+AJ35*D19)/AO42)*AP42 ->  | AQ62: =MIN((Y101+AJ35*D19)/AK42,(Y102+AJ35*D19)/AL42,(Y103+AJ35*D19)/AM42,(Y104+AJ35*D19)/AN42,(Y105+AJ35*D19)/AO42)*AP42 ->  | AR62: =MIN((Z101+AJ35*D19)/AK42,(Z102+AJ35*D19)/AL42,(Z103+AJ35*D19)/AM42,(Z104+AJ35*D19)/AN42,(Z105+AJ35*D19)/AO42)*AP42 ->  | AS62: =MIN((AA101+AJ35*D19)/AK42,(AA102+AJ35*D19)/AL42,(AA103+AJ35*D19)/AM42,(AA104+AJ35*D19)/AN42,(AA105+AJ35*D19)/AO42)*AP42 ->  | AT62: =MIN((AB101+AJ35*D19)/AK42,(AB102+AJ35*D19)/AL42,(AB103+AJ35*D19)/AM42,(AB104+AJ35*D19)/AN42,(AB105+AJ35*D19)/AO42)*AP42 ->  | AU62: =MIN((AC101+AJ35*D19)/AK42,(AC102+AJ35*D19)/AL42,(AC103+AJ35*D19)/AM42,(AC104+AJ35*D19)/AN42,(AC105+AJ35*D19)/AO42)*AP42 ->  | AV62: =MIN((AD101+AJ35*D19)/AK42,(AD102+AJ35*D19)/AL42,(AD103+AJ35*D19)/AM42,(AD104+AJ35*D19)/AN42,(AD105+AJ35*D19)/AO42)*AP42 ->  | AW62: =MIN((AE101+AJ35*D19)/AK42,(AE102+AJ35*D19)/AL42,(AE103+AJ35*D19)/AM42,(AE104+AJ35*D19)/AN42,(AE105+AJ35*D19)/AO42)*AP42 ->  | AX62: =MIN((AF101+AJ35*D19)/AK42,(AF102+AJ35*D19)/AL42,(AF103+AJ35*D19)/AM42,(AF104+AJ35*D19)/AN42,(AF105+AJ35*D19)/AO42)*AP42 ->  | BB62: =MIN((S101+AK35*D19)/AK43,(S102+AK35*D19)/AL43,(S103+AK35*D19)/AM43,(S104+AK35*D19)/AN43,(S105+AK35*D19)/AO43)*AP43 ->  | BC62: =MIN((T101+AK35*D19)/AK43,(T102+AK35*D19)/AL43,(T103+AK35*D19)/AM43,(T104+AK35*D19)/AN43,(T105+AK35*D19)/AO43)*AP43 ->  | BD62: =MIN((U101+AK35*D19)/AK43,(U102+AK35*D19)/AL43,(U103+AK35*D19)/AM43,(U104+AK35*D19)/AN43,(U105+AK35*D19)/AO43)*AP43 ->  | BE62: =MIN((V101+AK35*D19)/AK43,(V102+AK35*D19)/AL43,(V103+AK35*D19)/AM43,(V104+AK35*D19)/AN43,(V105+AK35*D19)/AO43)*AP43 ->  | BF62: =MIN((W101+AK35*D19)/AK43,(W102+AK35*D19)/AL43,(W103+AK35*D19)/AM43,(W104+AK35*D19)/AN43,(W105+AK35*D19)/AO43)*AP43 ->  | BG62: =MIN((X101+AK35*D19)/AK43,(X102+AK35*D19)/AL43,(X103+AK35*D19)/AM43,(X104+AK35*D19)/AN43,(X105+AK35*D19)/AO43)*AP43 ->  | BH62: =MIN((Y101+AK35*D19)/AK43,(Y102+AK35*D19)/AL43,(Y103+AK35*D19)/AM43,(Y104+AK35*D19)/AN43,(Y105+AK35*D19)/AO43)*AP43 ->  | BI62: =MIN((Z101+AK35*D19)/AK43,(Z102+AK35*D19)/AL43,(Z103+AK35*D19)/AM43,(Z104+AK35*D19)/AN43,(Z105+AK35*D19)/AO43)*AP43 ->  | BJ62: =MIN((AA101+AK35*D19)/AK43,(AA102+AK35*D19)/AL43,(AA103+AK35*D19)/AM43,(AA104+AK35*D19)/AN43,(AA105+AK35*D19)/AO43)*AP43 ->  | BK62: =MIN((AB101+AK35*D19)/AK43,(AB102+AK35*D19)/AL43,(AB103+AK35*D19)/AM43,(AB104+AK35*D19)/AN43,(AB105+AK35*D19)/AO43)*AP43 ->  | BL62: =MIN((AC101+AK35*D19)/AK43,(AC102+AK35*D19)/AL43,(AC103+AK35*D19)/AM43,(AC104+AK35*D19)/AN43,(AC105+AK35*D19)/AO43)*AP43 ->  | BM62: =MIN((AD101+AK35*D19)/AK43,(AD102+AK35*D19)/AL43,(AD103+AK35*D19)/AM43,(AD104+AK35*D19)/AN43,(AD105+AK35*D19)/AO43)*AP43 ->  | BN62: =MIN((AE101+AK35*D19)/AK43,(AE102+AK35*D19)/AL43,(AE103+AK35*D19)/AM43,(AE104+AK35*D19)/AN43,(AE105+AK35*D19)/AO43)*AP43 ->  | BO62: =MIN((AF101+AK35*D19)/AK43,(AF102+AK35*D19)/AL43,(AF103+AK35*D19)/AM43,(AF104+AK35*D19)/AN43,(AF105+AK35*D19)/AO43)*AP43 ->  | BS62: =IF(E26=C31,F49,IF(E26=C32,I49,IF(E26=C33,L49,erreur))) -> 0.27245 | BU62: =IF(E26=C31,G49,IF(E26=C32,J49,IF(E26=C33,M49,erreur))) -> 0.63575 | BW62: 0.9082 | BZ62: 6 | CA62: =MIN((CP2*CS10+CK10)/AT47,(CP2*CS10+CL10)/AU47,(CP2*CS10+CM10)/AV47,(CP2*CS10+CN10)/AW47,(CP2*CS10+CO10)/AX47)*AY47 ->  | CB62: =MIN((CP2*CS10+CK10)/BB47,(CP2*CS10+CL10)/BC47,(CP2*CS10+CM10)/BD47,(CP2*CS10+CN10)/BE47,(CP2*CS10+CO10)/BF47)*BG47 ->  | CC62: =MIN((CP2*CS10+CK10)/BJ47,(CP2*CS10+CL10)/BK47,(CP2*CS10+CM10)/BL47,(CP2*CS10+CN10)/BM47,(CP2*CS10+CO10)/BN47)*BO47 ->  | CD62: =MIN((CP2*CS10+CK10)/BR47,(CP2*CS10+CL10)/BS47,(CP2*CS10+CM10)/BT47,(CP2*CS10+CN10)/BU47,(CP2*CS10+CO10)/BV47)*BW47 ->  | CF62: 5
E63: 0.27245 | F63: 1.0899 | G63: =E63+F63 -> 1.36235 | H63: 0.68115 | I63: 0.68115 | J63: 1.3623 | K63: 0.90825 | L63: 1.36235 | M63: =K63+L63 -> 2.2706 | N63: 0.4087 | O63: 0.95365 | P63: 1.36235 | R63: =IF($AX$306,L11+VLOOKUP(Team!$AB17,Team!$E$30:$J$300,6,FALSE),L11+AH43+$D$21)+$D$19*$AG$8 ->  | U63: =IF($AX$306,$R$63,$R$63+S14) ->  | AD63: =IF($AX$306,$R$63,$R$63+AB14) ->  | AE63: =IF($AX$306,$R$63,$R$63+AC14) ->  | AF63: =IF($AX$306,$R$63,$R$63+AD14) ->  | AK63: =MIN((S108+AJ35*D19)/AK42,(S109+AJ35*D19)/AL42,(S110+AJ35*D19)/AM42,(S111+AJ35*D19)/AN42,(S112+AJ35*D19)/AO42)*AP42 ->  | AL63: =MIN((T108+AJ35*D19)/AK42,(T109+AJ35*D19)/AL42,(T110+AJ35*D19)/AM42,(T111+AJ35*D19)/AN42,(T112+AJ35*D19)/AO42)*AP42 ->  | AM63: =MIN((U108+AJ35*D19)/AK42,(U109+AJ35*D19)/AL42,(U110+AJ35*D19)/AM42,(U111+AJ35*D19)/AN42,(U112+AJ35*D19)/AO42)*AP42 ->  | AN63: =MIN((V108+AJ35*D19)/AK42,(V109+AJ35*D19)/AL42,(V110+AJ35*D19)/AM42,(V111+AJ35*D19)/AN42,(V112+AJ35*D19)/AO42)*AP42 ->  | AO63: =MIN((W108+AJ35*D19)/AK42,(W109+AJ35*D19)/AL42,(W110+AJ35*D19)/AM42,(W111+AJ35*D19)/AN42,(W112+AJ35*D19)/AO42)*AP42 ->  | AP63: =MIN((X108+AJ35*D19)/AK42,(X109+AJ35*D19)/AL42,(X110+AJ35*D19)/AM42,(X111+AJ35*D19)/AN42,(X112+AJ35*D19)/AO42)*AP42 ->  | AQ63: =MIN((Y108+AJ35*D19)/AK42,(Y109+AJ35*D19)/AL42,(Y110+AJ35*D19)/AM42,(Y111+AJ35*D19)/AN42,(Y112+AJ35*D19)/AO42)*AP42 ->  | AR63: =MIN((Z108+AJ35*D19)/AK42,(Z109+AJ35*D19)/AL42,(Z110+AJ35*D19)/AM42,(Z111+AJ35*D19)/AN42,(Z112+AJ35*D19)/AO42)*AP42 ->  | AS63: =MIN((AA108+AJ35*D19)/AK42,(AA109+AJ35*D19)/AL42,(AA110+AJ35*D19)/AM42,(AA111+AJ35*D19)/AN42,(AA112+AJ35*D19)/AO42)*AP42 ->  | AT63: =MIN((AB108+AJ35*D19)/AK42,(AB109+AJ35*D19)/AL42,(AB110+AJ35*D19)/AM42,(AB111+AJ35*D19)/AN42,(AB112+AJ35*D19)/AO42)*AP42 ->  | AU63: =MIN((AC108+AJ35*D19)/AK42,(AC109+AJ35*D19)/AL42,(AC110+AJ35*D19)/AM42,(AC111+AJ35*D19)/AN42,(AC112+AJ35*D19)/AO42)*AP42 ->  | AV63: =MIN((AD108+AJ35*D19)/AK42,(AD109+AJ35*D19)/AL42,(AD110+AJ35*D19)/AM42,(AD111+AJ35*D19)/AN42,(AD112+AJ35*D19)/AO42)*AP42 ->  | AW63: =MIN((AE108+AJ35*D19)/AK42,(AE109+AJ35*D19)/AL42,(AE110+AJ35*D19)/AM42,(AE111+AJ35*D19)/AN42,(AE112+AJ35*D19)/AO42)*AP42 ->  | AX63: =MIN((AF108+AJ35*D19)/AK42,(AF109+AJ35*D19)/AL42,(AF110+AJ35*D19)/AM42,(AF111+AJ35*D19)/AN42,(AF112+AJ35*D19)/AO42)*AP42 ->  | BB63: =MIN((S108+AK35*D19)/AK43,(S109+AK35*D19)/AL43,(S110+AK35*D19)/AM43,(S111+AK35*D19)/AN43,(S112+AK35*D19)/AO43)*AP43 ->  | BC63: =MIN((T108+AK35*D19)/AK43,(T109+AK35*D19)/AL43,(T110+AK35*D19)/AM43,(T111+AK35*D19)/AN43,(T112+AK35*D19)/AO43)*AP43 ->  | BD63: =MIN((U108+AK35*D19)/AK43,(U109+AK35*D19)/AL43,(U110+AK35*D19)/AM43,(U111+AK35*D19)/AN43,(U112+AK35*D19)/AO43)*AP43 ->  | BE63: =MIN((V108+AK35*D19)/AK43,(V109+AK35*D19)/AL43,(V110+AK35*D19)/AM43,(V111+AK35*D19)/AN43,(V112+AK35*D19)/AO43)*AP43 ->  | BF63: =MIN((W108+AK35*D19)/AK43,(W109+AK35*D19)/AL43,(W110+AK35*D19)/AM43,(W111+AK35*D19)/AN43,(W112+AK35*D19)/AO43)*AP43 ->  | BG63: =MIN((X108+AK35*D19)/AK43,(X109+AK35*D19)/AL43,(X110+AK35*D19)/AM43,(X111+AK35*D19)/AN43,(X112+AK35*D19)/AO43)*AP43 ->  | BH63: =MIN((Y108+AK35*D19)/AK43,(Y109+AK35*D19)/AL43,(Y110+AK35*D19)/AM43,(Y111+AK35*D19)/AN43,(Y112+AK35*D19)/AO43)*AP43 ->  | BI63: =MIN((Z108+AK35*D19)/AK43,(Z109+AK35*D19)/AL43,(Z110+AK35*D19)/AM43,(Z111+AK35*D19)/AN43,(Z112+AK35*D19)/AO43)*AP43 ->  | BJ63: =MIN((AA108+AK35*D19)/AK43,(AA109+AK35*D19)/AL43,(AA110+AK35*D19)/AM43,(AA111+AK35*D19)/AN43,(AA112+AK35*D19)/AO43)*AP43 ->  | BK63: =MIN((AB108+AK35*D19)/AK43,(AB109+AK35*D19)/AL43,(AB110+AK35*D19)/AM43,(AB111+AK35*D19)/AN43,(AB112+AK35*D19)/AO43)*AP43 ->  | BL63: =MIN((AC108+AK35*D19)/AK43,(AC109+AK35*D19)/AL43,(AC110+AK35*D19)/AM43,(AC111+AK35*D19)/AN43,(AC112+AK35*D19)/AO43)*AP43 ->  | BM63: =MIN((AD108+AK35*D19)/AK43,(AD109+AK35*D19)/AL43,(AD110+AK35*D19)/AM43,(AD111+AK35*D19)/AN43,(AD112+AK35*D19)/AO43)*AP43 ->  | BN63: =MIN((AE108+AK35*D19)/AK43,(AE109+AK35*D19)/AL43,(AE110+AK35*D19)/AM43,(AE111+AK35*D19)/AN43,(AE112+AK35*D19)/AO43)*AP43 ->  | BO63: =MIN((AF108+AK35*D19)/AK43,(AF109+AK35*D19)/AL43,(AF110+AK35*D19)/AM43,(AF111+AK35*D19)/AN43,(AF112+AK35*D19)/AO43)*AP43 ->  | BS63: =IF(E26=C31,F50,IF(E26=C32,I50,IF(E26=C33,L50,erreur))) -> 0.7266 | BU63: =IF(E26=C31,G50,IF(E26=C32,J50,IF(E26=C33,M50,erreur))) -> 1.0899 | BW63: 1.8165 | BZ63: 7 | CA63: =MIN((CP2*CS11+CK11)/AT48,(CP2*CS11+CL11)/AU48,(CP2*CS11+CM11)/AV48,(CP2*CS11+CN11)/AW48,(CP2*CS11+CO11)/AX48)*AY48 ->  | CB63: =MIN((CP2*CS11+CK11)/BB48,(CP2*CS11+CL11)/BC48,(CP2*CS11+CM11)/BD48,(CP2*CS11+CN11)/BE48,(CP2*CS11+CO11)/BF48)*BG48 ->  | CC63: =MIN((CP2*CS11+CK11)/BJ48,(CP2*CS11+CL11)/BK48,(CP2*CS11+CM11)/BL48,(CP2*CS11+CN11)/BM48,(CP2*CS11+CO11)/BN48)*BO48 ->  | CD63: =MIN((CP2*CS11+CK11)/BR48,(CP2*CS11+CL11)/BS48,(CP2*CS11+CM11)/BT48,(CP2*CS11+CN11)/BU48,(CP2*CS11+CO11)/BV48)*BW48 ->  | CF63: 6
E64: 0.27245 | F64: 1.0899 | G64: 1.36235 | H64: 0.68115 | I64: 0.68115 | J64: 1.3623 | K64: 0.68115 | L64: 1.58945 | M64: 2.2706 | N64: 0.4087 | O64: 0.95365 | P64: 1.36235 | AK64: =MIN((S115+AJ35*D19)/AK42,(S116+AJ35*D19)/AL42,(S117+AJ35*D19)/AM42,(S118+AJ35*D19)/AN42,(S119+AJ35*D19)/AO42)*AP42 ->  | AL64: =MIN((T115+AJ35*D19)/AK42,(T116+AJ35*D19)/AL42,(T117+AJ35*D19)/AM42,(T118+AJ35*D19)/AN42,(T119+AJ35*D19)/AO42)*AP42 ->  | AM64: =MIN((U115+AJ35*D19)/AK42,(U116+AJ35*D19)/AL42,(U117+AJ35*D19)/AM42,(U118+AJ35*D19)/AN42,(U119+AJ35*D19)/AO42)*AP42 ->  | AN64: =MIN((V115+AJ35*D19)/AK42,(V116+AJ35*D19)/AL42,(V117+AJ35*D19)/AM42,(V118+AJ35*D19)/AN42,(V119+AJ35*D19)/AO42)*AP42 ->  | AO64: =MIN((W115+AJ35*D19)/AK42,(W116+AJ35*D19)/AL42,(W117+AJ35*D19)/AM42,(W118+AJ35*D19)/AN42,(W119+AJ35*D19)/AO42)*AP42 ->  | AP64: =MIN((X115+AJ35*D19)/AK42,(X116+AJ35*D19)/AL42,(X117+AJ35*D19)/AM42,(X118+AJ35*D19)/AN42,(X119+AJ35*D19)/AO42)*AP42 ->  | AQ64: =MIN((Y115+AJ35*D19)/AK42,(Y116+AJ35*D19)/AL42,(Y117+AJ35*D19)/AM42,(Y118+AJ35*D19)/AN42,(Y119+AJ35*D19)/AO42)*AP42 ->  | AR64: =MIN((Z115+AJ35*D19)/AK42,(Z116+AJ35*D19)/AL42,(Z117+AJ35*D19)/AM42,(Z118+AJ35*D19)/AN42,(Z119+AJ35*D19)/AO42)*AP42 ->  | AS64: =MIN((AA115+AJ35*D19)/AK42,(AA116+AJ35*D19)/AL42,(AA117+AJ35*D19)/AM42,(AA118+AJ35*D19)/AN42,(AA119+AJ35*D19)/AO42)*AP42 ->  | AT64: =MIN((AB115+AJ35*D19)/AK42,(AB116+AJ35*D19)/AL42,(AB117+AJ35*D19)/AM42,(AB118+AJ35*D19)/AN42,(AB119+AJ35*D19)/AO42)*AP42 ->  | AU64: =MIN((AC115+AJ35*D19)/AK42,(AC116+AJ35*D19)/AL42,(AC117+AJ35*D19)/AM42,(AC118+AJ35*D19)/AN42,(AC119+AJ35*D19)/AO42)*AP42 ->  | AV64: =MIN((AD115+AJ35*D19)/AK42,(AD116+AJ35*D19)/AL42,(AD117+AJ35*D19)/AM42,(AD118+AJ35*D19)/AN42,(AD119+AJ35*D19)/AO42)*AP42 ->  | AW64: =MIN((AE115+AJ35*D19)/AK42,(AE116+AJ35*D19)/AL42,(AE117+AJ35*D19)/AM42,(AE118+AJ35*D19)/AN42,(AE119+AJ35*D19)/AO42)*AP42 ->  | AX64: =MIN((AF115+AJ35*D19)/AK42,(AF116+AJ35*D19)/AL42,(AF117+AJ35*D19)/AM42,(AF118+AJ35*D19)/AN42,(AF119+AJ35*D19)/AO42)*AP42 ->  | BB64: =MIN((S115+AK35*D19)/AK43,(S116+AK35*D19)/AL43,(S117+AK35*D19)/AM43,(S118+AK35*D19)/AN43,(S119+AK35*D19)/AO43)*AP43 ->  | BC64: =MIN((T115+AK35*D19)/AK43,(T116+AK35*D19)/AL43,(T117+AK35*D19)/AM43,(T118+AK35*D19)/AN43,(T119+AK35*D19)/AO43)*AP43 ->  | BD64: =MIN((U115+AK35*D19)/AK43,(U116+AK35*D19)/AL43,(U117+AK35*D19)/AM43,(U118+AK35*D19)/AN43,(U119+AK35*D19)/AO43)*AP43 ->  | BE64: =MIN((V115+AK35*D19)/AK43,(V116+AK35*D19)/AL43,(V117+AK35*D19)/AM43,(V118+AK35*D19)/AN43,(V119+AK35*D19)/AO43)*AP43 ->  | BF64: =MIN((W115+AK35*D19)/AK43,(W116+AK35*D19)/AL43,(W117+AK35*D19)/AM43,(W118+AK35*D19)/AN43,(W119+AK35*D19)/AO43)*AP43 ->  | BG64: =MIN((X115+AK35*D19)/AK43,(X116+AK35*D19)/AL43,(X117+AK35*D19)/AM43,(X118+AK35*D19)/AN43,(X119+AK35*D19)/AO43)*AP43 ->  | BH64: =MIN((Y115+AK35*D19)/AK43,(Y116+AK35*D19)/AL43,(Y117+AK35*D19)/AM43,(Y118+AK35*D19)/AN43,(Y119+AK35*D19)/AO43)*AP43 ->  | BI64: =MIN((Z115+AK35*D19)/AK43,(Z116+AK35*D19)/AL43,(Z117+AK35*D19)/AM43,(Z118+AK35*D19)/AN43,(Z119+AK35*D19)/AO43)*AP43 ->  | BJ64: =MIN((AA115+AK35*D19)/AK43,(AA116+AK35*D19)/AL43,(AA117+AK35*D19)/AM43,(AA118+AK35*D19)/AN43,(AA119+AK35*D19)/AO43)*AP43 ->  | BK64: =MIN((AB115+AK35*D19)/AK43,(AB116+AK35*D19)/AL43,(AB117+AK35*D19)/AM43,(AB118+AK35*D19)/AN43,(AB119+AK35*D19)/AO43)*AP43 ->  | BL64: =MIN((AC115+AK35*D19)/AK43,(AC116+AK35*D19)/AL43,(AC117+AK35*D19)/AM43,(AC118+AK35*D19)/AN43,(AC119+AK35*D19)/AO43)*AP43 ->  | BM64: =MIN((AD115+AK35*D19)/AK43,(AD116+AK35*D19)/AL43,(AD117+AK35*D19)/AM43,(AD118+AK35*D19)/AN43,(AD119+AK35*D19)/AO43)*AP43 ->  | BN64: =MIN((AE115+AK35*D19)/AK43,(AE116+AK35*D19)/AL43,(AE117+AK35*D19)/AM43,(AE118+AK35*D19)/AN43,(AE119+AK35*D19)/AO43)*AP43 ->  | BO64: =MIN((AF115+AK35*D19)/AK43,(AF116+AK35*D19)/AL43,(AF117+AK35*D19)/AM43,(AF118+AK35*D19)/AN43,(AF119+AK35*D19)/AO43)*AP43 ->  | BS64: =IF(E26=C31,F51,IF(E26=C32,I51,IF(E26=C33,L51,erreur))) -> 1.0899 | BU64: =IF(E26=C31,G51,IF(E26=C32,J51,IF(E26=C33,M51,erreur))) -> 1.63485 | BW64: 2.72475 | BZ64: 8 | CA64: =MIN((CP2*CS12+CK12)/AT49,(CP2*CS12+CL12)/AU49,(CP2*CS12+CM12)/AV49,(CP2*CS12+CN12)/AW49,(CP2*CS12+CO12)/AX49)*AY49 ->  | CB64: =MIN((CP2*CS12+CK12)/BB49,(CP2*CS12+CL12)/BC49,(CP2*CS12+CM12)/BD49,(CP2*CS12+CN12)/BE49,(CP2*CS12+CO12)/BF49)*BG49 ->  | CC64: =MIN((CP2*CS12+CK12)/BJ49,(CP2*CS12+CL12)/BK49,(CP2*CS12+CM12)/BL49,(CP2*CS12+CN12)/BM49,(CP2*CS12+CO12)/BN49)*BO49 ->  | CD64: =MIN((CP2*CS12+CK12)/BR49,(CP2*CS12+CL12)/BS49,(CP2*CS12+CM12)/BT49,(CP2*CS12+CN12)/BU49,(CP2*CS12+CO12)/BV49)*BW49 ->  | CF64: 7
E65: 0.18165 | F65: 1.63485 | G65: 1.8165 | H65: 0.18165 | I65: 0.7266 | J65: 0.90825 | K65: 0.27245 | L65: 0.63575 | M65: 0.9082 | N65: 0.3633 | O65: 1.4532 | P65: 1.8165 | R65: =G12 ->  | S65: =S58 -> kit 1 | T65: =T58 -> kit 2/3 | U65: 0 | V65: kit 4 | W65: 0 | X65: kit 5 | Y65: kit 6/7 | Z65: 0 | AA65: 0 | AB65: kit 8 | AC65: kit 9 | AD65: 0 | AE65: =AE58 -> kit 10 | AF65: =AF58 -> kit 11 | AK65: =MIN((S122+AJ35*D19)/AK42,(S123+AJ35*D19)/AL42,(S124+AJ35*D19)/AM42,(S125+AJ35*D19)/AN42,(S126+AJ35*D19)/AO42)*AP42 ->  | AL65: =MIN((T122+AJ35*D19)/AK42,(T123+AJ35*D19)/AL42,(T124+AJ35*D19)/AM42,(T125+AJ35*D19)/AN42,(T126+AJ35*D19)/AO42)*AP42 ->  | AM65: =MIN((U122+AJ35*D19)/AK42,(U123+AJ35*D19)/AL42,(U124+AJ35*D19)/AM42,(U125+AJ35*D19)/AN42,(U126+AJ35*D19)/AO42)*AP42 ->  | AN65: =MIN((V122+AJ35*D19)/AK42,(V123+AJ35*D19)/AL42,(V124+AJ35*D19)/AM42,(V125+AJ35*D19)/AN42,(V126+AJ35*D19)/AO42)*AP42 ->  | AO65: =MIN((W122+AJ35*D19)/AK42,(W123+AJ35*D19)/AL42,(W124+AJ35*D19)/AM42,(W125+AJ35*D19)/AN42,(W126+AJ35*D19)/AO42)*AP42 ->  | AP65: =MIN((X122+AJ35*D19)/AK42,(X123+AJ35*D19)/AL42,(X124+AJ35*D19)/AM42,(X125+AJ35*D19)/AN42,(X126+AJ35*D19)/AO42)*AP42 ->  | AQ65: =MIN((Y122+AJ35*D19)/AK42,(Y123+AJ35*D19)/AL42,(Y124+AJ35*D19)/AM42,(Y125+AJ35*D19)/AN42,(Y126+AJ35*D19)/AO42)*AP42 ->  | AR65: =MIN((Z122+AJ35*D19)/AK42,(Z123+AJ35*D19)/AL42,(Z124+AJ35*D19)/AM42,(Z125+AJ35*D19)/AN42,(Z126+AJ35*D19)/AO42)*AP42 ->  | AS65: =MIN((AA122+AJ35*D19)/AK42,(AA123+AJ35*D19)/AL42,(AA124+AJ35*D19)/AM42,(AA125+AJ35*D19)/AN42,(AA126+AJ35*D19)/AO42)*AP42 ->  | AT65: =MIN((AB122+AJ35*D19)/AK42,(AB123+AJ35*D19)/AL42,(AB124+AJ35*D19)/AM42,(AB125+AJ35*D19)/AN42,(AB126+AJ35*D19)/AO42)*AP42 ->  | AU65: =MIN((AC122+AJ35*D19)/AK42,(AC123+AJ35*D19)/AL42,(AC124+AJ35*D19)/AM42,(AC125+AJ35*D19)/AN42,(AC126+AJ35*D19)/AO42)*AP42 ->  | AV65: =MIN((AD122+AJ35*D19)/AK42,(AD123+AJ35*D19)/AL42,(AD124+AJ35*D19)/AM42,(AD125+AJ35*D19)/AN42,(AD126+AJ35*D19)/AO42)*AP42 ->  | AW65: =MIN((AE122+AJ35*D19)/AK42,(AE123+AJ35*D19)/AL42,(AE124+AJ35*D19)/AM42,(AE125+AJ35*D19)/AN42,(AE126+AJ35*D19)/AO42)*AP42 ->  | AX65: =MIN((AF122+AJ35*D19)/AK42,(AF123+AJ35*D19)/AL42,(AF124+AJ35*D19)/AM42,(AF125+AJ35*D19)/AN42,(AF126+AJ35*D19)/AO42)*AP42 ->  | BB65: =MIN((S122+AK35*D19)/AK43,(S123+AK35*D19)/AL43,(S124+AK35*D19)/AM43,(S125+AK35*D19)/AN43,(S126+AK35*D19)/AO43)*AP43 ->  | BC65: =MIN((T122+AK35*D19)/AK43,(T123+AK35*D19)/AL43,(T124+AK35*D19)/AM43,(T125+AK35*D19)/AN43,(T126+AK35*D19)/AO43)*AP43 ->  | BD65: =MIN((U122+AK35*D19)/AK43,(U123+AK35*D19)/AL43,(U124+AK35*D19)/AM43,(U125+AK35*D19)/AN43,(U126+AK35*D19)/AO43)*AP43 ->  | BE65: =MIN((V122+AK35*D19)/AK43,(V123+AK35*D19)/AL43,(V124+AK35*D19)/AM43,(V125+AK35*D19)/AN43,(V126+AK35*D19)/AO43)*AP43 ->  | BF65: =MIN((W122+AK35*D19)/AK43,(W123+AK35*D19)/AL43,(W124+AK35*D19)/AM43,(W125+AK35*D19)/AN43,(W126+AK35*D19)/AO43)*AP43 ->  | BG65: =MIN((X122+AK35*D19)/AK43,(X123+AK35*D19)/AL43,(X124+AK35*D19)/AM43,(X125+AK35*D19)/AN43,(X126+AK35*D19)/AO43)*AP43 ->  | BH65: =MIN((Y122+AK35*D19)/AK43,(Y123+AK35*D19)/AL43,(Y124+AK35*D19)/AM43,(Y125+AK35*D19)/AN43,(Y126+AK35*D19)/AO43)*AP43 ->  | BI65: =MIN((Z122+AK35*D19)/AK43,(Z123+AK35*D19)/AL43,(Z124+AK35*D19)/AM43,(Z125+AK35*D19)/AN43,(Z126+AK35*D19)/AO43)*AP43 ->  | BJ65: =MIN((AA122+AK35*D19)/AK43,(AA123+AK35*D19)/AL43,(AA124+AK35*D19)/AM43,(AA125+AK35*D19)/AN43,(AA126+AK35*D19)/AO43)*AP43 ->  | BK65: =MIN((AB122+AK35*D19)/AK43,(AB123+AK35*D19)/AL43,(AB124+AK35*D19)/AM43,(AB125+AK35*D19)/AN43,(AB126+AK35*D19)/AO43)*AP43 ->  | BL65: =MIN((AC122+AK35*D19)/AK43,(AC123+AK35*D19)/AL43,(AC124+AK35*D19)/AM43,(AC125+AK35*D19)/AN43,(AC126+AK35*D19)/AO43)*AP43 ->  | BM65: =MIN((AD122+AK35*D19)/AK43,(AD123+AK35*D19)/AL43,(AD124+AK35*D19)/AM43,(AD125+AK35*D19)/AN43,(AD126+AK35*D19)/AO43)*AP43 ->  | BN65: =MIN((AE122+AK35*D19)/AK43,(AE123+AK35*D19)/AL43,(AE124+AK35*D19)/AM43,(AE125+AK35*D19)/AN43,(AE126+AK35*D19)/AO43)*AP43 ->  | BO65: =MIN((AF122+AK35*D19)/AK43,(AF123+AK35*D19)/AL43,(AF124+AK35*D19)/AM43,(AF125+AK35*D19)/AN43,(AF126+AK35*D19)/AO43)*AP43 ->  | BS65: =IF(E26=C31,F52,IF(E26=C32,I52,IF(E26=C33,L52,erreur))) -> 0.68115 | BU65: =IF(E26=C31,G52,IF(E26=C32,J52,IF(E26=C33,M52,erreur))) -> 0.68115 | BW65: 1.3623 | BZ65: 9 | CA65: =MIN((CP2*CS13+CK13)/AT50,(CP2*CS13+CL13)/AU50,(CP2*CS13+CM13)/AV50,(CP2*CS13+CN13)/AW50,(CP2*CS13+CO13)/AX50)*AY50 ->  | CB65: =MIN((CP2*CS13+CK13)/BB50,(CP2*CS13+CL13)/BC50,(CP2*CS13+CM13)/BD50,(CP2*CS13+CN13)/BE50,(CP2*CS13+CO13)/BF50)*BG50 ->  | CC65: =MIN((CP2*CS13+CK13)/BJ50,(CP2*CS13+CL13)/BK50,(CP2*CS13+CM13)/BL50,(CP2*CS13+CN13)/BM50,(CP2*CS13+CO13)/BN50)*BO50 ->  | CD65: =MIN((CP2*CS13+CK13)/BR50,(CP2*CS13+CL13)/BS50,(CP2*CS13+CM13)/BT50,(CP2*CS13+CN13)/BU50,(CP2*CS13+CO13)/BV50)*BW50 ->  | CF65: 8
E66: 0.18165 | F66: 1.63485 | G66: 1.8165 | H66: 0.4087 | I66: 0.95365 | J66: 1.36235 | K66: 0.27245 | L66: 0.63575 | M66: 0.9082 | N66: 0.7266 | O66: 1.0899 | P66: 1.8165 | R66: =IF($AX$306,H12+VLOOKUP(Team!$X18,Team!$E$30:$J$300,6,FALSE),H12+AH39+$D$21)+$D$19*$AG$9 ->  | S66: =IF($AX$306,$R66,$R66+Q10) ->  | T66: =IF($AX$306,$R66,$R66+R10) ->  | U66: =IF($AX$306,$R66,$R66+S10) ->  | AK66: =MIN((S129+AJ35*D19)/AK42,(S130+AJ35*D19)/AL42,(S131+AJ35*D19)/AM42,(S132+AJ35*D19)/AN42,(S133+AJ35*D19)/AO42)*AP42 ->  | AL66: =MIN((T129+AJ35*D19)/AK42,(T130+AJ35*D19)/AL42,(T131+AJ35*D19)/AM42,(T132+AJ35*D19)/AN42,(T133+AJ35*D19)/AO42)*AP42 ->  | AM66: =MIN((U129+AJ35*D19)/AK42,(U130+AJ35*D19)/AL42,(U131+AJ35*D19)/AM42,(U132+AJ35*D19)/AN42,(U133+AJ35*D19)/AO42)*AP42 ->  | AN66: =MIN((V129+AJ35*D19)/AK42,(V130+AJ35*D19)/AL42,(V131+AJ35*D19)/AM42,(V132+AJ35*D19)/AN42,(V133+AJ35*D19)/AO42)*AP42 ->  | AO66: =MIN((W129+AJ35*D19)/AK42,(W130+AJ35*D19)/AL42,(W131+AJ35*D19)/AM42,(W132+AJ35*D19)/AN42,(W133+AJ35*D19)/AO42)*AP42 ->  | AP66: =MIN((X129+AJ35*D19)/AK42,(X130+AJ35*D19)/AL42,(X131+AJ35*D19)/AM42,(X132+AJ35*D19)/AN42,(X133+AJ35*D19)/AO42)*AP42 ->  | AQ66: =MIN((Y129+AJ35*D19)/AK42,(Y130+AJ35*D19)/AL42,(Y131+AJ35*D19)/AM42,(Y132+AJ35*D19)/AN42,(Y133+AJ35*D19)/AO42)*AP42 ->  | AR66: =MIN((Z129+AJ35*D19)/AK42,(Z130+AJ35*D19)/AL42,(Z131+AJ35*D19)/AM42,(Z132+AJ35*D19)/AN42,(Z133+AJ35*D19)/AO42)*AP42 ->  | AS66: =MIN((AA129+AJ35*D19)/AK42,(AA130+AJ35*D19)/AL42,(AA131+AJ35*D19)/AM42,(AA132+AJ35*D19)/AN42,(AA133+AJ35*D19)/AO42)*AP42 ->  | AT66: =MIN((AB129+AJ35*D19)/AK42,(AB130+AJ35*D19)/AL42,(AB131+AJ35*D19)/AM42,(AB132+AJ35*D19)/AN42,(AB133+AJ35*D19)/AO42)*AP42 ->  | AU66: =MIN((AC129+AJ35*D19)/AK42,(AC130+AJ35*D19)/AL42,(AC131+AJ35*D19)/AM42,(AC132+AJ35*D19)/AN42,(AC133+AJ35*D19)/AO42)*AP42 ->  | AV66: =MIN((AD129+AJ35*D19)/AK42,(AD130+AJ35*D19)/AL42,(AD131+AJ35*D19)/AM42,(AD132+AJ35*D19)/AN42,(AD133+AJ35*D19)/AO42)*AP42 ->  | AW66: =MIN((AE129+AJ35*D19)/AK42,(AE130+AJ35*D19)/AL42,(AE131+AJ35*D19)/AM42,(AE132+AJ35*D19)/AN42,(AE133+AJ35*D19)/AO42)*AP42 ->  | AX66: =MIN((AF129+AJ35*D19)/AK42,(AF130+AJ35*D19)/AL42,(AF131+AJ35*D19)/AM42,(AF132+AJ35*D19)/AN42,(AF133+AJ35*D19)/AO42)*AP42 ->  | BB66: =MIN((S129+AK35*D19)/AK43,(S130+AK35*D19)/AL43,(S131+AK35*D19)/AM43,(S132+AK35*D19)/AN43,(S133+AK35*D19)/AO43)*AP43 ->  | BC66: =MIN((T129+AK35*D19)/AK43,(T130+AK35*D19)/AL43,(T131+AK35*D19)/AM43,(T132+AK35*D19)/AN43,(T133+AK35*D19)/AO43)*AP43 ->  | BD66: =MIN((U129+AK35*D19)/AK43,(U130+AK35*D19)/AL43,(U131+AK35*D19)/AM43,(U132+AK35*D19)/AN43,(U133+AK35*D19)/AO43)*AP43 ->  | BE66: =MIN((V129+AK35*D19)/AK43,(V130+AK35*D19)/AL43,(V131+AK35*D19)/AM43,(V132+AK35*D19)/AN43,(V133+AK35*D19)/AO43)*AP43 ->  | BF66: =MIN((W129+AK35*D19)/AK43,(W130+AK35*D19)/AL43,(W131+AK35*D19)/AM43,(W132+AK35*D19)/AN43,(W133+AK35*D19)/AO43)*AP43 ->  | BG66: =MIN((X129+AK35*D19)/AK43,(X130+AK35*D19)/AL43,(X131+AK35*D19)/AM43,(X132+AK35*D19)/AN43,(X133+AK35*D19)/AO43)*AP43 ->  | BH66: =MIN((Y129+AK35*D19)/AK43,(Y130+AK35*D19)/AL43,(Y131+AK35*D19)/AM43,(Y132+AK35*D19)/AN43,(Y133+AK35*D19)/AO43)*AP43 ->  | BI66: =MIN((Z129+AK35*D19)/AK43,(Z130+AK35*D19)/AL43,(Z131+AK35*D19)/AM43,(Z132+AK35*D19)/AN43,(Z133+AK35*D19)/AO43)*AP43 ->  | BJ66: =MIN((AA129+AK35*D19)/AK43,(AA130+AK35*D19)/AL43,(AA131+AK35*D19)/AM43,(AA132+AK35*D19)/AN43,(AA133+AK35*D19)/AO43)*AP43 ->  | BK66: =MIN((AB129+AK35*D19)/AK43,(AB130+AK35*D19)/AL43,(AB131+AK35*D19)/AM43,(AB132+AK35*D19)/AN43,(AB133+AK35*D19)/AO43)*AP43 ->  | BL66: =MIN((AC129+AK35*D19)/AK43,(AC130+AK35*D19)/AL43,(AC131+AK35*D19)/AM43,(AC132+AK35*D19)/AN43,(AC133+AK35*D19)/AO43)*AP43 ->  | BM66: =MIN((AD129+AK35*D19)/AK43,(AD130+AK35*D19)/AL43,(AD131+AK35*D19)/AM43,(AD132+AK35*D19)/AN43,(AD133+AK35*D19)/AO43)*AP43 ->  | BN66: =MIN((AE129+AK35*D19)/AK43,(AE130+AK35*D19)/AL43,(AE131+AK35*D19)/AM43,(AE132+AK35*D19)/AN43,(AE133+AK35*D19)/AO43)*AP43 ->  | BO66: =MIN((AF129+AK35*D19)/AK43,(AF130+AK35*D19)/AL43,(AF131+AK35*D19)/AM43,(AF132+AK35*D19)/AN43,(AF133+AK35*D19)/AO43)*AP43 ->  | BS66: =IF(E26=C31,F53,IF(E26=C32,I53,IF(E26=C33,L53,erreur))) -> 1.27155 | BU66: =IF(E26=C31,G53,IF(E26=C32,J53,IF(E26=C33,M53,erreur))) -> 0.54495 | BW66: 1.8165 | BZ66: 10 | CA66: =MIN((CP2*CS14+CK14)/AT51,(CP2*CS14+CL14)/AU51,(CP2*CS14+CM14)/AV51,(CP2*CS14+CN14)/AW51,(CP2*CS14+CO14)/AX51)*AY51 ->  | CB66: =MIN((CP2*CS14+CK14)/BB51,(CP2*CS14+CL14)/BC51,(CP2*CS14+CM14)/BD51,(CP2*CS14+CN14)/BE51,(CP2*CS14+CO14)/BF51)*BG51 ->  | CC66: =MIN((CP2*CS14+CK14)/BJ51,(CP2*CS14+CL14)/BK51,(CP2*CS14+CM14)/BL51,(CP2*CS14+CN14)/BM51,(CP2*CS14+CO14)/BN51)*BO51 ->  | CD66: =MIN((CP2*CS14+CK14)/BR51,(CP2*CS14+CL14)/BS51,(CP2*CS14+CM14)/BT51,(CP2*CS14+CN14)/BU51,(CP2*CS14+CO14)/BV51)*BW51 ->  | CF66: 9
E67: 0.4541 | F67: 1.8165 | G67: 2.2706 | H67: 0.8174 | I67: 0.54495 | J67: 1.36235 | K67: 0.7266 | L67: 1.0899 | M67: 1.8165 | N67: 0.7266 | O67: 1.0899 | P67: 1.8165 | R67: =IF($AX$306,I12+VLOOKUP(Team!$Y18,Team!$E$30:$J$300,6,FALSE),I12+AH40+$D$21)+$D$19*$AG$9 ->  | S67: =IF($AX$306,$R67,$R67+Q11) ->  | AK67: =MIN((S136+AJ35*D19)/AK42,(S137+AJ35*D19)/AL42,(S138+AJ35*D19)/AM42,(S139+AJ35*D19)/AN42,(S140+AJ35*D19)/AO42)*AP42 ->  | AL67: =MIN((T136+AJ35*D19)/AK42,(T137+AJ35*D19)/AL42,(T138+AJ35*D19)/AM42,(T139+AJ35*D19)/AN42,(T140+AJ35*D19)/AO42)*AP42 ->  | AM67: =MIN((U136+AJ35*D19)/AK42,(U137+AJ35*D19)/AL42,(U138+AJ35*D19)/AM42,(U139+AJ35*D19)/AN42,(U140+AJ35*D19)/AO42)*AP42 ->  | AN67: =MIN((V136+AJ35*D19)/AK42,(V137+AJ35*D19)/AL42,(V138+AJ35*D19)/AM42,(V139+AJ35*D19)/AN42,(V140+AJ35*D19)/AO42)*AP42 ->  | AO67: =MIN((W136+AJ35*D19)/AK42,(W137+AJ35*D19)/AL42,(W138+AJ35*D19)/AM42,(W139+AJ35*D19)/AN42,(W140+AJ35*D19)/AO42)*AP42 ->  | AP67: =MIN((X136+AJ35*D19)/AK42,(X137+AJ35*D19)/AL42,(X138+AJ35*D19)/AM42,(X139+AJ35*D19)/AN42,(X140+AJ35*D19)/AO42)*AP42 ->  | AQ67: =MIN((Y136+AJ35*D19)/AK42,(Y137+AJ35*D19)/AL42,(Y138+AJ35*D19)/AM42,(Y139+AJ35*D19)/AN42,(Y140+AJ35*D19)/AO42)*AP42 ->  | AR67: =MIN((Z136+AJ35*D19)/AK42,(Z137+AJ35*D19)/AL42,(Z138+AJ35*D19)/AM42,(Z139+AJ35*D19)/AN42,(Z140+AJ35*D19)/AO42)*AP42 ->  | AS67: =MIN((AA136+AJ35*D19)/AK42,(AA137+AJ35*D19)/AL42,(AA138+AJ35*D19)/AM42,(AA139+AJ35*D19)/AN42,(AA140+AJ35*D19)/AO42)*AP42 ->  | AT67: =MIN((AB136+AJ35*D19)/AK42,(AB137+AJ35*D19)/AL42,(AB138+AJ35*D19)/AM42,(AB139+AJ35*D19)/AN42,(AB140+AJ35*D19)/AO42)*AP42 ->  | AU67: =MIN((AC136+AJ35*D19)/AK42,(AC137+AJ35*D19)/AL42,(AC138+AJ35*D19)/AM42,(AC139+AJ35*D19)/AN42,(AC140+AJ35*D19)/AO42)*AP42 ->  | AV67: =MIN((AD136+AJ35*D19)/AK42,(AD137+AJ35*D19)/AL42,(AD138+AJ35*D19)/AM42,(AD139+AJ35*D19)/AN42,(AD140+AJ35*D19)/AO42)*AP42 ->  | AW67: =MIN((AE136+AJ35*D19)/AK42,(AE137+AJ35*D19)/AL42,(AE138+AJ35*D19)/AM42,(AE139+AJ35*D19)/AN42,(AE140+AJ35*D19)/AO42)*AP42 ->  | AX67: =MIN((AF136+AJ35*D19)/AK42,(AF137+AJ35*D19)/AL42,(AF138+AJ35*D19)/AM42,(AF139+AJ35*D19)/AN42,(AF140+AJ35*D19)/AO42)*AP42 ->  | BB67: =MIN((S136+AK35*D19)/AK43,(S137+AK35*D19)/AL43,(S138+AK35*D19)/AM43,(S139+AK35*D19)/AN43,(S140+AK35*D19)/AO43)*AP43 ->  | BC67: =MIN((T136+AK35*D19)/AK43,(T137+AK35*D19)/AL43,(T138+AK35*D19)/AM43,(T139+AK35*D19)/AN43,(T140+AK35*D19)/AO43)*AP43 ->  | BD67: =MIN((U136+AK35*D19)/AK43,(U137+AK35*D19)/AL43,(U138+AK35*D19)/AM43,(U139+AK35*D19)/AN43,(U140+AK35*D19)/AO43)*AP43 ->  | BE67: =MIN((V136+AK35*D19)/AK43,(V137+AK35*D19)/AL43,(V138+AK35*D19)/AM43,(V139+AK35*D19)/AN43,(V140+AK35*D19)/AO43)*AP43 ->  | BF67: =MIN((W136+AK35*D19)/AK43,(W137+AK35*D19)/AL43,(W138+AK35*D19)/AM43,(W139+AK35*D19)/AN43,(W140+AK35*D19)/AO43)*AP43 ->  | BG67: =MIN((X136+AK35*D19)/AK43,(X137+AK35*D19)/AL43,(X138+AK35*D19)/AM43,(X139+AK35*D19)/AN43,(X140+AK35*D19)/AO43)*AP43 ->  | BH67: =MIN((Y136+AK35*D19)/AK43,(Y137+AK35*D19)/AL43,(Y138+AK35*D19)/AM43,(Y139+AK35*D19)/AN43,(Y140+AK35*D19)/AO43)*AP43 ->  | BI67: =MIN((Z136+AK35*D19)/AK43,(Z137+AK35*D19)/AL43,(Z138+AK35*D19)/AM43,(Z139+AK35*D19)/AN43,(Z140+AK35*D19)/AO43)*AP43 ->  | BJ67: =MIN((AA136+AK35*D19)/AK43,(AA137+AK35*D19)/AL43,(AA138+AK35*D19)/AM43,(AA139+AK35*D19)/AN43,(AA140+AK35*D19)/AO43)*AP43 ->  | BK67: =MIN((AB136+AK35*D19)/AK43,(AB137+AK35*D19)/AL43,(AB138+AK35*D19)/AM43,(AB139+AK35*D19)/AN43,(AB140+AK35*D19)/AO43)*AP43 ->  | BL67: =MIN((AC136+AK35*D19)/AK43,(AC137+AK35*D19)/AL43,(AC138+AK35*D19)/AM43,(AC139+AK35*D19)/AN43,(AC140+AK35*D19)/AO43)*AP43 ->  | BM67: =MIN((AD136+AK35*D19)/AK43,(AD137+AK35*D19)/AL43,(AD138+AK35*D19)/AM43,(AD139+AK35*D19)/AN43,(AD140+AK35*D19)/AO43)*AP43 ->  | BN67: =MIN((AE136+AK35*D19)/AK43,(AE137+AK35*D19)/AL43,(AE138+AK35*D19)/AM43,(AE139+AK35*D19)/AN43,(AE140+AK35*D19)/AO43)*AP43 ->  | BO67: =MIN((AF136+AK35*D19)/AK43,(AF137+AK35*D19)/AL43,(AF138+AK35*D19)/AM43,(AF139+AK35*D19)/AN43,(AF140+AK35*D19)/AO43)*AP43 ->  | BS67: =IF(E26=C31,F54,IF(E26=C32,I54,IF(E26=C33,L54,erreur))) -> 0.95365 | BU67: =IF(E26=C31,G54,IF(E26=C32,J54,IF(E26=C33,M54,erreur))) -> 0.4087 | BW67: 1.36235 | BZ67: 11 | CA67: =MIN((CP2*CS15+CK15)/AT52,(CP2*CS15+CL15)/AU52,(CP2*CS15+CM15)/AV52,(CP2*CS15+CN15)/AW52,(CP2*CS15+CO15)/AX52)*AY52 ->  | CB67: =MIN((CP2*CS15+CK15)/BB52,(CP2*CS15+CL15)/BC52,(CP2*CS15+CM15)/BD52,(CP2*CS15+CN15)/BE52,(CP2*CS15+CO15)/BF52)*BG52 ->  | CC67: =MIN((CP2*CS15+CK15)/BJ52,(CP2*CS15+CL15)/BK52,(CP2*CS15+CM15)/BL52,(CP2*CS15+CN15)/BM52,(CP2*CS15+CO15)/BN52)*BO52 ->  | CD67: =MIN((CP2*CS15+CK15)/BR52,(CP2*CS15+CL15)/BS52,(CP2*CS15+CM15)/BT52,(CP2*CS15+CN15)/BU52,(CP2*CS15+CO15)/BV52)*BW52 ->  | CF67: 10
E68: 0.7266 | F68: 1.0899 | G68: 1.8165 | H68: 0.81415 | I68: 0.54275 | J68: 1.3569 | K68: 1.0899 | L68: 1.63485 | M68: 2.72475 | N68: 0.68115 | O68: 0.68115 | P68: 1.3623 | R68: =IF($AX$306,J12+VLOOKUP(Team!$Z18,Team!$E$30:$J$300,6,FALSE),J12+AH41+$D$21)+$D$19*$AG$9 ->  | AK68: =MIN((S143+AJ35*D19)/AK42,(S144+AJ35*D19)/AL42,(S145+AJ35*D19)/AM42,(S146+AJ35*D19)/AN42,(S147+AJ35*D19)/AO42)*AP42 ->  | AL68: =MIN((T143+AJ35*D19)/AK42,(T144+AJ35*D19)/AL42,(T145+AJ35*D19)/AM42,(T146+AJ35*D19)/AN42,(T147+AJ35*D19)/AO42)*AP42 ->  | AM68: =MIN((U143+AJ35*D19)/AK42,(U144+AJ35*D19)/AL42,(U145+AJ35*D19)/AM42,(U146+AJ35*D19)/AN42,(U147+AJ35*D19)/AO42)*AP42 ->  | AN68: =MIN((V143+AJ35*D19)/AK42,(V144+AJ35*D19)/AL42,(V145+AJ35*D19)/AM42,(V146+AJ35*D19)/AN42,(V147+AJ35*D19)/AO42)*AP42 ->  | AO68: =MIN((W143+AJ35*D19)/AK42,(W144+AJ35*D19)/AL42,(W145+AJ35*D19)/AM42,(W146+AJ35*D19)/AN42,(W147+AJ35*D19)/AO42)*AP42 ->  | AP68: =MIN((X143+AJ35*D19)/AK42,(X144+AJ35*D19)/AL42,(X145+AJ35*D19)/AM42,(X146+AJ35*D19)/AN42,(X147+AJ35*D19)/AO42)*AP42 ->  | AQ68: =MIN((Y143+AJ35*D19)/AK42,(Y144+AJ35*D19)/AL42,(Y145+AJ35*D19)/AM42,(Y146+AJ35*D19)/AN42,(Y147+AJ35*D19)/AO42)*AP42 ->  | AR68: =MIN((Z143+AJ35*D19)/AK42,(Z144+AJ35*D19)/AL42,(Z145+AJ35*D19)/AM42,(Z146+AJ35*D19)/AN42,(Z147+AJ35*D19)/AO42)*AP42 ->  | AS68: =MIN((AA143+AJ35*D19)/AK42,(AA144+AJ35*D19)/AL42,(AA145+AJ35*D19)/AM42,(AA146+AJ35*D19)/AN42,(AA147+AJ35*D19)/AO42)*AP42 ->  | AT68: =MIN((AB143+AJ35*D19)/AK42,(AB144+AJ35*D19)/AL42,(AB145+AJ35*D19)/AM42,(AB146+AJ35*D19)/AN42,(AB147+AJ35*D19)/AO42)*AP42 ->  | AU68: =MIN((AC143+AJ35*D19)/AK42,(AC144+AJ35*D19)/AL42,(AC145+AJ35*D19)/AM42,(AC146+AJ35*D19)/AN42,(AC147+AJ35*D19)/AO42)*AP42 ->  | AV68: =MIN((AD143+AJ35*D19)/AK42,(AD144+AJ35*D19)/AL42,(AD145+AJ35*D19)/AM42,(AD146+AJ35*D19)/AN42,(AD147+AJ35*D19)/AO42)*AP42 ->  | AW68: =MIN((AE143+AJ35*D19)/AK42,(AE144+AJ35*D19)/AL42,(AE145+AJ35*D19)/AM42,(AE146+AJ35*D19)/AN42,(AE147+AJ35*D19)/AO42)*AP42 ->  | AX68: =MIN((AF143+AJ35*D19)/AK42,(AF144+AJ35*D19)/AL42,(AF145+AJ35*D19)/AM42,(AF146+AJ35*D19)/AN42,(AF147+AJ35*D19)/AO42)*AP42 ->  | BB68: =MIN((S143+AK35*D19)/AK43,(S144+AK35*D19)/AL43,(S145+AK35*D19)/AM43,(S146+AK35*D19)/AN43,(S147+AK35*D19)/AO43)*AP43 ->  | BC68: =MIN((T143+AK35*D19)/AK43,(T144+AK35*D19)/AL43,(T145+AK35*D19)/AM43,(T146+AK35*D19)/AN43,(T147+AK35*D19)/AO43)*AP43 ->  | BD68: =MIN((U143+AK35*D19)/AK43,(U144+AK35*D19)/AL43,(U145+AK35*D19)/AM43,(U146+AK35*D19)/AN43,(U147+AK35*D19)/AO43)*AP43 ->  | BE68: =MIN((V143+AK35*D19)/AK43,(V144+AK35*D19)/AL43,(V145+AK35*D19)/AM43,(V146+AK35*D19)/AN43,(V147+AK35*D19)/AO43)*AP43 ->  | BF68: =MIN((W143+AK35*D19)/AK43,(W144+AK35*D19)/AL43,(W145+AK35*D19)/AM43,(W146+AK35*D19)/AN43,(W147+AK35*D19)/AO43)*AP43 ->  | BG68: =MIN((X143+AK35*D19)/AK43,(X144+AK35*D19)/AL43,(X145+AK35*D19)/AM43,(X146+AK35*D19)/AN43,(X147+AK35*D19)/AO43)*AP43 ->  | BH68: =MIN((Y143+AK35*D19)/AK43,(Y144+AK35*D19)/AL43,(Y145+AK35*D19)/AM43,(Y146+AK35*D19)/AN43,(Y147+AK35*D19)/AO43)*AP43 ->  | BI68: =MIN((Z143+AK35*D19)/AK43,(Z144+AK35*D19)/AL43,(Z145+AK35*D19)/AM43,(Z146+AK35*D19)/AN43,(Z147+AK35*D19)/AO43)*AP43 ->  | BJ68: =MIN((AA143+AK35*D19)/AK43,(AA144+AK35*D19)/AL43,(AA145+AK35*D19)/AM43,(AA146+AK35*D19)/AN43,(AA147+AK35*D19)/AO43)*AP43 ->  | BK68: =MIN((AB143+AK35*D19)/AK43,(AB144+AK35*D19)/AL43,(AB145+AK35*D19)/AM43,(AB146+AK35*D19)/AN43,(AB147+AK35*D19)/AO43)*AP43 ->  | BL68: =MIN((AC143+AK35*D19)/AK43,(AC144+AK35*D19)/AL43,(AC145+AK35*D19)/AM43,(AC146+AK35*D19)/AN43,(AC147+AK35*D19)/AO43)*AP43 ->  | BM68: =MIN((AD143+AK35*D19)/AK43,(AD144+AK35*D19)/AL43,(AD145+AK35*D19)/AM43,(AD146+AK35*D19)/AN43,(AD147+AK35*D19)/AO43)*AP43 ->  | BN68: =MIN((AE143+AK35*D19)/AK43,(AE144+AK35*D19)/AL43,(AE145+AK35*D19)/AM43,(AE146+AK35*D19)/AN43,(AE147+AK35*D19)/AO43)*AP43 ->  | BO68: =MIN((AF143+AK35*D19)/AK43,(AF144+AK35*D19)/AL43,(AF145+AK35*D19)/AM43,(AF146+AK35*D19)/AN43,(AF147+AK35*D19)/AO43)*AP43 ->  | BS68: =IF(E26=C31,F55,IF(E26=C32,I55,IF(E26=C33,L55,erreur))) -> 1.0899 | BU68: =IF(E26=C31,G55,IF(E26=C32,J55,IF(E26=C33,M55,erreur))) -> 0.7266 | BW68: 1.8165 | BZ68: brut adversaire selon tactique | CF68: 11
E69: 0.68115 | F69: 0.68115 | G69: 1.3623 | H69: 1.63485 | I69: 1.0899 | J69: 2.72475 | K69: 0.68115 | L69: 0.68115 | M69: 1.3623 | N69: 0.68115 | O69: 0.68115 | P69: 1.3623 | R69: =IF($AX$306,K12+VLOOKUP(Team!$AA18,Team!$E$30:$J$300,6,FALSE),K12+AH42+$D$21)+$D$19*$AG$9 ->  | AK69: =MIN((S150+AJ35*D19)/AK42,(S151+AJ35*D19)/AL42,(S152+AJ35*D19)/AM42,(S153+AJ35*D19)/AN42,(S154+AJ35*D19)/AO42)*AP42 ->  | AL69: =MIN((T150+AJ35*D19)/AK42,(T151+AJ35*D19)/AL42,(T152+AJ35*D19)/AM42,(T153+AJ35*D19)/AN42,(T154+AJ35*D19)/AO42)*AP42 ->  | AM69: =MIN((U150+AJ35*D19)/AK42,(U151+AJ35*D19)/AL42,(U152+AJ35*D19)/AM42,(U153+AJ35*D19)/AN42,(U154+AJ35*D19)/AO42)*AP42 ->  | AN69: =MIN((V150+AJ35*D19)/AK42,(V151+AJ35*D19)/AL42,(V152+AJ35*D19)/AM42,(V153+AJ35*D19)/AN42,(V154+AJ35*D19)/AO42)*AP42 ->  | AO69: =MIN((W150+AJ35*D19)/AK42,(W151+AJ35*D19)/AL42,(W152+AJ35*D19)/AM42,(W153+AJ35*D19)/AN42,(W154+AJ35*D19)/AO42)*AP42 ->  | AP69: =MIN((X150+AJ35*D19)/AK42,(X151+AJ35*D19)/AL42,(X152+AJ35*D19)/AM42,(X153+AJ35*D19)/AN42,(X154+AJ35*D19)/AO42)*AP42 ->  | AQ69: =MIN((Y150+AJ35*D19)/AK42,(Y151+AJ35*D19)/AL42,(Y152+AJ35*D19)/AM42,(Y153+AJ35*D19)/AN42,(Y154+AJ35*D19)/AO42)*AP42 ->  | AR69: =MIN((Z150+AJ35*D19)/AK42,(Z151+AJ35*D19)/AL42,(Z152+AJ35*D19)/AM42,(Z153+AJ35*D19)/AN42,(Z154+AJ35*D19)/AO42)*AP42 ->  | AS69: =MIN((AA150+AJ35*D19)/AK42,(AA151+AJ35*D19)/AL42,(AA152+AJ35*D19)/AM42,(AA153+AJ35*D19)/AN42,(AA154+AJ35*D19)/AO42)*AP42 ->  | AT69: =MIN((AB150+AJ35*D19)/AK42,(AB151+AJ35*D19)/AL42,(AB152+AJ35*D19)/AM42,(AB153+AJ35*D19)/AN42,(AB154+AJ35*D19)/AO42)*AP42 ->  | AU69: =MIN((AC150+AJ35*D19)/AK42,(AC151+AJ35*D19)/AL42,(AC152+AJ35*D19)/AM42,(AC153+AJ35*D19)/AN42,(AC154+AJ35*D19)/AO42)*AP42 ->  | AV69: =MIN((AD150+AJ35*D19)/AK42,(AD151+AJ35*D19)/AL42,(AD152+AJ35*D19)/AM42,(AD153+AJ35*D19)/AN42,(AD154+AJ35*D19)/AO42)*AP42 ->  | AW69: =MIN((AE150+AJ35*D19)/AK42,(AE151+AJ35*D19)/AL42,(AE152+AJ35*D19)/AM42,(AE153+AJ35*D19)/AN42,(AE154+AJ35*D19)/AO42)*AP42 ->  | AX69: =MIN((AF150+AJ35*D19)/AK42,(AF151+AJ35*D19)/AL42,(AF152+AJ35*D19)/AM42,(AF153+AJ35*D19)/AN42,(AF154+AJ35*D19)/AO42)*AP42 ->  | BB69: =MIN((S150+AK35*D19)/AK43,(S151+AK35*D19)/AL43,(S152+AK35*D19)/AM43,(S153+AK35*D19)/AN43,(S154+AK35*D19)/AO43)*AP43 ->  | BC69: =MIN((T150+AK35*D19)/AK43,(T151+AK35*D19)/AL43,(T152+AK35*D19)/AM43,(T153+AK35*D19)/AN43,(T154+AK35*D19)/AO43)*AP43 ->  | BD69: =MIN((U150+AK35*D19)/AK43,(U151+AK35*D19)/AL43,(U152+AK35*D19)/AM43,(U153+AK35*D19)/AN43,(U154+AK35*D19)/AO43)*AP43 ->  | BE69: =MIN((V150+AK35*D19)/AK43,(V151+AK35*D19)/AL43,(V152+AK35*D19)/AM43,(V153+AK35*D19)/AN43,(V154+AK35*D19)/AO43)*AP43 ->  | BF69: =MIN((W150+AK35*D19)/AK43,(W151+AK35*D19)/AL43,(W152+AK35*D19)/AM43,(W153+AK35*D19)/AN43,(W154+AK35*D19)/AO43)*AP43 ->  | BG69: =MIN((X150+AK35*D19)/AK43,(X151+AK35*D19)/AL43,(X152+AK35*D19)/AM43,(X153+AK35*D19)/AN43,(X154+AK35*D19)/AO43)*AP43 ->  | BH69: =MIN((Y150+AK35*D19)/AK43,(Y151+AK35*D19)/AL43,(Y152+AK35*D19)/AM43,(Y153+AK35*D19)/AN43,(Y154+AK35*D19)/AO43)*AP43 ->  | BI69: =MIN((Z150+AK35*D19)/AK43,(Z151+AK35*D19)/AL43,(Z152+AK35*D19)/AM43,(Z153+AK35*D19)/AN43,(Z154+AK35*D19)/AO43)*AP43 ->  | BJ69: =MIN((AA150+AK35*D19)/AK43,(AA151+AK35*D19)/AL43,(AA152+AK35*D19)/AM43,(AA153+AK35*D19)/AN43,(AA154+AK35*D19)/AO43)*AP43 ->  | BK69: =MIN((AB150+AK35*D19)/AK43,(AB151+AK35*D19)/AL43,(AB152+AK35*D19)/AM43,(AB153+AK35*D19)/AN43,(AB154+AK35*D19)/AO43)*AP43 ->  | BL69: =MIN((AC150+AK35*D19)/AK43,(AC151+AK35*D19)/AL43,(AC152+AK35*D19)/AM43,(AC153+AK35*D19)/AN43,(AC154+AK35*D19)/AO43)*AP43 ->  | BM69: =MIN((AD150+AK35*D19)/AK43,(AD151+AK35*D19)/AL43,(AD152+AK35*D19)/AM43,(AD153+AK35*D19)/AN43,(AD154+AK35*D19)/AO43)*AP43 ->  | BN69: =MIN((AE150+AK35*D19)/AK43,(AE151+AK35*D19)/AL43,(AE152+AK35*D19)/AM43,(AE153+AK35*D19)/AN43,(AE154+AK35*D19)/AO43)*AP43 ->  | BO69: =MIN((AF150+AK35*D19)/AK43,(AF151+AK35*D19)/AL43,(AF152+AK35*D19)/AM43,(AF153+AK35*D19)/AN43,(AF154+AK35*D19)/AO43)*AP43 ->  | BR69: formule position | BU69: formule gain brut | CA69: att | CB69: def | CF69: total | CG69: =SUM(CG58:CG68) -> 
E70: 1.58945 | F70: 0.68115 | G70: 2.2706 | H70: 2.04355 | I70: 0.22705 | J70: 2.2706 | K70: 1.27155 | L70: 0.54495 | M70: 1.8165 | N70: 1.27155 | O70: 0.54495 | P70: 1.8165 | R70: =IF($AX$306,L12+VLOOKUP(Team!$AB18,Team!$E$30:$J$300,6,FALSE),L12+AH43+$D$21)+$D$19*$AG$9 ->  | AK70: =MIN((S157+AJ35*D19)/AK42,(S158+AJ35*D19)/AL42,(S159+AJ35*D19)/AM42,(S160+AJ35*D19)/AN42,(S161+AJ35*D19)/AO42)*AP42 ->  | AL70: =MIN((T157+AJ35*D19)/AK42,(T158+AJ35*D19)/AL42,(T159+AJ35*D19)/AM42,(T160+AJ35*D19)/AN42,(T161+AJ35*D19)/AO42)*AP42 ->  | AM70: =MIN((U157+AJ35*D19)/AK42,(U158+AJ35*D19)/AL42,(U159+AJ35*D19)/AM42,(U160+AJ35*D19)/AN42,(U161+AJ35*D19)/AO42)*AP42 ->  | AN70: =MIN((V157+AJ35*D19)/AK42,(V158+AJ35*D19)/AL42,(V159+AJ35*D19)/AM42,(V160+AJ35*D19)/AN42,(V161+AJ35*D19)/AO42)*AP42 ->  | AO70: =MIN((W157+AJ35*D19)/AK42,(W158+AJ35*D19)/AL42,(W159+AJ35*D19)/AM42,(W160+AJ35*D19)/AN42,(W161+AJ35*D19)/AO42)*AP42 ->  | AP70: =MIN((X157+AJ35*D19)/AK42,(X158+AJ35*D19)/AL42,(X159+AJ35*D19)/AM42,(X160+AJ35*D19)/AN42,(X161+AJ35*D19)/AO42)*AP42 ->  | AQ70: =MIN((Y157+AJ35*D19)/AK42,(Y158+AJ35*D19)/AL42,(Y159+AJ35*D19)/AM42,(Y160+AJ35*D19)/AN42,(Y161+AJ35*D19)/AO42)*AP42 ->  | AR70: =MIN((Z157+AJ35*D19)/AK42,(Z158+AJ35*D19)/AL42,(Z159+AJ35*D19)/AM42,(Z160+AJ35*D19)/AN42,(Z161+AJ35*D19)/AO42)*AP42 ->  | AS70: =MIN((AA157+AJ35*D19)/AK42,(AA158+AJ35*D19)/AL42,(AA159+AJ35*D19)/AM42,(AA160+AJ35*D19)/AN42,(AA161+AJ35*D19)/AO42)*AP42 ->  | AT70: =MIN((AB157+AJ35*D19)/AK42,(AB158+AJ35*D19)/AL42,(AB159+AJ35*D19)/AM42,(AB160+AJ35*D19)/AN42,(AB161+AJ35*D19)/AO42)*AP42 ->  | AU70: =MIN((AC157+AJ35*D19)/AK42,(AC158+AJ35*D19)/AL42,(AC159+AJ35*D19)/AM42,(AC160+AJ35*D19)/AN42,(AC161+AJ35*D19)/AO42)*AP42 ->  | AV70: =MIN((AD157+AJ35*D19)/AK42,(AD158+AJ35*D19)/AL42,(AD159+AJ35*D19)/AM42,(AD160+AJ35*D19)/AN42,(AD161+AJ35*D19)/AO42)*AP42 ->  | AW70: =MIN((AE157+AJ35*D19)/AK42,(AE158+AJ35*D19)/AL42,(AE159+AJ35*D19)/AM42,(AE160+AJ35*D19)/AN42,(AE161+AJ35*D19)/AO42)*AP42 ->  | AX70: =MIN((AF157+AJ35*D19)/AK42,(AF158+AJ35*D19)/AL42,(AF159+AJ35*D19)/AM42,(AF160+AJ35*D19)/AN42,(AF161+AJ35*D19)/AO42)*AP42 ->  | BB70: =MIN((S157+AK35*D19)/AK43,(S158+AK35*D19)/AL43,(S159+AK35*D19)/AM43,(S160+AK35*D19)/AN43,(S161+AK35*D19)/AO43)*AP43 ->  | BC70: =MIN((T157+AK35*D19)/AK43,(T158+AK35*D19)/AL43,(T159+AK35*D19)/AM43,(T160+AK35*D19)/AN43,(T161+AK35*D19)/AO43)*AP43 ->  | BD70: =MIN((U157+AK35*D19)/AK43,(U158+AK35*D19)/AL43,(U159+AK35*D19)/AM43,(U160+AK35*D19)/AN43,(U161+AK35*D19)/AO43)*AP43 ->  | BE70: =MIN((V157+AK35*D19)/AK43,(V158+AK35*D19)/AL43,(V159+AK35*D19)/AM43,(V160+AK35*D19)/AN43,(V161+AK35*D19)/AO43)*AP43 ->  | BF70: =MIN((W157+AK35*D19)/AK43,(W158+AK35*D19)/AL43,(W159+AK35*D19)/AM43,(W160+AK35*D19)/AN43,(W161+AK35*D19)/AO43)*AP43 ->  | BG70: =MIN((X157+AK35*D19)/AK43,(X158+AK35*D19)/AL43,(X159+AK35*D19)/AM43,(X160+AK35*D19)/AN43,(X161+AK35*D19)/AO43)*AP43 ->  | BH70: =MIN((Y157+AK35*D19)/AK43,(Y158+AK35*D19)/AL43,(Y159+AK35*D19)/AM43,(Y160+AK35*D19)/AN43,(Y161+AK35*D19)/AO43)*AP43 ->  | BI70: =MIN((Z157+AK35*D19)/AK43,(Z158+AK35*D19)/AL43,(Z159+AK35*D19)/AM43,(Z160+AK35*D19)/AN43,(Z161+AK35*D19)/AO43)*AP43 ->  | BJ70: =MIN((AA157+AK35*D19)/AK43,(AA158+AK35*D19)/AL43,(AA159+AK35*D19)/AM43,(AA160+AK35*D19)/AN43,(AA161+AK35*D19)/AO43)*AP43 ->  | BK70: =MIN((AB157+AK35*D19)/AK43,(AB158+AK35*D19)/AL43,(AB159+AK35*D19)/AM43,(AB160+AK35*D19)/AN43,(AB161+AK35*D19)/AO43)*AP43 ->  | BL70: =MIN((AC157+AK35*D19)/AK43,(AC158+AK35*D19)/AL43,(AC159+AK35*D19)/AM43,(AC160+AK35*D19)/AN43,(AC161+AK35*D19)/AO43)*AP43 ->  | BM70: =MIN((AD157+AK35*D19)/AK43,(AD158+AK35*D19)/AL43,(AD159+AK35*D19)/AM43,(AD160+AK35*D19)/AN43,(AD161+AK35*D19)/AO43)*AP43 ->  | BN70: =MIN((AE157+AK35*D19)/AK43,(AE158+AK35*D19)/AL43,(AE159+AK35*D19)/AM43,(AE160+AK35*D19)/AN43,(AE161+AK35*D19)/AO43)*AP43 ->  | BO70: =MIN((AF157+AK35*D19)/AK43,(AF158+AK35*D19)/AL43,(AF159+AK35*D19)/AM43,(AF160+AK35*D19)/AN43,(AF161+AK35*D19)/AO43)*AP43 ->  | BS70: =IF(AV24=1,AI24,IF(AV25=1,AI25,IF(AV26=1,AI26,IF(AV27=1,AI27,IF(AV28=1,AI28,IF(AV29=1,AI29,IF(AV31=1,AI31,BS83))))))) -> attente | BT70: =IF(AV16=1,AI16,IF(AV17=1,AI17,IF(AV18=1,AI18,IF(AV19=1,AI19,IF(AV20=1,AI20,IF(AV21=1,AI21,IF(AV22=1,AI22,IF(AV23=1,AI23,BS70)))))))) -> attente | BU70: =IF(AV24=1,AY72,IF(AV25=1,AY73,IF(AV26=1,AY74,IF(AV27=1,AY75,IF(AV28=1,AY76,IF(AV29=1,AY77,IF(AV31=1,AY78,0))))))) -> 0 | BV70: =IF(AV16=1,AY64,IF(AV17=1,AY65,IF(AV18=1,AY66,IF(AV19=1,AY67,IF(AV20=1,AY68,IF(AV21=1,AY69,IF(AV22=1,AY70,IF(AV23=1,AY71,BU70)))))))) -> 0 | BW70: =IF(AV8=1,AY56,IF(AV9=1,AY57,IF(AV10=1,AY58,IF(AV11=1,AY59,IF(AV12=1,AY60,IF(AV13=1,AY61,IF(AV14=1,AY62,IF(AV15=1,AY63,BV70)))))))) ->  | CA70: =IF($CA$17=$CE$16,CA75,IF($CA$17=$CE$17,CC75,IF($CA$17=$CE$18,CE75,erreur))) ->  | CB70: =IF($CA$17=$CE$16,CB75,IF($CA$17=$CE$17,CD75,IF($CA$17=$CE$18,CF75,erreur))) ->  | CH70: stats brutes de l'adversaire et de mon équippe avec bonus match (sauf 15% stratégie)
E71: 0.7266 | F71: 1.0899 | G71: 1.8165 | H71: 1.0899 | I71: 0.7266 | J71: 1.8165 | K71: 0.95365 | L71: 0.4087 | M71: 1.36235 | N71: 1.36235 | O71: 1.36235 | P71: 2.7247 | AK71: =MIN((S164+AJ35*D19)/AK42,(S165+AJ35*D19)/AL42,(S166+AJ35*D19)/AM42,(S167+AJ35*D19)/AN42,(S168+AJ35*D19)/AO42)*AP42 ->  | AL71: =MIN((T164+AJ35*D19)/AK42,(T165+AJ35*D19)/AL42,(T166+AJ35*D19)/AM42,(T167+AJ35*D19)/AN42,(T168+AJ35*D19)/AO42)*AP42 ->  | AM71: =MIN((U164+AJ35*D19)/AK42,(U165+AJ35*D19)/AL42,(U166+AJ35*D19)/AM42,(U167+AJ35*D19)/AN42,(U168+AJ35*D19)/AO42)*AP42 ->  | AN71: =MIN((V164+AJ35*D19)/AK42,(V165+AJ35*D19)/AL42,(V166+AJ35*D19)/AM42,(V167+AJ35*D19)/AN42,(V168+AJ35*D19)/AO42)*AP42 ->  | AO71: =MIN((W164+AJ35*D19)/AK42,(W165+AJ35*D19)/AL42,(W166+AJ35*D19)/AM42,(W167+AJ35*D19)/AN42,(W168+AJ35*D19)/AO42)*AP42 ->  | AP71: =MIN((X164+AJ35*D19)/AK42,(X165+AJ35*D19)/AL42,(X166+AJ35*D19)/AM42,(X167+AJ35*D19)/AN42,(X168+AJ35*D19)/AO42)*AP42 ->  | AQ71: =MIN((Y164+AJ35*D19)/AK42,(Y165+AJ35*D19)/AL42,(Y166+AJ35*D19)/AM42,(Y167+AJ35*D19)/AN42,(Y168+AJ35*D19)/AO42)*AP42 ->  | AR71: =MIN((Z164+AJ35*D19)/AK42,(Z165+AJ35*D19)/AL42,(Z166+AJ35*D19)/AM42,(Z167+AJ35*D19)/AN42,(Z168+AJ35*D19)/AO42)*AP42 ->  | AS71: =MIN((AA164+AJ35*D19)/AK42,(AA165+AJ35*D19)/AL42,(AA166+AJ35*D19)/AM42,(AA167+AJ35*D19)/AN42,(AA168+AJ35*D19)/AO42)*AP42 ->  | AT71: =MIN((AB164+AJ35*D19)/AK42,(AB165+AJ35*D19)/AL42,(AB166+AJ35*D19)/AM42,(AB167+AJ35*D19)/AN42,(AB168+AJ35*D19)/AO42)*AP42 ->  | AU71: =MIN((AC164+AJ35*D19)/AK42,(AC165+AJ35*D19)/AL42,(AC166+AJ35*D19)/AM42,(AC167+AJ35*D19)/AN42,(AC168+AJ35*D19)/AO42)*AP42 ->  | AV71: =MIN((AD164+AJ35*D19)/AK42,(AD165+AJ35*D19)/AL42,(AD166+AJ35*D19)/AM42,(AD167+AJ35*D19)/AN42,(AD168+AJ35*D19)/AO42)*AP42 ->  | AW71: =MIN((AE164+AJ35*D19)/AK42,(AE165+AJ35*D19)/AL42,(AE166+AJ35*D19)/AM42,(AE167+AJ35*D19)/AN42,(AE168+AJ35*D19)/AO42)*AP42 ->  | AX71: =MIN((AF164+AJ35*D19)/AK42,(AF165+AJ35*D19)/AL42,(AF166+AJ35*D19)/AM42,(AF167+AJ35*D19)/AN42,(AF168+AJ35*D19)/AO42)*AP42 ->  | BB71: =MIN((S164+AK35*D19)/AK43,(S165+AK35*D19)/AL43,(S166+AK35*D19)/AM43,(S167+AK35*D19)/AN43,(S168+AK35*D19)/AO43)*AP43 ->  | BC71: =MIN((T164+AK35*D19)/AK43,(T165+AK35*D19)/AL43,(T166+AK35*D19)/AM43,(T167+AK35*D19)/AN43,(T168+AK35*D19)/AO43)*AP43 ->  | BD71: =MIN((U164+AK35*D19)/AK43,(U165+AK35*D19)/AL43,(U166+AK35*D19)/AM43,(U167+AK35*D19)/AN43,(U168+AK35*D19)/AO43)*AP43 ->  | BE71: =MIN((V164+AK35*D19)/AK43,(V165+AK35*D19)/AL43,(V166+AK35*D19)/AM43,(V167+AK35*D19)/AN43,(V168+AK35*D19)/AO43)*AP43 ->  | BF71: =MIN((W164+AK35*D19)/AK43,(W165+AK35*D19)/AL43,(W166+AK35*D19)/AM43,(W167+AK35*D19)/AN43,(W168+AK35*D19)/AO43)*AP43 ->  | BG71: =MIN((X164+AK35*D19)/AK43,(X165+AK35*D19)/AL43,(X166+AK35*D19)/AM43,(X167+AK35*D19)/AN43,(X168+AK35*D19)/AO43)*AP43 ->  | BH71: =MIN((Y164+AK35*D19)/AK43,(Y165+AK35*D19)/AL43,(Y166+AK35*D19)/AM43,(Y167+AK35*D19)/AN43,(Y168+AK35*D19)/AO43)*AP43 ->  | BI71: =MIN((Z164+AK35*D19)/AK43,(Z165+AK35*D19)/AL43,(Z166+AK35*D19)/AM43,(Z167+AK35*D19)/AN43,(Z168+AK35*D19)/AO43)*AP43 ->  | BJ71: =MIN((AA164+AK35*D19)/AK43,(AA165+AK35*D19)/AL43,(AA166+AK35*D19)/AM43,(AA167+AK35*D19)/AN43,(AA168+AK35*D19)/AO43)*AP43 ->  | BK71: =MIN((AB164+AK35*D19)/AK43,(AB165+AK35*D19)/AL43,(AB166+AK35*D19)/AM43,(AB167+AK35*D19)/AN43,(AB168+AK35*D19)/AO43)*AP43 ->  | BL71: =MIN((AC164+AK35*D19)/AK43,(AC165+AK35*D19)/AL43,(AC166+AK35*D19)/AM43,(AC167+AK35*D19)/AN43,(AC168+AK35*D19)/AO43)*AP43 ->  | BM71: =MIN((AD164+AK35*D19)/AK43,(AD165+AK35*D19)/AL43,(AD166+AK35*D19)/AM43,(AD167+AK35*D19)/AN43,(AD168+AK35*D19)/AO43)*AP43 ->  | BN71: =MIN((AE164+AK35*D19)/AK43,(AE165+AK35*D19)/AL43,(AE166+AK35*D19)/AM43,(AE167+AK35*D19)/AN43,(AE168+AK35*D19)/AO43)*AP43 ->  | BO71: =MIN((AF164+AK35*D19)/AK43,(AF165+AK35*D19)/AL43,(AF166+AK35*D19)/AM43,(AF167+AK35*D19)/AN43,(AF168+AK35*D19)/AO43)*AP43 ->  | BS71: =IF(AV24=2,AI24,IF(AV25=2,AI25,IF(AV26=2,AI26,IF(AV27=2,AI27,IF(AV28=2,AI28,IF(AV29=2,AI29,IF(AV31=2,AI31,BS83))))))) -> attente | BT71: =IF(AV16=2,AI16,IF(AV17=2,AI17,IF(AV18=2,AI18,IF(AV19=2,AI19,IF(AV20=2,AI20,IF(AV21=2,AI21,IF(AV22=2,AI22,IF(AV23=2,AI23,BS71)))))))) -> attente | BU71: =IF(AV24=2,BP72,IF(AV25=2,BP73,IF(AV26=2,BP74,IF(AV27=2,BP75,IF(AV28=2,BP76,IF(AV29=2,BP77,IF(AV31=2,BP78,0))))))) -> 0 | BV71: =IF(AV16=2,BP64,IF(AV17=2,BP65,IF(AV18=2,BP66,IF(AV19=2,BP67,IF(AV20=2,BP68,IF(AV21=2,BP69,IF(AV22=2,BP70,IF(AV23=2,BP71,BU71)))))))) -> 0 | BW71: =IF(AV8=2,BP56,IF(AV9=2,BP57,IF(AV10=2,BP58,IF(AV11=2,BP59,IF(AV12=2,BP60,IF(AV13=2,BP61,IF(AV14=2,BP62,IF(AV15=2,BP63,BV71)))))))) ->  | CJ71: 541 | CS71: 433 | DB71: 352 | DK71: 442
E72: 0.8174 | F72: 0.54495 | G72: 1.36235 | H72: 1.63485 | I72: 1.0899 | J72: 2.72475 | K72: 1.0899 | L72: 0.7266 | M72: 1.8165 | N72: 1.27155 | O72: 0.54495 | P72: 1.8165 | R72: =G13 ->  | S72: =S65 -> kit 1 | T72: =T65 -> kit 2/3 | U72: =U65 -> 0 | V72: =V65 -> kit 4 | W72: =W65 -> 0 | X72: kit 5 | Y72: kit 6/7 | Z72: 0 | AA72: 0 | AB72: kit 8 | AC72: kit 9 | AD72: 0 | AE72: =AE65 -> kit 10 | AF72: =AF65 -> kit 11 | AK72: =MIN((S171+AJ35*D19)/AK42,(S172+AJ35*D19)/AL42,(S173+AJ35*D19)/AM42,(S174+AJ35*D19)/AN42,(S175+AJ35*D19)/AO42)*AP42 ->  | AL72: =MIN((T171+AJ35*D19)/AK42,(T172+AJ35*D19)/AL42,(T173+AJ35*D19)/AM42,(T174+AJ35*D19)/AN42,(T175+AJ35*D19)/AO42)*AP42 ->  | AM72: =MIN((U171+AJ35*D19)/AK42,(U172+AJ35*D19)/AL42,(U173+AJ35*D19)/AM42,(U174+AJ35*D19)/AN42,(U175+AJ35*D19)/AO42)*AP42 ->  | AN72: =MIN((V171+AJ35*D19)/AK42,(V172+AJ35*D19)/AL42,(V173+AJ35*D19)/AM42,(V174+AJ35*D19)/AN42,(V175+AJ35*D19)/AO42)*AP42 ->  | AO72: =MIN((W171+AJ35*D19)/AK42,(W172+AJ35*D19)/AL42,(W173+AJ35*D19)/AM42,(W174+AJ35*D19)/AN42,(W175+AJ35*D19)/AO42)*AP42 ->  | AP72: =MIN((X171+AJ35*D19)/AK42,(X172+AJ35*D19)/AL42,(X173+AJ35*D19)/AM42,(X174+AJ35*D19)/AN42,(X175+AJ35*D19)/AO42)*AP42 ->  | AQ72: =MIN((Y171+AJ35*D19)/AK42,(Y172+AJ35*D19)/AL42,(Y173+AJ35*D19)/AM42,(Y174+AJ35*D19)/AN42,(Y175+AJ35*D19)/AO42)*AP42 ->  | AR72: =MIN((Z171+AJ35*D19)/AK42,(Z172+AJ35*D19)/AL42,(Z173+AJ35*D19)/AM42,(Z174+AJ35*D19)/AN42,(Z175+AJ35*D19)/AO42)*AP42 ->  | AS72: =MIN((AA171+AJ35*D19)/AK42,(AA172+AJ35*D19)/AL42,(AA173+AJ35*D19)/AM42,(AA174+AJ35*D19)/AN42,(AA175+AJ35*D19)/AO42)*AP42 ->  | AT72: =MIN((AB171+AJ35*D19)/AK42,(AB172+AJ35*D19)/AL42,(AB173+AJ35*D19)/AM42,(AB174+AJ35*D19)/AN42,(AB175+AJ35*D19)/AO42)*AP42 ->  | AU72: =MIN((AC171+AJ35*D19)/AK42,(AC172+AJ35*D19)/AL42,(AC173+AJ35*D19)/AM42,(AC174+AJ35*D19)/AN42,(AC175+AJ35*D19)/AO42)*AP42 ->  | AV72: =MIN((AD171+AJ35*D19)/AK42,(AD172+AJ35*D19)/AL42,(AD173+AJ35*D19)/AM42,(AD174+AJ35*D19)/AN42,(AD175+AJ35*D19)/AO42)*AP42 ->  | AW72: =MIN((AE171+AJ35*D19)/AK42,(AE172+AJ35*D19)/AL42,(AE173+AJ35*D19)/AM42,(AE174+AJ35*D19)/AN42,(AE175+AJ35*D19)/AO42)*AP42 ->  | AX72: =MIN((AF171+AJ35*D19)/AK42,(AF172+AJ35*D19)/AL42,(AF173+AJ35*D19)/AM42,(AF174+AJ35*D19)/AN42,(AF175+AJ35*D19)/AO42)*AP42 ->  | BB72: =MIN((S171+AK35*D19)/AK43,(S172+AK35*D19)/AL43,(S173+AK35*D19)/AM43,(S174+AK35*D19)/AN43,(S175+AK35*D19)/AO43)*AP43 ->  | BC72: =MIN((T171+AK35*D19)/AK43,(T172+AK35*D19)/AL43,(T173+AK35*D19)/AM43,(T174+AK35*D19)/AN43,(T175+AK35*D19)/AO43)*AP43 ->  | BD72: =MIN((U171+AK35*D19)/AK43,(U172+AK35*D19)/AL43,(U173+AK35*D19)/AM43,(U174+AK35*D19)/AN43,(U175+AK35*D19)/AO43)*AP43 ->  | BE72: =MIN((V171+AK35*D19)/AK43,(V172+AK35*D19)/AL43,(V173+AK35*D19)/AM43,(V174+AK35*D19)/AN43,(V175+AK35*D19)/AO43)*AP43 ->  | BF72: =MIN((W171+AK35*D19)/AK43,(W172+AK35*D19)/AL43,(W173+AK35*D19)/AM43,(W174+AK35*D19)/AN43,(W175+AK35*D19)/AO43)*AP43 ->  | BG72: =MIN((X171+AK35*D19)/AK43,(X172+AK35*D19)/AL43,(X173+AK35*D19)/AM43,(X174+AK35*D19)/AN43,(X175+AK35*D19)/AO43)*AP43 ->  | BH72: =MIN((Y171+AK35*D19)/AK43,(Y172+AK35*D19)/AL43,(Y173+AK35*D19)/AM43,(Y174+AK35*D19)/AN43,(Y175+AK35*D19)/AO43)*AP43 ->  | BI72: =MIN((Z171+AK35*D19)/AK43,(Z172+AK35*D19)/AL43,(Z173+AK35*D19)/AM43,(Z174+AK35*D19)/AN43,(Z175+AK35*D19)/AO43)*AP43 ->  | BJ72: =MIN((AA171+AK35*D19)/AK43,(AA172+AK35*D19)/AL43,(AA173+AK35*D19)/AM43,(AA174+AK35*D19)/AN43,(AA175+AK35*D19)/AO43)*AP43 ->  | BK72: =MIN((AB171+AK35*D19)/AK43,(AB172+AK35*D19)/AL43,(AB173+AK35*D19)/AM43,(AB174+AK35*D19)/AN43,(AB175+AK35*D19)/AO43)*AP43 ->  | BL72: =MIN((AC171+AK35*D19)/AK43,(AC172+AK35*D19)/AL43,(AC173+AK35*D19)/AM43,(AC174+AK35*D19)/AN43,(AC175+AK35*D19)/AO43)*AP43 ->  | BM72: =MIN((AD171+AK35*D19)/AK43,(AD172+AK35*D19)/AL43,(AD173+AK35*D19)/AM43,(AD174+AK35*D19)/AN43,(AD175+AK35*D19)/AO43)*AP43 ->  | BN72: =MIN((AE171+AK35*D19)/AK43,(AE172+AK35*D19)/AL43,(AE173+AK35*D19)/AM43,(AE174+AK35*D19)/AN43,(AE175+AK35*D19)/AO43)*AP43 ->  | BO72: =MIN((AF171+AK35*D19)/AK43,(AF172+AK35*D19)/AL43,(AF173+AK35*D19)/AM43,(AF174+AK35*D19)/AN43,(AF175+AK35*D19)/AO43)*AP43 ->  | BS72: =IF(AV24=3,AI24,IF(AV25=3,AI25,IF(AV26=3,AI26,IF(AV27=3,AI27,IF(AV28=3,AI28,IF(AV29=3,AI29,IF(AV31=3,AI31,BS83))))))) -> attente | BT72: =IF(AV16=3,AI16,IF(AV17=3,AI17,IF(AV18=3,AI18,IF(AV19=3,AI19,IF(AV20=3,AI20,IF(AV21=3,AI21,IF(AV22=3,AI22,IF(AV23=3,AI23,BS72)))))))) -> attente | BU72: =IF(AV24=3,AY99,IF(AV25=3,AY100,IF(AV26=3,AY101,IF(AV27=3,AY102,IF(AV28=3,AY103,IF(AV29=3,AY104,IF(AV31=3,AY105,0))))))) -> 0 | BV72: =IF(AV16=3,AY91,IF(AV17=3,AY92,IF(AV18=3,AY93,IF(AV19=3,AY94,IF(AV20=3,AY95,IF(AV21=3,AY96,IF(AV22=3,AY97,IF(AV23=3,AY98,BU72)))))))) -> 0 | BW72: =IF(AV8=3,AY83,IF(AV9=3,AY84,IF(AV10=3,AY85,IF(AV11=3,AY86,IF(AV12=3,AY87,IF(AV13=3,AY88,IF(AV14=3,AY89,IF(AV15=3,AY90,BV72)))))))) ->  | CA72: =IF(CA15=1,541,IF(CA15=2,433,IF(CA15=3,352,IF(CA15=4,442,"erreur")))) -> 352 | CJ72: defensif | CM72: neutre | CP72: offensif | CS72: defensif | CV72: neutre | CY72: offensif | DB72: defensif | DE72: neutre | DH72: offensif | DK72: defensif | DN72: neutre | DQ72: offensif
D73: total : | E73: =SUM(E62:E72) -> 5.95795 | F73: 14.0233 | G73: 19.98125 | H73: 10.0418 | I73: 9.93395 | J73: 19.97575 | K73: 8.0015 | L73: 11.9797 | M73: 19.9812 | N73: 7.9561 | O73: 12.0251 | P73: 19.9812 | R73: =IF($AX$306,H13+VLOOKUP(Team!$X19,Team!$E$30:$J$300,6,FALSE),H13+AH39+$D$21)+$D$19*$AG$10 ->  | S73: =IF($AX$306,$R73,$R73+Q10) ->  | T73: =IF($AX$306,$R73,$R73+R10) ->  | U73: =IF($AX$306,$R73,$R73+S10) ->  | AK73: =MIN((S178+$AJ$35*$D$19)/$AK$42,(S179+$AJ$35*$D$19)/$AL$42,(S180+$AJ$35*$D$19)/$AM$42,(S181+$AJ$35*$D$19)/$AN$42,(S182+$AJ$35*$D$19)/$AO$42)*$AP$42 ->  | BB73: =MIN((S178+$AK$35*$D$19)/$AK$43,(S179+$AK$35*$D$19)/$AL$43,(S180+$AK$35*$D$19)/$AM$43,(S181+$AK$35*$D$19)/$AN$43,(S182+$AK$35*$D$19)/$AO$43)*$AP$43 ->  | BC73: =MIN((T178+AK35*D19)/AK43,(T179+AK35*D19)/AL43,(T180+AK35*D19)/AM43,(T181+AK35*D19)/AN43,(T182+AK35*D19)/AO43)*AP43 ->  | BD73: =MIN((U178+AK35*D19)/AK43,(U179+AK35*D19)/AL43,(U180+AK35*D19)/AM43,(U181+AK35*D19)/AN43,(U182+AK35*D19)/AO43)*AP43 ->  | BE73: =MIN((V178+AK35*D19)/AK43,(V179+AK35*D19)/AL43,(V180+AK35*D19)/AM43,(V181+AK35*D19)/AN43,(V182+AK35*D19)/AO43)*AP43 ->  | BF73: =MIN((W178+AK35*D19)/AK43,(W179+AK35*D19)/AL43,(W180+AK35*D19)/AM43,(W181+AK35*D19)/AN43,(W182+AK35*D19)/AO43)*AP43 ->  | BG73: =MIN((X178+AK35*D19)/AK43,(X179+AK35*D19)/AL43,(X180+AK35*D19)/AM43,(X181+AK35*D19)/AN43,(X182+AK35*D19)/AO43)*AP43 ->  | BH73: =MIN((Y178+AK35*D19)/AK43,(Y179+AK35*D19)/AL43,(Y180+AK35*D19)/AM43,(Y181+AK35*D19)/AN43,(Y182+AK35*D19)/AO43)*AP43 ->  | BI73: =MIN((Z178+AK35*D19)/AK43,(Z179+AK35*D19)/AL43,(Z180+AK35*D19)/AM43,(Z181+AK35*D19)/AN43,(Z182+AK35*D19)/AO43)*AP43 ->  | BJ73: =MIN((AA178+AK35*D19)/AK43,(AA179+AK35*D19)/AL43,(AA180+AK35*D19)/AM43,(AA181+AK35*D19)/AN43,(AA182+AK35*D19)/AO43)*AP43 ->  | BK73: =MIN((AB178+AK35*D19)/AK43,(AB179+AK35*D19)/AL43,(AB180+AK35*D19)/AM43,(AB181+AK35*D19)/AN43,(AB182+AK35*D19)/AO43)*AP43 ->  | BL73: =MIN((AC178+AK35*D19)/AK43,(AC179+AK35*D19)/AL43,(AC180+AK35*D19)/AM43,(AC181+AK35*D19)/AN43,(AC182+AK35*D19)/AO43)*AP43 ->  | BM73: =MIN((AD178+AK35*D19)/AK43,(AD179+AK35*D19)/AL43,(AD180+AK35*D19)/AM43,(AD181+AK35*D19)/AN43,(AD182+AK35*D19)/AO43)*AP43 ->  | BN73: =MIN((AE178+AK35*D19)/AK43,(AE179+AK35*D19)/AL43,(AE180+AK35*D19)/AM43,(AE181+AK35*D19)/AN43,(AE182+AK35*D19)/AO43)*AP43 ->  | BO73: =MIN((AF178+AK35*D19)/AK43,(AF179+AK35*D19)/AL43,(AF180+AK35*D19)/AM43,(AF181+AK35*D19)/AN43,(AF182+AK35*D19)/AO43)*AP43 ->  | BS73: =IF(AV24=4,AI24,IF(AV25=4,AI25,IF(AV26=4,AI26,IF(AV27=4,AI27,IF(AV28=4,AI28,IF(AV29=4,AI29,IF(AV31=4,AI31,BS83))))))) -> attente | BT73: =IF(AV16=4,AI16,IF(AV17=4,AI17,IF(AV18=4,AI18,IF(AV19=4,AI19,IF(AV20=4,AI20,IF(AV21=4,AI21,IF(AV22=4,AI22,IF(AV23=4,AI23,BS73)))))))) -> attente | BU73: =IF(AV24=4,BP99,IF(AV25=4,BP100,IF(AV26=4,BP101,IF(AV27=4,BP102,IF(AV28=4,BP103,IF(AV29=4,BP104,IF(AV31=4,BP105,0))))))) -> 0 | BV73: =IF(AV16=4,BP91,IF(AV17=4,BP92,IF(AV18=4,BP93,IF(AV19=4,BP94,IF(AV20=4,BP95,IF(AV21=4,BP96,IF(AV22=4,BP97,IF(AV23=4,BP98,BU73)))))))) -> 0 | BW73: =IF(AV8=4,BP83,IF(AV9=4,BP84,IF(AV10=4,BP85,IF(AV11=4,BP86,IF(AV12=4,BP87,IF(AV13=4,BP88,IF(AV14=4,BP89,IF(AV15=4,BP90,BV73)))))))) ->  | CA73: defensif | CC73: neutre | CE73: offensif | CJ73: att | CK73: def | CL73: tot | CM73: att | CN73: def | CO73: tot | CP73: att | CQ73: def | CR73: tot | CS73: att | CT73: def | CU73: tot | CV73: att | CW73: def | CX73: tot | CY73: att | CZ73: def | DA73: tot | DB73: att | DC73: def | DD73: tot | DE73: att | DF73: def | DG73: tot | DH73: att | DI73: def | DJ73: tot | DK73: att | DL73: def | DM73: tot | DN73: att | DO73: def | DP73: tot | DQ73: att | DR73: def | DS73: tot
E74: 541 neutre | H74: 433 neutre | K74: 352 neutre | N74: 442 neutre | R74: =IF($AX$306,I13+VLOOKUP(Team!$Y19,Team!$E$30:$J$300,6,FALSE),I13+AH40+$D$21)+$D$19*$AG$10 ->  | S74: =IF($AX$306,$R74,$R74+Q11) ->  | AK74: =MIN((S185+$AJ$35*$D$19)/$AK$42,(S186+$AJ$35*$D$19)/$AL$42,(S187+$AJ$35*$D$19)/$AM$42,(S188+$AJ$35*$D$19)/$AN$42,(S189+$AJ$35*$D$19)/$AO$42)*$AP$42 ->  | BB74: =MIN((S185+$AK$35*$D$19)/$AK$43,(S186+$AK$35*$D$19)/$AL$43,(S187+$AK$35*$D$19)/$AM$43,(S188+$AK$35*$D$19)/$AN$43,(S189+$AK$35*$D$19)/$AO$43)*$AP$43 ->  | BS74: =IF(AV24=5,AI24,IF(AV25=5,AI25,IF(AV26=5,AI26,IF(AV27=5,AI27,IF(AV28=5,AI28,IF(AV29=5,AI29,IF(AV31=5,AI31,BS83))))))) -> attente | BT74: =IF(AV16=5,AI16,IF(AV17=5,AI17,IF(AV18=5,AI18,IF(AV19=5,AI19,IF(AV20=5,AI20,IF(AV21=5,AI21,IF(AV22=5,AI22,IF(AV23=5,AI23,BS74)))))))) -> attente | BU74: =IF(AV24=5,AY126,IF(AV25=5,AY127,IF(AV26=5,AY128,IF(AV27=5,AY129,IF(AV28=5,AY130,IF(AV29=5,AY131,IF(AV31=5,AY132,0))))))) -> 0 | BV74: =IF(AV16=5,AY118,IF(AV17=5,AY119,IF(AV18=5,AY120,IF(AV19=5,AY121,IF(AV20=5,AY122,IF(AV21=5,AY123,IF(AV22=5,AY124,IF(AV23=5,AY125,BU74)))))))) -> 0 | BW74: =IF(AV8=5,AY110,IF(AV9=5,AY111,IF(AV10=5,AY112,IF(AV11=5,AY113,IF(AV12=5,AY114,IF(AV13=5,AY115,IF(AV14=5,AY116,IF(AV15=5,AY117,BV74)))))))) ->  | CA74: att | CB74: def | CC74: att | CD74: def | CE74: att | CF74: def | CH74: adversaire | CJ74: =ROUND(CG69*(100+$BU$13)/100*($BU$14+100)/100*(100+$BU$15)/100*(100+$BU$16)/100*($BU$17+100)/100*(100+$BU$18)/100,2) -> 
E75: 1% attaque | F75: 1% defense | G75: 1% cumulé | H75: 1% attaque | I75: 1% defense | J75: 1% cumulé | K75: 1% attaque | L75: 1% defense | M75: 1% cumulé | N75: 1% attaque | O75: 1% defense | P75: 1% cumulé | R75: =IF($AX$306,J13+VLOOKUP(Team!$Z19,Team!$E$30:$J$300,6,FALSE),J13+AH41+$D$21)+$D$19*$AG$10 ->  | AK75: =MIN((S192+$AJ$35*$D$19)/$AK$42,(S193+$AJ$35*$D$19)/$AL$42,(S194+$AJ$35*$D$19)/$AM$42,(S195+$AJ$35*$D$19)/$AN$42,(S196+$AJ$35*$D$19)/$AO$42)*$AP$42 ->  | BB75: =MIN((S192+$AK$35*$D$19)/$AK$43,(S193+$AK$35*$D$19)/$AL$43,(S194+$AK$35*$D$19)/$AM$43,(S195+$AK$35*$D$19)/$AN$43,(S196+$AK$35*$D$19)/$AO$43)*$AP$43 ->  | BS75: =IF(AV24=6,AI24,IF(AV25=6,AI25,IF(AV26=6,AI26,IF(AV27=6,AI27,IF(AV28=6,AI28,IF(AV29=6,AI29,IF(AV31=6,AI31,BS83))))))) -> attente | BT75: =IF(AV16=6,AI16,IF(AV17=6,AI17,IF(AV18=6,AI18,IF(AV19=6,AI19,IF(AV20=6,AI20,IF(AV21=6,AI21,IF(AV22=6,AI22,IF(AV23=6,AI23,BS75)))))))) -> attente | BU75: =IF(AV24=6,BP126,IF(AV25=6,BP127,IF(AV26=6,BP128,IF(AV27=6,BP129,IF(AV28=6,BP130,IF(AV29=6,BP131,IF(AV31=6,BP132,0))))))) -> 0 | BV75: =IF(AV16=6,BP118,IF(AV17=6,BP119,IF(AV18=6,BP120,IF(AV19=6,BP121,IF(AV20=6,BP122,IF(AV21=6,BP123,IF(AV22=6,BP124,IF(AV23=6,BP125,BU75)))))))) -> 0 | BW75: =IF(AV8=6,BP110,IF(AV9=6,BP111,IF(AV10=6,BP112,IF(AV11=6,BP113,IF(AV12=6,BP114,IF(AV13=6,BP115,IF(AV14=6,BP116,IF(AV15=6,BP117,BV75)))))))) ->  | CA75: =IF($CA$15=1,CG69,IF($CA$15=2,CP69,IF($CA$15=3,CY69,IF($CA$15=4,DH69,erreur)))) ->  | CB75: =IF($CA$15=1,CH69,IF($CA$15=2,CQ69,IF($CA$15=3,CZ69,IF($CA$15=4,DI69,erreur)))) ->  | CC75: =IF($CA$15=1,CJ69,IF($CA$15=2,CS69,IF($CA$15=3,DB69,IF($CA$15=4,DK69,erreur)))) ->  | CD75: =IF($CA$15=1,CK69,IF($CA$15=2,CT69,IF($CA$15=3,DC69,IF($CA$15=4,DL69,erreur)))) ->  | CE75: =IF($CA$15=1,CM69,IF($CA$15=2,CV69,IF($CA$15=3,DE69,IF($CA$15=4,DN69,erreur)))) ->  | CF75: =IF($CA$15=1,CN69,IF($CA$15=2,CW69,IF($CA$15=3,DF69,IF($CA$15=4,DO69,erreur)))) ->  | CH75: mon équipe | CJ75: =ROUND(CH92*(100+$BN$13)/100*(100+$BN$14)/100*(100+$BN$15)/100*(100+$BN$16)/100*($BN$17+100)/100*(100+$BN$18)/100,2) -> 
E76: 0.05445 | F76: 2.67025 | G76: =E76+F76 -> 2.7247 | H76: 0.16345 | I76: 2.5613 | J76: =H76+I76 -> 2.72475 | K76: 0.05445 | L76: 2.67025 | M76: =K76+L76 -> 2.7247 | N76: 0.05445 | O76: 2.67025 | P76: =N76+O76 -> 2.7247 | R76: =IF($AX$306,K13+VLOOKUP(Team!$AA19,Team!$E$30:$J$300,6,FALSE),K13+AH42+$D$21)+$D$19*$AG$10 ->  | AK76: =MIN((S199+$AJ$35*$D$19)/$AK$42,(S200+$AJ$35*$D$19)/$AL$42,(S201+$AJ$35*$D$19)/$AM$42,(S202+$AJ$35*$D$19)/$AN$42,(S203+$AJ$35*$D$19)/$AO$42)*$AP$42 ->  | BB76: =MIN((S199+$AK$35*$D$19)/$AK$43,(S200+$AK$35*$D$19)/$AL$43,(S201+$AK$35*$D$19)/$AM$43,(S202+$AK$35*$D$19)/$AN$43,(S203+$AK$35*$D$19)/$AO$43)*$AP$43 ->  | BS76: =IF(AV24=7,AI24,IF(AV25=7,AI25,IF(AV26=7,AI26,IF(AV27=7,AI27,IF(AV28=7,AI28,IF(AV29=7,AI29,IF(AV31=7,AI31,BS83))))))) -> attente | BT76: =IF(AV16=7,AI16,IF(AV17=7,AI17,IF(AV18=7,AI18,IF(AV19=7,AI19,IF(AV20=7,AI20,IF(AV21=7,AI21,IF(AV22=7,AI22,IF(AV23=7,AI23,BS76)))))))) -> attente | BU76: =IF(AV24=7,AY153,IF(AV25=7,AY154,IF(AV26=7,AY155,IF(AV27=7,AY156,IF(AV28=7,AY157,IF(AV29=7,AY158,IF(AV31=7,AY159,0))))))) -> 0 | BV76: =IF(AV16=7,AY145,IF(AV17=7,AY146,IF(AV18=7,AY147,IF(AV19=7,AY148,IF(AV20=7,AY149,IF(AV21=7,AY150,IF(AV22=7,AY151,IF(AV23=7,AY152,BU76)))))))) -> 0 | BW76: =IF(AV8=7,AY137,IF(AV9=7,AY138,IF(AV10=7,AY139,IF(AV11=7,AY140,IF(AV12=7,AY141,IF(AV13=7,AY142,IF(AV14=7,AY143,IF(AV15=7,AY144,BV76)))))))) -> 
E77: 0.4087 | F77: 0.95365 | G77: =E77+F77 -> 1.36235 | H77: 0.8174 | I77: 0.54495 | J77: 1.36235 | K77: 1.1353 | L77: 1.1353 | M77: =K77+L77 -> 2.2706 | N77: 0.54495 | O77: 0.8174 | P77: =N77+O77 -> 1.36235 | R77: =IF($AX$306,L13+VLOOKUP(Team!$AB19,Team!$E$30:$J$300,6,FALSE),L13+AH43+$D$21)+$D$19*$AG$10 ->  | AJ77: =AJ212 ->  | AK77: =MIN((S206+$AJ$35*$D$19)/$AK$42,(S207+$AJ$35*$D$19)/$AL$42,(S208+$AJ$35*$D$19)/$AM$42,(S209+$AJ$35*$D$19)/$AN$42,(S210+$AJ$35*$D$19)/$AO$42)*$AP$42 ->  | BA77: =AJ212 ->  | BB77: =MIN((S206+$AK$35*$D$19)/$AK$43,(S207+$AK$35*$D$19)/$AL$43,(S208+$AK$35*$D$19)/$AM$43,(S209+$AK$35*$D$19)/$AN$43,(S210+$AK$35*$D$19)/$AO$43)*$AP$43 ->  | BS77: =IF(AV24=8,AI24,IF(AV25=8,AI25,IF(AV26=8,AI26,IF(AV27=8,AI27,IF(AV28=8,AI28,IF(AV29=8,AI29,IF(AV31=8,AI31,BS83))))))) -> attente | BT77: =IF(AV16=8,AI16,IF(AV17=8,AI17,IF(AV18=8,AI18,IF(AV19=8,AI19,IF(AV20=8,AI20,IF(AV21=8,AI21,IF(AV22=8,AI22,IF(AV23=8,AI23,BS77)))))))) -> attente | BU77: =IF(AV24=8,BP153,IF(AV25=8,BP154,IF(AV26=8,BP155,IF(AV27=8,BP156,IF(AV28=8,BP157,IF(AV29=8,BP158,IF(AV31=8,BP159,0))))))) -> 0 | BV77: =IF(AV16=8,BP145,IF(AV17=8,BP146,IF(AV18=8,BP147,IF(AV19=8,BP148,IF(AV20=8,BP149,IF(AV21=8,BP150,IF(AV22=8,BP151,IF(AV23=8,BP152,BU77)))))))) -> 0 | BW77: =IF(AV8=8,BP137,IF(AV9=8,BP138,IF(AV10=8,BP139,IF(AV11=8,BP140,IF(AV12=8,BP141,IF(AV13=8,BP142,IF(AV14=8,BP143,IF(AV15=8,BP144,BV77)))))))) ->  | CG77: stats brutes joueurs mon equipe par position sans bonus match
E78: 0.4087 | F78: 0.95365 | G78: 1.36235 | H78: 0.8174 | I78: 0.54495 | J78: 1.36235 | K78: 1.1353 | L78: 1.1353 | M78: 2.2706 | N78: 0.54495 | O78: 0.8174 | P78: 1.36235 | AJ78: =AJ213 -> 0 | AK78: =MIN((S213+$AJ$35*$D$19)/$AK$42,(S214+$AJ$35*$D$19)/$AL$42,(S215+$AJ$35*$D$19)/$AM$42,(S216+$AJ$35*$D$19)/$AN$42,(S217+$AJ$35*$D$19)/$AO$42)*$AP$42 ->  | BA78: =AJ213 -> 0 | BB78: =MIN((S213+$AK$35*$D$19)/$AK$43,(S214+$AK$35*$D$19)/$AL$43,(S215+$AK$35*$D$19)/$AM$43,(S216+$AK$35*$D$19)/$AN$43,(S217+$AK$35*$D$19)/$AO$43)*$AP$43 ->  | BS78: =IF(AV24=9,AI24,IF(AV25=9,AI25,IF(AV26=9,AI26,IF(AV27=9,AI27,IF(AV28=9,AI28,IF(AV29=9,AI29,IF(AV31=9,AI31,BS83))))))) -> attente | BT78: =IF(AV16=9,AI16,IF(AV17=9,AI17,IF(AV18=9,AI18,IF(AV19=9,AI19,IF(AV20=9,AI20,IF(AV21=9,AI21,IF(AV22=9,AI22,IF(AV23=9,AI23,BS78)))))))) ->  | BU78: =IF(AV24=9,AY180,IF(AV25=9,AY181,IF(AV26=9,AY182,IF(AV27=9,AY183,IF(AV28=9,AY184,IF(AV29=9,AY185,IF(AV31=9,AY186,0))))))) -> 0 | BV78: =IF(AV16=9,AY172,IF(AV17=9,AY173,IF(AV18=9,AY174,IF(AV19=9,AY175,IF(AV20=9,AY176,IF(AV21=9,AY177,IF(AV22=9,AY178,IF(AV23=9,AY179,BU78)))))))) ->  | BW78: =IF(AV8=9,AY164,IF(AV9=9,AY165,IF(AV10=9,AY166,IF(AV11=9,AY167,IF(AV12=9,AY168,IF(AV13=9,AY169,IF(AV14=9,AY170,IF(AV15=9,AY171,BV78)))))))) ->  | CH78: 541 | CQ78: 433 | CZ78: 352 | DI78: 442
E79: 0.3633 | F79: 1.4532 | G79: 1.8165 | H79: 0.27245 | I79: 0.63575 | J79: 0.9082 | K79: 0.27245 | L79: 0.63575 | M79: 0.9082 | N79: 0.54495 | O79: 1.27155 | P79: 1.8165 | R79: =G14 ->  | S79: =S72 -> kit 1 | T79: =T72 -> kit 2/3 | U79: 0 | V79: kit 4 | W79: 0 | X79: kit 5 | Y79: kit 6/7 | Z79: 0 | AA79: 0 | AB79: kit 8 | AC79: kit 9 | AD79: 0 | AE79: =AE72 -> kit 10 | AF79: =AF72 -> kit 11 | AJ79: =AJ214 -> 0 | AK79: =MIN((S220+$AJ$35*$D$19)/$AK$42,(S221+$AJ$35*$D$19)/$AL$42,(S222+$AJ$35*$D$19)/$AM$42,(S223+$AJ$35*$D$19)/$AN$42,(S224+$AJ$35*$D$19)/$AO$42)*$AP$42 ->  | BA79: =AJ214 -> 0 | BB79: =MIN((S220+$AK$35*$D$19)/$AK$43,(S221+$AK$35*$D$19)/$AL$43,(S222+$AK$35*$D$19)/$AM$43,(S223+$AK$35*$D$19)/$AN$43,(S224+$AK$35*$D$19)/$AO$43)*$AP$43 ->  | BS79: =IF(AV24=10,AI24,IF(AV25=10,AI25,IF(AV26=10,AI26,IF(AV27=10,AI27,IF(AV28=10,AI28,IF(AV29=10,AI29,IF(AV31=10,AI31,BS83))))))) -> attente | BT79: =IF(AV16=10,AI16,IF(AV17=10,AI17,IF(AV18=10,AI18,IF(AV19=10,AI19,IF(AV20=10,AI20,IF(AV21=10,AI21,IF(AV22=10,AI22,IF(AV23=10,AI23,BS79)))))))) ->  | BU79: =IF(AV24=10,BP180,IF(AV25=10,BP181,IF(AV26=10,BP182,IF(AV27=10,BP183,IF(AV28=10,BP184,IF(AV29=10,BP185,IF(AV31=10,BP186,0))))))) -> 0 | BV79: =IF(AV16=10,BP172,IF(AV17=10,BP173,IF(AV18=10,BP174,IF(AV19=10,BP175,IF(AV20=10,BP176,IF(AV21=10,BP177,IF(AV22=10,BP178,IF(AV23=10,BP179,BU79)))))))) ->  | BW79: =IF(AV8=10,BP164,IF(AV9=10,BP165,IF(AV10=10,BP166,IF(AV11=10,BP167,IF(AV12=10,BP168,IF(AV13=10,BP169,IF(AV14=10,BP170,IF(AV15=10,BP171,BV79)))))))) ->  | BZ79: match nul | CH79: defensif | CK79: neutre | CN79: offensif | CQ79: defensif | CT79: neutre | CW79: offensif | CZ79: defensif | DC79: neutre | DF79: offensif | DI79: defensif | DL79: neutre | DO79: offensif
E80: 0.3633 | F80: 1.4532 | G80: 1.8165 | H80: 0.68115 | I80: 0.68115 | J80: 1.3623 | K80: 0.3633 | L80: 0.54495 | M80: 0.90825 | N80: 0.90825 | O80: 0.90825 | P80: 1.8165 | R80: =IF($AX$306,H14+VLOOKUP(Team!$X$20,Team!$E$30:$J$300,6,FALSE),H14+AH39+$D$21)+$D$19*$AG$11 ->  | S80: =IF($AX$306,$R80,$R80+Q10) ->  | T80: =IF($AX$306,$R80,$R80+R10) ->  | AJ80: =AJ215 -> 0 | AK80: =MIN((S227+$AJ$35*$D$19)/$AK$42,(S228+$AJ$35*$D$19)/$AL$42,(S229+$AJ$35*$D$19)/$AM$42,(S229+$AJ$35*$D$19)/$AN$42,(S230+$AJ$35*$D$19)/$AO$42)*$AP$42 ->  | BA80: =AJ215 -> 0 | BB80: =MIN((S227+$AK$35*$D$19)/$AK$43,(S228+$AK$35*$D$19)/$AL$43,(S229+$AK$35*$D$19)/$AM$43,(S230+$AK$35*$D$19)/$AN$43,(S231+$AK$35*$D$19)/$AO$43)*$AP$43 ->  | BS80: =IF(AV24=11,AI24,IF(AV25=11,AI25,IF(AV26=11,AI26,IF(AV27=11,AI27,IF(AV28=11,AI28,IF(AV29=11,AI29,IF(AV31=11,AI31,BS83))))))) -> attente | BT80: =IF(AV16=11,AI16,IF(AV17=11,AI17,IF(AV18=11,AI18,IF(AV19=11,AI19,IF(AV20=11,AI20,IF(AV21=11,AI21,IF(AV22=11,AI22,IF(AV23=11,AI23,BS80)))))))) ->  | BU80: =IF(AV24=11,AY207,IF(AV25=11,AY208,IF(AV26=11,AY209,IF(AV27=11,AY210,IF(AV28=11,AY211,IF(AV29=11,AY212,IF(AV31=11,AY213,0))))))) -> 0 | BV80: =IF(AV16=11,AY199,IF(AV17=11,AY200,IF(AV18=11,AY201,IF(AV19=11,AY202,IF(AV20=11,AY203,IF(AV21=11,AY204,IF(AV22=11,AY205,IF(AV23=11,AY206,BU80)))))))) ->  | BW80: =IF(AV8=11,AY191,IF(AV9=11,AY192,IF(AV10=11,AY193,IF(AV11=11,AY194,IF(AV12=11,AY195,IF(AV13=11,AY196,IF(AV14=11,AY197,IF(AV15=11,AY198,BV80)))))))) ->  | BZ80: défaite | CH80: att | CI80: def | CJ80: tot | CK80: att | CL80: def | CM80: tot | CN80: att | CO80: def | CP80: tot | CQ80: att | CR80: def | CS80: tot | CT80: att | CU80: def | CV80: tot | CW80: att | CX80: def | CY80: tot | CZ80: att | DA80: def | DB80: tot | DC80: att | DD80: def | DE80: tot | DF80: att | DG80: def | DH80: tot | DI80: att | DJ80: def | DK80: tot | DL80: att | DM80: def | DN80: tot | DO80: att | DP80: def | DQ80: tot
E81: 0.68115 | F81: 1.58945 | G81: 2.2706 | H81: 0.95365 | I81: 0.4087 | J81: 1.36235 | K81: 0.90825 | L81: 0.90825 | M81: 1.8165 | N81: 0.90825 | O81: 0.90825 | P81: 1.8165 | R81: =IF($AX$306,I14+VLOOKUP(Team!$Y$20,Team!$E$30:$J$300,6,FALSE),I14+AH40+$D$21)+$D$19*$AG$11 ->  | S81: =IF($AX$306,$R81,$R81+Q11) ->  | BZ81: victoire | CF81: =BA10 ->  | CH81: =BW70*E62 ->  | CI81: =BW70*F62 ->  | CJ81: =BW70*G62 ->  | CK81: =BW70*E76 ->  | CL81: =BW70*F76 ->  | CM81: =BW70*G76 ->  | CN81: =BW70*E90 ->  | CO81: =BW70*F90 ->  | CP81: =BW70*G90 ->  | CQ81: =BW70*H62 ->  | CR81: =BW70*I62 ->  | CS81: =BW70*J62 ->  | CT81: =BW70*H76 ->  | CU81: =BW70*I76 ->  | CV81: =BW70*J76 ->  | CW81: =BW70*H90 ->  | CX81: =BW70*I90 ->  | CY81: =BW70*J90 ->  | CZ81: =BW70*K62 ->  | DA81: =BW70*L62 ->  | DB81: =BW70*M62 ->  | DC81: =BW70*K76 ->  | DD81: =BW70*L76 ->  | DE81: =BW70*M76 ->  | DF81: =BW70*K90 ->  | DG81: =BW70*L90 ->  | DH81: =BW70*M90 ->  | DI81: =BW70*N62 ->  | DJ81: =BW70*O62 ->  | DK81: =BW70*P62 ->  | DL81: =BW70*N76 ->  | DM81: =BW70*O76 ->  | DN81: =BW70*P76 ->  | DO81: =BW70*N90 ->  | DP81: =BW70*O90 ->  | DQ81: =BW70*P90 -> 
E82: 0.90825 | F82: 0.90825 | G82: 1.8165 | H82: 0.94985 | I82: 0.40705 | J82: 1.3569 | K82: 1.63485 | L82: 1.0899 | M82: 2.72475 | N82: 0.8174 | O82: 0.54495 | P82: 1.36235 | R82: =IF($AX$306,J14+VLOOKUP(Team!$Z$20,Team!$E$30:$J$300,6,FALSE),J14+AH41+$D$21)+$D$19*$AG$11 ->  | S82: =IF($AX$306,$R82,$R82+Q12) ->  | AJ82: 3 | AK82: =Q9 -> kit 1 | AL82: kit 2/3 | AM82: 0 | AN82: kit 4 | AO82: 0 | AP82: kit 5 | AQ82: kit 6/7 | AR82: 0 | AS82: 0 | AT82: kit 8 | AU82: kit 9 | AV82: 0 | AW82: kit 10 | AX82: kit 11 | AY82: MAX | BA82: 4 | BB82: =Q9 -> kit 1 | BC82: kit 2/3 | BD82: 0 | BE82: kit 4 | BF82: 0 | BG82: kit 5 | BH82: kit 6/7 | BI82: 0 | BJ82: 0 | BK82: kit 8 | BL82: kit 9 | BM82: 0 | BN82: kit 10 | BO82: kit 11 | BP82: MAX
E83: 0.8174 | F83: 0.54495 | G83: 1.36235 | H83: 1.90735 | I83: 0.8174 | J83: 2.72475 | K83: 0.8174 | L83: 0.54495 | M83: 1.36235 | N83: 0.81415 | O83: 0.54275 | P83: 1.3569 | R83: =IF($AX$306,K14+VLOOKUP(Team!$AA$20,Team!$E$30:$J$300,6,FALSE),K14+AH42+$D$21)+$D$19*$AG$11 ->  | S83: =IF($AX$306,$R83,$R83+Q13) ->  | AJ83: =AJ191 ->  | AK83: =MIN((S59+AL35*D19)/AK44,(S60+AL35*D19)/AL44,(S61+AL35*D19)/AM44,(S62+AL35*D19)/AN44,(S63+AL35*D19)/AO44)*AP44 ->  | AL83: =MIN((T59+AL35*D19)/AK44,(T60+AL35*D19)/AL44,(T61+AL35*D19)/AM44,(T62+AL35*D19)/AN44,(T63+AL35*D19)/AO44)*AP44 ->  | AM83: =MIN((U59+AL35*D19)/AK44,(U60+AL35*D19)/AL44,(U61+AL35*D19)/AM44,(U62+AL35*D19)/AN44,(U63+AL35*D19)/AO44)*AP44 ->  | AN83: =MIN((V59+AL35*D19)/AK44,(V60+AL35*D19)/AL44,(V61+AL35*D19)/AM44,(V62+AL35*D19)/AN44,(V63+AL35*D19)/AO44)*AP44 ->  | AO83: =MIN((W59+AL35*D19)/AK44,(W60+AL35*D19)/AL44,(W61+AL35*D19)/AM44,(W62+AL35*D19)/AN44,(W63+AL35*D19)/AO44)*AP44 ->  | AP83: =MIN((X59+AL35*D19)/AK44,(X60+AL35*D19)/AL44,(X61+AL35*D19)/AM44,(X62+AL35*D19)/AN44,(X63+AL35*D19)/AO44)*AP44 ->  | AQ83: =MIN((Y59+AL35*D19)/AK44,(Y60+AL35*D19)/AL44,(Y61+AL35*D19)/AM44,(Y62+AL35*D19)/AN44,(Y63+AL35*D19)/AO44)*AP44 ->  | AR83: =MIN((Z59+AL35*D19)/AK44,(Z60+AL35*D19)/AL44,(Z61+AL35*D19)/AM44,(Z62+AL35*D19)/AN44,(Z63+AL35*D19)/AO44)*AP44 ->  | AS83: =MIN((AA59+AL35*D19)/AK44,(AA60+AL35*D19)/AL44,(AA61+AL35*D19)/AM44,(AA62+AL35*D19)/AN44,(AA63+AL35*D19)/AO44)*AP44 ->  | AT83: =MIN((AB59+AL35*D19)/AK44,(AB60+AL35*D19)/AL44,(AB61+AL35*D19)/AM44,(AB62+AL35*D19)/AN44,(AB63+AL35*D19)/AO44)*AP44 ->  | AU83: =MIN((AC59+AL35*D19)/AK44,(AC60+AL35*D19)/AL44,(AC61+AL35*D19)/AM44,(AC62+AL35*D19)/AN44,(AC63+AL35*D19)/AO44)*AP44 ->  | AV83: =MIN((AD59+AL35*D19)/AK44,(AD60+AL35*D19)/AL44,(AD61+AL35*D19)/AM44,(AD62+AL35*D19)/AN44,(AD63+AL35*D19)/AO44)*AP44 ->  | AW83: =MIN((AE59+AL35*D19)/AK44,(AE60+AL35*D19)/AL44,(AE61+AL35*D19)/AM44,(AE62+AL35*D19)/AN44,(AE63+AL35*D19)/AO44)*AP44 ->  | AX83: =MIN((AF59+AL35*D19)/AK44,(AF60+AL35*D19)/AL44,(AF61+AL35*D19)/AM44,(AF62+AL35*D19)/AN44,(AF63+AL35*D19)/AO44)*AP44 ->  | AY83: =MAX(AK83:AX83) ->  | BA83: =AJ191 ->  | BB83: =MIN((S59+AM35*D19)/AK45,(S60+AM35*D19)/AL45,(S61+AM35*D19)/AM45,(S62+AM35*D19)/AN45,(S63+AM35*D19)/AO45)*AP45 ->  | BC83: =MIN((T59+AM35*D19)/AK45,(T60+AM35*D19)/AL45,(T61+AM35*D19)/AM45,(T62+AM35*D19)/AN45,(T63+AM35*D19)/AO45)*AP45 ->  | BD83: =MIN((U59+AM35*D19)/AK45,(U60+AM35*D19)/AL45,(U61+AM35*D19)/AM45,(U62+AM35*D19)/AN45,(U63+AM35*D19)/AO45)*AP45 ->  | BE83: =MIN((V59+AM35*D19)/AK45,(V60+AM35*D19)/AL45,(V61+AM35*D19)/AM45,(V62+AM35*D19)/AN45,(V63+AM35*D19)/AO45)*AP45 ->  | BF83: =MIN((W59+AM35*D19)/AK45,(W60+AM35*D19)/AL45,(W61+AM35*D19)/AM45,(W62+AM35*D19)/AN45,(W63+AM35*D19)/AO45)*AP45 ->  | BG83: =MIN((X59+AM35*D19)/AK45,(X60+AM35*D19)/AL45,(X61+AM35*D19)/AM45,(X62+AM35*D19)/AN45,(X63+AM35*D19)/AO45)*AP45 ->  | BH83: =MIN((Y59+AM35*D19)/AK45,(Y60+AM35*D19)/AL45,(Y61+AM35*D19)/AM45,(Y62+AM35*D19)/AN45,(Y63+AM35*D19)/AO45)*AP45 ->  | BI83: =MIN((Z59+AM35*D19)/AK45,(Z60+AM35*D19)/AL45,(Z61+AM35*D19)/AM45,(Z62+AM35*D19)/AN45,(Z63+AM35*D19)/AO45)*AP45 ->  | BJ83: =MIN((AA59+AM35*D19)/AK45,(AA60+AM35*D19)/AL45,(AA61+AM35*D19)/AM45,(AA62+AM35*D19)/AN45,(AA63+AM35*D19)/AO45)*AP45 ->  | BK83: =MIN((AB59+AM35*D19)/AK45,(AB60+AM35*D19)/AL45,(AB61+AM35*D19)/AM45,(AB62+AM35*D19)/AN45,(AB63+AM35*D19)/AO45)*AP45 ->  | BL83: =MIN((AC59+AM35*D19)/AK45,(AC60+AM35*D19)/AL45,(AC61+AM35*D19)/AM45,(AC62+AM35*D19)/AN45,(AC63+AM35*D19)/AO45)*AP45 ->  | BM83: =MIN((AD59+AM35*D19)/AK45,(AD60+AM35*D19)/AL45,(AD61+AM35*D19)/AM45,(AD62+AM35*D19)/AN45,(AD63+AM35*D19)/AO45)*AP45 ->  | BN83: =MIN((AE59+AM35*D19)/AK45,(AE60+AM35*D19)/AL45,(AE61+AM35*D19)/AM45,(AE62+AM35*D19)/AN45,(AE63+AM35*D19)/AO45)*AP45 ->  | BO83: =MIN((AF59+AM35*D19)/AK45,(AF60+AM35*D19)/AL45,(AF61+AM35*D19)/AM45,(AF62+AM35*D19)/AN45,(AF63+AM35*D19)/AO45)*AP45 ->  | BP83: =MAX(BB83:BO83) ->  | BS83: attente
E84: 1.8165 | F84: 0.4541 | G84: 2.2706 | H84: 2.04355 | I84: 0.22705 | J84: 2.2706 | K84: 1.4532 | L84: 0.3633 | M84: 1.8165 | N84: 1.63485 | O84: 0.18165 | P84: 1.8165 | R84: =IF($AX$306,L14+VLOOKUP(Team!$AB$20,Team!$E$30:$J$300,6,FALSE),L14+AH43+$D$21)+$D$19*$AG$11 ->  | S84: =IF($AX$306,$R84,$R84+Q14) ->  | AK84: =MIN((S66+AL35*D19)/AK44,(S67+AL35*D19)/AL44,(S68+AL35*D19)/AM44,(S69+AL35*D19)/AN44,(S70+AL35*D19)/AO44)*AP44 ->  | AL84: =MIN((T66+AL35*D19)/AK44,(T67+AL35*D19)/AL44,(T68+AL35*D19)/AM44,(T69+AL35*D19)/AN44,(T70+AL35*D19)/AO44)*AP44 ->  | AM84: =MIN((U66+AL35*D19)/AK44,(U67+AL35*D19)/AL44,(U68+AL35*D19)/AM44,(U69+AL35*D19)/AN44,(U70+AL35*D19)/AO44)*AP44 ->  | AN84: =MIN((V66+AL35*D19)/AK44,(V67+AL35*D19)/AL44,(V68+AL35*D19)/AM44,(V69+AL35*D19)/AN44,(V70+AL35*D19)/AO44)*AP44 ->  | AO84: =MIN((W66+AL35*D19)/AK44,(W67+AL35*D19)/AL44,(W68+AL35*D19)/AM44,(W69+AL35*D19)/AN44,(W70+AL35*D19)/AO44)*AP44 ->  | AP84: =MIN((X66+AL35*D19)/AK44,(X67+AL35*D19)/AL44,(X68+AL35*D19)/AM44,(X69+AL35*D19)/AN44,(X70+AL35*D19)/AO44)*AP44 ->  | AQ84: =MIN((Y66+AL35*D19)/AK44,(Y67+AL35*D19)/AL44,(Y68+AL35*D19)/AM44,(Y69+AL35*D19)/AN44,(Y70+AL35*D19)/AO44)*AP44 ->  | AR84: =MIN((Z66+AL35*D19)/AK44,(Z67+AL35*D19)/AL44,(Z68+AL35*D19)/AM44,(Z69+AL35*D19)/AN44,(Z70+AL35*D19)/AO44)*AP44 ->  | AS84: =MIN((AA66+AL35*D19)/AK44,(AA67+AL35*D19)/AL44,(AA68+AL35*D19)/AM44,(AA69+AL35*D19)/AN44,(AA70+AL35*D19)/AO44)*AP44 ->  | AT84: =MIN((AB66+AL35*D19)/AK44,(AB67+AL35*D19)/AL44,(AB68+AL35*D19)/AM44,(AB69+AL35*D19)/AN44,(AB70+AL35*D19)/AO44)*AP44 ->  | AU84: =MIN((AC66+AL35*D19)/AK44,(AC67+AL35*D19)/AL44,(AC68+AL35*D19)/AM44,(AC69+AL35*D19)/AN44,(AC70+AL35*D19)/AO44)*AP44 ->  | AV84: =MIN((AD66+AL35*D19)/AK44,(AD67+AL35*D19)/AL44,(AD68+AL35*D19)/AM44,(AD69+AL35*D19)/AN44,(AD70+AL35*D19)/AO44)*AP44 ->  | AW84: =MIN((AE66+AL35*D19)/AK44,(AE67+AL35*D19)/AL44,(AE68+AL35*D19)/AM44,(AE69+AL35*D19)/AN44,(AE70+AL35*D19)/AO44)*AP44 ->  | AX84: =MIN((AF66+AL35*D19)/AK44,(AF67+AL35*D19)/AL44,(AF68+AL35*D19)/AM44,(AF69+AL35*D19)/AN44,(AF70+AL35*D19)/AO44)*AP44 ->  | BB84: =MIN((S66+AM35*D19)/AK45,(S67+AM35*D19)/AL45,(S68+AM35*D19)/AM45,(S69+AM35*D19)/AN45,(S70+AM35*D19)/AO45)*AP45 ->  | BC84: =MIN((T66+AM35*D19)/AK45,(T67+AM35*D19)/AL45,(T68+AM35*D19)/AM45,(T69+AM35*D19)/AN45,(T70+AM35*D19)/AO45)*AP45 ->  | BD84: =MIN((U66+AM35*D19)/AK45,(U67+AM35*D19)/AL45,(U68+AM35*D19)/AM45,(U69+AM35*D19)/AN45,(U70+AM35*D19)/AO45)*AP45 ->  | BE84: =MIN((V66+AM35*D19)/AK45,(V67+AM35*D19)/AL45,(V68+AM35*D19)/AM45,(V69+AM35*D19)/AN45,(V70+AM35*D19)/AO45)*AP45 ->  | BF84: =MIN((W66+AM35*D19)/AK45,(W67+AM35*D19)/AL45,(W68+AM35*D19)/AM45,(W69+AM35*D19)/AN45,(W70+AM35*D19)/AO45)*AP45 ->  | BG84: =MIN((X66+AM35*D19)/AK45,(X67+AM35*D19)/AL45,(X68+AM35*D19)/AM45,(X69+AM35*D19)/AN45,(X70+AM35*D19)/AO45)*AP45 ->  | BH84: =MIN((Y66+AM35*D19)/AK45,(Y67+AM35*D19)/AL45,(Y68+AM35*D19)/AM45,(Y69+AM35*D19)/AN45,(Y70+AM35*D19)/AO45)*AP45 ->  | BI84: =MIN((Z66+AM35*D19)/AK45,(Z67+AM35*D19)/AL45,(Z68+AM35*D19)/AM45,(Z69+AM35*D19)/AN45,(Z70+AM35*D19)/AO45)*AP45 ->  | BJ84: =MIN((AA66+AM35*D19)/AK45,(AA67+AM35*D19)/AL45,(AA68+AM35*D19)/AM45,(AA69+AM35*D19)/AN45,(AA70+AM35*D19)/AO45)*AP45 ->  | BK84: =MIN((AB66+AM35*D19)/AK45,(AB67+AM35*D19)/AL45,(AB68+AM35*D19)/AM45,(AB69+AM35*D19)/AN45,(AB70+AM35*D19)/AO45)*AP45 ->  | BL84: =MIN((AC66+AM35*D19)/AK45,(AC67+AM35*D19)/AL45,(AC68+AM35*D19)/AM45,(AC69+AM35*D19)/AN45,(AC70+AM35*D19)/AO45)*AP45 ->  | BM84: =MIN((AD66+AM35*D19)/AK45,(AD67+AM35*D19)/AL45,(AD68+AM35*D19)/AM45,(AD69+AM35*D19)/AN45,(AD70+AM35*D19)/AO45)*AP45 ->  | BN84: =MIN((AE66+AM35*D19)/AK45,(AE67+AM35*D19)/AL45,(AE68+AM35*D19)/AM45,(AE69+AM35*D19)/AN45,(AE70+AM35*D19)/AO45)*AP45 ->  | BO84: =MIN((AF66+AM35*D19)/AK45,(AF67+AM35*D19)/AL45,(AF68+AM35*D19)/AM45,(AF69+AM35*D19)/AN45,(AF70+AM35*D19)/AO45)*AP45 ->  | BP84: =MAX(BB84:BO84) -> 
E85: 1.27155 | F85: 0.54495 | G85: 1.8165 | H85: 1.4532 | I85: 0.3633 | J85: 1.8165 | K85: 0.95365 | L85: 0.4087 | M85: 1.36235 | N85: 1.90735 | O85: 0.8174 | P85: 2.72475 | AK85: =MIN((S73+AL35*D19)/AK44,(S74+AL35*D19)/AL44,(S75+AL35*D19)/AM44,(S76+AL35*D19)/AN44,(S77+AL35*D19)/AO44)*AP44 ->  | AL85: =MIN((T73+AL35*D19)/AK44,(T74+AL35*D19)/AL44,(T75+AL35*D19)/AM44,(T76+AL35*D19)/AN44,(T77+AL35*D19)/AO44)*AP44 ->  | AM85: =MIN((U73+AL35*D19)/AK44,(U74+AL35*D19)/AL44,(U75+AL35*D19)/AM44,(U76+AL35*D19)/AN44,(U77+AL35*D19)/AO44)*AP44 ->  | AN85: =MIN((V73+AL35*D19)/AK44,(V74+AL35*D19)/AL44,(V75+AL35*D19)/AM44,(V76+AL35*D19)/AN44,(V77+AL35*D19)/AO44)*AP44 ->  | AO85: =MIN((W73+AL35*D19)/AK44,(W74+AL35*D19)/AL44,(W75+AL35*D19)/AM44,(W76+AL35*D19)/AN44,(W77+AL35*D19)/AO44)*AP44 ->  | AP85: =MIN((X73+AL35*D19)/AK44,(X74+AL35*D19)/AL44,(X75+AL35*D19)/AM44,(X76+AL35*D19)/AN44,(X77+AL35*D19)/AO44)*AP44 ->  | AQ85: =MIN((Y73+AL35*D19)/AK44,(Y74+AL35*D19)/AL44,(Y75+AL35*D19)/AM44,(Y76+AL35*D19)/AN44,(Y77+AL35*D19)/AO44)*AP44 ->  | AR85: =MIN((Z73+AL35*D19)/AK44,(Z74+AL35*D19)/AL44,(Z75+AL35*D19)/AM44,(Z76+AL35*D19)/AN44,(Z77+AL35*D19)/AO44)*AP44 ->  | AS85: =MIN((AA73+AL35*D19)/AK44,(AA74+AL35*D19)/AL44,(AA75+AL35*D19)/AM44,(AA76+AL35*D19)/AN44,(AA77+AL35*D19)/AO44)*AP44 ->  | AT85: =MIN((AB73+AL35*D19)/AK44,(AB74+AL35*D19)/AL44,(AB75+AL35*D19)/AM44,(AB76+AL35*D19)/AN44,(AB77+AL35*D19)/AO44)*AP44 ->  | AU85: =MIN((AC73+AL35*D19)/AK44,(AC74+AL35*D19)/AL44,(AC75+AL35*D19)/AM44,(AC76+AL35*D19)/AN44,(AC77+AL35*D19)/AO44)*AP44 ->  | AV85: =MIN((AD73+AL35*D19)/AK44,(AD74+AL35*D19)/AL44,(AD75+AL35*D19)/AM44,(AD76+AL35*D19)/AN44,(AD77+AL35*D19)/AO44)*AP44 ->  | AW85: =MIN((AE73+AL35*D19)/AK44,(AE74+AL35*D19)/AL44,(AE75+AL35*D19)/AM44,(AE76+AL35*D19)/AN44,(AE77+AL35*D19)/AO44)*AP44 ->  | AX85: =MIN((AF73+AL35*D19)/AK44,(AF74+AL35*D19)/AL44,(AF75+AL35*D19)/AM44,(AF76+AL35*D19)/AN44,(AF77+AL35*D19)/AO44)*AP44 ->  | BB85: =MIN((S73+AM35*D19)/AK45,(S74+AM35*D19)/AL45,(S75+AM35*D19)/AM45,(S76+AM35*D19)/AN45,(S77+AM35*D19)/AO45)*AP45 ->  | BC85: =MIN((T73+AM35*D19)/AK45,(T74+AM35*D19)/AL45,(T75+AM35*D19)/AM45,(T76+AM35*D19)/AN45,(T77+AM35*D19)/AO45)*AP45 ->  | BD85: =MIN((U73+AM35*D19)/AK45,(U74+AM35*D19)/AL45,(U75+AM35*D19)/AM45,(U76+AM35*D19)/AN45,(U77+AM35*D19)/AO45)*AP45 ->  | BE85: =MIN((V73+AM35*D19)/AK45,(V74+AM35*D19)/AL45,(V75+AM35*D19)/AM45,(V76+AM35*D19)/AN45,(V77+AM35*D19)/AO45)*AP45 ->  | BF85: =MIN((W73+AM35*D19)/AK45,(W74+AM35*D19)/AL45,(W75+AM35*D19)/AM45,(W76+AM35*D19)/AN45,(W77+AM35*D19)/AO45)*AP45 ->  | BG85: =MIN((X73+AM35*D19)/AK45,(X74+AM35*D19)/AL45,(X75+AM35*D19)/AM45,(X76+AM35*D19)/AN45,(X77+AM35*D19)/AO45)*AP45 ->  | BH85: =MIN((Y73+AM35*D19)/AK45,(Y74+AM35*D19)/AL45,(Y75+AM35*D19)/AM45,(Y76+AM35*D19)/AN45,(Y77+AM35*D19)/AO45)*AP45 ->  | BI85: =MIN((Z73+AM35*D19)/AK45,(Z74+AM35*D19)/AL45,(Z75+AM35*D19)/AM45,(Z76+AM35*D19)/AN45,(Z77+AM35*D19)/AO45)*AP45 ->  | BJ85: =MIN((AA73+AM35*D19)/AK45,(AA74+AM35*D19)/AL45,(AA75+AM35*D19)/AM45,(AA76+AM35*D19)/AN45,(AA77+AM35*D19)/AO45)*AP45 ->  | BK85: =MIN((AB73+AM35*D19)/AK45,(AB74+AM35*D19)/AL45,(AB75+AM35*D19)/AM45,(AB76+AM35*D19)/AN45,(AB77+AM35*D19)/AO45)*AP45 ->  | BL85: =MIN((AC73+AM35*D19)/AK45,(AC74+AM35*D19)/AL45,(AC75+AM35*D19)/AM45,(AC76+AM35*D19)/AN45,(AC77+AM35*D19)/AO45)*AP45 ->  | BM85: =MIN((AD73+AM35*D19)/AK45,(AD74+AM35*D19)/AL45,(AD75+AM35*D19)/AM45,(AD76+AM35*D19)/AN45,(AD77+AM35*D19)/AO45)*AP45 ->  | BN85: =MIN((AE73+AM35*D19)/AK45,(AE74+AM35*D19)/AL45,(AE75+AM35*D19)/AM45,(AE76+AM35*D19)/AN45,(AE77+AM35*D19)/AO45)*AP45 ->  | BO85: =MIN((AF73+AM35*D19)/AK45,(AF74+AM35*D19)/AL45,(AF75+AM35*D19)/AM45,(AF76+AM35*D19)/AN45,(AF77+AM35*D19)/AO45)*AP45 ->  | BQ85: constante kit
E86: 0.95365 | F86: 0.4087 | G86: 1.36235 | H86: 1.90735 | I86: 0.8174 | J86: 2.72475 | K86: 1.27155 | L86: 0.54495 | M86: 1.8165 | N86: 1.27155 | O86: 0.54495 | P86: 1.8165 | R86: =G15 ->  | S86: =S79 -> kit 1 | T86: =T79 -> kit 2/3 | U86: 0 | V86: kit 4 | W86: 0 | X86: kit 5 | Y86: kit 6/7 | Z86: 0 | AA86: 0 | AB86: kit 8 | AC86: kit 9 | AD86: 0 | AE86: =AE79 -> kit 10 | AF86: =AF79 -> kit 11 | AK86: =MIN((S80+AL35*D19)/AK44,(S81+AL35*D19)/AL44,(S82+AL35*D19)/AM44,(S83+AL35*D19)/AN44,(S84+AL35*D19)/AO44)*AP44 ->  | AL86: =MIN((T80+AL35*D19)/AK44,(T81+AL35*D19)/AL44,(T82+AL35*D19)/AM44,(T83+AL35*D19)/AN44,(T84+AL35*D19)/AO44)*AP44 ->  | AM86: =MIN((U80+AL35*D19)/AK44,(U81+AL35*D19)/AL44,(U82+AL35*D19)/AM44,(U83+AL35*D19)/AN44,(U84+AL35*D19)/AO44)*AP44 ->  | AN86: =MIN((V80+AL35*D19)/AK44,(V81+AL35*D19)/AL44,(V82+AL35*D19)/AM44,(V83+AL35*D19)/AN44,(V84+AL35*D19)/AO44)*AP44 ->  | AO86: =MIN((W80+AL35*D19)/AK44,(W81+AL35*D19)/AL44,(W82+AL35*D19)/AM44,(W83+AL35*D19)/AN44,(W84+AL35*D19)/AO44)*AP44 ->  | AP86: =MIN((X80+AL35*D19)/AK44,(X81+AL35*D19)/AL44,(X82+AL35*D19)/AM44,(X83+AL35*D19)/AN44,(X84+AL35*D19)/AO44)*AP44 ->  | AQ86: =MIN((Y80+AL35*D19)/AK44,(Y81+AL35*D19)/AL44,(Y82+AL35*D19)/AM44,(Y83+AL35*D19)/AN44,(Y84+AL35*D19)/AO44)*AP44 ->  | AR86: =MIN((Z80+AL35*D19)/AK44,(Z81+AL35*D19)/AL44,(Z82+AL35*D19)/AM44,(Z83+AL35*D19)/AN44,(Z84+AL35*D19)/AO44)*AP44 ->  | AS86: =MIN((AA80+AL35*D19)/AK44,(AA81+AL35*D19)/AL44,(AA82+AL35*D19)/AM44,(AA83+AL35*D19)/AN44,(AA84+AL35*D19)/AO44)*AP44 ->  | AT86: =MIN((AB80+AL35*D19)/AK44,(AB81+AL35*D19)/AL44,(AB82+AL35*D19)/AM44,(AB83+AL35*D19)/AN44,(AB84+AL35*D19)/AO44)*AP44 ->  | AU86: =MIN((AC80+AL35*D19)/AK44,(AC81+AL35*D19)/AL44,(AC82+AL35*D19)/AM44,(AC83+AL35*D19)/AN44,(AC84+AL35*D19)/AO44)*AP44 ->  | AV86: =MIN((AD80+AL35*D19)/AK44,(AD81+AL35*D19)/AL44,(AD82+AL35*D19)/AM44,(AD83+AL35*D19)/AN44,(AD84+AL35*D19)/AO44)*AP44 ->  | AW86: =MIN((AE80+AL35*D19)/AK44,(AE81+AL35*D19)/AL44,(AE82+AL35*D19)/AM44,(AE83+AL35*D19)/AN44,(AE84+AL35*D19)/AO44)*AP44 ->  | AX86: =MIN((AF80+AL35*D19)/AK44,(AF81+AL35*D19)/AL44,(AF82+AL35*D19)/AM44,(AF83+AL35*D19)/AN44,(AF84+AL35*D19)/AO44)*AP44 ->  | BB86: =MIN((S80+AM35*D19)/AK45,(S81+AM35*D19)/AL45,(S82+AM35*D19)/AM45,(S83+AM35*D19)/AN45,(S84+AM35*D19)/AO45)*AP45 ->  | BC86: =MIN((T80+AM35*D19)/AK45,(T81+AM35*D19)/AL45,(T82+AM35*D19)/AM45,(T83+AM35*D19)/AN45,(T84+AM35*D19)/AO45)*AP45 ->  | BD86: =MIN((U80+AM35*D19)/AK45,(U81+AM35*D19)/AL45,(U82+AM35*D19)/AM45,(U83+AM35*D19)/AN45,(U84+AM35*D19)/AO45)*AP45 ->  | BE86: =MIN((V80+AM35*D19)/AK45,(V81+AM35*D19)/AL45,(V82+AM35*D19)/AM45,(V83+AM35*D19)/AN45,(V84+AM35*D19)/AO45)*AP45 ->  | BF86: =MIN((W80+AM35*D19)/AK45,(W81+AM35*D19)/AL45,(W82+AM35*D19)/AM45,(W83+AM35*D19)/AN45,(W84+AM35*D19)/AO45)*AP45 ->  | BG86: =MIN((X80+AM35*D19)/AK45,(X81+AM35*D19)/AL45,(X82+AM35*D19)/AM45,(X83+AM35*D19)/AN45,(X84+AM35*D19)/AO45)*AP45 ->  | BH86: =MIN((Y80+AM35*D19)/AK45,(Y81+AM35*D19)/AL45,(Y82+AM35*D19)/AM45,(Y83+AM35*D19)/AN45,(Y84+AM35*D19)/AO45)*AP45 ->  | BI86: =MIN((Z80+AM35*D19)/AK45,(Z81+AM35*D19)/AL45,(Z82+AM35*D19)/AM45,(Z83+AM35*D19)/AN45,(Z84+AM35*D19)/AO45)*AP45 ->  | BJ86: =MIN((AA80+AM35*D19)/AK45,(AA81+AM35*D19)/AL45,(AA82+AM35*D19)/AM45,(AA83+AM35*D19)/AN45,(AA84+AM35*D19)/AO45)*AP45 ->  | BK86: =MIN((AB80+AM35*D19)/AK45,(AB81+AM35*D19)/AL45,(AB82+AM35*D19)/AM45,(AB83+AM35*D19)/AN45,(AB84+AM35*D19)/AO45)*AP45 ->  | BL86: =MIN((AC80+AM35*D19)/AK45,(AC81+AM35*D19)/AL45,(AC82+AM35*D19)/AM45,(AC83+AM35*D19)/AN45,(AC84+AM35*D19)/AO45)*AP45 ->  | BM86: =MIN((AD80+AM35*D19)/AK45,(AD81+AM35*D19)/AL45,(AD82+AM35*D19)/AM45,(AD83+AM35*D19)/AN45,(AD84+AM35*D19)/AO45)*AP45 ->  | BN86: =MIN((AE80+AM35*D19)/AK45,(AE81+AM35*D19)/AL45,(AE82+AM35*D19)/AM45,(AE83+AM35*D19)/AN45,(AE84+AM35*D19)/AO45)*AP45 ->  | BO86: =MIN((AF80+AM35*D19)/AK45,(AF81+AM35*D19)/AL45,(AF82+AM35*D19)/AM45,(AF83+AM35*D19)/AN45,(AF84+AM35*D19)/AO45)*AP45 ->  | BR86: =BB109 -> kit 1 | BS86: kit 2/3 | BT86: 0 | BU86: kit 4 | BV86: 0 | BW86: kit 5 | BX86: kit 6/7 | BY86: 0 | BZ86: 0 | CA86: kit 8 | CB86: kit 9 | CC86: 0 | CD86: kit 10 | CE86: kit 11 | CF86: =BA15 -> 
D87: total : | E87: =SUM(E76:E86) -> 8.04695 | F87: =SUM(F76:F86) -> 11.93435 | G87: =SUM(G76:G86) -> 19.9813 | H87: =SUM(H76:H86) -> 11.9668 | I87: 8.009 | J87: 19.9758 | K87: 9.9997 | L87: 9.9816 | M87: 19.9813 | N87: 9.9511 | O87: 10.0248 | P87: 19.9759 | R87: =IF($AX$306,H15+VLOOKUP(Team!$X$21,Team!$E$30:$J$300,6,FALSE),H15+AH39+$D$21)+$D$19*$AG$12 ->  | S87: =IF($AX$306,$R87,$R87+Q10) ->  | T87: =IF($AX$306,$R87,$R87+R10) ->  | AK87: =MIN((S87+AL35*D19)/AK44,(S88+AL35*D19)/AL44,(S89+AL35*D19)/AM44,(S90+AL35*D19)/AN44,(S91+AL35*D19)/AO44)*AP44 ->  | AL87: =MIN((T87+AL35*D19)/AK44,(T88+AL35*D19)/AL44,(T89+AL35*D19)/AM44,(T90+AL35*D19)/AN44,(T91+AL35*D19)/AO44)*AP44 ->  | AM87: =MIN((U87+AL35*D19)/AK44,(U88+AL35*D19)/AL44,(U89+AL35*D19)/AM44,(U90+AL35*D19)/AN44,(U91+AL35*D19)/AO44)*AP44 ->  | AN87: =MIN((V87+AL35*D19)/AK44,(V88+AL35*D19)/AL44,(V89+AL35*D19)/AM44,(V90+AL35*D19)/AN44,(V91+AL35*D19)/AO44)*AP44 ->  | AO87: =MIN((W87+AL35*D19)/AK44,(W88+AL35*D19)/AL44,(W89+AL35*D19)/AM44,(W90+AL35*D19)/AN44,(W91+AL35*D19)/AO44)*AP44 ->  | AP87: =MIN((X87+AL35*D19)/AK44,(X88+AL35*D19)/AL44,(X89+AL35*D19)/AM44,(X90+AL35*D19)/AN44,(X91+AL35*D19)/AO44)*AP44 ->  | AQ87: =MIN((Y87+AL35*D19)/AK44,(Y88+AL35*D19)/AL44,(Y89+AL35*D19)/AM44,(Y90+AL35*D19)/AN44,(Y91+AL35*D19)/AO44)*AP44 ->  | AR87: =MIN((Z87+AL35*D19)/AK44,(Z88+AL35*D19)/AL44,(Z89+AL35*D19)/AM44,(Z90+AL35*D19)/AN44,(Z91+AL35*D19)/AO44)*AP44 ->  | AS87: =MIN((AA87+AL35*D19)/AK44,(AA88+AL35*D19)/AL44,(AA89+AL35*D19)/AM44,(AA90+AL35*D19)/AN44,(AA91+AL35*D19)/AO44)*AP44 ->  | AT87: =MIN((AB87+AL35*D19)/AK44,(AB88+AL35*D19)/AL44,(AB89+AL35*D19)/AM44,(AB90+AL35*D19)/AN44,(AB91+AL35*D19)/AO44)*AP44 ->  | AU87: =MIN((AC87+AL35*D19)/AK44,(AC88+AL35*D19)/AL44,(AC89+AL35*D19)/AM44,(AC90+AL35*D19)/AN44,(AC91+AL35*D19)/AO44)*AP44 ->  | AV87: =MIN((AD87+AL35*D19)/AK44,(AD88+AL35*D19)/AL44,(AD89+AL35*D19)/AM44,(AD90+AL35*D19)/AN44,(AD91+AL35*D19)/AO44)*AP44 ->  | AW87: =MIN((AE87+AL35*D19)/AK44,(AE88+AL35*D19)/AL44,(AE89+AL35*D19)/AM44,(AE90+AL35*D19)/AN44,(AE91+AL35*D19)/AO44)*AP44 ->  | AX87: =MIN((AF87+AL35*D19)/AK44,(AF88+AL35*D19)/AL44,(AF89+AL35*D19)/AM44,(AF90+AL35*D19)/AN44,(AF91+AL35*D19)/AO44)*AP44 ->  | BB87: =MIN((S87+AM35*D19)/AK45,(S88+AM35*D19)/AL45,(S89+AM35*D19)/AM45,(S90+AM35*D19)/AN45,(S91+AM35*D19)/AO45)*AP45 ->  | BC87: =MIN((T87+AM35*D19)/AK45,(T88+AM35*D19)/AL45,(T89+AM35*D19)/AM45,(T90+AM35*D19)/AN45,(T91+AM35*D19)/AO45)*AP45 ->  | BD87: =MIN((U87+AM35*D19)/AK45,(U88+AM35*D19)/AL45,(U89+AM35*D19)/AM45,(U90+AM35*D19)/AN45,(U91+AM35*D19)/AO45)*AP45 ->  | BE87: =MIN((V87+AM35*D19)/AK45,(V88+AM35*D19)/AL45,(V89+AM35*D19)/AM45,(V90+AM35*D19)/AN45,(V91+AM35*D19)/AO45)*AP45 ->  | BF87: =MIN((W87+AM35*D19)/AK45,(W88+AM35*D19)/AL45,(W89+AM35*D19)/AM45,(W90+AM35*D19)/AN45,(W91+AM35*D19)/AO45)*AP45 ->  | BG87: =MIN((X87+AM35*D19)/AK45,(X88+AM35*D19)/AL45,(X89+AM35*D19)/AM45,(X90+AM35*D19)/AN45,(X91+AM35*D19)/AO45)*AP45 ->  | BH87: =MIN((Y87+AM35*D19)/AK45,(Y88+AM35*D19)/AL45,(Y89+AM35*D19)/AM45,(Y90+AM35*D19)/AN45,(Y91+AM35*D19)/AO45)*AP45 ->  | BI87: =MIN((Z87+AM35*D19)/AK45,(Z88+AM35*D19)/AL45,(Z89+AM35*D19)/AM45,(Z90+AM35*D19)/AN45,(Z91+AM35*D19)/AO45)*AP45 ->  | BJ87: =MIN((AA87+AM35*D19)/AK45,(AA88+AM35*D19)/AL45,(AA89+AM35*D19)/AM45,(AA90+AM35*D19)/AN45,(AA91+AM35*D19)/AO45)*AP45 ->  | BK87: =MIN((AB87+AM35*D19)/AK45,(AB88+AM35*D19)/AL45,(AB89+AM35*D19)/AM45,(AB90+AM35*D19)/AN45,(AB91+AM35*D19)/AO45)*AP45 ->  | BL87: =MIN((AC87+AM35*D19)/AK45,(AC88+AM35*D19)/AL45,(AC89+AM35*D19)/AM45,(AC90+AM35*D19)/AN45,(AC91+AM35*D19)/AO45)*AP45 ->  | BM87: =MIN((AD87+AM35*D19)/AK45,(AD88+AM35*D19)/AL45,(AD89+AM35*D19)/AM45,(AD90+AM35*D19)/AN45,(AD91+AM35*D19)/AO45)*AP45 ->  | BN87: =MIN((AE87+AM35*D19)/AK45,(AE88+AM35*D19)/AL45,(AE89+AM35*D19)/AM45,(AE90+AM35*D19)/AN45,(AE91+AM35*D19)/AO45)*AP45 ->  | BO87: =MIN((AF87+AM35*D19)/AK45,(AF88+AM35*D19)/AL45,(AF89+AM35*D19)/AM45,(AF90+AM35*D19)/AN45,(AF91+AM35*D19)/AO45)*AP45 ->  | BR87: =BB109 -> kit 1 | BS87: kit 2/3 | BT87: 0 | BU87: kit 4 | BV87: 0 | BW87: kit 5 | BX87: kit 6/7 | BY87: 0 | BZ87: 0 | CA87: kit 8 | CB87: kit 9 | CC87: 0 | CD87: kit 10 | CE87: kit 11 | CF87: =BA16 -> 
E88: 541 offensif | H88: 433 offensif | K88: 352 offensif | N88: 442 offensif | R88: =IF($AX$306,I15+VLOOKUP(Team!$Y$21,Team!$E$30:$J$300,6,FALSE),I15+AH40+$D$21)+$D$19*$AG$12 ->  | S88: =IF($AX$306,$R88,$R88+Q11) ->  | AK88: =MIN((S94+AL35*D19)/AK44,(S95+AL35*D19)/AL44,(S96+AL35*D19)/AM44,(S97+AL35*D19)/AN44,(S98+AL35*D19)/AO44)*AP44 ->  | AL88: =MIN((T94+AL35*D19)/AK44,(T95+AL35*D19)/AL44,(T96+AL35*D19)/AM44,(T97+AL35*D19)/AN44,(T98+AL35*D19)/AO44)*AP44 ->  | AM88: =MIN((U94+AL35*D19)/AK44,(U95+AL35*D19)/AL44,(U96+AL35*D19)/AM44,(U97+AL35*D19)/AN44,(U98+AL35*D19)/AO44)*AP44 ->  | AN88: =MIN((V94+AL35*D19)/AK44,(V95+AL35*D19)/AL44,(V96+AL35*D19)/AM44,(V97+AL35*D19)/AN44,(V98+AL35*D19)/AO44)*AP44 ->  | AO88: =MIN((W94+AL35*D19)/AK44,(W95+AL35*D19)/AL44,(W96+AL35*D19)/AM44,(W97+AL35*D19)/AN44,(W98+AL35*D19)/AO44)*AP44 ->  | AP88: =MIN((X94+AL35*D19)/AK44,(X95+AL35*D19)/AL44,(X96+AL35*D19)/AM44,(X97+AL35*D19)/AN44,(X98+AL35*D19)/AO44)*AP44 ->  | AQ88: =MIN((Y94+AL35*D19)/AK44,(Y95+AL35*D19)/AL44,(Y96+AL35*D19)/AM44,(Y97+AL35*D19)/AN44,(Y98+AL35*D19)/AO44)*AP44 ->  | AR88: =MIN((Z94+AL35*D19)/AK44,(Z95+AL35*D19)/AL44,(Z96+AL35*D19)/AM44,(Z97+AL35*D19)/AN44,(Z98+AL35*D19)/AO44)*AP44 ->  | AS88: =MIN((AA94+AL35*D19)/AK44,(AA95+AL35*D19)/AL44,(AA96+AL35*D19)/AM44,(AA97+AL35*D19)/AN44,(AA98+AL35*D19)/AO44)*AP44 ->  | AT88: =MIN((AB94+AL35*D19)/AK44,(AB95+AL35*D19)/AL44,(AB96+AL35*D19)/AM44,(AB97+AL35*D19)/AN44,(AB98+AL35*D19)/AO44)*AP44 ->  | AU88: =MIN((AC94+AL35*D19)/AK44,(AC95+AL35*D19)/AL44,(AC96+AL35*D19)/AM44,(AC97+AL35*D19)/AN44,(AC98+AL35*D19)/AO44)*AP44 ->  | AV88: =MIN((AD94+AL35*D19)/AK44,(AD95+AL35*D19)/AL44,(AD96+AL35*D19)/AM44,(AD97+AL35*D19)/AN44,(AD98+AL35*D19)/AO44)*AP44 ->  | AW88: =MIN((AE94+AL35*D19)/AK44,(AE95+AL35*D19)/AL44,(AE96+AL35*D19)/AM44,(AE97+AL35*D19)/AN44,(AE98+AL35*D19)/AO44)*AP44 ->  | AX88: =MIN((AF94+AL35*D19)/AK44,(AF95+AL35*D19)/AL44,(AF96+AL35*D19)/AM44,(AF97+AL35*D19)/AN44,(AF98+AL35*D19)/AO44)*AP44 ->  | BB88: =MIN((S94+AM35*D19)/AK45,(S95+AM35*D19)/AL45,(S96+AM35*D19)/AM45,(S97+AM35*D19)/AN45,(S98+AM35*D19)/AO45)*AP45 ->  | BC88: =MIN((T94+AM35*D19)/AK45,(T95+AM35*D19)/AL45,(T96+AM35*D19)/AM45,(T97+AM35*D19)/AN45,(T98+AM35*D19)/AO45)*AP45 ->  | BD88: =MIN((U94+AM35*D19)/AK45,(U95+AM35*D19)/AL45,(U96+AM35*D19)/AM45,(U97+AM35*D19)/AN45,(U98+AM35*D19)/AO45)*AP45 ->  | BE88: =MIN((V94+AM35*D19)/AK45,(V95+AM35*D19)/AL45,(V96+AM35*D19)/AM45,(V97+AM35*D19)/AN45,(V98+AM35*D19)/AO45)*AP45 ->  | BF88: =MIN((W94+AM35*D19)/AK45,(W95+AM35*D19)/AL45,(W96+AM35*D19)/AM45,(W97+AM35*D19)/AN45,(W98+AM35*D19)/AO45)*AP45 ->  | BG88: =MIN((X94+AM35*D19)/AK45,(X95+AM35*D19)/AL45,(X96+AM35*D19)/AM45,(X97+AM35*D19)/AN45,(X98+AM35*D19)/AO45)*AP45 ->  | BH88: =MIN((Y94+AM35*D19)/AK45,(Y95+AM35*D19)/AL45,(Y96+AM35*D19)/AM45,(Y97+AM35*D19)/AN45,(Y98+AM35*D19)/AO45)*AP45 ->  | BI88: =MIN((Z94+AM35*D19)/AK45,(Z95+AM35*D19)/AL45,(Z96+AM35*D19)/AM45,(Z97+AM35*D19)/AN45,(Z98+AM35*D19)/AO45)*AP45 ->  | BJ88: =MIN((AA94+AM35*D19)/AK45,(AA95+AM35*D19)/AL45,(AA96+AM35*D19)/AM45,(AA97+AM35*D19)/AN45,(AA98+AM35*D19)/AO45)*AP45 ->  | BK88: =MIN((AB94+AM35*D19)/AK45,(AB95+AM35*D19)/AL45,(AB96+AM35*D19)/AM45,(AB97+AM35*D19)/AN45,(AB98+AM35*D19)/AO45)*AP45 ->  | BL88: =MIN((AC94+AM35*D19)/AK45,(AC95+AM35*D19)/AL45,(AC96+AM35*D19)/AM45,(AC97+AM35*D19)/AN45,(AC98+AM35*D19)/AO45)*AP45 ->  | BM88: =MIN((AD94+AM35*D19)/AK45,(AD95+AM35*D19)/AL45,(AD96+AM35*D19)/AM45,(AD97+AM35*D19)/AN45,(AD98+AM35*D19)/AO45)*AP45 ->  | BN88: =MIN((AE94+AM35*D19)/AK45,(AE95+AM35*D19)/AL45,(AE96+AM35*D19)/AM45,(AE97+AM35*D19)/AN45,(AE98+AM35*D19)/AO45)*AP45 ->  | BO88: =MIN((AF94+AM35*D19)/AK45,(AF95+AM35*D19)/AL45,(AF96+AM35*D19)/AM45,(AF97+AM35*D19)/AN45,(AF98+AM35*D19)/AO45)*AP45 ->  | BR88: =BB109 -> kit 1 | BS88: kit 2/3 | BT88: 0 | BU88: kit 4 | BV88: 0 | BW88: kit 5 | BX88: kit 6/7 | BY88: 0 | BZ88: 0 | CA88: kit 8 | CB88: kit 9 | CC88: 0 | CD88: kit 10 | CE88: kit 11 | CF88: =BA17 -> 
E89: 1% attaque | F89: 1% defense | G89: 1% cumulé | H89: 1% attaque | I89: 1% defense | J89: 1% cumulé | K89: 1% attaque | L89: 1% defense | M89: 1% cumulé | N89: 1% attaque | O89: 1% defense | P89: 1% cumulé | R89: =IF($AX$306,J15+VLOOKUP(Team!$Z$21,Team!$E$30:$J$300,6,FALSE),J15+AH41+$D$21)+$D$19*$AG$12 ->  | S89: =IF($AX$306,$R89,$R89+Q12) ->  | AK89: =MIN((S101+AL35*D19)/AK44,(S102+AL35*D19)/AL44,(S103+AL35*D19)/AM44,(S104+AL35*D19)/AN44,(S105+AL35*D19)/AO44)*AP44 ->  | AL89: =MIN((T101+AL35*D19)/AK44,(T102+AL35*D19)/AL44,(T103+AL35*D19)/AM44,(T104+AL35*D19)/AN44,(T105+AL35*D19)/AO44)*AP44 ->  | AM89: =MIN((U101+AL35*D19)/AK44,(U102+AL35*D19)/AL44,(U103+AL35*D19)/AM44,(U104+AL35*D19)/AN44,(U105+AL35*D19)/AO44)*AP44 ->  | AN89: =MIN((V101+AL35*D19)/AK44,(V102+AL35*D19)/AL44,(V103+AL35*D19)/AM44,(V104+AL35*D19)/AN44,(V105+AL35*D19)/AO44)*AP44 ->  | AO89: =MIN((W101+AL35*D19)/AK44,(W102+AL35*D19)/AL44,(W103+AL35*D19)/AM44,(W104+AL35*D19)/AN44,(W105+AL35*D19)/AO44)*AP44 ->  | AP89: =MIN((X101+AL35*D19)/AK44,(X102+AL35*D19)/AL44,(X103+AL35*D19)/AM44,(X104+AL35*D19)/AN44,(X105+AL35*D19)/AO44)*AP44 ->  | AQ89: =MIN((Y101+AL35*D19)/AK44,(Y102+AL35*D19)/AL44,(Y103+AL35*D19)/AM44,(Y104+AL35*D19)/AN44,(Y105+AL35*D19)/AO44)*AP44 ->  | AR89: =MIN((Z101+AL35*D19)/AK44,(Z102+AL35*D19)/AL44,(Z103+AL35*D19)/AM44,(Z104+AL35*D19)/AN44,(Z105+AL35*D19)/AO44)*AP44 ->  | AS89: =MIN((AA101+AL35*D19)/AK44,(AA102+AL35*D19)/AL44,(AA103+AL35*D19)/AM44,(AA104+AL35*D19)/AN44,(AA105+AL35*D19)/AO44)*AP44 ->  | AT89: =MIN((AB101+AL35*D19)/AK44,(AB102+AL35*D19)/AL44,(AB103+AL35*D19)/AM44,(AB104+AL35*D19)/AN44,(AB105+AL35*D19)/AO44)*AP44 ->  | AU89: =MIN((AC101+AL35*D19)/AK44,(AC102+AL35*D19)/AL44,(AC103+AL35*D19)/AM44,(AC104+AL35*D19)/AN44,(AC105+AL35*D19)/AO44)*AP44 ->  | AV89: =MIN((AD101+AL35*D19)/AK44,(AD102+AL35*D19)/AL44,(AD103+AL35*D19)/AM44,(AD104+AL35*D19)/AN44,(AD105+AL35*D19)/AO44)*AP44 ->  | AW89: =MIN((AE101+AL35*D19)/AK44,(AE102+AL35*D19)/AL44,(AE103+AL35*D19)/AM44,(AE104+AL35*D19)/AN44,(AE105+AL35*D19)/AO44)*AP44 ->  | AX89: =MIN((AF101+AL35*D19)/AK44,(AF102+AL35*D19)/AL44,(AF103+AL35*D19)/AM44,(AF104+AL35*D19)/AN44,(AF105+AL35*D19)/AO44)*AP44 ->  | BB89: =MIN((S101+AM35*D19)/AK45,(S102+AM35*D19)/AL45,(S103+AM35*D19)/AM45,(S104+AM35*D19)/AN45,(S105+AM35*D19)/AO45)*AP45 ->  | BC89: =MIN((T101+AM35*D19)/AK45,(T102+AM35*D19)/AL45,(T103+AM35*D19)/AM45,(T104+AM35*D19)/AN45,(T105+AM35*D19)/AO45)*AP45 ->  | BD89: =MIN((U101+AM35*D19)/AK45,(U102+AM35*D19)/AL45,(U103+AM35*D19)/AM45,(U104+AM35*D19)/AN45,(U105+AM35*D19)/AO45)*AP45 ->  | BE89: =MIN((V101+AM35*D19)/AK45,(V102+AM35*D19)/AL45,(V103+AM35*D19)/AM45,(V104+AM35*D19)/AN45,(V105+AM35*D19)/AO45)*AP45 ->  | BF89: =MIN((W101+AM35*D19)/AK45,(W102+AM35*D19)/AL45,(W103+AM35*D19)/AM45,(W104+AM35*D19)/AN45,(W105+AM35*D19)/AO45)*AP45 ->  | BG89: =MIN((X101+AM35*D19)/AK45,(X102+AM35*D19)/AL45,(X103+AM35*D19)/AM45,(X104+AM35*D19)/AN45,(X105+AM35*D19)/AO45)*AP45 ->  | BH89: =MIN((Y101+AM35*D19)/AK45,(Y102+AM35*D19)/AL45,(Y103+AM35*D19)/AM45,(Y104+AM35*D19)/AN45,(Y105+AM35*D19)/AO45)*AP45 ->  | BI89: =MIN((Z101+AM35*D19)/AK45,(Z102+AM35*D19)/AL45,(Z103+AM35*D19)/AM45,(Z104+AM35*D19)/AN45,(Z105+AM35*D19)/AO45)*AP45 ->  | BJ89: =MIN((AA101+AM35*D19)/AK45,(AA102+AM35*D19)/AL45,(AA103+AM35*D19)/AM45,(AA104+AM35*D19)/AN45,(AA105+AM35*D19)/AO45)*AP45 ->  | BK89: =MIN((AB101+AM35*D19)/AK45,(AB102+AM35*D19)/AL45,(AB103+AM35*D19)/AM45,(AB104+AM35*D19)/AN45,(AB105+AM35*D19)/AO45)*AP45 ->  | BL89: =MIN((AC101+AM35*D19)/AK45,(AC102+AM35*D19)/AL45,(AC103+AM35*D19)/AM45,(AC104+AM35*D19)/AN45,(AC105+AM35*D19)/AO45)*AP45 ->  | BM89: =MIN((AD101+AM35*D19)/AK45,(AD102+AM35*D19)/AL45,(AD103+AM35*D19)/AM45,(AD104+AM35*D19)/AN45,(AD105+AM35*D19)/AO45)*AP45 ->  | BN89: =MIN((AE101+AM35*D19)/AK45,(AE102+AM35*D19)/AL45,(AE103+AM35*D19)/AM45,(AE104+AM35*D19)/AN45,(AE105+AM35*D19)/AO45)*AP45 ->  | BO89: =MIN((AF101+AM35*D19)/AK45,(AF102+AM35*D19)/AL45,(AF103+AM35*D19)/AM45,(AF104+AM35*D19)/AN45,(AF105+AM35*D19)/AO45)*AP45 ->  | BR89: =BB109 -> kit 1 | BS89: kit 2/3 | BT89: 0 | BU89: kit 4 | BV89: 0 | BW89: kit 5 | BX89: kit 6/7 | BY89: 0 | BZ89: 0 | CA89: kit 8 | CB89: kit 9 | CC89: 0 | CD89: kit 10 | CE89: kit 11 | CF89: =BA18 -> 
E90: 0.05445 | F90: 2.67025 | G90: =E90+F90 -> 2.7247 | H90: 0.27245 | I90: 2.4523 | J90: =H90+I90 -> 2.72475 | K90: 0.05445 | L90: 2.67025 | M90: =K90+L90 -> 2.7247 | N90: 0.05445 | O90: 2.67025 | P90: =N90+O90 -> 2.7247 | R90: =IF($AX$306,K15+VLOOKUP(Team!$AA$21,Team!$E$30:$J$300,6,FALSE),K15+AH42+$D$21)+$D$19*$AG$12 ->  | S90: =IF($AX$306,$R90,$R90+Q13) ->  | AK90: =MIN((S108+AL35*D19)/AK44,(S109+AL35*D19)/AL44,(S110+AL35*D19)/AM44,(S111+AL35*D19)/AN44,(S112+AL35*D19)/AO44)*AP44 ->  | AL90: =MIN((T108+AL35*D19)/AK44,(T109+AL35*D19)/AL44,(T110+AL35*D19)/AM44,(T111+AL35*D19)/AN44,(T112+AL35*D19)/AO44)*AP44 ->  | AM90: =MIN((U108+AL35*D19)/AK44,(U109+AL35*D19)/AL44,(U110+AL35*D19)/AM44,(U111+AL35*D19)/AN44,(U112+AL35*D19)/AO44)*AP44 ->  | AN90: =MIN((V108+AL35*D19)/AK44,(V109+AL35*D19)/AL44,(V110+AL35*D19)/AM44,(V111+AL35*D19)/AN44,(V112+AL35*D19)/AO44)*AP44 ->  | AO90: =MIN((W108+AL35*D19)/AK44,(W109+AL35*D19)/AL44,(W110+AL35*D19)/AM44,(W111+AL35*D19)/AN44,(W112+AL35*D19)/AO44)*AP44 ->  | AP90: =MIN((X108+AL35*D19)/AK44,(X109+AL35*D19)/AL44,(X110+AL35*D19)/AM44,(X111+AL35*D19)/AN44,(X112+AL35*D19)/AO44)*AP44 ->  | AQ90: =MIN((Y108+AL35*D19)/AK44,(Y109+AL35*D19)/AL44,(Y110+AL35*D19)/AM44,(Y111+AL35*D19)/AN44,(Y112+AL35*D19)/AO44)*AP44 ->  | AR90: =MIN((Z108+AL35*D19)/AK44,(Z109+AL35*D19)/AL44,(Z110+AL35*D19)/AM44,(Z111+AL35*D19)/AN44,(Z112+AL35*D19)/AO44)*AP44 ->  | AS90: =MIN((AA108+AL35*D19)/AK44,(AA109+AL35*D19)/AL44,(AA110+AL35*D19)/AM44,(AA111+AL35*D19)/AN44,(AA112+AL35*D19)/AO44)*AP44 ->  | AT90: =MIN((AB108+AL35*D19)/AK44,(AB109+AL35*D19)/AL44,(AB110+AL35*D19)/AM44,(AB111+AL35*D19)/AN44,(AB112+AL35*D19)/AO44)*AP44 ->  | AU90: =MIN((AC108+AL35*D19)/AK44,(AC109+AL35*D19)/AL44,(AC110+AL35*D19)/AM44,(AC111+AL35*D19)/AN44,(AC112+AL35*D19)/AO44)*AP44 ->  | AV90: =MIN((AD108+AL35*D19)/AK44,(AD109+AL35*D19)/AL44,(AD110+AL35*D19)/AM44,(AD111+AL35*D19)/AN44,(AD112+AL35*D19)/AO44)*AP44 ->  | AW90: =MIN((AE108+AL35*D19)/AK44,(AE109+AL35*D19)/AL44,(AE110+AL35*D19)/AM44,(AE111+AL35*D19)/AN44,(AE112+AL35*D19)/AO44)*AP44 ->  | AX90: =MIN((AF108+AL35*D19)/AK44,(AF109+AL35*D19)/AL44,(AF110+AL35*D19)/AM44,(AF111+AL35*D19)/AN44,(AF112+AL35*D19)/AO44)*AP44 ->  | BB90: =MIN((S108+AM35*D19)/AK45,(S109+AM35*D19)/AL45,(S110+AM35*D19)/AM45,(S111+AM35*D19)/AN45,(S112+AM35*D19)/AO45)*AP45 ->  | BC90: =MIN((T108+AM35*D19)/AK45,(T109+AM35*D19)/AL45,(T110+AM35*D19)/AM45,(T111+AM35*D19)/AN45,(T112+AM35*D19)/AO45)*AP45 ->  | BD90: =MIN((U108+AM35*D19)/AK45,(U109+AM35*D19)/AL45,(U110+AM35*D19)/AM45,(U111+AM35*D19)/AN45,(U112+AM35*D19)/AO45)*AP45 ->  | BE90: =MIN((V108+AM35*D19)/AK45,(V109+AM35*D19)/AL45,(V110+AM35*D19)/AM45,(V111+AM35*D19)/AN45,(V112+AM35*D19)/AO45)*AP45 ->  | BF90: =MIN((W108+AM35*D19)/AK45,(W109+AM35*D19)/AL45,(W110+AM35*D19)/AM45,(W111+AM35*D19)/AN45,(W112+AM35*D19)/AO45)*AP45 ->  | BG90: =MIN((X108+AM35*D19)/AK45,(X109+AM35*D19)/AL45,(X110+AM35*D19)/AM45,(X111+AM35*D19)/AN45,(X112+AM35*D19)/AO45)*AP45 ->  | BH90: =MIN((Y108+AM35*D19)/AK45,(Y109+AM35*D19)/AL45,(Y110+AM35*D19)/AM45,(Y111+AM35*D19)/AN45,(Y112+AM35*D19)/AO45)*AP45 ->  | BI90: =MIN((Z108+AM35*D19)/AK45,(Z109+AM35*D19)/AL45,(Z110+AM35*D19)/AM45,(Z111+AM35*D19)/AN45,(Z112+AM35*D19)/AO45)*AP45 ->  | BJ90: =MIN((AA108+AM35*D19)/AK45,(AA109+AM35*D19)/AL45,(AA110+AM35*D19)/AM45,(AA111+AM35*D19)/AN45,(AA112+AM35*D19)/AO45)*AP45 ->  | BK90: =MIN((AB108+AM35*D19)/AK45,(AB109+AM35*D19)/AL45,(AB110+AM35*D19)/AM45,(AB111+AM35*D19)/AN45,(AB112+AM35*D19)/AO45)*AP45 ->  | BL90: =MIN((AC108+AM35*D19)/AK45,(AC109+AM35*D19)/AL45,(AC110+AM35*D19)/AM45,(AC111+AM35*D19)/AN45,(AC112+AM35*D19)/AO45)*AP45 ->  | BM90: =MIN((AD108+AM35*D19)/AK45,(AD109+AM35*D19)/AL45,(AD110+AM35*D19)/AM45,(AD111+AM35*D19)/AN45,(AD112+AM35*D19)/AO45)*AP45 ->  | BN90: =MIN((AE108+AM35*D19)/AK45,(AE109+AM35*D19)/AL45,(AE110+AM35*D19)/AM45,(AE111+AM35*D19)/AN45,(AE112+AM35*D19)/AO45)*AP45 ->  | BO90: =MIN((AF108+AM35*D19)/AK45,(AF109+AM35*D19)/AL45,(AF110+AM35*D19)/AM45,(AF111+AM35*D19)/AN45,(AF112+AM35*D19)/AO45)*AP45 ->  | BR90: =BB109 -> kit 1 | BS90: kit 2/3 | BT90: 0 | BU90: kit 4 | BV90: 0 | BW90: kit 5 | BX90: kit 6/7 | BY90: 0 | BZ90: 0 | CA90: kit 8 | CB90: kit 9 | CC90: 0 | CD90: kit 10 | CE90: kit 11
E91: 0.4087 | F91: 0.95365 | G91: =E91+F91 -> 1.36235 | H91: 0.95365 | I91: 0.4087 | J91: 1.36235 | K91: 1.36235 | L91: 0.90825 | M91: =K91+L91 -> 2.2706 | N91: 0.8174 | O91: 0.54495 | P91: =N91+O91 -> 1.36235 | R91: =IF($AX$306,L15+VLOOKUP(Team!$AB$21,Team!$E$30:$J$300,6,FALSE),L15+AH43+$D$21)+$D$19*$AG$12 ->  | S91: =IF($AX$306,$R91,$R91+Q14) ->  | AK91: =MIN((S115+AL35*D19)/AK44,(S116+AL35*D19)/AL44,(S117+AL35*D19)/AM44,(S118+AL35*D19)/AN44,(S119+AL35*D19)/AO44)*AP44 ->  | AL91: =MIN((T115+AL35*D19)/AK44,(T116+AL35*D19)/AL44,(T117+AL35*D19)/AM44,(T118+AL35*D19)/AN44,(T119+AL35*D19)/AO44)*AP44 ->  | AM91: =MIN((U115+AL35*D19)/AK44,(U116+AL35*D19)/AL44,(U117+AL35*D19)/AM44,(U118+AL35*D19)/AN44,(U119+AL35*D19)/AO44)*AP44 ->  | AN91: =MIN((V115+AL35*D19)/AK44,(V116+AL35*D19)/AL44,(V117+AL35*D19)/AM44,(V118+AL35*D19)/AN44,(V119+AL35*D19)/AO44)*AP44 ->  | AO91: =MIN((W115+AL35*D19)/AK44,(W116+AL35*D19)/AL44,(W117+AL35*D19)/AM44,(W118+AL35*D19)/AN44,(W119+AL35*D19)/AO44)*AP44 ->  | AP91: =MIN((X115+AL35*D19)/AK44,(X116+AL35*D19)/AL44,(X117+AL35*D19)/AM44,(X118+AL35*D19)/AN44,(X119+AL35*D19)/AO44)*AP44 ->  | AQ91: =MIN((Y115+AL35*D19)/AK44,(Y116+AL35*D19)/AL44,(Y117+AL35*D19)/AM44,(Y118+AL35*D19)/AN44,(Y119+AL35*D19)/AO44)*AP44 ->  | AR91: =MIN((Z115+AL35*D19)/AK44,(Z116+AL35*D19)/AL44,(Z117+AL35*D19)/AM44,(Z118+AL35*D19)/AN44,(Z119+AL35*D19)/AO44)*AP44 ->  | AS91: =MIN((AA115+AL35*D19)/AK44,(AA116+AL35*D19)/AL44,(AA117+AL35*D19)/AM44,(AA118+AL35*D19)/AN44,(AA119+AL35*D19)/AO44)*AP44 ->  | AT91: =MIN((AB115+AL35*D19)/AK44,(AB116+AL35*D19)/AL44,(AB117+AL35*D19)/AM44,(AB118+AL35*D19)/AN44,(AB119+AL35*D19)/AO44)*AP44 ->  | AU91: =MIN((AC115+AL35*D19)/AK44,(AC116+AL35*D19)/AL44,(AC117+AL35*D19)/AM44,(AC118+AL35*D19)/AN44,(AC119+AL35*D19)/AO44)*AP44 ->  | AV91: =MIN((AD115+AL35*D19)/AK44,(AD116+AL35*D19)/AL44,(AD117+AL35*D19)/AM44,(AD118+AL35*D19)/AN44,(AD119+AL35*D19)/AO44)*AP44 ->  | AW91: =MIN((AE115+AL35*D19)/AK44,(AE116+AL35*D19)/AL44,(AE117+AL35*D19)/AM44,(AE118+AL35*D19)/AN44,(AE119+AL35*D19)/AO44)*AP44 ->  | AX91: =MIN((AF115+AL35*D19)/AK44,(AF116+AL35*D19)/AL44,(AF117+AL35*D19)/AM44,(AF118+AL35*D19)/AN44,(AF119+AL35*D19)/AO44)*AP44 ->  | BB91: =MIN((S115+AM35*D19)/AK45,(S116+AM35*D19)/AL45,(S117+AM35*D19)/AM45,(S118+AM35*D19)/AN45,(S119+AM35*D19)/AO45)*AP45 ->  | BC91: =MIN((T115+AM35*D19)/AK45,(T116+AM35*D19)/AL45,(T117+AM35*D19)/AM45,(T118+AM35*D19)/AN45,(T119+AM35*D19)/AO45)*AP45 ->  | BD91: =MIN((U115+AM35*D19)/AK45,(U116+AM35*D19)/AL45,(U117+AM35*D19)/AM45,(U118+AM35*D19)/AN45,(U119+AM35*D19)/AO45)*AP45 ->  | BE91: =MIN((V115+AM35*D19)/AK45,(V116+AM35*D19)/AL45,(V117+AM35*D19)/AM45,(V118+AM35*D19)/AN45,(V119+AM35*D19)/AO45)*AP45 ->  | BF91: =MIN((W115+AM35*D19)/AK45,(W116+AM35*D19)/AL45,(W117+AM35*D19)/AM45,(W118+AM35*D19)/AN45,(W119+AM35*D19)/AO45)*AP45 ->  | BG91: =MIN((X115+AM35*D19)/AK45,(X116+AM35*D19)/AL45,(X117+AM35*D19)/AM45,(X118+AM35*D19)/AN45,(X119+AM35*D19)/AO45)*AP45 ->  | BH91: =MIN((Y115+AM35*D19)/AK45,(Y116+AM35*D19)/AL45,(Y117+AM35*D19)/AM45,(Y118+AM35*D19)/AN45,(Y119+AM35*D19)/AO45)*AP45 ->  | BI91: =MIN((Z115+AM35*D19)/AK45,(Z116+AM35*D19)/AL45,(Z117+AM35*D19)/AM45,(Z118+AM35*D19)/AN45,(Z119+AM35*D19)/AO45)*AP45 ->  | BJ91: =MIN((AA115+AM35*D19)/AK45,(AA116+AM35*D19)/AL45,(AA117+AM35*D19)/AM45,(AA118+AM35*D19)/AN45,(AA119+AM35*D19)/AO45)*AP45 ->  | BK91: =MIN((AB115+AM35*D19)/AK45,(AB116+AM35*D19)/AL45,(AB117+AM35*D19)/AM45,(AB118+AM35*D19)/AN45,(AB119+AM35*D19)/AO45)*AP45 ->  | BL91: =MIN((AC115+AM35*D19)/AK45,(AC116+AM35*D19)/AL45,(AC117+AM35*D19)/AM45,(AC118+AM35*D19)/AN45,(AC119+AM35*D19)/AO45)*AP45 ->  | BM91: =MIN((AD115+AM35*D19)/AK45,(AD116+AM35*D19)/AL45,(AD117+AM35*D19)/AM45,(AD118+AM35*D19)/AN45,(AD119+AM35*D19)/AO45)*AP45 ->  | BN91: =MIN((AE115+AM35*D19)/AK45,(AE116+AM35*D19)/AL45,(AE117+AM35*D19)/AM45,(AE118+AM35*D19)/AN45,(AE119+AM35*D19)/AO45)*AP45 ->  | BO91: =MIN((AF115+AM35*D19)/AK45,(AF116+AM35*D19)/AL45,(AF117+AM35*D19)/AM45,(AF118+AM35*D19)/AN45,(AF119+AM35*D19)/AO45)*AP45 ->  | BR91: =BB109 -> kit 1 | BS91: kit 2/3 | BT91: 0 | BU91: kit 4 | BV91: 0 | BW91: kit 5 | BX91: kit 6/7 | BY91: 0 | BZ91: 0 | CA91: kit 8 | CB91: kit 9 | CC91: 0 | CD91: kit 10 | CE91: kit 11 | CF91: =BA20 -> 
E92: 0.4087 | F92: 0.95365 | G92: 1.36235 | H92: 0.95365 | I92: 0.4087 | J92: 1.36235 | K92: 1.36235 | L92: 0.90825 | M92: 2.2706 | N92: 0.8174 | O92: 0.54495 | P92: 1.36235 | AK92: =MIN((S122+AL35*D19)/AK44,(S123+AL35*D19)/AL44,(S124+AL35*D19)/AM44,(S125+AL35*D19)/AN44,(S126+AL35*D19)/AO44)*AP44 ->  | AL92: =MIN((T122+AL35*D19)/AK44,(T123+AL35*D19)/AL44,(T124+AL35*D19)/AM44,(T125+AL35*D19)/AN44,(T126+AL35*D19)/AO44)*AP44 ->  | AM92: =MIN((U122+AL35*D19)/AK44,(U123+AL35*D19)/AL44,(U124+AL35*D19)/AM44,(U125+AL35*D19)/AN44,(U126+AL35*D19)/AO44)*AP44 ->  | AN92: =MIN((V122+AL35*D19)/AK44,(V123+AL35*D19)/AL44,(V124+AL35*D19)/AM44,(V125+AL35*D19)/AN44,(V126+AL35*D19)/AO44)*AP44 ->  | AO92: =MIN((W122+AL35*D19)/AK44,(W123+AL35*D19)/AL44,(W124+AL35*D19)/AM44,(W125+AL35*D19)/AN44,(W126+AL35*D19)/AO44)*AP44 ->  | AP92: =MIN((X122+AL35*D19)/AK44,(X123+AL35*D19)/AL44,(X124+AL35*D19)/AM44,(X125+AL35*D19)/AN44,(X126+AL35*D19)/AO44)*AP44 ->  | AQ92: =MIN((Y122+AL35*D19)/AK44,(Y123+AL35*D19)/AL44,(Y124+AL35*D19)/AM44,(Y125+AL35*D19)/AN44,(Y126+AL35*D19)/AO44)*AP44 ->  | AR92: =MIN((Z122+AL35*D19)/AK44,(Z123+AL35*D19)/AL44,(Z124+AL35*D19)/AM44,(Z125+AL35*D19)/AN44,(Z126+AL35*D19)/AO44)*AP44 ->  | AS92: =MIN((AA122+AL35*D19)/AK44,(AA123+AL35*D19)/AL44,(AA124+AL35*D19)/AM44,(AA125+AL35*D19)/AN44,(AA126+AL35*D19)/AO44)*AP44 ->  | AT92: =MIN((AB122+AL35*D19)/AK44,(AB123+AL35*D19)/AL44,(AB124+AL35*D19)/AM44,(AB125+AL35*D19)/AN44,(AB126+AL35*D19)/AO44)*AP44 ->  | AU92: =MIN((AC122+AL35*D19)/AK44,(AC123+AL35*D19)/AL44,(AC124+AL35*D19)/AM44,(AC125+AL35*D19)/AN44,(AC126+AL35*D19)/AO44)*AP44 ->  | AV92: =MIN((AD122+AL35*D19)/AK44,(AD123+AL35*D19)/AL44,(AD124+AL35*D19)/AM44,(AD125+AL35*D19)/AN44,(AD126+AL35*D19)/AO44)*AP44 ->  | AW92: =MIN((AE122+AL35*D19)/AK44,(AE123+AL35*D19)/AL44,(AE124+AL35*D19)/AM44,(AE125+AL35*D19)/AN44,(AE126+AL35*D19)/AO44)*AP44 ->  | AX92: =MIN((AF122+AL35*D19)/AK44,(AF123+AL35*D19)/AL44,(AF124+AL35*D19)/AM44,(AF125+AL35*D19)/AN44,(AF126+AL35*D19)/AO44)*AP44 ->  | BB92: =MIN((S122+AM35*D19)/AK45,(S123+AM35*D19)/AL45,(S124+AM35*D19)/AM45,(S125+AM35*D19)/AN45,(S126+AM35*D19)/AO45)*AP45 ->  | BC92: =MIN((T122+AM35*D19)/AK45,(T123+AM35*D19)/AL45,(T124+AM35*D19)/AM45,(T125+AM35*D19)/AN45,(T126+AM35*D19)/AO45)*AP45 ->  | BD92: =MIN((U122+AM35*D19)/AK45,(U123+AM35*D19)/AL45,(U124+AM35*D19)/AM45,(U125+AM35*D19)/AN45,(U126+AM35*D19)/AO45)*AP45 ->  | BE92: =MIN((V122+AM35*D19)/AK45,(V123+AM35*D19)/AL45,(V124+AM35*D19)/AM45,(V125+AM35*D19)/AN45,(V126+AM35*D19)/AO45)*AP45 ->  | BF92: =MIN((W122+AM35*D19)/AK45,(W123+AM35*D19)/AL45,(W124+AM35*D19)/AM45,(W125+AM35*D19)/AN45,(W126+AM35*D19)/AO45)*AP45 ->  | BG92: =MIN((X122+AM35*D19)/AK45,(X123+AM35*D19)/AL45,(X124+AM35*D19)/AM45,(X125+AM35*D19)/AN45,(X126+AM35*D19)/AO45)*AP45 ->  | BH92: =MIN((Y122+AM35*D19)/AK45,(Y123+AM35*D19)/AL45,(Y124+AM35*D19)/AM45,(Y125+AM35*D19)/AN45,(Y126+AM35*D19)/AO45)*AP45 ->  | BI92: =MIN((Z122+AM35*D19)/AK45,(Z123+AM35*D19)/AL45,(Z124+AM35*D19)/AM45,(Z125+AM35*D19)/AN45,(Z126+AM35*D19)/AO45)*AP45 ->  | BJ92: =MIN((AA122+AM35*D19)/AK45,(AA123+AM35*D19)/AL45,(AA124+AM35*D19)/AM45,(AA125+AM35*D19)/AN45,(AA126+AM35*D19)/AO45)*AP45 ->  | BK92: =MIN((AB122+AM35*D19)/AK45,(AB123+AM35*D19)/AL45,(AB124+AM35*D19)/AM45,(AB125+AM35*D19)/AN45,(AB126+AM35*D19)/AO45)*AP45 ->  | BL92: =MIN((AC122+AM35*D19)/AK45,(AC123+AM35*D19)/AL45,(AC124+AM35*D19)/AM45,(AC125+AM35*D19)/AN45,(AC126+AM35*D19)/AO45)*AP45 ->  | BM92: =MIN((AD122+AM35*D19)/AK45,(AD123+AM35*D19)/AL45,(AD124+AM35*D19)/AM45,(AD125+AM35*D19)/AN45,(AD126+AM35*D19)/AO45)*AP45 ->  | BN92: =MIN((AE122+AM35*D19)/AK45,(AE123+AM35*D19)/AL45,(AE124+AM35*D19)/AM45,(AE125+AM35*D19)/AN45,(AE126+AM35*D19)/AO45)*AP45 ->  | BO92: =MIN((AF122+AM35*D19)/AK45,(AF123+AM35*D19)/AL45,(AF124+AM35*D19)/AM45,(AF125+AM35*D19)/AN45,(AF126+AM35*D19)/AO45)*AP45 ->  | BR92: =BB109 -> kit 1 | BS92: kit 2/3 | BT92: 0 | BU92: kit 4 | BV92: 0 | BW92: kit 5 | BX92: kit 6/7 | BY92: 0 | BZ92: 0 | CA92: kit 8 | CB92: kit 9 | CC92: 0 | CD92: kit 10 | CE92: kit 11 | CF92: total | CH92: =SUM(CH81:CH91) -> 
E93: 0.7266 | F93: 1.0899 | G93: 1.8165 | H93: 0.3633 | I93: 0.54495 | J93: 0.90825 | K93: 0.4541 | L93: 0.4541 | M93: 0.9082 | N93: 0.90825 | O93: 0.90825 | P93: 1.8165 | R93: =G16 ->  | S93: =S86 -> kit 1 | T93: =T86 -> kit 2/3 | U93: 0 | V93: kit 4 | W93: 0 | X93: kit 5 | Y93: kit 6/7 | Z93: 0 | AA93: 0 | AB93: kit 8 | AC93: kit 9 | AD93: 0 | AE93: =AE86 -> kit 10 | AF93: =AF86 -> kit 11 | AK93: =MIN((S129+AL35*D19)/AK44,(S130+AL35*D19)/AL44,(S131+AL35*D19)/AM44,(S132+AL35*D19)/AN44,(S133+AL35*D19)/AO44)*AP44 ->  | AL93: =MIN((T129+AL35*D19)/AK44,(T130+AL35*D19)/AL44,(T131+AL35*D19)/AM44,(T132+AL35*D19)/AN44,(T133+AL35*D19)/AO44)*AP44 ->  | AM93: =MIN((U129+AL35*D19)/AK44,(U130+AL35*D19)/AL44,(U131+AL35*D19)/AM44,(U132+AL35*D19)/AN44,(U133+AL35*D19)/AO44)*AP44 ->  | AN93: =MIN((V129+AL35*D19)/AK44,(V130+AL35*D19)/AL44,(V131+AL35*D19)/AM44,(V132+AL35*D19)/AN44,(V133+AL35*D19)/AO44)*AP44 ->  | AO93: =MIN((W129+AL35*D19)/AK44,(W130+AL35*D19)/AL44,(W131+AL35*D19)/AM44,(W132+AL35*D19)/AN44,(W133+AL35*D19)/AO44)*AP44 ->  | AP93: =MIN((X129+AL35*D19)/AK44,(X130+AL35*D19)/AL44,(X131+AL35*D19)/AM44,(X132+AL35*D19)/AN44,(X133+AL35*D19)/AO44)*AP44 ->  | AQ93: =MIN((Y129+AL35*D19)/AK44,(Y130+AL35*D19)/AL44,(Y131+AL35*D19)/AM44,(Y132+AL35*D19)/AN44,(Y133+AL35*D19)/AO44)*AP44 ->  | AR93: =MIN((Z129+AL35*D19)/AK44,(Z130+AL35*D19)/AL44,(Z131+AL35*D19)/AM44,(Z132+AL35*D19)/AN44,(Z133+AL35*D19)/AO44)*AP44 ->  | AS93: =MIN((AA129+AL35*D19)/AK44,(AA130+AL35*D19)/AL44,(AA131+AL35*D19)/AM44,(AA132+AL35*D19)/AN44,(AA133+AL35*D19)/AO44)*AP44 ->  | AT93: =MIN((AB129+AL35*D19)/AK44,(AB130+AL35*D19)/AL44,(AB131+AL35*D19)/AM44,(AB132+AL35*D19)/AN44,(AB133+AL35*D19)/AO44)*AP44 ->  | AU93: =MIN((AC129+AL35*D19)/AK44,(AC130+AL35*D19)/AL44,(AC131+AL35*D19)/AM44,(AC132+AL35*D19)/AN44,(AC133+AL35*D19)/AO44)*AP44 ->  | AV93: =MIN((AD129+AL35*D19)/AK44,(AD130+AL35*D19)/AL44,(AD131+AL35*D19)/AM44,(AD132+AL35*D19)/AN44,(AD133+AL35*D19)/AO44)*AP44 ->  | AW93: =MIN((AE129+AL35*D19)/AK44,(AE130+AL35*D19)/AL44,(AE131+AL35*D19)/AM44,(AE132+AL35*D19)/AN44,(AE133+AL35*D19)/AO44)*AP44 ->  | AX93: =MIN((AF129+AL35*D19)/AK44,(AF130+AL35*D19)/AL44,(AF131+AL35*D19)/AM44,(AF132+AL35*D19)/AN44,(AF133+AL35*D19)/AO44)*AP44 ->  | BB93: =MIN((S129+AM35*D19)/AK45,(S130+AM35*D19)/AL45,(S131+AM35*D19)/AM45,(S132+AM35*D19)/AN45,(S133+AM35*D19)/AO45)*AP45 ->  | BC93: =MIN((T129+AM35*D19)/AK45,(T130+AM35*D19)/AL45,(T131+AM35*D19)/AM45,(T132+AM35*D19)/AN45,(T133+AM35*D19)/AO45)*AP45 ->  | BD93: =MIN((U129+AM35*D19)/AK45,(U130+AM35*D19)/AL45,(U131+AM35*D19)/AM45,(U132+AM35*D19)/AN45,(U133+AM35*D19)/AO45)*AP45 ->  | BE93: =MIN((V129+AM35*D19)/AK45,(V130+AM35*D19)/AL45,(V131+AM35*D19)/AM45,(V132+AM35*D19)/AN45,(V133+AM35*D19)/AO45)*AP45 ->  | BF93: =MIN((W129+AM35*D19)/AK45,(W130+AM35*D19)/AL45,(W131+AM35*D19)/AM45,(W132+AM35*D19)/AN45,(W133+AM35*D19)/AO45)*AP45 ->  | BG93: =MIN((X129+AM35*D19)/AK45,(X130+AM35*D19)/AL45,(X131+AM35*D19)/AM45,(X132+AM35*D19)/AN45,(X133+AM35*D19)/AO45)*AP45 ->  | BH93: =MIN((Y129+AM35*D19)/AK45,(Y130+AM35*D19)/AL45,(Y131+AM35*D19)/AM45,(Y132+AM35*D19)/AN45,(Y133+AM35*D19)/AO45)*AP45 ->  | BI93: =MIN((Z129+AM35*D19)/AK45,(Z130+AM35*D19)/AL45,(Z131+AM35*D19)/AM45,(Z132+AM35*D19)/AN45,(Z133+AM35*D19)/AO45)*AP45 ->  | BJ93: =MIN((AA129+AM35*D19)/AK45,(AA130+AM35*D19)/AL45,(AA131+AM35*D19)/AM45,(AA132+AM35*D19)/AN45,(AA133+AM35*D19)/AO45)*AP45 ->  | BK93: =MIN((AB129+AM35*D19)/AK45,(AB130+AM35*D19)/AL45,(AB131+AM35*D19)/AM45,(AB132+AM35*D19)/AN45,(AB133+AM35*D19)/AO45)*AP45 ->  | BL93: =MIN((AC129+AM35*D19)/AK45,(AC130+AM35*D19)/AL45,(AC131+AM35*D19)/AM45,(AC132+AM35*D19)/AN45,(AC133+AM35*D19)/AO45)*AP45 ->  | BM93: =MIN((AD129+AM35*D19)/AK45,(AD130+AM35*D19)/AL45,(AD131+AM35*D19)/AM45,(AD132+AM35*D19)/AN45,(AD133+AM35*D19)/AO45)*AP45 ->  | BN93: =MIN((AE129+AM35*D19)/AK45,(AE130+AM35*D19)/AL45,(AE131+AM35*D19)/AM45,(AE132+AM35*D19)/AN45,(AE133+AM35*D19)/AO45)*AP45 ->  | BO93: =MIN((AF129+AM35*D19)/AK45,(AF130+AM35*D19)/AL45,(AF131+AM35*D19)/AM45,(AF132+AM35*D19)/AN45,(AF133+AM35*D19)/AO45)*AP45 ->  | BR93: =BB109 -> kit 1 | BS93: kit 2/3 | BT93: 0 | BU93: kit 4 | BV93: 0 | BW93: kit 5 | BX93: kit 6/7 | BY93: 0 | BZ93: 0 | CA93: kit 8 | CB93: kit 9 | CC93: 0 | CD93: kit 10 | CE93: kit 11 | CF93: rapport atttaque adversaire defense mon équipe et inversement avec bonus stratégie
E94: 0.7266 | F94: 1.0899 | G94: 1.8165 | H94: 0.95365 | I94: 0.4087 | J94: 1.36235 | K94: 0.4541 | L94: 0.4541 | M94: 0.9082 | N94: 1.0899 | O94: 0.7266 | P94: 1.8165 | R94: =IF($AX$306,H16+VLOOKUP(Team!$X22,Team!$E$30:$J$300,6,FALSE),H16+AH39+$D$21)+$D$19*$AG$13 ->  | S94: =IF($AX$306,$R94,$R94+Q10) ->  | T94: =IF($AX$306,$R94,$R94+R10) ->  | AK94: =MIN((S136+AL35*D19)/AK44,(S137+AL35*D19)/AL44,(S138+AL35*D19)/AM44,(S139+AL35*D19)/AN44,(S140+AL35*D19)/AO44)*AP44 ->  | AL94: =MIN((T136+AL35*D19)/AK44,(T137+AL35*D19)/AL44,(T138+AL35*D19)/AM44,(T139+AL35*D19)/AN44,(T140+AL35*D19)/AO44)*AP44 ->  | AM94: =MIN((U136+AL35*D19)/AK44,(U137+AL35*D19)/AL44,(U138+AL35*D19)/AM44,(U139+AL35*D19)/AN44,(U140+AL35*D19)/AO44)*AP44 ->  | AN94: =MIN((V136+AL35*D19)/AK44,(V137+AL35*D19)/AL44,(V138+AL35*D19)/AM44,(V139+AL35*D19)/AN44,(V140+AL35*D19)/AO44)*AP44 ->  | AO94: =MIN((W136+AL35*D19)/AK44,(W137+AL35*D19)/AL44,(W138+AL35*D19)/AM44,(W139+AL35*D19)/AN44,(W140+AL35*D19)/AO44)*AP44 ->  | AP94: =MIN((X136+AL35*D19)/AK44,(X137+AL35*D19)/AL44,(X138+AL35*D19)/AM44,(X139+AL35*D19)/AN44,(X140+AL35*D19)/AO44)*AP44 ->  | AQ94: =MIN((Y136+AL35*D19)/AK44,(Y137+AL35*D19)/AL44,(Y138+AL35*D19)/AM44,(Y139+AL35*D19)/AN44,(Y140+AL35*D19)/AO44)*AP44 ->  | AR94: =MIN((Z136+AL35*D19)/AK44,(Z137+AL35*D19)/AL44,(Z138+AL35*D19)/AM44,(Z139+AL35*D19)/AN44,(Z140+AL35*D19)/AO44)*AP44 ->  | AS94: =MIN((AA136+AL35*D19)/AK44,(AA137+AL35*D19)/AL44,(AA138+AL35*D19)/AM44,(AA139+AL35*D19)/AN44,(AA140+AL35*D19)/AO44)*AP44 ->  | AT94: =MIN((AB136+AL35*D19)/AK44,(AB137+AL35*D19)/AL44,(AB138+AL35*D19)/AM44,(AB139+AL35*D19)/AN44,(AB140+AL35*D19)/AO44)*AP44 ->  | AU94: =MIN((AC136+AL35*D19)/AK44,(AC137+AL35*D19)/AL44,(AC138+AL35*D19)/AM44,(AC139+AL35*D19)/AN44,(AC140+AL35*D19)/AO44)*AP44 ->  | AV94: =MIN((AD136+AL35*D19)/AK44,(AD137+AL35*D19)/AL44,(AD138+AL35*D19)/AM44,(AD139+AL35*D19)/AN44,(AD140+AL35*D19)/AO44)*AP44 ->  | AW94: =MIN((AE136+AL35*D19)/AK44,(AE137+AL35*D19)/AL44,(AE138+AL35*D19)/AM44,(AE139+AL35*D19)/AN44,(AE140+AL35*D19)/AO44)*AP44 ->  | AX94: =MIN((AF136+AL35*D19)/AK44,(AF137+AL35*D19)/AL44,(AF138+AL35*D19)/AM44,(AF139+AL35*D19)/AN44,(AF140+AL35*D19)/AO44)*AP44 ->  | BB94: =MIN((S136+AM35*D19)/AK45,(S137+AM35*D19)/AL45,(S138+AM35*D19)/AM45,(S139+AM35*D19)/AN45,(S140+AM35*D19)/AO45)*AP45 ->  | BC94: =MIN((T136+AM35*D19)/AK45,(T137+AM35*D19)/AL45,(T138+AM35*D19)/AM45,(T139+AM35*D19)/AN45,(T140+AM35*D19)/AO45)*AP45 ->  | BD94: =MIN((U136+AM35*D19)/AK45,(U137+AM35*D19)/AL45,(U138+AM35*D19)/AM45,(U139+AM35*D19)/AN45,(U140+AM35*D19)/AO45)*AP45 ->  | BE94: =MIN((V136+AM35*D19)/AK45,(V137+AM35*D19)/AL45,(V138+AM35*D19)/AM45,(V139+AM35*D19)/AN45,(V140+AM35*D19)/AO45)*AP45 ->  | BF94: =MIN((W136+AM35*D19)/AK45,(W137+AM35*D19)/AL45,(W138+AM35*D19)/AM45,(W139+AM35*D19)/AN45,(W140+AM35*D19)/AO45)*AP45 ->  | BG94: =MIN((X136+AM35*D19)/AK45,(X137+AM35*D19)/AL45,(X138+AM35*D19)/AM45,(X139+AM35*D19)/AN45,(X140+AM35*D19)/AO45)*AP45 ->  | BH94: =MIN((Y136+AM35*D19)/AK45,(Y137+AM35*D19)/AL45,(Y138+AM35*D19)/AM45,(Y139+AM35*D19)/AN45,(Y140+AM35*D19)/AO45)*AP45 ->  | BI94: =MIN((Z136+AM35*D19)/AK45,(Z137+AM35*D19)/AL45,(Z138+AM35*D19)/AM45,(Z139+AM35*D19)/AN45,(Z140+AM35*D19)/AO45)*AP45 ->  | BJ94: =MIN((AA136+AM35*D19)/AK45,(AA137+AM35*D19)/AL45,(AA138+AM35*D19)/AM45,(AA139+AM35*D19)/AN45,(AA140+AM35*D19)/AO45)*AP45 ->  | BK94: =MIN((AB136+AM35*D19)/AK45,(AB137+AM35*D19)/AL45,(AB138+AM35*D19)/AM45,(AB139+AM35*D19)/AN45,(AB140+AM35*D19)/AO45)*AP45 ->  | BL94: =MIN((AC136+AM35*D19)/AK45,(AC137+AM35*D19)/AL45,(AC138+AM35*D19)/AM45,(AC139+AM35*D19)/AN45,(AC140+AM35*D19)/AO45)*AP45 ->  | BM94: =MIN((AD136+AM35*D19)/AK45,(AD137+AM35*D19)/AL45,(AD138+AM35*D19)/AM45,(AD139+AM35*D19)/AN45,(AD140+AM35*D19)/AO45)*AP45 ->  | BN94: =MIN((AE136+AM35*D19)/AK45,(AE137+AM35*D19)/AL45,(AE138+AM35*D19)/AM45,(AE139+AM35*D19)/AN45,(AE140+AM35*D19)/AO45)*AP45 ->  | BO94: =MIN((AF136+AM35*D19)/AK45,(AF137+AM35*D19)/AL45,(AF138+AM35*D19)/AM45,(AF139+AM35*D19)/AN45,(AF140+AM35*D19)/AO45)*AP45 ->  | BR94: =BB109 -> kit 1 | BS94: kit 2/3 | BT94: 0 | BU94: kit 4 | BV94: 0 | BW94: kit 5 | BX94: kit 6/7 | BY94: 0 | BZ94: 0 | CA94: kit 8 | CB94: kit 9 | CC94: 0 | CD94: kit 10 | CE94: kit 11
E95: 0.90825 | F95: 1.36235 | G95: 2.2706 | H95: 0.95365 | I95: 0.4087 | J95: 1.36235 | K95: 1.0899 | L95: 0.7266 | M95: 1.8165 | N95: 1.0899 | O95: 0.7266 | P95: 1.8165 | R95: =IF($AX$306,I16+VLOOKUP(Team!$Y22,Team!$E$30:$J$300,6,FALSE),I16+AH40+$D$21)+$D$19*$AG$13 ->  | S95: =IF($AX$306,$R95,$R95+Q11) ->  | AK95: =MIN((S143+AL35*D19)/AK44,(S144+AL35*D19)/AL44,(S145+AL35*D19)/AM44,(S146+AL35*D19)/AN44,(S147+AL35*D19)/AO44)*AP44 ->  | AL95: =MIN((T143+AL35*D19)/AK44,(T144+AL35*D19)/AL44,(T145+AL35*D19)/AM44,(T146+AL35*D19)/AN44,(T147+AL35*D19)/AO44)*AP44 ->  | AM95: =MIN((U143+AL35*D19)/AK44,(U144+AL35*D19)/AL44,(U145+AL35*D19)/AM44,(U146+AL35*D19)/AN44,(U147+AL35*D19)/AO44)*AP44 ->  | AN95: =MIN((V143+AL35*D19)/AK44,(V144+AL35*D19)/AL44,(V145+AL35*D19)/AM44,(V146+AL35*D19)/AN44,(V147+AL35*D19)/AO44)*AP44 ->  | AO95: =MIN((W143+AL35*D19)/AK44,(W144+AL35*D19)/AL44,(W145+AL35*D19)/AM44,(W146+AL35*D19)/AN44,(W147+AL35*D19)/AO44)*AP44 ->  | AP95: =MIN((X143+AL35*D19)/AK44,(X144+AL35*D19)/AL44,(X145+AL35*D19)/AM44,(X146+AL35*D19)/AN44,(X147+AL35*D19)/AO44)*AP44 ->  | AQ95: =MIN((Y143+AL35*D19)/AK44,(Y144+AL35*D19)/AL44,(Y145+AL35*D19)/AM44,(Y146+AL35*D19)/AN44,(Y147+AL35*D19)/AO44)*AP44 ->  | AR95: =MIN((Z143+AL35*D19)/AK44,(Z144+AL35*D19)/AL44,(Z145+AL35*D19)/AM44,(Z146+AL35*D19)/AN44,(Z147+AL35*D19)/AO44)*AP44 ->  | AS95: =MIN((AA143+AL35*D19)/AK44,(AA144+AL35*D19)/AL44,(AA145+AL35*D19)/AM44,(AA146+AL35*D19)/AN44,(AA147+AL35*D19)/AO44)*AP44 ->  | AT95: =MIN((AB143+AL35*D19)/AK44,(AB144+AL35*D19)/AL44,(AB145+AL35*D19)/AM44,(AB146+AL35*D19)/AN44,(AB147+AL35*D19)/AO44)*AP44 ->  | AU95: =MIN((AC143+AL35*D19)/AK44,(AC144+AL35*D19)/AL44,(AC145+AL35*D19)/AM44,(AC146+AL35*D19)/AN44,(AC147+AL35*D19)/AO44)*AP44 ->  | AV95: =MIN((AD143+AL35*D19)/AK44,(AD144+AL35*D19)/AL44,(AD145+AL35*D19)/AM44,(AD146+AL35*D19)/AN44,(AD147+AL35*D19)/AO44)*AP44 ->  | AW95: =MIN((AE143+AL35*D19)/AK44,(AE144+AL35*D19)/AL44,(AE145+AL35*D19)/AM44,(AE146+AL35*D19)/AN44,(AE147+AL35*D19)/AO44)*AP44 ->  | AX95: =MIN((AF143+AL35*D19)/AK44,(AF144+AL35*D19)/AL44,(AF145+AL35*D19)/AM44,(AF146+AL35*D19)/AN44,(AF147+AL35*D19)/AO44)*AP44 ->  | BB95: =MIN((S143+AM35*D19)/AK45,(S144+AM35*D19)/AL45,(S145+AM35*D19)/AM45,(S146+AM35*D19)/AN45,(S147+AM35*D19)/AO45)*AP45 ->  | BC95: =MIN((T143+AM35*D19)/AK45,(T144+AM35*D19)/AL45,(T145+AM35*D19)/AM45,(T146+AM35*D19)/AN45,(T147+AM35*D19)/AO45)*AP45 ->  | BD95: =MIN((U143+AM35*D19)/AK45,(U144+AM35*D19)/AL45,(U145+AM35*D19)/AM45,(U146+AM35*D19)/AN45,(U147+AM35*D19)/AO45)*AP45 ->  | BE95: =MIN((V143+AM35*D19)/AK45,(V144+AM35*D19)/AL45,(V145+AM35*D19)/AM45,(V146+AM35*D19)/AN45,(V147+AM35*D19)/AO45)*AP45 ->  | BF95: =MIN((W143+AM35*D19)/AK45,(W144+AM35*D19)/AL45,(W145+AM35*D19)/AM45,(W146+AM35*D19)/AN45,(W147+AM35*D19)/AO45)*AP45 ->  | BG95: =MIN((X143+AM35*D19)/AK45,(X144+AM35*D19)/AL45,(X145+AM35*D19)/AM45,(X146+AM35*D19)/AN45,(X147+AM35*D19)/AO45)*AP45 ->  | BH95: =MIN((Y143+AM35*D19)/AK45,(Y144+AM35*D19)/AL45,(Y145+AM35*D19)/AM45,(Y146+AM35*D19)/AN45,(Y147+AM35*D19)/AO45)*AP45 ->  | BI95: =MIN((Z143+AM35*D19)/AK45,(Z144+AM35*D19)/AL45,(Z145+AM35*D19)/AM45,(Z146+AM35*D19)/AN45,(Z147+AM35*D19)/AO45)*AP45 ->  | BJ95: =MIN((AA143+AM35*D19)/AK45,(AA144+AM35*D19)/AL45,(AA145+AM35*D19)/AM45,(AA146+AM35*D19)/AN45,(AA147+AM35*D19)/AO45)*AP45 ->  | BK95: =MIN((AB143+AM35*D19)/AK45,(AB144+AM35*D19)/AL45,(AB145+AM35*D19)/AM45,(AB146+AM35*D19)/AN45,(AB147+AM35*D19)/AO45)*AP45 ->  | BL95: =MIN((AC143+AM35*D19)/AK45,(AC144+AM35*D19)/AL45,(AC145+AM35*D19)/AM45,(AC146+AM35*D19)/AN45,(AC147+AM35*D19)/AO45)*AP45 ->  | BM95: =MIN((AD143+AM35*D19)/AK45,(AD144+AM35*D19)/AL45,(AD145+AM35*D19)/AM45,(AD146+AM35*D19)/AN45,(AD147+AM35*D19)/AO45)*AP45 ->  | BN95: =MIN((AE143+AM35*D19)/AK45,(AE144+AM35*D19)/AL45,(AE145+AM35*D19)/AM45,(AE146+AM35*D19)/AN45,(AE147+AM35*D19)/AO45)*AP45 ->  | BO95: =MIN((AF143+AM35*D19)/AK45,(AF144+AM35*D19)/AL45,(AF145+AM35*D19)/AM45,(AF146+AM35*D19)/AN45,(AF147+AM35*D19)/AO45)*AP45 ->  | BR95: =BB109 -> kit 1 | BS95: kit 2/3 | BT95: 0 | BU95: kit 4 | BV95: 0 | BW95: kit 5 | BX95: kit 6/7 | BY95: 0 | BZ95: 0 | CA95: kit 8 | CB95: kit 9 | CC95: 0 | CD95: kit 10 | CE95: kit 11 | CG95: tactique adversaire | CJ95: 541 | CS95: 433 | DB95: 352 | DK95: 442
E96: 1.0899 | F96: 0.7266 | G96: 1.8165 | H96: 0.94985 | I96: 0.40705 | J96: 1.3569 | K96: 1.90735 | L96: 0.8174 | M96: 2.72475 | N96: 1.0899 | O96: 0.27245 | P96: 1.36235 | R96: =IF($AX$306,J16+VLOOKUP(Team!$Z22,Team!$E$30:$J$300,6,FALSE),J16+AH41+$D$21)+$D$19*$AG$13 ->  | S96: =IF($AX$306,$R96,$R96+Q12) ->  | AK96: =MIN((S150+AL35*D19)/AK44,(S151+AL35*D19)/AL44,(S152+AL35*D19)/AM44,(S153+AL35*D19)/AN44,(S154+AL35*D19)/AO44)*AP44 ->  | AL96: =MIN((T150+AL35*D19)/AK44,(T151+AL35*D19)/AL44,(T152+AL35*D19)/AM44,(T153+AL35*D19)/AN44,(T154+AL35*D19)/AO44)*AP44 ->  | AM96: =MIN((U150+AL35*D19)/AK44,(U151+AL35*D19)/AL44,(U152+AL35*D19)/AM44,(U153+AL35*D19)/AN44,(U154+AL35*D19)/AO44)*AP44 ->  | AN96: =MIN((V150+AL35*D19)/AK44,(V151+AL35*D19)/AL44,(V152+AL35*D19)/AM44,(V153+AL35*D19)/AN44,(V154+AL35*D19)/AO44)*AP44 ->  | AO96: =MIN((W150+AL35*D19)/AK44,(W151+AL35*D19)/AL44,(W152+AL35*D19)/AM44,(W153+AL35*D19)/AN44,(W154+AL35*D19)/AO44)*AP44 ->  | AP96: =MIN((X150+AL35*D19)/AK44,(X151+AL35*D19)/AL44,(X152+AL35*D19)/AM44,(X153+AL35*D19)/AN44,(X154+AL35*D19)/AO44)*AP44 ->  | AQ96: =MIN((Y150+AL35*D19)/AK44,(Y151+AL35*D19)/AL44,(Y152+AL35*D19)/AM44,(Y153+AL35*D19)/AN44,(Y154+AL35*D19)/AO44)*AP44 ->  | AR96: =MIN((Z150+AL35*D19)/AK44,(Z151+AL35*D19)/AL44,(Z152+AL35*D19)/AM44,(Z153+AL35*D19)/AN44,(Z154+AL35*D19)/AO44)*AP44 ->  | AS96: =MIN((AA150+AL35*D19)/AK44,(AA151+AL35*D19)/AL44,(AA152+AL35*D19)/AM44,(AA153+AL35*D19)/AN44,(AA154+AL35*D19)/AO44)*AP44 ->  | AT96: =MIN((AB150+AL35*D19)/AK44,(AB151+AL35*D19)/AL44,(AB152+AL35*D19)/AM44,(AB153+AL35*D19)/AN44,(AB154+AL35*D19)/AO44)*AP44 ->  | AU96: =MIN((AC150+AL35*D19)/AK44,(AC151+AL35*D19)/AL44,(AC152+AL35*D19)/AM44,(AC153+AL35*D19)/AN44,(AC154+AL35*D19)/AO44)*AP44 ->  | AV96: =MIN((AD150+AL35*D19)/AK44,(AD151+AL35*D19)/AL44,(AD152+AL35*D19)/AM44,(AD153+AL35*D19)/AN44,(AD154+AL35*D19)/AO44)*AP44 ->  | AW96: =MIN((AE150+AL35*D19)/AK44,(AE151+AL35*D19)/AL44,(AE152+AL35*D19)/AM44,(AE153+AL35*D19)/AN44,(AE154+AL35*D19)/AO44)*AP44 ->  | AX96: =MIN((AF150+AL35*D19)/AK44,(AF151+AL35*D19)/AL44,(AF152+AL35*D19)/AM44,(AF153+AL35*D19)/AN44,(AF154+AL35*D19)/AO44)*AP44 ->  | BB96: =MIN((S150+AM35*D19)/AK45,(S151+AM35*D19)/AL45,(S152+AM35*D19)/AM45,(S153+AM35*D19)/AN45,(S154+AM35*D19)/AO45)*AP45 ->  | BC96: =MIN((T150+AM35*D19)/AK45,(T151+AM35*D19)/AL45,(T152+AM35*D19)/AM45,(T153+AM35*D19)/AN45,(T154+AM35*D19)/AO45)*AP45 ->  | BD96: =MIN((U150+AM35*D19)/AK45,(U151+AM35*D19)/AL45,(U152+AM35*D19)/AM45,(U153+AM35*D19)/AN45,(U154+AM35*D19)/AO45)*AP45 ->  | BE96: =MIN((V150+AM35*D19)/AK45,(V151+AM35*D19)/AL45,(V152+AM35*D19)/AM45,(V153+AM35*D19)/AN45,(V154+AM35*D19)/AO45)*AP45 ->  | BF96: =MIN((W150+AM35*D19)/AK45,(W151+AM35*D19)/AL45,(W152+AM35*D19)/AM45,(W153+AM35*D19)/AN45,(W154+AM35*D19)/AO45)*AP45 ->  | BG96: =MIN((X150+AM35*D19)/AK45,(X151+AM35*D19)/AL45,(X152+AM35*D19)/AM45,(X153+AM35*D19)/AN45,(X154+AM35*D19)/AO45)*AP45 ->  | BH96: =MIN((Y150+AM35*D19)/AK45,(Y151+AM35*D19)/AL45,(Y152+AM35*D19)/AM45,(Y153+AM35*D19)/AN45,(Y154+AM35*D19)/AO45)*AP45 ->  | BI96: =MIN((Z150+AM35*D19)/AK45,(Z151+AM35*D19)/AL45,(Z152+AM35*D19)/AM45,(Z153+AM35*D19)/AN45,(Z154+AM35*D19)/AO45)*AP45 ->  | BJ96: =MIN((AA150+AM35*D19)/AK45,(AA151+AM35*D19)/AL45,(AA152+AM35*D19)/AM45,(AA153+AM35*D19)/AN45,(AA154+AM35*D19)/AO45)*AP45 ->  | BK96: =MIN((AB150+AM35*D19)/AK45,(AB151+AM35*D19)/AL45,(AB152+AM35*D19)/AM45,(AB153+AM35*D19)/AN45,(AB154+AM35*D19)/AO45)*AP45 ->  | BL96: =MIN((AC150+AM35*D19)/AK45,(AC151+AM35*D19)/AL45,(AC152+AM35*D19)/AM45,(AC153+AM35*D19)/AN45,(AC154+AM35*D19)/AO45)*AP45 ->  | BM96: =MIN((AD150+AM35*D19)/AK45,(AD151+AM35*D19)/AL45,(AD152+AM35*D19)/AM45,(AD153+AM35*D19)/AN45,(AD154+AM35*D19)/AO45)*AP45 ->  | BN96: =MIN((AE150+AM35*D19)/AK45,(AE151+AM35*D19)/AL45,(AE152+AM35*D19)/AM45,(AE153+AM35*D19)/AN45,(AE154+AM35*D19)/AO45)*AP45 ->  | BO96: =MIN((AF150+AM35*D19)/AK45,(AF151+AM35*D19)/AL45,(AF152+AM35*D19)/AM45,(AF153+AM35*D19)/AN45,(AF154+AM35*D19)/AO45)*AP45 ->  | BR96: =BB109 -> kit 1 | BS96: kit 2/3 | BT96: 0 | BU96: kit 4 | BV96: 0 | BW96: kit 5 | BX96: kit 6/7 | BY96: 0 | BZ96: 0 | CA96: kit 8 | CB96: kit 9 | CC96: 0 | CD96: kit 10 | CE96: kit 11 | CJ96: defensif | CM96: neutre | CP96: offensif | CS96: defensif | CV96: neutre | CY96: offensif | DB96: defensif | DE96: neutre | DH96: offensif | DK96: defensif | DN96: neutre | DQ96: offensif
E97: 0.95365 | F97: 0.4087 | G97: 1.36235 | H97: 2.4523 | I97: 0.27245 | J97: 2.72475 | K97: 1.0899 | L97: 0.27245 | M97: 1.36235 | N97: 1.0899 | O97: 0.27245 | P97: 1.36235 | R97: =IF($AX$306,K16+VLOOKUP(Team!$AA22,Team!$E$30:$J$300,6,FALSE),K16+AH42+$D$21)+$D$19*$AG$13 ->  | S97: =IF($AX$306,$R97,$R97+Q13) ->  | AK97: =MIN((S157+AL35*D19)/AK44,(S158+AL35*D19)/AL44,(S159+AL35*D19)/AM44,(S160+AL35*D19)/AN44,(S161+AL35*D19)/AO44)*AP44 ->  | AL97: =MIN((T157+AL35*D19)/AK44,(T158+AL35*D19)/AL44,(T159+AL35*D19)/AM44,(T160+AL35*D19)/AN44,(T161+AL35*D19)/AO44)*AP44 ->  | AM97: =MIN((U157+AL35*D19)/AK44,(U158+AL35*D19)/AL44,(U159+AL35*D19)/AM44,(U160+AL35*D19)/AN44,(U161+AL35*D19)/AO44)*AP44 ->  | AN97: =MIN((V157+AL35*D19)/AK44,(V158+AL35*D19)/AL44,(V159+AL35*D19)/AM44,(V160+AL35*D19)/AN44,(V161+AL35*D19)/AO44)*AP44 ->  | AO97: =MIN((W157+AL35*D19)/AK44,(W158+AL35*D19)/AL44,(W159+AL35*D19)/AM44,(W160+AL35*D19)/AN44,(W161+AL35*D19)/AO44)*AP44 ->  | AP97: =MIN((X157+AL35*D19)/AK44,(X158+AL35*D19)/AL44,(X159+AL35*D19)/AM44,(X160+AL35*D19)/AN44,(X161+AL35*D19)/AO44)*AP44 ->  | AQ97: =MIN((Y157+AL35*D19)/AK44,(Y158+AL35*D19)/AL44,(Y159+AL35*D19)/AM44,(Y160+AL35*D19)/AN44,(Y161+AL35*D19)/AO44)*AP44 ->  | AR97: =MIN((Z157+AL35*D19)/AK44,(Z158+AL35*D19)/AL44,(Z159+AL35*D19)/AM44,(Z160+AL35*D19)/AN44,(Z161+AL35*D19)/AO44)*AP44 ->  | AS97: =MIN((AA157+AL35*D19)/AK44,(AA158+AL35*D19)/AL44,(AA159+AL35*D19)/AM44,(AA160+AL35*D19)/AN44,(AA161+AL35*D19)/AO44)*AP44 ->  | AT97: =MIN((AB157+AL35*D19)/AK44,(AB158+AL35*D19)/AL44,(AB159+AL35*D19)/AM44,(AB160+AL35*D19)/AN44,(AB161+AL35*D19)/AO44)*AP44 ->  | AU97: =MIN((AC157+AL35*D19)/AK44,(AC158+AL35*D19)/AL44,(AC159+AL35*D19)/AM44,(AC160+AL35*D19)/AN44,(AC161+AL35*D19)/AO44)*AP44 ->  | AV97: =MIN((AD157+AL35*D19)/AK44,(AD158+AL35*D19)/AL44,(AD159+AL35*D19)/AM44,(AD160+AL35*D19)/AN44,(AD161+AL35*D19)/AO44)*AP44 ->  | AW97: =MIN((AE157+AL35*D19)/AK44,(AE158+AL35*D19)/AL44,(AE159+AL35*D19)/AM44,(AE160+AL35*D19)/AN44,(AE161+AL35*D19)/AO44)*AP44 ->  | AX97: =MIN((AF157+AL35*D19)/AK44,(AF158+AL35*D19)/AL44,(AF159+AL35*D19)/AM44,(AF160+AL35*D19)/AN44,(AF161+AL35*D19)/AO44)*AP44 ->  | BB97: =MIN((S157+AM35*D19)/AK45,(S158+AM35*D19)/AL45,(S159+AM35*D19)/AM45,(S160+AM35*D19)/AN45,(S161+AM35*D19)/AO45)*AP45 ->  | BC97: =MIN((T157+AM35*D19)/AK45,(T158+AM35*D19)/AL45,(T159+AM35*D19)/AM45,(T160+AM35*D19)/AN45,(T161+AM35*D19)/AO45)*AP45 ->  | BD97: =MIN((U157+AM35*D19)/AK45,(U158+AM35*D19)/AL45,(U159+AM35*D19)/AM45,(U160+AM35*D19)/AN45,(U161+AM35*D19)/AO45)*AP45 ->  | BE97: =MIN((V157+AM35*D19)/AK45,(V158+AM35*D19)/AL45,(V159+AM35*D19)/AM45,(V160+AM35*D19)/AN45,(V161+AM35*D19)/AO45)*AP45 ->  | BF97: =MIN((W157+AM35*D19)/AK45,(W158+AM35*D19)/AL45,(W159+AM35*D19)/AM45,(W160+AM35*D19)/AN45,(W161+AM35*D19)/AO45)*AP45 ->  | BG97: =MIN((X157+AM35*D19)/AK45,(X158+AM35*D19)/AL45,(X159+AM35*D19)/AM45,(X160+AM35*D19)/AN45,(X161+AM35*D19)/AO45)*AP45 ->  | BH97: =MIN((Y157+AM35*D19)/AK45,(Y158+AM35*D19)/AL45,(Y159+AM35*D19)/AM45,(Y160+AM35*D19)/AN45,(Y161+AM35*D19)/AO45)*AP45 ->  | BI97: =MIN((Z157+AM35*D19)/AK45,(Z158+AM35*D19)/AL45,(Z159+AM35*D19)/AM45,(Z160+AM35*D19)/AN45,(Z161+AM35*D19)/AO45)*AP45 ->  | BJ97: =MIN((AA157+AM35*D19)/AK45,(AA158+AM35*D19)/AL45,(AA159+AM35*D19)/AM45,(AA160+AM35*D19)/AN45,(AA161+AM35*D19)/AO45)*AP45 ->  | BK97: =MIN((AB157+AM35*D19)/AK45,(AB158+AM35*D19)/AL45,(AB159+AM35*D19)/AM45,(AB160+AM35*D19)/AN45,(AB161+AM35*D19)/AO45)*AP45 ->  | BL97: =MIN((AC157+AM35*D19)/AK45,(AC158+AM35*D19)/AL45,(AC159+AM35*D19)/AM45,(AC160+AM35*D19)/AN45,(AC161+AM35*D19)/AO45)*AP45 ->  | BM97: =MIN((AD157+AM35*D19)/AK45,(AD158+AM35*D19)/AL45,(AD159+AM35*D19)/AM45,(AD160+AM35*D19)/AN45,(AD161+AM35*D19)/AO45)*AP45 ->  | BN97: =MIN((AE157+AM35*D19)/AK45,(AE158+AM35*D19)/AL45,(AE159+AM35*D19)/AM45,(AE160+AM35*D19)/AN45,(AE161+AM35*D19)/AO45)*AP45 ->  | BO97: =MIN((AF157+AM35*D19)/AK45,(AF158+AM35*D19)/AL45,(AF159+AM35*D19)/AM45,(AF160+AM35*D19)/AN45,(AF161+AM35*D19)/AO45)*AP45 ->  | BR97: =BB109 -> kit 1 | BS97: kit 2/3 | BT97: 0 | BU97: kit 4 | BV97: 0 | BW97: kit 5 | BX97: kit 6/7 | BY97: 0 | BZ97: 0 | CA97: kit 8 | CB97: kit 9 | CC97: 0 | CD97: kit 10 | CE97: kit 11 | CG97: rapport et | CJ97: att A | CK97: att ME | CL97: compa | CM97: att A | CN97: att ME | CO97: compa | CP97: att A | CQ97: att ME | CR97: compa | CS97: att A | CT97: att ME | CU97: compa | CV97: att A | CW97: att ME | CX97: compa | CY97: att A | CZ97: att ME | DA97: compa | DB97: att A | DC97: att ME | DD97: compa | DE97: att A | DF97: att ME | DG97: compa | DH97: att A | DI97: att ME | DJ97: compa | DK97: att A | DL97: att ME | DM97: compa | DN97: att A | DO97: att ME | DP97: compa | DQ97: att A | DR97: att ME | DS97: compa
E98: 2.24795 | F98: 0.0227 | G98: 2.27065 | H98: 2.04355 | I98: 0.22705 | J98: 2.2706 | K98: 1.63485 | L98: 0.18165 | M98: 1.8165 | N98: 1.63485 | O98: 0.18165 | P98: 1.8165 | R98: =IF($AX$306,L16+VLOOKUP(Team!$AB22,Team!$E$30:$J$300,6,FALSE),L16+AH43+$D$21)+$D$19*$AG$13 ->  | S98: =IF($AX$306,$R98,$R98+Q14) ->  | AK98: =MIN((S164+AL35*D19)/AK44,(S165+AL35*D19)/AL44,(S166+AL35*D19)/AM44,(S167+AL35*D19)/AN44,(S168+AL35*D19)/AO44)*AP44 ->  | AL98: =MIN((T164+AL35*D19)/AK44,(T165+AL35*D19)/AL44,(T166+AL35*D19)/AM44,(T167+AL35*D19)/AN44,(T168+AL35*D19)/AO44)*AP44 ->  | AM98: =MIN((U164+AL35*D19)/AK44,(U165+AL35*D19)/AL44,(U166+AL35*D19)/AM44,(U167+AL35*D19)/AN44,(U168+AL35*D19)/AO44)*AP44 ->  | AN98: =MIN((V164+AL35*D19)/AK44,(V165+AL35*D19)/AL44,(V166+AL35*D19)/AM44,(V167+AL35*D19)/AN44,(V168+AL35*D19)/AO44)*AP44 ->  | AO98: =MIN((W164+AL35*D19)/AK44,(W165+AL35*D19)/AL44,(W166+AL35*D19)/AM44,(W167+AL35*D19)/AN44,(W168+AL35*D19)/AO44)*AP44 ->  | AP98: =MIN((X164+AL35*D19)/AK44,(X165+AL35*D19)/AL44,(X166+AL35*D19)/AM44,(X167+AL35*D19)/AN44,(X168+AL35*D19)/AO44)*AP44 ->  | AQ98: =MIN((Y164+AL35*D19)/AK44,(Y165+AL35*D19)/AL44,(Y166+AL35*D19)/AM44,(Y167+AL35*D19)/AN44,(Y168+AL35*D19)/AO44)*AP44 ->  | AR98: =MIN((Z164+AL35*D19)/AK44,(Z165+AL35*D19)/AL44,(Z166+AL35*D19)/AM44,(Z167+AL35*D19)/AN44,(Z168+AL35*D19)/AO44)*AP44 ->  | AS98: =MIN((AA164+AL35*D19)/AK44,(AA165+AL35*D19)/AL44,(AA166+AL35*D19)/AM44,(AA167+AL35*D19)/AN44,(AA168+AL35*D19)/AO44)*AP44 ->  | AT98: =MIN((AB164+AL35*D19)/AK44,(AB165+AL35*D19)/AL44,(AB166+AL35*D19)/AM44,(AB167+AL35*D19)/AN44,(AB168+AL35*D19)/AO44)*AP44 ->  | AU98: =MIN((AC164+AL35*D19)/AK44,(AC165+AL35*D19)/AL44,(AC166+AL35*D19)/AM44,(AC167+AL35*D19)/AN44,(AC168+AL35*D19)/AO44)*AP44 ->  | AV98: =MIN((AD164+AL35*D19)/AK44,(AD165+AL35*D19)/AL44,(AD166+AL35*D19)/AM44,(AD167+AL35*D19)/AN44,(AD168+AL35*D19)/AO44)*AP44 ->  | AW98: =MIN((AE164+AL35*D19)/AK44,(AE165+AL35*D19)/AL44,(AE166+AL35*D19)/AM44,(AE167+AL35*D19)/AN44,(AE168+AL35*D19)/AO44)*AP44 ->  | AX98: =MIN((AF164+AL35*D19)/AK44,(AF165+AL35*D19)/AL44,(AF166+AL35*D19)/AM44,(AF167+AL35*D19)/AN44,(AF168+AL35*D19)/AO44)*AP44 ->  | BB98: =MIN((S164+AM35*D19)/AK45,(S165+AM35*D19)/AL45,(S166+AM35*D19)/AM45,(S167+AM35*D19)/AN45,(S168+AM35*D19)/AO45)*AP45 ->  | BC98: =MIN((T164+AM35*D19)/AK45,(T165+AM35*D19)/AL45,(T166+AM35*D19)/AM45,(T167+AM35*D19)/AN45,(T168+AM35*D19)/AO45)*AP45 ->  | BD98: =MIN((U164+AM35*D19)/AK45,(U165+AM35*D19)/AL45,(U166+AM35*D19)/AM45,(U167+AM35*D19)/AN45,(U168+AM35*D19)/AO45)*AP45 ->  | BE98: =MIN((V164+AM35*D19)/AK45,(V165+AM35*D19)/AL45,(V166+AM35*D19)/AM45,(V167+AM35*D19)/AN45,(V168+AM35*D19)/AO45)*AP45 ->  | BF98: =MIN((W164+AM35*D19)/AK45,(W165+AM35*D19)/AL45,(W166+AM35*D19)/AM45,(W167+AM35*D19)/AN45,(W168+AM35*D19)/AO45)*AP45 ->  | BG98: =MIN((X164+AM35*D19)/AK45,(X165+AM35*D19)/AL45,(X166+AM35*D19)/AM45,(X167+AM35*D19)/AN45,(X168+AM35*D19)/AO45)*AP45 ->  | BH98: =MIN((Y164+AM35*D19)/AK45,(Y165+AM35*D19)/AL45,(Y166+AM35*D19)/AM45,(Y167+AM35*D19)/AN45,(Y168+AM35*D19)/AO45)*AP45 ->  | BI98: =MIN((Z164+AM35*D19)/AK45,(Z165+AM35*D19)/AL45,(Z166+AM35*D19)/AM45,(Z167+AM35*D19)/AN45,(Z168+AM35*D19)/AO45)*AP45 ->  | BJ98: =MIN((AA164+AM35*D19)/AK45,(AA165+AM35*D19)/AL45,(AA166+AM35*D19)/AM45,(AA167+AM35*D19)/AN45,(AA168+AM35*D19)/AO45)*AP45 ->  | BK98: =MIN((AB164+AM35*D19)/AK45,(AB165+AM35*D19)/AL45,(AB166+AM35*D19)/AM45,(AB167+AM35*D19)/AN45,(AB168+AM35*D19)/AO45)*AP45 ->  | BL98: =MIN((AC164+AM35*D19)/AK45,(AC165+AM35*D19)/AL45,(AC166+AM35*D19)/AM45,(AC167+AM35*D19)/AN45,(AC168+AM35*D19)/AO45)*AP45 ->  | BM98: =MIN((AD164+AM35*D19)/AK45,(AD165+AM35*D19)/AL45,(AD166+AM35*D19)/AM45,(AD167+AM35*D19)/AN45,(AD168+AM35*D19)/AO45)*AP45 ->  | BN98: =MIN((AE164+AM35*D19)/AK45,(AE165+AM35*D19)/AL45,(AE166+AM35*D19)/AM45,(AE167+AM35*D19)/AN45,(AE168+AM35*D19)/AO45)*AP45 ->  | BO98: =MIN((AF164+AM35*D19)/AK45,(AF165+AM35*D19)/AL45,(AF166+AM35*D19)/AM45,(AF167+AM35*D19)/AN45,(AF168+AM35*D19)/AO45)*AP45 ->  | BR98: =BB109 -> kit 1 | BS98: kit 2/3 | BT98: 0 | BU98: kit 4 | BV98: 0 | BW98: kit 5 | BX98: kit 6/7 | BY98: 0 | BZ98: 0 | CA98: kit 8 | CB98: kit 9 | CC98: 0 | CD98: kit 10 | CE98: kit 11 | CG98: comparaison | CJ98: def ME | CK98: def A | CL98: raison | CM98: def ME | CN98: def A | CO98: raison | CP98: def ME | CQ98: def A | CR98: raison | CS98: def ME | CT98: def A | CU98: raison | CV98: def ME | CW98: def A | CX98: raison | CY98: def ME | CZ98: def A | DA98: raison | DB98: def ME | DC98: def A | DD98: raison | DE98: def ME | DF98: def A | DG98: raison | DH98: def ME | DI98: def A | DJ98: raison | DK98: def ME | DL98: def A | DM98: raison | DN98: def ME | DO98: def A | DP98: raison | DQ98: def ME | DR98: def A | DS98: raison
E99: 1.4532 | F99: 0.3633 | G99: 1.8165 | H99: 1.63485 | I99: 0.18165 | J99: 1.8165 | K99: 1.0899 | L99: 0.27245 | M99: 1.36235 | N99: 1.90735 | O99: 0.8174 | P99: 2.72475 | AK99: =MIN((S171+AL35*D19)/AK44,(S172+AL35*D19)/AL44,(S173+AL35*D19)/AM44,(S174+AL35*D19)/AN44,(S175+AL35*D19)/AO44)*AP44 ->  | AL99: =MIN((T171+AL35*D19)/AK44,(T172+AL35*D19)/AL44,(T173+AL35*D19)/AM44,(T174+AL35*D19)/AN44,(T175+AL35*D19)/AO44)*AP44 ->  | AM99: =MIN((U171+AL35*D19)/AK44,(U172+AL35*D19)/AL44,(U173+AL35*D19)/AM44,(U174+AL35*D19)/AN44,(U175+AL35*D19)/AO44)*AP44 ->  | AN99: =MIN((V171+AL35*D19)/AK44,(V172+AL35*D19)/AL44,(V173+AL35*D19)/AM44,(V174+AL35*D19)/AN44,(V175+AL35*D19)/AO44)*AP44 ->  | AO99: =MIN((W171+AL35*D19)/AK44,(W172+AL35*D19)/AL44,(W173+AL35*D19)/AM44,(W174+AL35*D19)/AN44,(W175+AL35*D19)/AO44)*AP44 ->  | AP99: =MIN((X171+AL35*D19)/AK44,(X172+AL35*D19)/AL44,(X173+AL35*D19)/AM44,(X174+AL35*D19)/AN44,(X175+AL35*D19)/AO44)*AP44 ->  | AQ99: =MIN((Y171+AL35*D19)/AK44,(Y172+AL35*D19)/AL44,(Y173+AL35*D19)/AM44,(Y174+AL35*D19)/AN44,(Y175+AL35*D19)/AO44)*AP44 ->  | AR99: =MIN((Z171+AL35*D19)/AK44,(Z172+AL35*D19)/AL44,(Z173+AL35*D19)/AM44,(Z174+AL35*D19)/AN44,(Z175+AL35*D19)/AO44)*AP44 ->  | AS99: =MIN((AA171+AL35*D19)/AK44,(AA172+AL35*D19)/AL44,(AA173+AL35*D19)/AM44,(AA174+AL35*D19)/AN44,(AA175+AL35*D19)/AO44)*AP44 ->  | AT99: =MIN((AB171+AL35*D19)/AK44,(AB172+AL35*D19)/AL44,(AB173+AL35*D19)/AM44,(AB174+AL35*D19)/AN44,(AB175+AL35*D19)/AO44)*AP44 ->  | AU99: =MIN((AC171+AL35*D19)/AK44,(AC172+AL35*D19)/AL44,(AC173+AL35*D19)/AM44,(AC174+AL35*D19)/AN44,(AC175+AL35*D19)/AO44)*AP44 ->  | AV99: =MIN((AD171+AL35*D19)/AK44,(AD172+AL35*D19)/AL44,(AD173+AL35*D19)/AM44,(AD174+AL35*D19)/AN44,(AD175+AL35*D19)/AO44)*AP44 ->  | AW99: =MIN((AE171+AL35*D19)/AK44,(AE172+AL35*D19)/AL44,(AE173+AL35*D19)/AM44,(AE174+AL35*D19)/AN44,(AE175+AL35*D19)/AO44)*AP44 ->  | AX99: =MIN((AF171+AL35*D19)/AK44,(AF172+AL35*D19)/AL44,(AF173+AL35*D19)/AM44,(AF174+AL35*D19)/AN44,(AF175+AL35*D19)/AO44)*AP44 ->  | BB99: =MIN((S171+AM35*D19)/AK45,(S172+AM35*D19)/AL45,(S173+AM35*D19)/AM45,(S174+AM35*D19)/AN45,(S175+AM35*D19)/AO45)*AP45 ->  | BC99: =MIN((T171+AM35*D19)/AK45,(T172+AM35*D19)/AL45,(T173+AM35*D19)/AM45,(T174+AM35*D19)/AN45,(T175+AM35*D19)/AO45)*AP45 ->  | BD99: =MIN((U171+AM35*D19)/AK45,(U172+AM35*D19)/AL45,(U173+AM35*D19)/AM45,(U174+AM35*D19)/AN45,(U175+AM35*D19)/AO45)*AP45 ->  | BE99: =MIN((V171+AM35*D19)/AK45,(V172+AM35*D19)/AL45,(V173+AM35*D19)/AM45,(V174+AM35*D19)/AN45,(V175+AM35*D19)/AO45)*AP45 ->  | BF99: =MIN((W171+AM35*D19)/AK45,(W172+AM35*D19)/AL45,(W173+AM35*D19)/AM45,(W174+AM35*D19)/AN45,(W175+AM35*D19)/AO45)*AP45 ->  | BG99: =MIN((X171+AM35*D19)/AK45,(X172+AM35*D19)/AL45,(X173+AM35*D19)/AM45,(X174+AM35*D19)/AN45,(X175+AM35*D19)/AO45)*AP45 ->  | BH99: =MIN((Y171+AM35*D19)/AK45,(Y172+AM35*D19)/AL45,(Y173+AM35*D19)/AM45,(Y174+AM35*D19)/AN45,(Y175+AM35*D19)/AO45)*AP45 ->  | BI99: =MIN((Z171+AM35*D19)/AK45,(Z172+AM35*D19)/AL45,(Z173+AM35*D19)/AM45,(Z174+AM35*D19)/AN45,(Z175+AM35*D19)/AO45)*AP45 ->  | BJ99: =MIN((AA171+AM35*D19)/AK45,(AA172+AM35*D19)/AL45,(AA173+AM35*D19)/AM45,(AA174+AM35*D19)/AN45,(AA175+AM35*D19)/AO45)*AP45 ->  | BK99: =MIN((AB171+AM35*D19)/AK45,(AB172+AM35*D19)/AL45,(AB173+AM35*D19)/AM45,(AB174+AM35*D19)/AN45,(AB175+AM35*D19)/AO45)*AP45 ->  | BL99: =MIN((AC171+AM35*D19)/AK45,(AC172+AM35*D19)/AL45,(AC173+AM35*D19)/AM45,(AC174+AM35*D19)/AN45,(AC175+AM35*D19)/AO45)*AP45 ->  | BM99: =MIN((AD171+AM35*D19)/AK45,(AD172+AM35*D19)/AL45,(AD173+AM35*D19)/AM45,(AD174+AM35*D19)/AN45,(AD175+AM35*D19)/AO45)*AP45 ->  | BN99: =MIN((AE171+AM35*D19)/AK45,(AE172+AM35*D19)/AL45,(AE173+AM35*D19)/AM45,(AE174+AM35*D19)/AN45,(AE175+AM35*D19)/AO45)*AP45 ->  | BO99: =MIN((AF171+AM35*D19)/AK45,(AF172+AM35*D19)/AL45,(AF173+AM35*D19)/AM45,(AF174+AM35*D19)/AN45,(AF175+AM35*D19)/AO45)*AP45 ->  | BR99: =BB109 -> kit 1 | BS99: kit 2/3 | BT99: 0 | BU99: kit 4 | BV99: 0 | BW99: kit 5 | BX99: kit 6/7 | BY99: 0 | BZ99: 0 | CA99: kit 8 | CB99: kit 9 | CC99: 0 | CD99: kit 10 | CE99: kit 11 | CG99: mon équipe | CH99: 541 | CI99: def | CJ99: =$CJ$74/CK75 ->  | CK99: =CJ75/$CK$74 ->  | CL99: =$CL$74-CL75 ->  | CM99: =$CM$74/CK75 ->  | CN99: =CJ75/$CN$74 ->  | CO99: =$CO$74-$CL$75 ->  | CP99: =$CP$74/CK75 ->  | CQ99: =CJ75/$CQ$74 ->  | CR99: =$CR$74-CL75 ->  | CS99: =1.15*$CS$74/CK75 ->  | CT99: =CJ75/(1.15*$CT$74) ->  | CU99: =1.15*$CU$74-CL75 ->  | CV99: =1.15*$CV$74/CK75 ->  | CW99: =CJ75/(1.15*$CW$74) ->  | CX99: =1.15*$CX$74-CL75 ->  | CY99: =1.15*$CY$74/CK75 ->  | CZ99: =CJ75/(1.15*$CZ$74) ->  | DA99: =1.15*$DA$74-CL75 ->  | DB99: =$DB$74/(1.15*CK75) ->  | DC99: =1.15*CJ75/$DC$74 ->  | DD99: =$DD$74-1.15*CL75 ->  | DE99: =$DE$74/(1.15*CK75) ->  | DF99: =1.15*CJ75/$DF$74 ->  | DG99: =$DD$74-1.15*CL75 ->  | DH99: =$DH$74/(1.15*CK75) ->  | DI99: =1.15*CJ75/$DI$74 ->  | DJ99: =$DJ$74-1.15*CL75 ->  | DK99: =$DK$74/CK75 ->  | DL99: =CJ75/$DL$74 ->  | DM99: =$DM$74-CL75 ->  | DN99: =$DN$74/CK75 ->  | DO99: =CJ75/$DO$74 ->  | DP99: =$DP$74-CL75 ->  | DQ99: =$DQ$74/CK75 ->  | DR99: =CJ75/$DR$74 ->  | DS99: =$DS$74-CL75 -> 
E100: 0.95365 | F100: 0.4087 | G100: 1.36235 | H100: 2.4523 | I100: 0.27245 | J100: 2.72475 | K100: 1.4532 | L100: 0.3633 | M100: 1.8165 | N100: 1.4532 | O100: 0.3633 | P100: 1.8165 | R100: =G17 ->  | S100: =S93 -> kit 1 | T100: =T93 -> kit 2/3 | U100: 0 | V100: kit 4 | W100: 0 | X100: kit 5 | Y100: kit 6/7 | Z100: 0 | AA100: 0 | AB100: kit 8 | AC100: kit 9 | AD100: 0 | AE100: =AE93 -> kit 10 | AF100: =AF93 -> kit 11 | AK100: =MIN((S178+$AL$35*$D$19)/$AK$44,(S179+$AL$35*$D$19)/$AL$44,(S180+$AL$35*$D$19)/$AM$44,(S181+$AL$35*$D$19)/$AN$44,(S182+$AL$35*$D$19)/$AO$44)*$AP$44 ->  | BB100: =MIN((S178+$AM$35*$D$19)/$AK$45,(S179+$AM$35*$D$19)/$AL$45,(S180+$AM$35*$D$19)/$AM$45,(S181+$AM$35*$D$19)/$AN$45,(S182+$AM$35*$D$19)/$AO$45)*$AP$45 ->  | BC100: =MIN((T178+AM35*D19)/AK45,(T179+AM35*D19)/AL45,(T180+AM35*D19)/AM45,(T181+AM35*D19)/AN45,(T182+AM35*D19)/AO45)*AP45 ->  | BD100: =MIN((U178+AM35*D19)/AK45,(U179+AM35*D19)/AL45,(U180+AM35*D19)/AM45,(U181+AM35*D19)/AN45,(U182+AM35*D19)/AO45)*AP45 ->  | BE100: =MIN((V178+AM35*D19)/AK45,(V179+AM35*D19)/AL45,(V180+AM35*D19)/AM45,(V181+AM35*D19)/AN45,(V182+AM35*D19)/AO45)*AP45 ->  | BF100: =MIN((W178+AM35*D19)/AK45,(W179+AM35*D19)/AL45,(W180+AM35*D19)/AM45,(W181+AM35*D19)/AN45,(W182+AM35*D19)/AO45)*AP45 ->  | BG100: =MIN((X178+AM35*D19)/AK45,(X179+AM35*D19)/AL45,(X180+AM35*D19)/AM45,(X181+AM35*D19)/AN45,(X182+AM35*D19)/AO45)*AP45 ->  | BH100: =MIN((Y178+AM35*D19)/AK45,(Y179+AM35*D19)/AL45,(Y180+AM35*D19)/AM45,(Y181+AM35*D19)/AN45,(Y182+AM35*D19)/AO45)*AP45 ->  | BI100: =MIN((Z178+AM35*D19)/AK45,(Z179+AM35*D19)/AL45,(Z180+AM35*D19)/AM45,(Z181+AM35*D19)/AN45,(Z182+AM35*D19)/AO45)*AP45 ->  | BJ100: =MIN((AA178+AM35*D19)/AK45,(AA179+AM35*D19)/AL45,(AA180+AM35*D19)/AM45,(AA181+AM35*D19)/AN45,(AA182+AM35*D19)/AO45)*AP45 ->  | BK100: =MIN((AB178+AM35*D19)/AK45,(AB179+AM35*D19)/AL45,(AB180+AM35*D19)/AM45,(AB181+AM35*D19)/AN45,(AB182+AM35*D19)/AO45)*AP45 ->  | BL100: =MIN((AC178+AM35*D19)/AK45,(AC179+AM35*D19)/AL45,(AC180+AM35*D19)/AM45,(AC181+AM35*D19)/AN45,(AC182+AM35*D19)/AO45)*AP45 ->  | BM100: =MIN((AD178+AM35*D19)/AK45,(AD179+AM35*D19)/AL45,(AD180+AM35*D19)/AM45,(AD181+AM35*D19)/AN45,(AD182+AM35*D19)/AO45)*AP45 ->  | BN100: =MIN((AE178+AM35*D19)/AK45,(AE179+AM35*D19)/AL45,(AE180+AM35*D19)/AM45,(AE181+AM35*D19)/AN45,(AE182+AM35*D19)/AO45)*AP45 ->  | BO100: =MIN((AF178+AM35*D19)/AK45,(AF179+AM35*D19)/AL45,(AF180+AM35*D19)/AM45,(AF181+AM35*D19)/AN45,(AF182+AM35*D19)/AO45)*AP45 ->  | BR100: =BB109 -> kit 1 | BS100: kit 2/3 | BT100: 0 | BU100: kit 4 | BV100: 0 | BW100: kit 5 | BX100: kit 6/7 | BY100: 0 | BZ100: 0 | CA100: kit 8 | CB100: kit 9 | CC100: 0 | CD100: kit 10 | CE100: kit 11 | CI100: neutre | CJ100: =$CJ$74/CN75 ->  | CK100: =CM75/$CK$74 ->  | CL100: =$CL$74-CO75 ->  | CM100: =$CM$74/CN75 ->  | CN100: =CM75/$CN$74 ->  | CO100: =$CO$74-CO75 ->  | CP100: =$CP$74/CN75 ->  | CQ100: =CM75/$CQ$74 ->  | CR100: =$CR$74-CO75 ->  | CS100: =1.15*$CS$74/CN75 ->  | CT100: =CM75/(1.15*$CT$74) ->  | CU100: =1.15*$CU$74-CO75 ->  | CV100: =1.15*$CV$74/CN75 ->  | CW100: =CM75/(1.15*$CW$74) ->  | CX100: =1.15*CX74-CO75 ->  | CY100: =1.15*$CY$74/CN75 ->  | CZ100: =CM75/(1.15*$CZ$74) ->  | DA100: =1.15*$DA$74-CO75 ->  | DB100: =$DB$74/(1.15*CN75) ->  | DC100: =1.15*CM75/$DC$74 ->  | DD100: =$DD$74-1.15*CO75 ->  | DE100: =$DE$74/(1.15*CN75) ->  | DF100: =1.15*CM75/$DF$74 ->  | DG100: =$DD$74-1.15*CO75 ->  | DH100: =$DH$74/(1.15*CN75) ->  | DI100: =1.15*CM75/$DI$74 ->  | DJ100: =$DJ$74-1.15*CO75 ->  | DK100: =$DK$74/CN75 ->  | DL100: =CM75/$DL$74 ->  | DM100: =$DM$74-CO75 ->  | DN100: =$DN$74/CN75 ->  | DO100: =CM75/$DO$74 ->  | DP100: =$DP$74-CO75 ->  | DQ100: =$DQ$74/CN75 ->  | DR100: =CM75/$DR$74 ->  | DS100: =$DS$74-CO75 -> 
D101: total : | E101: =SUM(E90:E100) -> 9.93165 | F101: =SUM(F90:F100) -> 10.0497 | G101: =SUM(G90:G100) -> 19.98135 | H101: =SUM(H90:H100) -> 13.9832 | I101: 5.9927 | J101: 19.9759 | K101: 11.95245 | L101: 8.0288 | M101: 19.98125 | N101: 11.9525 | O101: 8.02885 | P101: 19.98135 | R101: =IF($AX$306,H17+VLOOKUP(Team!$X23,Team!$E$30:$J$300,6,FALSE),H17+AH39+$D$21)+$D$19*$AG$14 ->  | S101: =IF($AX$306,$R101,$R101+Q10) ->  | T101: =IF($AX$306,$R101,$R101+R10) ->  | AK101: =MIN((S185+$AL$35*$D$19)/$AK$44,(S186+$AL$35*$D$19)/$AL$44,(S187+$AL$35*$D$19)/$AM$44,(S188+$AL$35*$D$19)/$AN$44,(S189+$AL$35*$D$19)/$AO$44)*$AP$44 ->  | BB101: =MIN((S185+$AM$35*$D$19)/$AK$45,(S186+$AM$35*$D$19)/$AL$45,(S187+$AM$35*$D$19)/$AM$45,(S188+$AM$35*$D$19)/$AN$45,(S189+$AM$35*$D$19)/$AO$45)*$AP$45 ->  | BR101: =BB109 -> kit 1 | BS101: kit 2/3 | BT101: 0 | BU101: kit 4 | BV101: 0 | BW101: kit 5 | BX101: kit 6/7 | BY101: 0 | BZ101: 0 | CA101: kit 8 | CB101: kit 9 | CC101: 0 | CD101: kit 10 | CE101: kit 11 | CI101: off | CJ101: =$CJ$74/CQ75 ->  | CK101: =CP75/$CK$74 ->  | CL101: =$CL$74-CR75 ->  | CM101: =$CM$74/CQ75 ->  | CN101: =CP75/$CN$74 ->  | CO101: =$CO$74-CR75 ->  | CP101: =$CP$74/CQ75 ->  | CQ101: =CP75/$CQ$74 ->  | CR101: =$CR$74-CR75 ->  | CS101: =1.15*$CS$74/CQ75 ->  | CT101: =CP75/(1.15*$CT$74) ->  | CU101: =1.15*$CU$74-CR75 ->  | CV101: =1.15*$CV$74/CQ75 ->  | CW101: =CP75/(1.15*$CW$74) ->  | CX101: =1.15*$CX$74-CR75 ->  | CY101: =1.15*$CY$74/CQ75 ->  | CZ101: =CP75/(1.15*$CZ$74) ->  | DA101: =1.15*$DA$74-CR75 ->  | DB101: =$DB$74/(1.15*CQ75) ->  | DC101: =1.15*CP75/$DC$74 ->  | DD101: =$DD$74-1.15*CR75 ->  | DE101: =$DE$74/(1.15*CQ75) ->  | DF101: =1.15*CP75/$DF$74 ->  | DG101: =$DD$74-1.15*CR75 ->  | DH101: =$DH$74/(1.15*CQ75) ->  | DI101: =1.15*CP75/$DI$74 ->  | DJ101: =$DJ$74-1.15*CR75 ->  | DK101: =$DK$74/CQ75 ->  | DL101: =CP75/$DL$74 ->  | DM101: =$DM$74-CR75 ->  | DN101: =$DN$74/CQ75 ->  | DO101: =CP75/$DO$74 ->  | DP101: =$DP$74-CR75 ->  | DQ101: =$DQ$74/CQ75 ->  | DR101: =CP75/$DR$74 ->  | DS101: =$DS$74-CR75 -> 
R102: =IF($AX$306,I17+VLOOKUP(Team!$Y23,Team!$E$30:$J$300,6,FALSE),I17+AH40+$D$21)+$D$19*$AG$14 ->  | S102: =IF($AX$306,$R102,$R102+Q11) ->  | AK102: =MIN((S192+$AL$35*$D$19)/$AK$44,(S193+$AL$35*$D$19)/$AL$44,(S194+$AL$35*$D$19)/$AM$44,(S195+$AL$35*$D$19)/$AN$44,(S196+$AL$35*$D$19)/$AO$44)*$AP$44 ->  | BB102: =MIN((S192+$AM$35*$D$19)/$AK$45,(S193+$AM$35*$D$19)/$AL$45,(S194+$AM$35*$D$19)/$AM$45,(S195+$AM$35*$D$19)/$AN$45,(S196+$AM$35*$D$19)/$AO$45)*$AP$45 ->  | BR102: =BB109 -> kit 1 | BS102: kit 2/3 | BT102: 0 | BU102: kit 4 | BV102: 0 | BW102: kit 5 | BX102: kit 6/7 | BY102: 0 | BZ102: 0 | CA102: kit 8 | CB102: kit 9 | CC102: 0 | CD102: kit 10 | CE102: kit 11 | CH102: 433 | CI102: def | CJ102: =$CJ$74/(CT75*1.15) ->  | CK102: =CS75*1.15/$CK$74 ->  | CL102: =$CL$74-1.15*CU75 ->  | CM102: =$CM$74/(1.15*CT75) ->  | CN102: =1.15*CS75/$CN$74 ->  | CO102: =$CO$74-1.15*CU75 ->  | CP102: =$CP$74/(1.15*CT75) ->  | CQ102: =1.15*CS75/$CQ$74 ->  | CR102: =$CR$74-1.15*CU75 ->  | CS102: =$CS$74/CT75 ->  | CT102: =CS75/$CT$74 ->  | CU102: =$CU$74-CU75 ->  | CV102: =$CV$74/CT75 ->  | CW102: =CS75/$CW$74 ->  | CX102: =$CX$74-CU75 ->  | CY102: =$CY$74/CT75 ->  | CZ102: =CS75/$CZ$74 ->  | DA102: =$DA$74-CU75 ->  | DB102: =$DB$74/CT75 ->  | DC102: =CS75/$DC$74 ->  | DD102: =$DD$74-CU75 ->  | DE102: =$DE$74/CT75 ->  | DF102: =CS75/$DF$74 ->  | DG102: =$DD$74-CU75 ->  | DH102: =$DH$74/CT75 ->  | DI102: =CS75/$DI$74 ->  | DJ102: =$DJ$74-CU75 ->  | DK102: =1.15*$DK$74/CT75 ->  | DL102: =CS75/(1.15*$DL$74) ->  | DM102: =1.15*$DM$74-CU75 ->  | DN102: =1.15*$DN$74/CT75 ->  | DO102: =CS75/(1.15*$DO$74) ->  | DP102: =1.15*$DP$74-CU75 ->  | DQ102: =1.15*$DQ$74/CT75 ->  | DR102: =CS75/(1.15*$DR$74) ->  | DS102: =1.15*$DS$74-CU75 -> 
D103: Calcul du capitaine | G103: ss kit ss vitamine | H103: kit ss vit | I103: kit + vit | R103: =IF($AX$306,J17+VLOOKUP(Team!$Z23,Team!$E$30:$J$300,6,FALSE),J17+AH41+$D$21)+$D$19*$AG$14 ->  | S103: =IF($AX$306,$R103,$R103+Q12) ->  | AK103: =MIN((S199+$AL$35*$D$19)/$AK$44,(S200+$AL$35*$D$19)/$AL$44,(S201+$AL$35*$D$19)/$AM$44,(S202+$AL$35*$D$19)/$AN$44,(S203+$AL$35*$D$19)/$AO$44)*$AP$44 ->  | BB103: =MIN((S199+$AM$35*$D$19)/$AK$45,(S200+$AM$35*$D$19)/$AL$45,(S201+$AM$35*$D$19)/$AM$45,(S202+$AM$35*$D$19)/$AN$45,(S203+$AM$35*$D$19)/$AO$45)*$AP$45 ->  | BR103: =BB109 -> kit 1 | BS103: =$BC$109 -> kit 2/3 | BT103: =$BD$109 -> 0 | BU103: =$BE$109 -> kit 4 | BV103: =$BF$109 -> 0 | BW103: =$BG$109 -> kit 5 | BX103: =$BH$109 -> kit 6/7 | BY103: =$BI$109 -> 0 | BZ103: =$BJ$109 -> 0 | CA103: =$BK$109 -> kit 8 | CB103: =$BL$109 -> kit 9 | CC103: =$BM$109 -> 0 | CD103: =$BN$109 -> kit 10 | CE103: =$BO$109 -> kit 11 | CI103: neutre | CJ103: =$CJ$74/(CW75*1.15) ->  | CK103: =CV75*1.15/$CK$74 ->  | CL103: =$CL$74-1.15*CX75 ->  | CM103: =$CM$74/(1.15*CW75) ->  | CN103: =1.15*CV75/$CN$74 ->  | CO103: =$CO$74-1.15*CX75 ->  | CP103: =$CP$74/(1.15*CW75) ->  | CQ103: =1.15*CV75/$CQ$74 ->  | CR103: =$CR$74-1.15*CX75 ->  | CS103: =$CS$74/CW75 ->  | CT103: =CV75/$CT$74 ->  | CU103: =$CU$74-CX75 ->  | CV103: =$CV$74/CW75 ->  | CW103: =CV75/$CW$74 ->  | CX103: =$CX$74-CX75 ->  | CY103: =$CY$74/CW75 ->  | CZ103: =CV75/$CZ$74 ->  | DA103: =$DA$74-CX75 ->  | DB103: =$DB$74/CW75 ->  | DC103: =CV75/$DC$74 ->  | DD103: =$DD$74-CX75 ->  | DE103: =$DE$74/CW75 ->  | DF103: =CV75/$DF$74 ->  | DG103: =$DD$74-CX75 ->  | DH103: =$DH$74/CW75 ->  | DI103: =CV75/$DI$74 ->  | DJ103: =$DJ$74-CX75 ->  | DK103: =1.15*$DK$74/CW75 ->  | DL103: =CV75/(1.15*$DL$74) ->  | DM103: =1.15*$DM$74-CX75 ->  | DN103: =1.15*$DN$74/CW75 ->  | DO103: =CV75/(1.15*$DO$74) ->  | DP103: =1.15*$DP$74-CX75 ->  | DQ103: =1.15*$DQ$74/CW75 ->  | DR103: =CV75/(1.15*$DR$74) ->  | DS103: =1.15*$DS$74-CX75 -> 
D104: =IF(SUM(I104:I125)=0,IF(MAX($F$104:$F$128)=F104,"CAP",""),IF(MAX($I$104:$I$128)=I104,"CAP","")) -> CAP | E104: =IF(G11<>"",G11,"") ->  | F104: =IF(VLOOKUP(E104,$AI$8:$AV$33,14,FALSE)=0,IF(N11<>"",N11*100,0),VLOOKUP(E104,$AI$8:$AV$33,14,FALSE)) -> 1 | G104: =IF(G11<>"",(L11/100+MIN(5000,M11)/500)/100,"") ->  | H104: =IF(G11<>"",IF(ISNA(IF(VLOOKUP(G11,$AI$8:$AV$33,14,FALSE)="","",(HLOOKUP(VLOOKUP(G11,$BA$10:$BB$20,2,FALSE),S58:AF63,6,FALSE)/100+MIN(5000,M11)/500)/100)),G104,IF(VLOOKUP(G11,$AI$8:$AV$33,14,FALSE)="","",(HLOOKUP(VLOOKUP(G11,$BA$10:$BB$20,2,FALSE),S58:AF63,6,FALSE)/100+MIN(5000,M11)/500)/100)),"") ->  | I104: =IF(G11<>"",IF(ISNA(IF(VLOOKUP(G11,$AI$8:$AV$29,14,FALSE)="","",((HLOOKUP(VLOOKUP(G11,$BA$10:$BB$20,2,FALSE),$S$58:$AF$63,6,FALSE)+IF(HLOOKUP(F104,$AJ$7:$AT$35,29,FALSE)=1,D19,0))/100+MIN(5000,M11)/500)/100)),H104,IF(VLOOKUP(G11,$AI$8:$AV$29,14,FALSE)="","",((HLOOKUP(VLOOKUP(G11,$BA$10:$BB$20,2,FALSE),$S$58:$AF$63,6,FALSE)+IF(HLOOKUP(F104,$AJ$7:$AT$35,29,FALSE)=1,D19,0))/100+MIN(5000,M11)/500)/100)),"") ->  | R104: =IF($AX$306,K17+VLOOKUP(Team!$AA23,Team!$E$30:$J$300,6,FALSE),K17+AH42+$D$21)+$D$19*$AG$14 ->  | S104: =IF($AX$306,$R104,$R104+Q13) ->  | AJ104: =AJ212 ->  | AK104: =MIN((S206+$AL$35*$D$19)/$AK$44,(S207+$AL$35*$D$19)/$AL$44,(S208+$AL$35*$D$19)/$AM$44,(S209+$AL$35*$D$19)/$AN$44,(S210+$AL$35*$D$19)/$AO$44)*$AP$44 ->  | BA104: =AJ212 ->  | BB104: =MIN((S206+$AM$35*$D$19)/$AK$45,(S207+$AM$35*$D$19)/$AL$45,(S208+$AM$35*$D$19)/$AM$45,(S209+$AM$35*$D$19)/$AN$45,(S210+$AM$35*$D$19)/$AO$45)*$AP$45 ->  | BR104: =BB109 -> kit 1 | BS104: =$BC$109 -> kit 2/3 | BT104: =$BD$109 -> 0 | BU104: =$BE$109 -> kit 4 | BV104: =$BF$109 -> 0 | BW104: =$BG$109 -> kit 5 | BX104: =$BH$109 -> kit 6/7 | BY104: =$BI$109 -> 0 | BZ104: =$BJ$109 -> 0 | CA104: =$BK$109 -> kit 8 | CB104: =$BL$109 -> kit 9 | CC104: =$BM$109 -> 0 | CD104: =$BN$109 -> kit 10 | CE104: =$BO$109 -> kit 11 | CI104: off | CJ104: =$CJ$74/(CZ75*1.15) ->  | CK104: =CY75*1.15/$CK$74 ->  | CL104: =$CL$74-1.15*DA75 ->  | CM104: =$CM$74/(1.15*CZ75) ->  | CN104: =1.15*CY75/$CN$74 ->  | CO104: =$CO$74-1.15*DA75 ->  | CP104: =$CP$74/(1.15*CZ75) ->  | CQ104: =1.15*CY75/$CQ$74 ->  | CR104: =$CR$74-1.15*DA75 ->  | CS104: =$CS$74/CZ75 ->  | CT104: =CY75/$CT$74 ->  | CU104: =$CU$74-DA75 ->  | CV104: =$CV$74/CZ75 ->  | CW104: =CY75/$CW$74 ->  | CX104: =$CX$74-DA75 ->  | CY104: =$CY$74/CZ75 ->  | CZ104: =CY75/$CZ$74 ->  | DA104: =$DA$74-DA75 ->  | DB104: =$DB$74/CZ75 ->  | DC104: =CY75/$DC$74 ->  | DD104: =$DD$74-DA75 ->  | DE104: =$DE$74/CZ75 ->  | DF104: =CY75/$DF$74 ->  | DG104: =$DD$74-DA75 ->  | DH104: =$DH$74/CZ75 ->  | DI104: =CY75/$DI$74 ->  | DJ104: =$DJ$74-DA75 ->  | DK104: =1.15*$DK$74/CZ75 ->  | DL104: =CY75/(1.15*$DL$74) ->  | DM104: =1.15*$DM$74-DA75 ->  | DN104: =1.15*$DN$74/CZ75 ->  | DO104: =CY75/(1.15*$DO$74) ->  | DP104: =1.15*$DP$74-DA75 ->  | DQ104: =1.15*$DQ$74/CZ75 ->  | DR104: =CY75/(1.15*$DR$74) ->  | DS104: =1.15*$DS$74-DA75 -> 
D105: =IF(SUM(I105:I126)=0,IF(MAX($F$104:$F$128)=F105,"CAP",""),IF(MAX($I$104:$I$128)=I105,"CAP","")) -> CAP | E105: =IF(G12<>"",G12,"") ->  | F105: =IF(VLOOKUP(E105,$AI$8:$AV$33,14,FALSE)=0,IF(N12<>"",N12*100,0),VLOOKUP(E105,$AI$8:$AV$33,14,FALSE)) -> 1 | G105: =IF(G12<>"",(L12/100+MIN(5000,M12)/500)/100,"") ->  | H105: =IF(G12<>"",IF(ISNA(IF(VLOOKUP(G12,$AI$8:$AV$33,14,FALSE)="","",(HLOOKUP(VLOOKUP(G12,$BA$10:$BB$20,2,FALSE),S65:AF70,6,FALSE)/100+MIN(5000,M12)/500)/100)),G105,IF(VLOOKUP(G12,$AI$8:$AV$33,14,FALSE)="","",(HLOOKUP(VLOOKUP(G12,$BA$10:$BB$20,2,FALSE),S65:AF70,6,FALSE)/100+MIN(5000,M12)/500)/100)),"") ->  | I105: =IF(G12<>"",IF(ISNA(IF(VLOOKUP(G12,$AI$8:$AV$29,14,FALSE)="","",((HLOOKUP(VLOOKUP(G12,$BA$10:$BB$20,2,FALSE),$S$65:$AF$70,6,FALSE)+IF(HLOOKUP(F105,$AJ$7:$AT$35,29,FALSE)=1,D19,0))/100+MIN(5000,M12)/500)/100)),H105,IF(VLOOKUP(G12,$AI$8:$AV$29,14,FALSE)="","",((HLOOKUP(VLOOKUP(G12,$BA$10:$BB$20,2,FALSE),$S$65:$AF$70,6,FALSE)+IF(HLOOKUP(F105,$AJ$7:$AT$35,29,FALSE)=1,D19,0))/100+MIN(5000,M12)/500)/100)),"") ->  | R105: =IF($AX$306,L17+VLOOKUP(Team!$AB23,Team!$E$30:$J$300,6,FALSE),L17+AH43+$D$21)+$D$19*$AG$14 ->  | S105: =IF($AX$306,$R105,$R105+Q14) ->  | AJ105: =AJ213 -> 0 | AK105: =MIN((S213+$AL$35*$D$19)/$AK$44,(S214+$AL$35*$D$19)/$AL$44,(S215+$AL$35*$D$19)/$AM$44,(S216+$AL$35*$D$19)/$AN$44,(S217+$AL$35*$D$19)/$AO$44)*$AP$44 ->  | BA105: =AJ213 -> 0 | BB105: =MIN((S213+$AM$35*$D$19)/$AK$45,(S214+$AM$35*$D$19)/$AL$45,(S215+$AM$35*$D$19)/$AM$45,(S216+$AM$35*$D$19)/$AN$45,(S217+$AM$35*$D$19)/$AO$45)*$AP$45 ->  | BR105: =BB109 -> kit 1 | BS105: kit 2/3 | BT105: 0 | BU105: kit 4 | BV105: 0 | BW105: kit 5 | BX105: kit 6/7 | BY105: 0 | BZ105: 0 | CA105: kit 8 | CB105: kit 9 | CC105: 0 | CD105: kit 10 | CE105: kit 11 | CH105: 352 | CI105: def | CJ105: =$CJ$74*1.15/DC75 ->  | CK105: =DB75/(1.15*$CK$74) ->  | CL105: =1.15*$CL$74-DD75 ->  | CM105: =1.15*$CM$74/DC75 ->  | CN105: =DB75/(1.15*$CN$74) ->  | CO105: =1.15*$CO$74-DD75 ->  | CP105: =1.15*$CP$74/DC75 ->  | CQ105: =DB75/(1.15*$CQ$74) ->  | CR105: =1.15*$CR$74-DD75 ->  | CS105: =$CS$74/DC75 ->  | CT105: =DB75/$CT$74 ->  | CU105: =$CU$74-DD75 ->  | CV105: =$CV$74/DC75 ->  | CW105: =DB75/$CW$74 ->  | CX105: =$CX$74-DD75 ->  | CY105: =$CY$74/DC75 ->  | CZ105: =DB75/$CZ$74 ->  | DA105: =$DA$74-DD75 ->  | DB105: =$DB$74/DC75 ->  | DC105: =DB75/$DC$74 ->  | DD105: =$DD$74-DD75 ->  | DE105: =$DE$74/DC75 ->  | DF105: =DB75/$DF$74 ->  | DG105: =$DD$74-DD75 ->  | DH105: =$DH$74/DC75 ->  | DI105: =DB75/$DI$74 ->  | DJ105: =$DJ$74-DD75 ->  | DK105: =$DK$74/(1.15*DC75) ->  | DL105: =1.15*DB75/$DL$74 ->  | DM105: =$DM$74-1.15*DD75 ->  | DN105: =$DN$74/(1.15*DC75) ->  | DO105: =1.15*DB75/$DO$74 ->  | DP105: =$DP$74-1.15*DD75 ->  | DQ105: =$DQ$74/(1.15*DC75) ->  | DR105: =1.15*DB75/$DR$74 ->  | DS105: =$DS$74-1.15*DD75 -> 
D106: CAP | F106: 1 | H106: =IF(G13<>"",IF(ISNA(IF(VLOOKUP(G13,$AI$8:$AV$33,14,FALSE)="","",(HLOOKUP(VLOOKUP(G13,$BA$10:$BB$20,2,FALSE),S72:AF77,6,FALSE)/100+MIN(5000,M13)/500)/100)),G106,IF(VLOOKUP(G13,$AI$8:$AV$33,14,FALSE)="","",(HLOOKUP(VLOOKUP(G13,$BA$10:$BB$20,2,FALSE),S72:AF77,6,FALSE)/100+MIN(5000,M13)/500)/100)),"") ->  | I106: =IF(G13<>"",IF(ISNA(IF(VLOOKUP(G13,$AI$8:$AV$29,14,FALSE)="","",((HLOOKUP(VLOOKUP(G13,$BA$10:$BB$20,2,FALSE),$S$72:$AF$77,6,FALSE)+IF(HLOOKUP(F106,$AJ$7:$AT$35,29,FALSE)=1,D19,0))/100+MIN(5000,M13)/500)/100)),H106,IF(VLOOKUP(G13,$AI$8:$AV$29,14,FALSE)="","",((HLOOKUP(VLOOKUP(G13,$BA$10:$BB$20,2,FALSE),$S$72:$AF$77,6,FALSE)+IF(HLOOKUP(F106,$AJ$7:$AT$35,29,FALSE)=1,D19,0))/100+MIN(5000,M13)/500)/100)),"") ->  | AJ106: =AJ214 -> 0 | AK106: =MIN((S220+$AL$35*$D$19)/$AK$44,(S221+$AL$35*$D$19)/$AL$44,(S222+$AL$35*$D$19)/$AM$44,(S223+$AL$35*$D$19)/$AN$44,(S224+$AL$35*$D$19)/$AO$44)*$AP$44 ->  | BA106: =AJ214 -> 0 | BB106: =MIN((S220+$AM$35*$D$19)/$AK$45,(S221+$AM$35*$D$19)/$AL$45,(S222+$AM$35*$D$19)/$AM$45,(S223+$AM$35*$D$19)/$AN$45,(S224+$AM$35*$D$19)/$AO$45)*$AP$45 ->  | BR106: =BB109 -> kit 1 | BS106: kit 2/3 | BT106: 0 | BU106: kit 4 | BV106: 0 | BW106: kit 5 | BX106: kit 6/7 | BY106: 0 | BZ106: 0 | CA106: kit 8 | CB106: kit 9 | CC106: 0 | CD106: kit 10 | CE106: kit 11 | CI106: neutre | CJ106: =$CJ$74*1.15/DF75 ->  | CK106: =DE75/($CK$74*1.15) ->  | CL106: =1.15*$CL$74-DG75 ->  | CM106: =1.15*$CM$74/DF75 ->  | CN106: =DE75/(1.105*$CN$74) ->  | CO106: =1.15*$CO$74-DG75 ->  | CP106: =1.15*$CP$74/DF75 ->  | CQ106: =DE75/(1.15*$CQ$74) ->  | CR106: =1.15*$CR$74-DG75 ->  | CS106: =$CS$74/DF75 ->  | CT106: =DE75/$CT$74 ->  | CU106: =$CU$74-DG75 ->  | CV106: =$CV$74/DF75 ->  | CW106: =DE75/$CW$74 ->  | CX106: =$CX$74-DG75 ->  | CY106: =$CY$74/DF75 ->  | CZ106: =DE75/$CZ$74 ->  | DA106: =$DA$74-DG75 ->  | DB106: =$DB$74/DF75 ->  | DC106: =DE75/$DC$74 ->  | DD106: =$DD$74-DG75 ->  | DE106: =$DE$74/DF75 ->  | DF106: =DE75/$DF$74 ->  | DG106: =$DD$74-DG75 ->  | DH106: =$DH$74/DF75 ->  | DI106: =DE75/$DI$74 ->  | DJ106: =$DJ$74-DG75 ->  | DK106: =$DK$74/(1.15*DF75) ->  | DL106: =1.15*DE75/$DL$74 ->  | DM106: =$DM$74-1.15*DG75 ->  | DN106: =$DN$74/(1.15*DF75) ->  | DO106: =1.15*DE75/$DO$74 ->  | DP106: =$DP$74-1.15*DG75 ->  | DQ106: =$DQ$74/(1.15*DF75) ->  | DR106: =1.15*DE75/$DR$74 ->  | DS106: =$DS$74-1.15*DG75 -> 
D107: CAP | F107: 1 | H107: =IF(G14<>"",IF(ISNA(IF(VLOOKUP(G14,$AI$8:$AV$33,14,FALSE)="","",(HLOOKUP(VLOOKUP(G14,$BA$10:$BB$20,2,FALSE),S79:AF84,6,FALSE)/100+MIN(5000,M14)/500)/100)),G107,IF(VLOOKUP(G14,$AI$8:$AV$33,14,FALSE)="","",(HLOOKUP(VLOOKUP(G14,$BA$10:$BB$20,2,FALSE),S79:AF84,6,FALSE)/100+MIN(5000,M14)/500)/100)),"") ->  | I107: =IF(G14<>"",IF(ISNA(IF(VLOOKUP(G14,$AI$8:$AV$29,14,FALSE)="","",((HLOOKUP(VLOOKUP(G14,$BA$10:$BB$20,2,FALSE),$S$79:$AF$84,6,FALSE)+IF(HLOOKUP(F107,$AJ$7:$AT$35,29,FALSE)=1,D19,0))/100+MIN(5000,M14)/500)/100)),H107,IF(VLOOKUP(G14,$AI$8:$AV$29,14,FALSE)="","",((HLOOKUP(VLOOKUP(G14,$BA$10:$BB$20,2,FALSE),$S$79:$AF$84,6,FALSE)+IF(HLOOKUP(F107,$AJ$7:$AT$35,29,FALSE)=1,D19,0))/100+MIN(5000,M14)/500)/100)),"") ->  | R107: =G18 ->  | S107: =S100 -> kit 1 | T107: =T100 -> kit 2/3 | U107: 0 | V107: kit 4 | W107: 0 | X107: kit 5 | Y107: kit 6/7 | Z107: 0 | AA107: 0 | AB107: kit 8 | AC107: kit 9 | AD107: 0 | AE107: =AE100 -> kit 10 | AF107: =AF100 -> kit 11 | AJ107: =AJ215 -> 0 | AK107: =MIN((S227+$AL$35*$D$19)/$AK$44,(S228+$AL$35*$D$19)/$AL$44,(S229+$AL$35*$D$19)/$AM$44,(S230+$AL$35*$D$19)/$AN$44,(S231+$AL$35*$D$19)/$AO$44)*$AP$44 ->  | BA107: =AJ215 -> 0 | BB107: =MIN((S227+$AM$35*$D$19)/$AK$45,(S228+$AM$35*$D$19)/$AL$45,(S229+$AM$35*$D$19)/$AM$45,(S230+$AM$35*$D$19)/$AN$45,(S231+$AM$35*$D$19)/$AO$45)*$AP$45 ->  | BR107: =BB109 -> kit 1 | BS107: kit 2/3 | BT107: 0 | BU107: kit 4 | BV107: 0 | BW107: kit 5 | BX107: kit 6/7 | BY107: 0 | BZ107: 0 | CA107: kit 8 | CB107: kit 9 | CC107: 0 | CD107: kit 10 | CE107: kit 11 | CI107: off | CJ107: =$CJ$74*1.15/DI75 ->  | CK107: =DH75/(1.15*$CK$74) ->  | CL107: =1.15*$CL$74-DJ75 ->  | CM107: =1.15*$CM$74/DI75 ->  | CN107: =DH75/(1.15*$CN$74) ->  | CO107: =1.15*$CO$74-DJ75 ->  | CP107: =1.15*$CP$74/DI75 ->  | CQ107: =DH75/(1.15*$CQ$74) ->  | CR107: =1.15*$CR$74-DJ75 ->  | CS107: =$CS$74/DI75 ->  | CT107: =DH75/$CT$74 ->  | CU107: =$CU$74-DJ75 ->  | CV107: =$CV$74/DI75 ->  | CW107: =DH75/$CW$74 ->  | CX107: =$CX$74-DJ75 ->  | CY107: =$CY$74/DI75 ->  | CZ107: =DH75/$CZ$74 ->  | DA107: =$DA$74-DJ75 ->  | DB107: =$DB$74/DI75 ->  | DC107: =DH75/$DC$74 ->  | DD107: =$DD$74-DJ75 ->  | DE107: =$DE$74/DI75 ->  | DF107: =DH75/$DF$74 ->  | DG107: =$DD$74-DJ75 ->  | DH107: =$DH$74/DI75 ->  | DI107: =DH75/$DI$74 ->  | DJ107: =$DJ$74-DJ75 ->  | DK107: =$DK$74/(1.15*DI75) ->  | DL107: =1.15*DH75/$DL$74 ->  | DM107: =$DM$74-1.15*DJ75 ->  | DN107: =$DN$74/(1.15*DI75) ->  | DO107: =1.15*DH75/$DO$74 ->  | DP107: =$DP$74-1.15*DJ75 ->  | DQ107: =$DQ$74/(1.15*DI75) ->  | DR107: =1.15*DH75/$DR$74 ->  | DS107: =$DS$74-1.15*DJ75 -> 
D108: CAP | E108: =IF(G15<>"",G15,"") ->  | F108: =IF(VLOOKUP(E108,$AI$8:$AV$33,14,FALSE)=0,IF(N15<>"",N15*100,0),VLOOKUP(E108,$AI$8:$AV$33,14,FALSE)) -> 1 | G108: =IF(G15<>"",(L15/100+MIN(5000,M15)/500)/100,"") ->  | H108: =IF(G15<>"",IF(ISNA(IF(VLOOKUP(G15,$AI$8:$AV$33,14,FALSE)="","",(HLOOKUP(VLOOKUP(G15,$BA$10:$BB$20,2,FALSE),S86:AF91,6,FALSE)/100+MIN(5000,M15)/500)/100)),G108,IF(VLOOKUP(G15,$AI$8:$AV$33,14,FALSE)="","",(HLOOKUP(VLOOKUP(G15,$BA$10:$BB$20,2,FALSE),S86:AF91,6,FALSE)/100+MIN(5000,M15)/500)/100)),"") ->  | I108: =IF(G15<>"",IF(ISNA(IF(VLOOKUP(G15,$AI$8:$AV$29,14,FALSE)="","",((HLOOKUP(VLOOKUP(G15,$BA$10:$BB$20,2,FALSE),$S$86:$AF$91,6,FALSE)+IF(HLOOKUP(F108,$AJ$7:$AT$35,29,FALSE)=1,D19,0))/100+MIN(5000,M15)/500)/100)),H108,IF(VLOOKUP(G15,$AI$8:$AV$29,14,FALSE)="","",((HLOOKUP(VLOOKUP(G15,$BA$10:$BB$20,2,FALSE),$S$86:$AF$91,6,FALSE)+IF(HLOOKUP(F108,$AJ$7:$AT$35,29,FALSE)=1,D19,0))/100+MIN(5000,M15)/500)/100)),"") ->  | R108: =IF($AX$306,H18+VLOOKUP(Team!$X24,Team!$E$30:$J$300,6,FALSE),H18+AH39+$D$21)+$D$19*$AG$15 ->  | S108: =IF($AX$306,$R108,$R108+Q10) ->  | T108: =IF($AX$306,$R108,$R108+R10) ->  | BR108: =BB109 -> kit 1 | BS108: kit 2/3 | BT108: 0 | BU108: kit 4 | BV108: 0 | BW108: kit 5 | BX108: kit 6/7 | BY108: 0 | BZ108: 0 | CA108: kit 8 | CB108: kit 9 | CC108: 0 | CD108: kit 10 | CE108: kit 11 | CH108: 442 | CI108: def | CJ108: =$CJ$74/DL75 ->  | CK108: =DK75/$CK$74 ->  | CL108: =$CL$74-DM75 ->  | CM108: =$CM$74/DL75 ->  | CN108: =DK75/$CN$74 ->  | CO108: =$CO$74-DM75 ->  | CP108: =$CP$74/DL75 ->  | CQ108: =DK75/$CQ$74 ->  | CR108: =$CR$74-DM75 ->  | CS108: =$CS$74/(1.15*DL75) ->  | CT108: =1.15*DK75/$CT$74 ->  | CU108: =$CU$74-1.15*DM75 ->  | CV108: =$CV$74/(1.15*DL75) ->  | CW108: =1.15*DK75/$CW$74 ->  | CX108: =$CX$74-1.15*DM75 ->  | CY108: =$CY$74/(1.15*DL75) ->  | CZ108: =1.15*DK75/$CZ$74 ->  | DA108: =$DA$74-1.15*DM75 ->  | DB108: =1.15*$DB$74/DL75 ->  | DC108: =DK75/(1.15*$DC$74) ->  | DD108: =1.15*$DD$74-DM75 ->  | DE108: =1.15*$DE$74/DL75 ->  | DF108: =DK75/(1.15*$DF$74) ->  | DG108: =1.15*$DD$74-DM75 ->  | DH108: =1.15*$DH$74/DL75 ->  | DI108: =DK75/(1.15*$DI$74) ->  | DJ108: =1.15*$DJ$74-DM75 ->  | DK108: =$DK$74/DL75 ->  | DL108: =DK75/$DL$74 ->  | DM108: =$DM$74-DM75 ->  | DN108: =$DN$74/DL75 ->  | DO108: =DK75/$DO$74 ->  | DP108: =$DP$74-DM75 ->  | DQ108: =$DQ$74/DL75 ->  | DR108: =DK75/$DR$74 ->  | DS108: =$DS$74-DM75 -> 
D109: CAP | E109: =IF(G16<>"",G16,"") ->  | F109: =IF(VLOOKUP(E109,$AI$8:$AV$33,14,FALSE)=0,IF(N16<>"",N16*100,0),VLOOKUP(E109,$AI$8:$AV$33,14,FALSE)) -> 1 | G109: =IF(G16<>"",(L16/100+MIN(5000,M16)/500)/100,"") ->  | H109: =IF(G16<>"",IF(ISNA(IF(VLOOKUP(G16,$AI$8:$AV$33,14,FALSE)="","",(HLOOKUP(VLOOKUP(G16,$BA$10:$BB$20,2,FALSE),S93:AF98,6,FALSE)/100+MIN(5000,M16)/500)/100)),G109,IF(VLOOKUP(G16,$AI$8:$AV$33,14,FALSE)="","",(HLOOKUP(VLOOKUP(G16,$BA$10:$BB$20,2,FALSE),S93:AF98,6,FALSE)/100+MIN(5000,M16)/500)/100)),"") ->  | I109: =IF(G16<>"",IF(ISNA(IF(VLOOKUP(G16,$AI$8:$AV$29,14,FALSE)="","",((HLOOKUP(VLOOKUP(G16,$BA$10:$BB$20,2,FALSE),$S$93:$AF$98,6,FALSE)+IF(HLOOKUP(F109,$AJ$7:$AT$35,29,FALSE)=1,D19,0))/100+MIN(5000,M16)/500)/100)),H109,IF(VLOOKUP(G16,$AI$8:$AV$29,14,FALSE)="","",((HLOOKUP(VLOOKUP(G16,$BA$10:$BB$20,2,FALSE),$S$93:$AF$98,6,FALSE)+IF(HLOOKUP(F109,$AJ$7:$AT$35,29,FALSE)=1,D19,0))/100+MIN(5000,M16)/500)/100)),"") ->  | R109: =IF($AX$306,I18+VLOOKUP(Team!$Y24,Team!$E$30:$J$300,6,FALSE),I18+AH40+$D$21)+$D$19*$AG$15 ->  | S109: =IF($AX$306,$R109,$R109+Q11) ->  | AJ109: 5 | AK109: =Q9 -> kit 1 | AL109: kit 2/3 | AM109: 0 | AN109: kit 4 | AO109: 0 | AP109: kit 5 | AQ109: kit 6/7 | AR109: 0 | AS109: 0 | AT109: kit 8 | AU109: kit 9 | AV109: 0 | AW109: kit 10 | AX109: kit 11 | AY109: MAX | BA109: 6 | BB109: =Q9 -> kit 1 | BC109: kit 2/3 | BD109: 0 | BE109: kit 4 | BF109: 0 | BG109: kit 5 | BH109: kit 6/7 | BI109: 0 | BJ109: 0 | BK109: kit 8 | BL109: kit 9 | BM109: 0 | BN109: kit 10 | BO109: kit 11 | BP109: MAX | BR109: =BB109 -> kit 1 | BS109: kit 2/3 | BT109: 0 | BU109: kit 4 | BV109: 0 | BW109: kit 5 | BX109: kit 6/7 | BY109: 0 | BZ109: 0 | CA109: kit 8 | CB109: kit 9 | CC109: 0 | CD109: kit 10 | CE109: kit 11 | CI109: neutre | CJ109: =$CJ$74/DO75 ->  | CK109: =DN75/$CK$74 ->  | CL109: =$CL$74-DP75 ->  | CM109: =$CM$74/DO75 ->  | CN109: =DN75/$CN$74 ->  | CO109: =$CO$74-DP75 ->  | CP109: =$CP$74/DO75 ->  | CQ109: =DN75/$CQ$74 ->  | CR109: =$CR$74-DP75 ->  | CS109: =$CS$74/(1.15*DO75) ->  | CT109: =1.15*DN75/$CT$74 ->  | CU109: =$CU$74-1.15*DP75 ->  | CV109: =$CV$74/(1.15*DO75) ->  | CW109: =1.15*DN75/$CW$74 ->  | CX109: =$CX$74-1.15*DP75 ->  | CY109: =$CY$74/(1.15*DO75) ->  | CZ109: =1.15*DN75/$CZ$74 ->  | DA109: =$DA$74-1.15*DP75 ->  | DB109: =1.15*$DB$74/DO75 ->  | DC109: =DN75/(1.15*$DC$74) ->  | DD109: =1.15*$DD$74-DP75 ->  | DE109: =1.15*$DE$74/DO75 ->  | DF109: =DN75/(1.15*$DF$74) ->  | DG109: =1.15*$DD$74-DP75 ->  | DH109: =1.15*$DH$74/DO75 ->  | DI109: =DN75/(1.15*$DI$74) ->  | DJ109: =1.15*$DJ$74-DP75 ->  | DK109: =$DK$74/DO75 ->  | DL109: =DN75/$DL$74 ->  | DM109: =$DM$74-DP75 ->  | DN109: =$DN$74/DO75 ->  | DO109: =DN75/$DO$74 ->  | DP109: =$DP$74-DP75 ->  | DQ109: =$DQ$74/DO75 ->  | DR109: =DN75/$DR$74 ->  | DS109: =$DS$74-DP75 -> 
D110: CAP | E110: =IF(G17<>"",G17,"") ->  | F110: =IF(VLOOKUP(E110,$AI$8:$AV$33,14,FALSE)=0,IF(N17<>"",N17*100,0),VLOOKUP(E110,$AI$8:$AV$33,14,FALSE)) -> 1 | G110: =IF(G17<>"",(L17/100+MIN(5000,M17)/500)/100,"") ->  | H110: =IF(G17<>"",IF(ISNA(IF(VLOOKUP(G17,$AI$8:$AV$33,14,FALSE)="","",(HLOOKUP(VLOOKUP(G17,$BA$10:$BB$20,2,FALSE),S100:AF105,6,FALSE)/100+MIN(5000,M17)/500)/100)),G110,IF(VLOOKUP(G17,$AI$8:$AV$33,14,FALSE)="","",(HLOOKUP(VLOOKUP(G17,$BA$10:$BB$20,2,FALSE),S100:AF105,6,FALSE)/100+MIN(5000,M17)/500)/100)),"") ->  | I110: =IF(G17<>"",IF(ISNA(IF(VLOOKUP(G17,$AI$8:$AV$29,14,FALSE)="","",((HLOOKUP(VLOOKUP(G17,$BA$10:$BB$20,2,FALSE),$S$100:$AF$105,6,FALSE)+IF(HLOOKUP(F110,$AJ$7:$AT$35,29,FALSE)=1,D19,0))/100+MIN(5000,M17)/500)/100)),H110,IF(VLOOKUP(G17,$AI$8:$AV$29,14,FALSE)="","",((HLOOKUP(VLOOKUP(G17,$BA$10:$BB$20,2,FALSE),$S$100:$AF$105,6,FALSE)+IF(HLOOKUP(F110,$AJ$7:$AT$35,29,FALSE)=1,D19,0))/100+MIN(5000,M17)/500)/100)),"") ->  | R110: =IF($AX$306,J18+VLOOKUP(Team!$Z24,Team!$E$30:$J$300,6,FALSE),J18+AH41+$D$21)+$D$19*$AG$15 ->  | S110: =IF($AX$306,$R110,$R110+Q12) ->  | AJ110: =AJ191 ->  | AK110: =MIN((S59+AN35*D19)/AK46,(S60+AN35*D19)/AL46,(S61+AN35*D19)/AM46,(S62+AN35*D19)/AN46,(S63+AN35*D19)/AO46)*AP46 ->  | AL110: =MIN((T59+AN35*D19)/AK46,(T60+AN35*D19)/AL46,(T61+AN35*D19)/AM46,(T62+AN35*D19)/AN46,(T63+AN35*D19)/AO46)*AP46 ->  | AM110: =MIN((U59+AN35*D19)/AK46,(U60+AN35*D19)/AL46,(U61+AN35*D19)/AM46,(U62+AN35*D19)/AN46,(U63+AN35*D19)/AO46)*AP46 ->  | AN110: =MIN((V59+AN35*D19)/AK46,(V60+AN35*D19)/AL46,(V61+AN35*D19)/AM46,(V62+AN35*D19)/AN46,(V63+AN35*D19)/AO46)*AP46 ->  | AO110: =MIN((W59+AN35*D19)/AK46,(W60+AN35*D19)/AL46,(W61+AN35*D19)/AM46,(W62+AN35*D19)/AN46,(W63+AN35*D19)/AO46)*AP46 ->  | AP110: =MIN((X59+AN35*D19)/AK46,(X60+AN35*D19)/AL46,(X61+AN35*D19)/AM46,(X62+AN35*D19)/AN46,(X63+AN35*D19)/AO46)*AP46 ->  | AQ110: =MIN((Y59+AN35*D19)/AK46,(Y60+AN35*D19)/AL46,(Y61+AN35*D19)/AM46,(Y62+AN35*D19)/AN46,(Y63+AN35*D19)/AO46)*AP46 ->  | AR110: =MIN((Z59+AN35*D19)/AK46,(Z60+AN35*D19)/AL46,(Z61+AN35*D19)/AM46,(Z62+AN35*D19)/AN46,(Z63+AN35*D19)/AO46)*AP46 ->  | AS110: =MIN((AA59+AN35*D19)/AK46,(AA60+AN35*D19)/AL46,(AA61+AN35*D19)/AM46,(AA62+AN35*D19)/AN46,(AA63+AN35*D19)/AO46)*AP46 ->  | AT110: =MIN((AB59+AN35*D19)/AK46,(AB60+AN35*D19)/AL46,(AB61+AN35*D19)/AM46,(AB62+AN35*D19)/AN46,(AB63+AN35*D19)/AO46)*AP46 ->  | AU110: =MIN((AC59+AN35*D19)/AK46,(AC60+AN35*D19)/AL46,(AC61+AN35*D19)/AM46,(AC62+AN35*D19)/AN46,(AC63+AN35*D19)/AO46)*AP46 ->  | AV110: =MIN((AD59+$AN$35*$D$19)/$AK$46,(AD60+$AN$35*$D$19)/AL45,(AD61+$AN$35*$D$19)/AM45,($AD$62+$AN$35*$D$19)/$AN$46,(AD63+$AN$35*$D$19)/$AO$46)*$AP$46 ->  | AW110: =MIN((AE59+AN35*D19)/AK46,(AE60+AN35*D19)/AL46,(AE61+AN35*D19)/AM46,(AE62+AN35*D19)/AN46,(AE63+AN35*D19)/AO46)*AP46 ->  | AX110: =MIN((AF59+AN35*D19)/AK46,(AF60+AN35*D19)/AL46,(AF61+AN35*D19)/AM46,(AF62+AN35*D19)/AN46,(AF63+AN35*D19)/AO46)*AP46 ->  | AY110: =MAX(AK110:AX110) ->  | BA110: =AJ191 ->  | BB110: =MIN((S59+AO35*D19)/AK47,(S60+AO35*D19)/AL47,(S61+AO35*D19)/AM47,(S62+AO35*D19)/AN47,(S63+AO35*D19)/AO47)*AP47 ->  | BC110: =MIN((T59+AO35*D19)/AK47,(T60+AO35*D19)/AL47,(T61+AO35*D19)/AM47,(T62+AO35*D19)/AN47,(T63+AO35*D19)/AO47)*AP47 ->  | BD110: =MIN((U59+AO35*D19)/AK47,(U60+AO35*D19)/AL47,(U61+AO35*D19)/AM47,(U62+AO35*D19)/AN47,(U63+AO35*D19)/AO47)*AP47 ->  | BE110: =MIN((V59+AO35*D19)/AK47,(V60+AO35*D19)/AL47,(V61+AO35*D19)/AM47,(V62+AO35*D19)/AN47,(V63+AO35*D19)/AO47)*AP47 ->  | BF110: =MIN((W59+AO35*D19)/AK47,(W60+AO35*D19)/AL47,(W61+AO35*D19)/AM47,(W62+AO35*D19)/AN47,(W63+AO35*D19)/AO47)*AP47 ->  | BG110: =MIN((X59+AO35*D19)/AK47,(X60+AO35*D19)/AL47,(X61+AO35*D19)/AM47,(X62+AO35*D19)/AN47,(X63+AO35*D19)/AO47)*AP47 ->  | BH110: =MIN((Y59+AO35*D19)/AK47,(Y60+AO35*D19)/AL47,(Y61+AO35*D19)/AM47,(Y62+AO35*D19)/AN47,(Y63+AO35*D19)/AO47)*AP47 ->  | BI110: =MIN((Z59+AO35*D19)/AK47,(Z60+AO35*D19)/AL47,(Z61+AO35*D19)/AM47,(Z62+AO35*D19)/AN47,(Z63+AO35*D19)/AO47)*AP47 ->  | BJ110: =MIN((AA59+AO35*D19)/AK47,(AA60+AO35*D19)/AL47,(AA61+AO35*D19)/AM47,(AA62+AO35*D19)/AN47,(AA63+AO35*D19)/AO47)*AP47 ->  | BK110: =MIN((AB59+AO35*D19)/AK47,(AB60+AO35*D19)/AL47,(AB61+AO35*D19)/AM47,(AB62+AO35*D19)/AN47,(AB63+AO35*D19)/AO47)*AP47 ->  | BL110: =MIN((AC59+AO35*D19)/AK47,(AC60+AO35*D19)/AL47,(AC61+AO35*D19)/AM47,(AC62+AO35*D19)/AN47,(AC63+AO35*D19)/AO47)*AP47 ->  | BM110: =MIN((AD59+AO35*D19)/AK47,(AD60+AO35*D19)/AL47,(AD61+AO35*D19)/AM47,(AD62+AO35*D19)/AN47,(AD63+AO35*D19)/AO47)*AP47 ->  | BN110: =MIN((AE59+AO35*D19)/AK47,(AE60+AO35*D19)/AL47,(AE61+AO35*D19)/AM47,(AE62+AO35*D19)/AN47,(AE63+AO35*D19)/AO47)*AP47 ->  | BO110: =MIN((AF59+AO35*D19)/AK47,(AF60+AO35*D19)/AL47,(AF61+AO35*D19)/AM47,(AF62+AO35*D19)/AN47,(AF63+AO35*D19)/AO47)*AP47 ->  | BP110: =MAX(BB110:BO110) ->  | BR110: =BB109 -> kit 1 | BS110: kit 2/3 | BT110: 0 | BU110: kit 4 | BV110: 0 | BW110: kit 5 | BX110: kit 6/7 | BY110: 0 | BZ110: 0 | CA110: kit 8 | CB110: kit 9 | CC110: 0 | CD110: kit 10 | CE110: kit 11 | CI110: off | CJ110: =$CJ$74/DR75 ->  | CK110: =DQ75/$CK$74 ->  | CL110: =$CL$74-DS75 ->  | CM110: =$CM$74/DR75 ->  | CN110: =DQ75/$CN$74 ->  | CO110: =$CO$74-DS75 ->  | CP110: =$CP$74/DR75 ->  | CQ110: =DQ75/$CQ$74 ->  | CR110: =$CR$74-DS75 ->  | CS110: =$CS$74/(1.15*DR75) ->  | CT110: =1.15*DQ75/$CT$74 ->  | CU110: =$CU$74-1.15*DS75 ->  | CV110: =$CV$74/(1.15*DR75) ->  | CW110: =1.15*DQ75/$CW$74 ->  | CX110: =$CX$74-1.15*DS75 ->  | CY110: =$CY$74/(1.15*DR75) ->  | CZ110: =1.15*DQ75/$CZ$74 ->  | DA110: =$DA$74-1.15*DS75 ->  | DB110: =1.15*$DB$74/DR75 ->  | DC110: =DQ75/(1.15*$DC$74) ->  | DD110: =1.15*$DD$74-DS75 ->  | DE110: =1.15*$DE$74/DR75 ->  | DF110: =DQ75/(1.15*$DF$74) ->  | DG110: =1.15*$DD$74-DS75 ->  | DH110: =1.15*$DH$74/DR75 ->  | DI110: =DQ75/(1.15*$DI$74) ->  | DJ110: =1.15*$DJ$74-DS75 ->  | DK110: =$DK$74/DR75 ->  | DL110: =DQ75/$DL$74 ->  | DM110: =$DM$74-DS75 ->  | DN110: =$DN$74/DR75 ->  | DO110: =DQ75/$DO$74 ->  | DP110: =$DP$74-DS75 ->  | DQ110: =$DQ$74/DR75 ->  | DR110: =DQ75/$DR$74 ->  | DS110: =$DS$74-DS75 -> 
D111: CAP | E111: =IF(G18<>"",G18,"") ->  | F111: =IF(VLOOKUP(E111,$AI$8:$AV$33,14,FALSE)=0,IF(N18<>"",N18*100,0),VLOOKUP(E111,$AI$8:$AV$33,14,FALSE)) -> 1 | G111: =IF(G18<>"",(L18/100+MIN(5000,M18)/500)/100,"") ->  | H111: =IF(G18<>"",IF(ISNA(IF(VLOOKUP(G18,$AI$8:$AV$33,14,FALSE)="","",(HLOOKUP(VLOOKUP(G18,$BA$10:$BB$20,2,FALSE),S107:AF112,6,FALSE)/100+MIN(5000,M18)/500)/100)),G111,IF(VLOOKUP(G18,$AI$8:$AV$33,14,FALSE)="","",(HLOOKUP(VLOOKUP(G18,$BA$10:$BB$20,2,FALSE),S107:AF112,6,FALSE)/100+MIN(5000,M18)/500)/100)),"") ->  | I111: =IF(G18<>"",IF(ISNA(IF(VLOOKUP(G18,$AI$8:$AV$29,14,FALSE)="","",((HLOOKUP(VLOOKUP(G18,$BA$10:$BB$20,2,FALSE),$S$107:$AF$112,6,FALSE)+IF(HLOOKUP(F111,$AJ$7:$AT$35,29,FALSE)=1,D19,0))/100+MIN(5000,M18)/500)/100)),H111,IF(VLOOKUP(G18,$AI$8:$AV$29,14,FALSE)="","",((HLOOKUP(VLOOKUP(G18,$BA$10:$BB$20,2,FALSE),$S$107:$AF$112,6,FALSE)+IF(HLOOKUP(F111,$AJ$7:$AT$35,29,FALSE)=1,D19,0))/100+MIN(5000,M18)/500)/100)),"") ->  | R111: =IF($AX$306,K18+VLOOKUP(Team!$AA24,Team!$E$30:$J$300,6,FALSE),K18+AH42+$D$21)+$D$19*$AG$15 ->  | S111: =IF($AX$306,$R111,$R111+Q13) ->  | AK111: =MIN((S66+AN35*D19)/AK46,(S67+AN35*D19)/AL46,(S68+AN35*D19)/AM46,(S69+AN35*D19)/AN46,(S70+AN35*D19)/AO46)*AP46 ->  | AL111: =MIN((T66+AN35*D19)/AK46,(T67+AN35*D19)/AL46,(T68+AN35*D19)/AM46,(T69+AN35*D19)/AN46,(T70+AN35*D19)/AO46)*AP46 ->  | AM111: =MIN((U66+AN35*D19)/AK46,(U67+AN35*D19)/AL46,(U68+AN35*D19)/AM46,(U69+AN35*D19)/AN46,(U70+AN35*D19)/AO46)*AP46 ->  | AN111: =MIN((V66+AN35*D19)/AK46,(V67+AN35*D19)/AL46,(V68+AN35*D19)/AM46,(V69+AN35*D19)/AN46,(V70+AN35*D19)/AO46)*AP46 ->  | AO111: =MIN((W66+AN35*D19)/AK46,(W67+AN35*D19)/AL46,(W68+AN35*D19)/AM46,(W69+AN35*D19)/AN46,(W70+AN35*D19)/AO46)*AP46 ->  | AP111: =MIN((X66+AN35*D19)/AK46,(X67+AN35*D19)/AL46,(X68+AN35*D19)/AM46,(X69+AN35*D19)/AN46,(X70+AN35*D19)/AO46)*AP46 ->  | AQ111: =MIN((Y66+AN35*D19)/AK46,(Y67+AN35*D19)/AL46,(Y68+AN35*D19)/AM46,(Y69+AN35*D19)/AN46,(Y70+AN35*D19)/AO46)*AP46 ->  | AR111: =MIN((Z66+AN35*D19)/AK46,(Z67+AN35*D19)/AL46,(Z68+AN35*D19)/AM46,(Z69+AN35*D19)/AN46,(Z70+AN35*D19)/AO46)*AP46 ->  | AS111: =MIN((AA66+AN35*D19)/AK46,(AA67+AN35*D19)/AL46,(AA68+AN35*D19)/AM46,(AA69+AN35*D19)/AN46,(AA70+AN35*D19)/AO46)*AP46 ->  | AT111: =MIN((AB66+AN35*D19)/AK46,(AB67+AN35*D19)/AL46,(AB68+AN35*D19)/AM46,(AB69+AN35*D19)/AN46,(AB70+AN35*D19)/AO46)*AP46 ->  | AU111: =MIN((AC66+AN35*D19)/AK46,(AC67+AN35*D19)/AL46,(AC68+AN35*D19)/AM46,(AC69+AN35*D19)/AN46,(AC70+AN35*D19)/AO46)*AP46 ->  | AV111: =MIN((AD66+$AN$35*$D$19)/$AK$46,(AD67+$AN$35*$D$19)/AL46,(AD68+$AN$35*$D$19)/AM46,($AD$69+$AN$35*$D$19)/$AN$46,(AD70+$AN$35*$D$19)/$AO$46)*$AP$46 ->  | AW111: =MIN((AE66+AN35*D19)/AK46,(AE67+AN35*D19)/AL46,(AE68+AN35*D19)/AM46,(AE69+AN35*D19)/AN46,(AE70+AN35*D19)/AO46)*AP46 ->  | AX111: =MIN((AF66+AN35*D19)/AK46,(AF67+AN35*D19)/AL46,(AF68+AN35*D19)/AM46,(AF69+AN35*D19)/AN46,(AF70+AN35*D19)/AO46)*AP46 ->  | BB111: =MIN((S66+AO35*D19)/AK47,(S67+AO35*D19)/AL47,(S68+AO35*D19)/AM47,(S69+AO35*D19)/AN47,(S70+AO35*D19)/AO47)*AP47 ->  | BC111: =MIN((T66+AO35*D19)/AK47,(T67+AO35*D19)/AL47,(T68+AO35*D19)/AM47,(T69+AO35*D19)/AN47,(T70+AO35*D19)/AO47)*AP47 ->  | BD111: =MIN((U66+AO35*D19)/AK47,(U67+AO35*D19)/AL47,(U68+AO35*D19)/AM47,(U69+AO35*D19)/AN47,(U70+AO35*D19)/AO47)*AP47 ->  | BE111: =MIN((V66+AO35*D19)/AK47,(V67+AO35*D19)/AL47,(V68+AO35*D19)/AM47,(V69+AO35*D19)/AN47,(V70+AO35*D19)/AO47)*AP47 ->  | BF111: =MIN((W66+AO35*D19)/AK47,(W67+AO35*D19)/AL47,(W68+AO35*D19)/AM47,(W69+AO35*D19)/AN47,(W70+AO35*D19)/AO47)*AP47 ->  | BG111: =MIN((X66+AO35*D19)/AK47,(X67+AO35*D19)/AL47,(X68+AO35*D19)/AM47,(X69+AO35*D19)/AN47,(X70+AO35*D19)/AO47)*AP47 ->  | BH111: =MIN((Y66+AO35*D19)/AK47,(Y67+AO35*D19)/AL47,(Y68+AO35*D19)/AM47,(Y69+AO35*D19)/AN47,(Y70+AO35*D19)/AO47)*AP47 ->  | BI111: =MIN((Z66+AO35*D19)/AK47,(Z67+AO35*D19)/AL47,(Z68+AO35*D19)/AM47,(Z69+AO35*D19)/AN47,(Z70+AO35*D19)/AO47)*AP47 ->  | BJ111: =MIN((AA66+AO35*D19)/AK47,(AA67+AO35*D19)/AL47,(AA68+AO35*D19)/AM47,(AA69+AO35*D19)/AN47,(AA70+AO35*D19)/AO47)*AP47 ->  | BK111: =MIN((AB66+AO35*D19)/AK47,(AB67+AO35*D19)/AL47,(AB68+AO35*D19)/AM47,(AB69+AO35*D19)/AN47,(AB70+AO35*D19)/AO47)*AP47 ->  | BL111: =MIN((AC66+AO35*D19)/AK47,(AC67+AO35*D19)/AL47,(AC68+AO35*D19)/AM47,(AC69+AO35*D19)/AN47,(AC70+AO35*D19)/AO47)*AP47 ->  | BM111: =MIN((AD66+AO35*D19)/AK47,(AD67+AO35*D19)/AL47,(AD68+AO35*D19)/AM47,(AD69+AO35*D19)/AN47,(AD70+AO35*D19)/AO47)*AP47 ->  | BN111: =MIN((AE66+AO35*D19)/AK47,(AE67+AO35*D19)/AL47,(AE68+AO35*D19)/AM47,(AE69+AO35*D19)/AN47,(AE70+AO35*D19)/AO47)*AP47 ->  | BO111: =MIN((AF66+AO35*D19)/AK47,(AF67+AO35*D19)/AL47,(AF68+AO35*D19)/AM47,(AF69+AO35*D19)/AN47,(AF70+AO35*D19)/AO47)*AP47 ->  | BP111: =MAX(BB111:BO111) ->  | BQ111: meilleur kit par poste / joueur
D112: CAP | F112: 1 | H112: =IF(G19<>"",IF(ISNA(IF(VLOOKUP(G19,$AI$8:$AV$33,14,FALSE)="","",(HLOOKUP(VLOOKUP(G19,$BA$10:$BB$20,2,FALSE),S114:AF119,6,FALSE)/100+MIN(5000,M19)/500)/100)),G112,IF(VLOOKUP(G19,$AI$8:$AV$33,14,FALSE)="","",(HLOOKUP(VLOOKUP(G19,$BA$10:$BB$20,2,FALSE),S114:AF119,6,FALSE)/100+MIN(5000,M19)/500)/100)),"") ->  | I112: =IF(G19<>"",IF(ISNA(IF(VLOOKUP(G19,$AI$8:$AV$29,14,FALSE)="","",((HLOOKUP(VLOOKUP(G19,$BA$10:$BB$20,2,FALSE),$S$114:$AF$119,6,FALSE)+IF(HLOOKUP(F112,$AJ$7:$AT$35,29,FALSE)=1,D19,0))/100+MIN(5000,M19)/500)/100)),H112,IF(VLOOKUP(G19,$AI$8:$AV$29,14,FALSE)="","",((HLOOKUP(VLOOKUP(G19,$BA$10:$BB$20,2,FALSE),$S$114:$AF$119,6,FALSE)+IF(HLOOKUP(F112,$AJ$7:$AT$35,29,FALSE)=1,D19,0))/100+MIN(5000,M19)/500)/100)),"") ->  | R112: =IF($AX$306,L18+VLOOKUP(Team!$AB24,Team!$E$30:$J$300,6,FALSE),L18+AH43+$D$21)+$D$19*$AG$15 ->  | S112: =IF($AX$306,$R112,$R112+Q14) ->  | AK112: =MIN((S73+AN35*D19)/AK46,(S74+AN35*D19)/AL46,(S75+AN35*D19)/AM46,(S76+AN35*D19)/AN46,(S77+AN35*D19)/AO46)*AP46 ->  | AL112: =MIN((T73+AN35*D19)/AK46,(T74+AN35*D19)/AL46,(T75+AN35*D19)/AM46,(T76+AN35*D19)/AN46,(T77+AN35*D19)/AO46)*AP46 ->  | AM112: =MIN((U73+AN35*D19)/AK46,(U74+AN35*D19)/AL46,(U75+AN35*D19)/AM46,(U76+AN35*D19)/AN46,(U77+AN35*D19)/AO46)*AP46 ->  | AN112: =MIN((V73+AN35*D19)/AK46,(V74+AN35*D19)/AL46,(V75+AN35*D19)/AM46,(V76+AN35*D19)/AN46,(V77+AN35*D19)/AO46)*AP46 ->  | AO112: =MIN((W73+AN35*D19)/AK46,(W74+AN35*D19)/AL46,(W75+AN35*D19)/AM46,(W76+AN35*D19)/AN46,(W77+AN35*D19)/AO46)*AP46 ->  | AP112: =MIN((X73+AN35*D19)/AK46,(X74+AN35*D19)/AL46,(X75+AN35*D19)/AM46,(X76+AN35*D19)/AN46,(X77+AN35*D19)/AO46)*AP46 ->  | AQ112: =MIN((Y73+AN35*D19)/AK46,(Y74+AN35*D19)/AL46,(Y75+AN35*D19)/AM46,(Y76+AN35*D19)/AN46,(Y77+AN35*D19)/AO46)*AP46 ->  | AR112: =MIN((Z73+AN35*D19)/AK46,(Z74+AN35*D19)/AL46,(Z75+AN35*D19)/AM46,(Z76+AN35*D19)/AN46,(Z77+AN35*D19)/AO46)*AP46 ->  | AS112: =MIN((AA73+AN35*D19)/AK46,(AA74+AN35*D19)/AL46,(AA75+AN35*D19)/AM46,(AA76+AN35*D19)/AN46,(AA77+AN35*D19)/AO46)*AP46 ->  | AT112: =MIN((AB73+AN35*D19)/AK46,(AB74+AN35*D19)/AL46,(AB75+AN35*D19)/AM46,(AB76+AN35*D19)/AN46,(AB77+AN35*D19)/AO46)*AP46 ->  | AU112: =MIN((AC73+AN35*D19)/AK46,(AC74+AN35*D19)/AL46,(AC75+AN35*D19)/AM46,(AC76+AN35*D19)/AN46,(AC77+AN35*D19)/AO46)*AP46 ->  | AV112: =MIN((AD73+AN35*D19)/AK46,(AD74+AN35*D19)/AL46,(AD75+AN35*D19)/AM46,(AD76+AN35*D19)/AN46,(AD77+AN35*D19)/AO46)*AP46 ->  | AW112: =MIN((AE73+AN35*D19)/AK46,(AE74+AN35*D19)/AL46,(AE75+AN35*D19)/AM46,(AE76+AN35*D19)/AN46,(AE77+AN35*D19)/AO46)*AP46 ->  | AX112: =MIN((AF73+AN35*D19)/AK46,(AF74+AN35*D19)/AL46,(AF75+AN35*D19)/AM46,(AF76+AN35*D19)/AN46,(AF77+AN35*D19)/AO46)*AP46 ->  | BB112: =MIN((S73+AO35*D19)/AK47,(S74+AO35*D19)/AL47,(S75+AO35*D19)/AM47,(S76+AO35*D19)/AN47,(S77+AO35*D19)/AO47)*AP47 ->  | BC112: =MIN((T73+AO35*D19)/AK47,(T74+AO35*D19)/AL47,(T75+AO35*D19)/AM47,(T76+AO35*D19)/AN47,(T77+AO35*D19)/AO47)*AP47 ->  | BD112: =MIN((U73+AO35*D19)/AK47,(U74+AO35*D19)/AL47,(U75+AO35*D19)/AM47,(U76+AO35*D19)/AN47,(U77+AO35*D19)/AO47)*AP47 ->  | BE112: =MIN((V73+AO35*D19)/AK47,(V74+AO35*D19)/AL47,(V75+AO35*D19)/AM47,(V76+AO35*D19)/AN47,(V77+AO35*D19)/AO47)*AP47 ->  | BF112: =MIN((W73+AO35*D19)/AK47,(W74+AO35*D19)/AL47,(W75+AO35*D19)/AM47,(W76+AO35*D19)/AN47,(W77+AO35*D19)/AO47)*AP47 ->  | BG112: =MIN((X73+AO35*D19)/AK47,(X74+AO35*D19)/AL47,(X75+AO35*D19)/AM47,(X76+AO35*D19)/AN47,(X77+AO35*D19)/AO47)*AP47 ->  | BH112: =MIN((Y73+AO35*D19)/AK47,(Y74+AO35*D19)/AL47,(Y75+AO35*D19)/AM47,(Y76+AO35*D19)/AN47,(Y77+AO35*D19)/AO47)*AP47 ->  | BI112: =MIN((Z73+AO35*D19)/AK47,(Z74+AO35*D19)/AL47,(Z75+AO35*D19)/AM47,(Z76+AO35*D19)/AN47,(Z77+AO35*D19)/AO47)*AP47 ->  | BJ112: =MIN((AA73+AO35*D19)/AK47,(AA74+AO35*D19)/AL47,(AA75+AO35*D19)/AM47,(AA76+AO35*D19)/AN47,(AA77+AO35*D19)/AO47)*AP47 ->  | BK112: =MIN((AB73+AO35*D19)/AK47,(AB74+AO35*D19)/AL47,(AB75+AO35*D19)/AM47,(AB76+AO35*D19)/AN47,(AB77+AO35*D19)/AO47)*AP47 ->  | BL112: =MIN((AC73+AO35*D19)/AK47,(AC74+AO35*D19)/AL47,(AC75+AO35*D19)/AM47,(AC76+AO35*D19)/AN47,(AC77+AO35*D19)/AO47)*AP47 ->  | BM112: =MIN((AD73+AO35*D19)/AK47,(AD74+AO35*D19)/AL47,(AD75+AO35*D19)/AM47,(AD76+AO35*D19)/AN47,(AD77+AO35*D19)/AO47)*AP47 ->  | BN112: =MIN((AE73+AO35*D19)/AK47,(AE74+AO35*D19)/AL47,(AE75+AO35*D19)/AM47,(AE76+AO35*D19)/AN47,(AE77+AO35*D19)/AO47)*AP47 ->  | BO112: =MIN((AF73+AO35*D19)/AK47,(AF74+AO35*D19)/AL47,(AF75+AO35*D19)/AM47,(AF76+AO35*D19)/AN47,(AF77+AO35*D19)/AO47)*AP47 ->  | BS112: 1 | BU112: 2 | BW112: 3 | BY112: 4 | CA112: 5 | CC112: 6 | CE112: 7 | CG112: 8 | CI112: 9 | CK112: 10 | CM112: 11 | CP112: resultat match selon stratégie
D113: CAP | E113: =IF(G20<>"",G20,"") ->  | F113: =IF(VLOOKUP(E113,$AI$8:$AV$33,14,FALSE)=0,IF(N20<>"",N20*100,0),VLOOKUP(E113,$AI$8:$AV$33,14,FALSE)) -> 1 | G113: =IF(G20<>"",(L20/100+MIN(5000,M20)/500)/100,"") ->  | H113: =IF(G20<>"",IF(ISNA(IF(VLOOKUP(G20,$AI$8:$AV$33,14,FALSE)="","",(HLOOKUP(VLOOKUP(G20,$BA$10:$BB$20,2,FALSE),S121:AF126,6,FALSE)/100+MIN(5000,M20)/500)/100)),G113,IF(VLOOKUP(G20,$AI$8:$AV$33,14,FALSE)="","",(HLOOKUP(VLOOKUP(G20,$BA$10:$BB$20,2,FALSE),S121:AF126,6,FALSE)/100+MIN(5000,M20)/500)/100)),"") ->  | I113: =IF(G20<>"",IF(ISNA(IF(VLOOKUP(G20,$AI$8:$AV$29,14,FALSE)="","",((HLOOKUP(VLOOKUP(G20,$BA$10:$BB$20,2,FALSE),$S$121:$AF$126,6,FALSE)+IF(HLOOKUP(F113,$AJ$7:$AT$35,29,FALSE)=1,D19,0))/100+MIN(5000,M20)/500)/100)),H113,IF(VLOOKUP(G20,$AI$8:$AV$29,14,FALSE)="","",((HLOOKUP(VLOOKUP(G20,$BA$10:$BB$20,2,FALSE),$S$121:$AF$126,6,FALSE)+IF(HLOOKUP(F113,$AJ$7:$AT$35,29,FALSE)=1,D19,0))/100+MIN(5000,M20)/500)/100)),"") ->  | AK113: =MIN((S80+AN35*D19)/AK46,(S81+AN35*D19)/AL46,(S82+AN35*D19)/AM46,(S83+AN35*D19)/AN46,(S84+AN35*D19)/AO46)*AP46 ->  | AL113: =MIN((T80+AN35*D19)/AK46,(T81+AN35*D19)/AL46,(T82+AN35*D19)/AM46,(T83+AN35*D19)/AN46,(T84+AN35*D19)/AO46)*AP46 ->  | AM113: =MIN((U80+AN35*D19)/AK46,(U81+AN35*D19)/AL46,(U82+AN35*D19)/AM46,(U83+AN35*D19)/AN46,(U84+AN35*D19)/AO46)*AP46 ->  | AN113: =MIN((V80+AN35*D19)/AK46,(V81+AN35*D19)/AL46,(V82+AN35*D19)/AM46,(V83+AN35*D19)/AN46,(V84+AN35*D19)/AO46)*AP46 ->  | AO113: =MIN((W80+AN35*D19)/AK46,(W81+AN35*D19)/AL46,(W82+AN35*D19)/AM46,(W83+AN35*D19)/AN46,(W84+AN35*D19)/AO46)*AP46 ->  | AP113: =MIN((X80+AN35*D19)/AK46,(X81+AN35*D19)/AL46,(X82+AN35*D19)/AM46,(X83+AN35*D19)/AN46,(X84+AN35*D19)/AO46)*AP46 ->  | AQ113: =MIN((Y80+AN35*D19)/AK46,(Y81+AN35*D19)/AL46,(Y82+AN35*D19)/AM46,(Y83+AN35*D19)/AN46,(Y84+AN35*D19)/AO46)*AP46 ->  | AR113: =MIN((Z80+AN35*D19)/AK46,(Z81+AN35*D19)/AL46,(Z82+AN35*D19)/AM46,(Z83+AN35*D19)/AN46,(Z84+AN35*D19)/AO46)*AP46 ->  | AS113: =MIN((AA80+AN35*D19)/AK46,(AA81+AN35*D19)/AL46,(AA82+AN35*D19)/AM46,(AA83+AN35*D19)/AN46,(AA84+AN35*D19)/AO46)*AP46 ->  | AT113: =MIN((AB80+AN35*D19)/AK46,(AB81+AN35*D19)/AL46,(AB82+AN35*D19)/AM46,(AB83+AN35*D19)/AN46,(AB84+AN35*D19)/AO46)*AP46 ->  | AU113: =MIN((AC80+AN35*D19)/AK46,(AC81+AN35*D19)/AL46,(AC82+AN35*D19)/AM46,(AC83+AN35*D19)/AN46,(AC84+AN35*D19)/AO46)*AP46 ->  | AV113: =MIN((AD80+AN35*D19)/AK46,(AD81+AN35*D19)/AL46,(AD82+AN35*D19)/AM46,(AD83+AN35*D19)/AN46,(AD84+AN35*D19)/AO46)*AP46 ->  | AW113: =MIN((AE80+AN35*D19)/AK46,(AE81+AN35*D19)/AL46,(AE82+AN35*D19)/AM46,(AE83+AN35*D19)/AN46,(AE84+AN35*D19)/AO46)*AP46 ->  | AX113: =MIN((AF80+AN35*D19)/AK46,(AF81+AN35*D19)/AL46,(AF82+AN35*D19)/AM46,(AF83+AN35*D19)/AN46,(AF84+AN35*D19)/AO46)*AP46 ->  | BB113: =MIN((S80+AO35*D19)/AK47,(S81+AO35*D19)/AL47,(S82+AO35*D19)/AM47,(S83+AO35*D19)/AN47,(S84+AO35*D19)/AO47)*AP47 ->  | BC113: =MIN((T80+AO35*D19)/AK47,(T81+AO35*D19)/AL47,(T82+AO35*D19)/AM47,(T83+AO35*D19)/AN47,(T84+AO35*D19)/AO47)*AP47 ->  | BD113: =MIN((U80+AO35*D19)/AK47,(U81+AO35*D19)/AL47,(U82+AO35*D19)/AM47,(U83+AO35*D19)/AN47,(U84+AO35*D19)/AO47)*AP47 ->  | BE113: =MIN((V80+AO35*D19)/AK47,(V81+AO35*D19)/AL47,(V82+AO35*D19)/AM47,(V83+AO35*D19)/AN47,(V84+AO35*D19)/AO47)*AP47 ->  | BF113: =MIN((W80+AO35*D19)/AK47,(W81+AO35*D19)/AL47,(W82+AO35*D19)/AM47,(W83+AO35*D19)/AN47,(W84+AO35*D19)/AO47)*AP47 ->  | BG113: =MIN((X80+AO35*D19)/AK47,(X81+AO35*D19)/AL47,(X82+AO35*D19)/AM47,(X83+AO35*D19)/AN47,(X84+AO35*D19)/AO47)*AP47 ->  | BH113: =MIN((Y80+AO35*D19)/AK47,(Y81+AO35*D19)/AL47,(Y82+AO35*D19)/AM47,(Y83+AO35*D19)/AN47,(Y84+AO35*D19)/AO47)*AP47 ->  | BI113: =MIN((Z80+AO35*D19)/AK47,(Z81+AO35*D19)/AL47,(Z82+AO35*D19)/AM47,(Z83+AO35*D19)/AN47,(Z84+AO35*D19)/AO47)*AP47 ->  | BJ113: =MIN((AA80+AO35*D19)/AK47,(AA81+AO35*D19)/AL47,(AA82+AO35*D19)/AM47,(AA83+AO35*D19)/AN47,(AA84+AO35*D19)/AO47)*AP47 ->  | BK113: =MIN((AB80+AO35*D19)/AK47,(AB81+AO35*D19)/AL47,(AB82+AO35*D19)/AM47,(AB83+AO35*D19)/AN47,(AB84+AO35*D19)/AO47)*AP47 ->  | BL113: =MIN((AC80+AO35*D19)/AK47,(AC81+AO35*D19)/AL47,(AC82+AO35*D19)/AM47,(AC83+AO35*D19)/AN47,(AC84+AO35*D19)/AO47)*AP47 ->  | BM113: =MIN((AD80+AO35*D19)/AK47,(AD81+AO35*D19)/AL47,(AD82+AO35*D19)/AM47,(AD83+AO35*D19)/AN47,(AD84+AO35*D19)/AO47)*AP47 ->  | BN113: =MIN((AE80+AO35*D19)/AK47,(AE81+AO35*D19)/AL47,(AE82+AO35*D19)/AM47,(AE83+AO35*D19)/AN47,(AE84+AO35*D19)/AO47)*AP47 ->  | BO113: =MIN((AF80+AO35*D19)/AK47,(AF81+AO35*D19)/AL47,(AF82+AO35*D19)/AM47,(AF83+AO35*D19)/AN47,(AF84+AO35*D19)/AO47)*AP47 ->  | BR113: =BA110 ->  | BS113: =IF(AY56=AK56,BR86,IF(AY56=AL56,BS86,IF(AY56=AM56,BT86,IF(AY56=AN56,BU86,IF(AY56=AO56,BV86,IF(AY56=AP56,BW86,IF(AY56=AQ56,BX86,IF(AY56=AR56,BY86,BT113)))))))) ->  | BT113: =IF(AY56=AS56,BZ86,IF(AY56=AT56,CA86,IF(AY56=AU56,CB86,IF(AY56=AV56,CC86,IF(AY56=AW56,CD86,IF(AY56=AX56,CE86,CO113)))))) ->  | BU113: =IF(BP56=BB56,BR86,IF(BP56=BC56,BS86,IF(BP56=BD56,BT86,IF(BP56=BE56,BU86,IF(BP56=BF56,BV86,IF(BP56=BG56,BW86,IF(BP56=BH56,BX86,IF(BP56=BI56,BY86,BV113)))))))) ->  | BV113: =IF(BP56=BJ56,BZ86,IF(BP56=BK56,CA86,IF(BP56=BL56,CB86,IF(BP56=BM56,CC86,IF(BP56=BN56,CD86,IF(BP56=BO56,CE86,CO113)))))) ->  | BW113: =IF(AY83=AK83,BR86,IF(AY83=AL83,BS86,IF(AY83=AM83,BT86,IF(AY83=AN83,BU86,IF(AY83=AO83,BV86,IF(AY83=AP83,BW86,IF(AY83=AQ83,BX86,IF(AY83=AR83,BY86,BX113)))))))) ->  | BX113: =IF(AY83=AS83,BZ86,IF(AY83=AT83,CA86,IF(AY83=AU83,CB86,IF(AY83=AV83,CC86,IF(AY83=AW83,CD86,IF(AY83=AX83,CE86,CO113)))))) ->  | BY113: =IF(BP83=BB83,BR86,IF(BP83=BC83,BS86,IF(BP83=BD83,BT86,IF(BP83=BE83,BU86,IF(BP83=BF83,BV86,IF(BP83=BG83,BW86,IF(BP83=BH83,BX86,IF(BP83=BI83,BY86,BZ113)))))))) ->  | BZ113: =IF(BP83=BJ83,BZ86,IF(BP83=BK83,CA86,IF(BP83=BL83,CB86,IF(BP83=BM83,CC86,IF(BP83=BN83,CD86,IF(BP83=BO83,CE86,CO113)))))) ->  | CA113: =IF(AY110=AK110,BR86,IF(AY110=AL110,BS86,IF(AY110=AM110,BT86,IF(AY110=AN110,BU86,IF(AY110=AO110,BV86,IF(AY110=AP110,BW86,IF(AY110=AQ110,BX86,IF(AY110=AR110,BY86,CB113)))))))) ->  | CB113: =IF(AY110=AS110,BZ86,IF(AY110=AT110,CA86,IF(AY110=AU110,CB86,IF(AY110=AV110,CC86,IF(AY110=AW110,CD86,IF(AY110=AX110,CE86,CO113)))))) ->  | CC113: =IF(BP110=BB110,BR86,IF(BP110=BC110,BS86,IF(BP110=BD110,BT86,IF(BP110=BE110,BU86,IF(BP110=BF110,BV86,IF(BP110=BG110,BW86,IF(BP110=BH110,BX86,IF(BP110=BI110,BY86,CD113)))))))) ->  | CD113: =IF(BP110=BJ110,BZ86,IF(BP110=BK110,CA86,IF(BP110=BL110,CB86,IF(BP110=BM110,CC86,IF(BP110=BN110,CD86,IF(BP110=BO110,CE86,CO113)))))) ->  | CE113: =IF(AY137=AK137,BR86,IF(AY137=AL137,BS86,IF(AY137=AM137,BT86,IF(AY137=AN137,BU86,IF(AY137=AO137,BV86,IF(AY137=AP137,BW86,IF(AY137=AQ137,BX86,IF(AY137=AR137,BY86,CF113)))))))) ->  | CF113: =IF(AY137=AS137,BZ86,IF(AY137=AT137,CA86,IF(AY137=AU137,CB86,IF(AY137=AV137,CC86,IF(AY137=AW137,CD86,IF(AY137=AX137,CE86,CO113)))))) ->  | CG113: =IF(BP137=BB137,BR86,IF(BP137=BC137,BS86,IF(BP137=BD137,BT86,IF(BP137=BE137,BU86,IF(BP137=BF137,BV86,IF(BP137=BG137,BW86,IF(BP137=BH137,BX86,IF(BP137=BI137,BY86,CH113)))))))) ->  | CH113: =IF(BP137=BJ137,BZ86,IF(BP137=BK137,CA86,IF(BP137=BL137,CB86,IF(BP137=BM137,CC86,IF(BP137=BN137,CD86,IF(BP137=BO137,CE86,CO113)))))) ->  | CI113: =IF(AY164=AK164,BR86,IF(AY164=AL164,BS86,IF(AY164=AM164,BT86,IF(AY164=AN164,BU86,IF(AY164=AO164,BV86,IF(AY164=AP164,BW86,IF(AY164=AQ164,BX86,IF(AY164=AR164,BY86,CJ113)))))))) ->  | CJ113: =IF(AY164=AS164,BZ86,IF(AY164=AT164,CA86,IF(AY164=AU164,CB86,IF(AY164=AV164,CC86,IF(AY164=AW164,CD86,IF(AY164=AX164,CE86,CO113)))))) ->  | CK113: =IF(BP164=BB164,BR86,IF(BP164=BC164,BS86,IF(BP164=BD164,BT86,IF(BP164=BE164,BU86,IF(BP164=BF164,BV86,IF(BP164=BG164,BW86,IF(BP164=BH164,BX86,IF(BP164=BI164,BY86,CL113)))))))) ->  | CL113: =IF(BP164=BJ164,BZ86,IF(BP164=BK164,CA86,IF(BP164=BL164,CB86,IF(BP164=BM164,CC86,IF(BP164=BN164,CD86,IF(BP164=BO164,CE86,CO113)))))) ->  | CM113: =IF(AY191=AK191,BR86,IF(AY191=AL191,BS86,IF(AY191=AM191,BT86,IF(AY191=AN191,BU86,IF(AY191=AO191,BV86,IF(AY191=AP191,BW86,IF(AY191=AQ191,BX86,IF(AY191=AR191,BY86,CN113)))))))) ->  | CN113: =IF(AY191=AS191,BZ86,IF(AY191=AT191,CA86,IF(AY191=AU191,CB86,IF(AY191=AV191,CC86,IF(AY191=AW191,CD86,IF(AY191=AX191,CE86,CO113)))))) ->  | CO113: -
D114: CAP | E114: =IF(G21<>"",G21,"") ->  | F114: =IF(VLOOKUP(E114,$AI$8:$AV$33,14,FALSE)=0,IF(N21<>"",N21*100,0),VLOOKUP(E114,$AI$8:$AV$33,14,FALSE)) -> 1 | G114: =IF(G21<>"",(L21/100+MIN(5000,M21)/500)/100,"") ->  | H114: =IF(G21<>"",IF(ISNA(IF(VLOOKUP(G21,$AI$8:$AV$33,14,FALSE)="","",(HLOOKUP(VLOOKUP(G21,$BA$10:$BB$20,2,FALSE),S128:AF133,6,FALSE)/100+MIN(5000,M21)/500)/100)),G114,IF(VLOOKUP(G21,$AI$8:$AV$33,14,FALSE)="","",(HLOOKUP(VLOOKUP(G21,$BA$10:$BB$20,2,FALSE),S128:AF133,6,FALSE)/100+MIN(5000,M21)/500)/100)),"") ->  | I114: =IF(G21<>"",IF(ISNA(IF(VLOOKUP(G21,$AI$8:$AV$29,14,FALSE)="","",((HLOOKUP(VLOOKUP(G21,$BA$10:$BB$20,2,FALSE),$S$128:$AF$133,6,FALSE)+IF(HLOOKUP(F114,$AJ$7:$AT$35,29,FALSE)=1,D19,0))/100+MIN(5000,M21)/500)/100)),H114,IF(VLOOKUP(G21,$AI$8:$AV$29,14,FALSE)="","",((HLOOKUP(VLOOKUP(G21,$BA$10:$BB$20,2,FALSE),$S$128:$AF$133,6,FALSE)+IF(HLOOKUP(F114,$AJ$7:$AT$35,29,FALSE)=1,D19,0))/100+MIN(5000,M21)/500)/100)),"") ->  | R114: =G19 ->  | S114: =S107 -> kit 1 | T114: =T107 -> kit 2/3 | U114: 0 | V114: kit 4 | W114: 0 | X114: kit 5 | Y114: kit 6/7 | Z114: 0 | AA114: 0 | AB114: kit 8 | AC114: kit 9 | AD114: 0 | AE114: =AE107 -> kit 10 | AF114: =AF107 -> kit 11 | AK114: =MIN((S87+AN35*D19)/AK46,(S88+AN35*D19)/AL46,(S89+AN35*D19)/AM46,(S90+AN35*D19)/AN46,(S91+AN35*D19)/AO46)*AP46 ->  | AL114: =MIN((T87+AN35*D19)/AK46,(T88+AN35*D19)/AL46,(T89+AN35*D19)/AM46,(T90+AN35*D19)/AN46,(T91+AN35*D19)/AO46)*AP46 ->  | AM114: =MIN((U87+AN35*D19)/AK46,(U88+AN35*D19)/AL46,(U89+AN35*D19)/AM46,(U90+AN35*D19)/AN46,(U91+AN35*D19)/AO46)*AP46 ->  | AN114: =MIN((V87+AN35*D19)/AK46,(V88+AN35*D19)/AL46,(V89+AN35*D19)/AM46,(V90+AN35*D19)/AN46,(V91+AN35*D19)/AO46)*AP46 ->  | AO114: =MIN((W87+AN35*D19)/AK46,(W88+AN35*D19)/AL46,(W89+AN35*D19)/AM46,(W90+AN35*D19)/AN46,(W91+AN35*D19)/AO46)*AP46 ->  | AP114: =MIN((X87+AN35*D19)/AK46,(X88+AN35*D19)/AL46,(X89+AN35*D19)/AM46,(X90+AN35*D19)/AN46,(X91+AN35*D19)/AO46)*AP46 ->  | AQ114: =MIN((Y87+AN35*D19)/AK46,(Y88+AN35*D19)/AL46,(Y89+AN35*D19)/AM46,(Y90+AN35*D19)/AN46,(Y91+AN35*D19)/AO46)*AP46 ->  | AR114: =MIN((Z87+AN35*D19)/AK46,(Z88+AN35*D19)/AL46,(Z89+AN35*D19)/AM46,(Z90+AN35*D19)/AN46,(Z91+AN35*D19)/AO46)*AP46 ->  | AS114: =MIN((AA87+AN35*D19)/AK46,(AA88+AN35*D19)/AL46,(AA89+AN35*D19)/AM46,(AA90+AN35*D19)/AN46,(AA91+AN35*D19)/AO46)*AP46 ->  | AT114: =MIN((AB87+AN35*D19)/AK46,(AB88+AN35*D19)/AL46,(AB89+AN35*D19)/AM46,(AB90+AN35*D19)/AN46,(AB91+AN35*D19)/AO46)*AP46 ->  | AU114: =MIN((AC87+AN35*D19)/AK46,(AC88+AN35*D19)/AL46,(AC89+AN35*D19)/AM46,(AC90+AN35*D19)/AN46,(AC91+AN35*D19)/AO46)*AP46 ->  | AV114: =MIN((AD87+AN35*D19)/AK46,(AD88+AN35*D19)/AL46,(AD89+AN35*D19)/AM46,(AD90+AN35*D19)/AN46,(AD91+AN35*D19)/AO46)*AP46 ->  | AW114: =MIN((AE87+AN35*D19)/AK46,(AE88+AN35*D19)/AL46,(AE89+AN35*D19)/AM46,(AE90+AN35*D19)/AN46,(AE91+AN35*D19)/AO46)*AP46 ->  | AX114: =MIN((AF87+AN35*D19)/AK46,(AF88+AN35*D19)/AL46,(AF89+AN35*D19)/AM46,(AF90+AN35*D19)/AN46,(AF91+AN35*D19)/AO46)*AP46 ->  | BB114: =MIN((S87+AO35*D19)/AK47,(S88+AO35*D19)/AL47,(S89+AO35*D19)/AM47,(S90+AO35*D19)/AN47,(S91+AO35*D19)/AO47)*AP47 ->  | BC114: =MIN((T87+AO35*D19)/AK47,(T88+AO35*D19)/AL47,(T89+AO35*D19)/AM47,(T90+AO35*D19)/AN47,(T91+AO35*D19)/AO47)*AP47 ->  | BD114: =MIN((U87+AO35*D19)/AK47,(U88+AO35*D19)/AL47,(U89+AO35*D19)/AM47,(U90+AO35*D19)/AN47,(U91+AO35*D19)/AO47)*AP47 ->  | BE114: =MIN((V87+AO35*D19)/AK47,(V88+AO35*D19)/AL47,(V89+AO35*D19)/AM47,(V90+AO35*D19)/AN47,(V91+AO35*D19)/AO47)*AP47 ->  | BF114: =MIN((W87+AO35*D19)/AK47,(W88+AO35*D19)/AL47,(W89+AO35*D19)/AM47,(W90+AO35*D19)/AN47,(W91+AO35*D19)/AO47)*AP47 ->  | BG114: =MIN((X87+AO35*D19)/AK47,(X88+AO35*D19)/AL47,(X89+AO35*D19)/AM47,(X90+AO35*D19)/AN47,(X91+AO35*D19)/AO47)*AP47 ->  | BH114: =MIN((Y87+AO35*D19)/AK47,(Y88+AO35*D19)/AL47,(Y89+AO35*D19)/AM47,(Y90+AO35*D19)/AN47,(Y91+AO35*D19)/AO47)*AP47 ->  | BI114: =MIN((Z87+AO35*D19)/AK47,(Z88+AO35*D19)/AL47,(Z89+AO35*D19)/AM47,(Z90+AO35*D19)/AN47,(Z91+AO35*D19)/AO47)*AP47 ->  | BJ114: =MIN((AA87+AO35*D19)/AK47,(AA88+AO35*D19)/AL47,(AA89+AO35*D19)/AM47,(AA90+AO35*D19)/AN47,(AA91+AO35*D19)/AO47)*AP47 ->  | BK114: =MIN((AB87+AO35*D19)/AK47,(AB88+AO35*D19)/AL47,(AB89+AO35*D19)/AM47,(AB90+AO35*D19)/AN47,(AB91+AO35*D19)/AO47)*AP47 ->  | BL114: =MIN((AC87+AO35*D19)/AK47,(AC88+AO35*D19)/AL47,(AC89+AO35*D19)/AM47,(AC90+AO35*D19)/AN47,(AC91+AO35*D19)/AO47)*AP47 ->  | BM114: =MIN((AD87+AO35*D19)/AK47,(AD88+AO35*D19)/AL47,(AD89+AO35*D19)/AM47,(AD90+AO35*D19)/AN47,(AD91+AO35*D19)/AO47)*AP47 ->  | BN114: =MIN((AE87+AO35*D19)/AK47,(AE88+AO35*D19)/AL47,(AE89+AO35*D19)/AM47,(AE90+AO35*D19)/AN47,(AE91+AO35*D19)/AO47)*AP47 ->  | BO114: =MIN((AF87+AO35*D19)/AK47,(AF88+AO35*D19)/AL47,(AF89+AO35*D19)/AM47,(AF90+AO35*D19)/AN47,(AF91+AO35*D19)/AO47)*AP47 ->  | CO114: - | CT114: adversaire
D115: CAP | F115: 1 | H115: =IF(G22<>"",IF(ISNA(IF(VLOOKUP(G22,$AI$8:$AV$33,14,FALSE)="","",(HLOOKUP(VLOOKUP(G22,$BA$10:$BB$20,2,FALSE),S135:AF140,6,FALSE)/100+MIN(5000,M22)/500)/100)),G115,IF(VLOOKUP(G22,$AI$8:$AV$33,14,FALSE)="","",(HLOOKUP(VLOOKUP(G22,$BA$10:$BB$20,2,FALSE),S135:AF140,6,FALSE)/100+MIN(5000,M22)/500)/100)),"") ->  | I115: =IF(G22<>"",IF(ISNA(IF(VLOOKUP(G22,$AI$8:$AV$29,14,FALSE)="","",((HLOOKUP(VLOOKUP(G22,$BA$10:$BB$20,2,FALSE),$S$135:$AF$140,6,FALSE)+IF(HLOOKUP(F115,$AJ$7:$AT$35,29,FALSE)=1,D19,0))/100+MIN(5000,M22)/500)/100)),H115,IF(VLOOKUP(G22,$AI$8:$AV$29,14,FALSE)="","",((HLOOKUP(VLOOKUP(G22,$BA$10:$BB$20,2,FALSE),$S$135:$AF$140,6,FALSE)+IF(HLOOKUP(F115,$AJ$7:$AT$35,29,FALSE)=1,D19,0))/100+MIN(5000,M22)/500)/100)),"") ->  | R115: =IF($AX$306,H19+VLOOKUP(Team!$X25,Team!$E$30:$J$300,6,FALSE),H19+AH39+$D$21)+$D$19*$AG$16 ->  | S115: =IF($AX$306,$R115,$R115+Q10) ->  | T115: =IF($AX$306,$R115,$R115+R10) ->  | AK115: =MIN((S94+AN35*D19)/AK46,(S95+AN35*D19)/AL46,(S96+AN35*D19)/AM46,(S97+AN35*D19)/AN46,(S98+AN35*D19)/AO46)*AP46 ->  | AL115: =MIN((T94+AN35*D19)/AK46,(T95+AN35*D19)/AL46,(T96+AN35*D19)/AM46,(T97+AN35*D19)/AN46,(T98+AN35*D19)/AO46)*AP46 ->  | AM115: =MIN((U94+AN35*D19)/AK46,(U95+AN35*D19)/AL46,(U96+AN35*D19)/AM46,(U97+AN35*D19)/AN46,(U98+AN35*D19)/AO46)*AP46 ->  | AN115: =MIN((V94+AN35*D19)/AK46,(V95+AN35*D19)/AL46,(V96+AN35*D19)/AM46,(V97+AN35*D19)/AN46,(V98+AN35*D19)/AO46)*AP46 ->  | AO115: =MIN((W94+AN35*D19)/AK46,(W95+AN35*D19)/AL46,(W96+AN35*D19)/AM46,(W97+AN35*D19)/AN46,(W98+AN35*D19)/AO46)*AP46 ->  | AP115: =MIN((X94+AN35*D19)/AK46,(X95+AN35*D19)/AL46,(X96+AN35*D19)/AM46,(X97+AN35*D19)/AN46,(X98+AN35*D19)/AO46)*AP46 ->  | AQ115: =MIN((Y94+AN35*D19)/AK46,(Y95+AN35*D19)/AL46,(Y96+AN35*D19)/AM46,(Y97+AN35*D19)/AN46,(Y98+AN35*D19)/AO46)*AP46 ->  | AR115: =MIN((Z94+AN35*D19)/AK46,(Z95+AN35*D19)/AL46,(Z96+AN35*D19)/AM46,(Z97+AN35*D19)/AN46,(Z98+AN35*D19)/AO46)*AP46 ->  | AS115: =MIN((AA94+AN35*D19)/AK46,(AA95+AN35*D19)/AL46,(AA96+AN35*D19)/AM46,(AA97+AN35*D19)/AN46,(AA98+AN35*D19)/AO46)*AP46 ->  | AT115: =MIN((AB94+AN35*D19)/AK46,(AB95+AN35*D19)/AL46,(AB96+AN35*D19)/AM46,(AB97+AN35*D19)/AN46,(AB98+AN35*D19)/AO46)*AP46 ->  | AU115: =MIN((AC94+AN35*D19)/AK46,(AC95+AN35*D19)/AL46,(AC96+AN35*D19)/AM46,(AC97+AN35*D19)/AN46,(AC98+AN35*D19)/AO46)*AP46 ->  | AV115: =MIN((AD94+AN35*D19)/AK46,(AD95+AN35*D19)/AL46,(AD96+AN35*D19)/AM46,(AD97+AN35*D19)/AN46,(AD98+AN35*D19)/AO46)*AP46 ->  | AW115: =MIN((AE94+AN35*D19)/AK46,(AE95+AN35*D19)/AL46,(AE96+AN35*D19)/AM46,(AE97+AN35*D19)/AN46,(AE98+AN35*D19)/AO46)*AP46 ->  | AX115: =MIN((AF94+AN35*D19)/AK46,(AF95+AN35*D19)/AL46,(AF96+AN35*D19)/AM46,(AF97+AN35*D19)/AN46,(AF98+AN35*D19)/AO46)*AP46 ->  | BB115: =MIN((S94+AO35*D19)/AK47,(S95+AO35*D19)/AL47,(S96+AO35*D19)/AM47,(S97+AO35*D19)/AN47,(S98+AO35*D19)/AO47)*AP47 ->  | BC115: =MIN((T94+AO35*D19)/AK47,(T95+AO35*D19)/AL47,(T96+AO35*D19)/AM47,(T97+AO35*D19)/AN47,(T98+AO35*D19)/AO47)*AP47 ->  | BD115: =MIN((U94+AO35*D19)/AK47,(U95+AO35*D19)/AL47,(U96+AO35*D19)/AM47,(U97+AO35*D19)/AN47,(U98+AO35*D19)/AO47)*AP47 ->  | BE115: =MIN((V94+AO35*D19)/AK47,(V95+AO35*D19)/AL47,(V96+AO35*D19)/AM47,(V97+AO35*D19)/AN47,(V98+AO35*D19)/AO47)*AP47 ->  | BF115: =MIN((W94+AO35*D19)/AK47,(W95+AO35*D19)/AL47,(W96+AO35*D19)/AM47,(W97+AO35*D19)/AN47,(W98+AO35*D19)/AO47)*AP47 ->  | BG115: =MIN((X94+AO35*D19)/AK47,(X95+AO35*D19)/AL47,(X96+AO35*D19)/AM47,(X97+AO35*D19)/AN47,(X98+AO35*D19)/AO47)*AP47 ->  | BH115: =MIN((Y94+AO35*D19)/AK47,(Y95+AO35*D19)/AL47,(Y96+AO35*D19)/AM47,(Y97+AO35*D19)/AN47,(Y98+AO35*D19)/AO47)*AP47 ->  | BI115: =MIN((Z94+AO35*D19)/AK47,(Z95+AO35*D19)/AL47,(Z96+AO35*D19)/AM47,(Z97+AO35*D19)/AN47,(Z98+AO35*D19)/AO47)*AP47 ->  | BJ115: =MIN((AA94+AO35*D19)/AK47,(AA95+AO35*D19)/AL47,(AA96+AO35*D19)/AM47,(AA97+AO35*D19)/AN47,(AA98+AO35*D19)/AO47)*AP47 ->  | BK115: =MIN((AB94+AO35*D19)/AK47,(AB95+AO35*D19)/AL47,(AB96+AO35*D19)/AM47,(AB97+AO35*D19)/AN47,(AB98+AO35*D19)/AO47)*AP47 ->  | BL115: =MIN((AC94+AO35*D19)/AK47,(AC95+AO35*D19)/AL47,(AC96+AO35*D19)/AM47,(AC97+AO35*D19)/AN47,(AC98+AO35*D19)/AO47)*AP47 ->  | BM115: =MIN((AD94+AO35*D19)/AK47,(AD95+AO35*D19)/AL47,(AD96+AO35*D19)/AM47,(AD97+AO35*D19)/AN47,(AD98+AO35*D19)/AO47)*AP47 ->  | BN115: =MIN((AE94+AO35*D19)/AK47,(AE95+AO35*D19)/AL47,(AE96+AO35*D19)/AM47,(AE97+AO35*D19)/AN47,(AE98+AO35*D19)/AO47)*AP47 ->  | BO115: =MIN((AF94+AO35*D19)/AK47,(AF95+AO35*D19)/AL47,(AF96+AO35*D19)/AM47,(AF97+AO35*D19)/AN47,(AF98+AO35*D19)/AO47)*AP47 ->  | CO115: - | CT115: 541 | DF115: 433 | DR115: 352 | ED115: 442
